Workbook

Sheet DEPARTAMENTAL
A4: POBLACION ESTIMADA POR EDADES SIMPLES Y GRUPOS DE EDAD, SEGÚN DEPARTAMENTO. 2026
A5: * Actualizado con datos INEI y el Padrón Nominal
A6: POBLACION 2026 | D6: POBLACION TOTAL, POR EDADS SIMPLES | X6: POBLACIÓN TOTAL, POR GRUPOS QUINQUEN ALES DE EDAD | AL6: EDADES ESPECIALES | AO6: NACIMIENTOS VIVOS | AP6: POBLACION FEMENINA TOTAL | AQ6: POBLACION FEMENINA | AT6: GESTANTES ESPERADAS | BC6: TOTAL
A7: UBIGEO | B7: DEPARTAMENTO | C7: Total | D7: 0 | E7: 1 | F7: 2 | G7: 3 | H7: 4 | I7: 5 | J7: 6 | K7: 7 | L7: 8 | M7: 9 | N7: 10 | O7: 11 | P7: 12 | Q7: 13 | R7: 14 | S7: 15 | T7: 16 | U7: 17 | V7: 18 | W7: 19 | X7: 20-24 | Y7: 25-29 | Z7: 30-34 | AA7: 35-39 | AB7: 40-44 | AC7: 45-49 | AD7: 50-54 | AE7: 55-59 | AF7: 60-64 | AG7: 65-69 | AH7: 70-74 | AI7: 75-79 | AJ7: 80-84 | AK7: 85-+ | AL7: 28 DIAS | AM7: 0-5 MESES | AN7: 6-11 MESES | AQ7: 10 - 14 | AR7: 15- 19 | AS7: 20- 49 | AV7: TOTAL | AW7: NIÑO | AX7: Adolescente | AY7: Joven | AZ7: Adulto | BA7: Adulto Mayor | BC7: 00-04 | BD7: 05-09 | BE7: 10-14 | BF7: 15-19 | BG7: 20-24 | BH7: 25-29 | BI7: 30-34 | BJ7: 35-39 | BK7: 40-44 | BL7: 45-49 | BM7: 50-54 | BN7: 55-59 | BO7: 60-64 | BP7: 65-69 | BQ7: 70-74 | BR7: 75-79 | BS7: 80-84 | BT7: 85-+ | BV7: Hombres | BW7: Mujeres | BX7: Nacimientos vivos | BY7: Gestantes Esperadas
A8: 00 | B8: PERU | C8: =C9 -> 1,655,634 | D8: =D9 -> 15,712 | E8: 16,435 | F8: 16,469 | G8: 17,838 | H8: 18,010 | I8: 21,120 | J8: 26,285 | K8: 26,908 | L8: 26,517 | M8: 25,193 | N8: 23,455 | O8: 23,754 | P8: 24,541 | Q8: 23,426 | R8: 23,835 | S8: 25,279 | T8: 25,532 | U8: 25,380 | V8: 24,489 | W8: 23,987 | X8: 121,156 | Y8: 135,081 | Z8: 135,252 | AA8: 122,328 | AB8: 120,811 | AC8: 112,552 | AD8: 98,537 | AE8: 90,673 | AF8: 76,289 | AG8: 60,761 | AH8: 48,658 | AI8: 34,917 | AJ8: 22,143 | AK8: 22,311 | AL8: 1,178 | AM8: 7,853 | AN8: 7,859 | AO8: 16,644 | AP8: 840,625 | AQ8: 59,071 | AR8: 62,354 | AS8: 379,482 | AT8: 32,018 | AU8: 0 | AV8: 1,655,634 | AW8: 257,696 | AX8: 147,993 | AY8: 304,713 | AZ8: 680,153 | BA8: 265,079 | BB8: 0 | BC8: 84,464 | BD8: 126,023 | BE8: 119,011 | BF8: 124,667 | BG8: 121,156 | BH8: 135,081 | BI8: 135,252 | BJ8: 122,328 | BK8: 120,811 | BL8: 112,552 | BM8: 98,537 | BN8: 90,673 | BO8: 76,289 | BP8: =BP9 -> 60,761 | BQ8: 48,658 | BR8: 34,917 | BS8: 22,143 | BT8: 22,311 | BU8: 0 | BV8: 815,009 | BW8: 840,625 | BX8: 16,644 | BY8: 32,018
A9: 04 | B9: AREQUIPA | C9: 1,655,634 | D9: 15,712 | E9: 16,435 | F9: 16,469 | G9: 17,838 | H9: 18,010 | I9: 21,120 | J9: 26,285 | K9: 26,908 | L9: 26,517 | M9: 25,193 | N9: 23,455 | O9: 23,754 | P9: 24,541 | Q9: 23,426 | R9: 23,835 | S9: 25,279 | T9: 25,532 | U9: 25,380 | V9: 24,489 | W9: 23,987 | X9: 121,156 | Y9: 135,081 | Z9: 135,252 | AA9: 122,328 | AB9: 120,811 | AC9: 112,552 | AD9: 98,537 | AE9: 90,673 | AF9: 76,289 | AG9: 60,761 | AH9: 48,658 | AI9: 34,917 | AJ9: 22,143 | AK9: 22,311 | AL9: 1,178 | AM9: 7,853 | AN9: 7,859 | AO9: 16,644 | AP9: 840,625 | AQ9: 59,071 | AR9: 62,354 | AS9: 379,482 | AT9: 32,018 | AV9: 1,655,634 | AW9: 257,696 | AX9: 147,993 | AY9: 304,713 | AZ9: 680,153 | BA9: 265,079 | BC9: 84,464 | BD9: 126,023 | BE9: 119,011 | BF9: 124,667 | BG9: 121,156 | BH9: 135,081 | BI9: 135,252 | BJ9: 122,328 | BK9: 120,811 | BL9: 112,552 | BM9: 98,537 | BN9: 90,673 | BO9: 76,289 | BP9: 60,761 | BQ9: 48,658 | BR9: 34,917 | BS9: 22,143 | BT9: 22,311 | BV9: 815,009 | BW9: 840,625 | BX9: 16,644 | BY9: 32,018
A12: FUENTE: BOLETIN DEMOGRAFICO Nº 25, 26, 39 / RENIEC / Padrón Nominal/ CNV
A13: La población de 0-5 años corresponden al reporte de la poblacion del Padrón Nominal con corte al 31/12/2025
A14: OFICINA DE GESTION DE LA INFORMACION - MINISTERIO DE SALUD
A19: HOMBRES | D19: POBLACION TOTAL, POR EDADS SIMPLES | X19: POBLACIÓN TOTAL, POR GRUPOS QUINQUEN ALES DE EDAD | AL19: EDADES ESPECIALES | AO19: NACIMIENTOS VIVOS | BC19: HOMBRES
A20: UBIGEO | B20: DEPARTAMENTO | C20: Total | D20: 0 | E20: 1 | F20: 2 | G20: 3 | H20: 4 | I20: 5 | J20: 6 | K20: 7 | L20: 8 | M20: 9 | N20: 10 | O20: 11 | P20: 12 | Q20: 13 | R20: 14 | S20: 15 | T20: 16 | U20: 17 | V20: 18 | W20: 19 | X20: 20-24 | Y20: 25-29 | Z20: 30-34 | AA20: 35-39 | AB20: 40-44 | AC20: 45-49 | AD20: 50-54 | AE20: 55-59 | AF20: 60-64 | AG20: 65-69 | AH20: 70-74 | AI20: 75-79 | AJ20: 80-84 | AK20: 85-+ | AL20: 28 DIAS | AM20: 0-5 MESES | AN20: 6-11 MESES | AV20: TOTAL | AW20: NIÑO | AX20: Adolescente | AY20: Joven | AZ20: Adulto | BA20: Adulto Mayor | BC20: 00-04 | BD20: 05-09 | BE20: 10-14 | BF20: 15-19 | BG20: 20-24 | BH20: 25-29 | BI20: 30-34 | BJ20: 35-39 | BK20: 40-44 | BL20: 45-49 | BM20: 50-54 | BN20: 55-59 | BO20: 60-64 | BP20: 65-69 | BQ20: 70-74 | BR20: 75-79 | BS20: 80-84 | BT20: 85-+
A21: 00 | B21: PERU | C21: =C22 -> 815,009 | D21: =D22 -> 8,047 | E21: 8,472 | F21: 8,364 | G21: 9,038 | H21: 9,144 | I21: 10,788 | J21: 13,324 | K21: 13,692 | L21: 13,527 | M21: 13,359 | N21: 11,839 | O21: 11,866 | P21: 12,274 | Q21: 11,708 | R21: 12,253 | S21: 12,620 | T21: 12,792 | U21: 12,689 | V21: 12,262 | W21: 11,950 | X21: 58,785 | Y21: 63,334 | Z21: 66,466 | AA21: 62,287 | AB21: 60,582 | AC21: 56,244 | AD21: 47,337 | AE21: 44,628 | AF21: 37,691 | AG21: 29,132 | AH21: 22,945 | AI21: 16,409 | AJ21: 10,028 | AK21: 9,133 | AL21: 616 | AM21: 4,024 | AN21: 4,023 | AO21: 8,525 | AP21: 0 | AQ21: 0 | AR21: 0 | AS21: 0 | AT21: 0 | AU21: 0 | AV21: 815,009 | AW21: 131,460 | AX21: 74,336 | AY21: 146,331 | AZ21: 337,544 | BA21: 125,338 | BB21: 0 | BC21: 43,065 | BD21: 64,690 | BE21: 59,940 | BF21: 62,313 | BG21: 58,785 | BH21: 63,334 | BI21: 66,466 | BJ21: 62,287 | BK21: 60,582 | BL21: 56,244 | BM21: 47,337 | BN21: 44,628 | BO21: 37,691 | BP21: =BP22 -> 29,132 | BQ21: 22,945 | BR21: 16,409 | BS21: 10,028 | BT21: 9,133
A22: 04 | B22: AREQUIPA | C22: 815009 | D22: 8047 | E22: 8472 | F22: 8364 | G22: 9038 | H22: 9144 | I22: 10788 | J22: 13324 | K22: 13692 | L22: 13527 | M22: 13359 | N22: 11839 | O22: 11866 | P22: 12274 | Q22: 11708 | R22: 12253 | S22: 12620 | T22: 12792 | U22: 12689 | V22: 12262 | W22: 11950 | X22: 58785 | Y22: 63334 | Z22: 66466 | AA22: 62287 | AB22: 60582 | AC22: 56244 | AD22: 47337 | AE22: 44628 | AF22: 37691 | AG22: 29132 | AH22: 22945 | AI22: 16409 | AJ22: 10028 | AK22: 9133 | AL22: 616 | AM22: 4024 | AN22: 4023 | AO22: 8525 | AV22: 815,009 | AW22: 131,460 | AX22: 74,336 | AY22: 146,331 | AZ22: 337,544 | BA22: 125,338 | BC22: 43,065 | BD22: 64,690 | BE22: 59,940 | BF22: 62,313 | BG22: 58,785 | BH22: 63,334 | BI22: 66,466 | BJ22: 62,287 | BK22: 60,582 | BL22: 56,244 | BM22: 47,337 | BN22: 44,628 | BO22: 37,691 | BP22: 29,132 | BQ22: 22,945 | BR22: 16,409 | BS22: 10,028 | BT22: 9,133
A25: MUJERES | D25: POBLACION TOTAL, POR EDADS SIMPLES | X25: POBLACIÓN TOTAL, POR GRUPOS QUINQUEN ALES DE EDAD | AL25: EDADES ESPECIALES | AO25: NACIMIENTOS VIVOS | AP25: POBLACION FEMENINA TOTAL | AQ25: POBLACION FEMENINA | AT25: GESTANTES ESPERADAS | BC25: MUJERES
A26: UBIGEO | B26: DEPARTAMENTO | C26: Total | D26: 0 | E26: 1 | F26: 2 | G26: 3 | H26: 4 | I26: 5 | J26: 6 | K26: 7 | L26: 8 | M26: 9 | N26: 10 | O26: 11 | P26: 12 | Q26: 13 | R26: 14 | S26: 15 | T26: 16 | U26: 17 | V26: 18 | W26: 19 | X26: 20-24 | Y26: 25-29 | Z26: 30-34 | AA26: 35-39 | AB26: 40-44 | AC26: 45-49 | AD26: 50-54 | AE26: 55-59 | AF26: 60-64 | AG26: 65-69 | AH26: 70-74 | AI26: 75-79 | AJ26: 80-84 | AK26: 85-+ | AL26: 28 DIAS | AM26: 0-5 MESES | AN26: 6-11 MESES | AQ26: 10 - 14 | AR26: 15- 19 | AS26: 20- 49 | AV26: TOTAL | AW26: NIÑO | AX26: Adolescente | AY26: Joven | AZ26: Adulto | BA26: Adulto Mayor | BC26: 00-04 | BD26: 05-09 | BE26: 10-14 | BF26: 15-19 | BG26: 20-24 | BH26: 25-29 | BI26: 30-34 | BJ26: 35-39 | BK26: 40-44 | BL26: 45-49 | BM26: 50-54 | BN26: 55-59 | BO26: 60-64 | BP26: 65-69 | BQ26: 70-74 | BR26: 75-79 | BS26: 80-84 | BT26: 85-+
A27: 00 | B27: PERU | C27: =C28 -> 840,625 | D27: =D28 -> 7,665 | E27: 7,963 | F27: 8,105 | G27: 8,800 | H27: 8,866 | I27: 10,332 | J27: 12,961 | K27: 13,216 | L27: 12,990 | M27: 11,834 | N27: 11,616 | O27: 11,888 | P27: 12,267 | Q27: 11,718 | R27: 11,582 | S27: 12,659 | T27: 12,740 | U27: 12,691 | V27: 12,227 | W27: 12,037 | X27: 62,371 | Y27: 71,747 | Z27: 68,786 | AA27: 60,041 | AB27: 60,229 | AC27: 56,308 | AD27: 51,200 | AE27: 46,045 | AF27: 38,598 | AG27: 31,629 | AH27: 25,713 | AI27: 18,508 | AJ27: 12,115 | AK27: 13,178 | AL27: 562 | AM27: 3,829 | AN27: 3,836 | AO27: 8,119 | AP27: 840,625 | AQ27: 59,071 | AR27: 62,354 | AS27: 379,482 | AT27: 32,018 | AU27: 0 | AV27: 840,625 | AW27: 126,236 | AX27: 73,657 | AY27: 158,382 | AZ27: 342,609 | BA27: 139,741 | BB27: 0 | BC27: 41,399 | BD27: 61,333 | BE27: 59,071 | BF27: 62,354 | BG27: 62,371 | BH27: 71,747 | BI27: 68,786 | BJ27: 60,041 | BK27: 60,229 | BL27: 56,308 | BM27: 51,200 | BN27: 46,045 | BO27: 38,598 | BP27: =BP28 -> 31,629 | BQ27: 25,713 | BR27: 18,508 | BS27: 12,115 | BT27: 13,178
A28: 04 | B28: AREQUIPA | C28: 840625 | D28: 7665 | E28: 7963 | F28: 8105 | G28: 8800 | H28: 8866 | I28: 10332 | J28: 12961 | K28: 13216 | L28: 12990 | M28: 11834 | N28: 11616 | O28: 11888 | P28: 12267 | Q28: 11718 | R28: 11582 | S28: 12659 | T28: 12740 | U28: 12691 | V28: 12227 | W28: 12037 | X28: 62371 | Y28: 71747 | Z28: 68786 | AA28: 60041 | AB28: 60229 | AC28: 56308 | AD28: 51200 | AE28: 46045 | AF28: 38598 | AG28: 31629 | AH28: 25713 | AI28: 18508 | AJ28: 12115 | AK28: 13178 | AL28: 562 | AM28: 3829 | AN28: 3836 | AO28: 8119 | AP28: 840,625 | AQ28: 59,071 | AR28: 62,354 | AS28: 379,482 | AT28: 32,018 | AV28: 840,625 | AW28: 126,236 | AX28: 73,657 | AY28: 158,382 | AZ28: 342,609 | BA28: 139,741 | BC28: 41,399 | BD28: 61,333 | BE28: 59,071 | BF28: 62,354 | BG28: 62,371 | BH28: 71,747 | BI28: 68,786 | BJ28: 60,041 | BK28: 60,229 | BL28: 56,308 | BM28: 51,200 | BN28: 46,045 | BO28: 38,598 | BP28: 31,629 | BQ28: 25,713 | BR28: 18,508 | BS28: 12,115 | BT28: 13,178
A31: La población de 0-5 años corresponden al reporte de la poblacion del Padrón Nominal con corte al 31/12/2025

Sheet PROVINCIAL
A4: POBLACION ESTIMADA POR EDADES SIMPLES Y GRUPOS DE EDAD, SEGÚN DEPARTAMENTO y PROVINCIA. 2026
A5: * Actualizado con datos INEI y el Padrón Nominal
A6: POBLACION 2026 | F6: POBLACION TOTAL, POR EDADS SIMPLES | Z6: POBLACIÓN TOTAL, POR GRUPOS QUINQUEN ALES DE EDAD | AN6: EDADES ESPECIALES | AQ6: NACIMIENTOS VIVOS | AR6: POBLACION FEMENINA TOTAL | AS6: POBLACION FEMENINA | AV6: GESTANTES ESPERADAS
A7: UBIGEO | B7: DIRESA | C7: DEPARTAMENTO | D7: PROVINCIA | E7: Total | F7: 0 | G7: 1 | H7: 2 | I7: 3 | J7: 4 | K7: 5 | L7: 6 | M7: 7 | N7: 8 | O7: 9 | P7: 10 | Q7: 11 | R7: 12 | S7: 13 | T7: 14 | U7: 15 | V7: 16 | W7: 17 | X7: 18 | Y7: 19 | Z7: 20-24 | AA7: 25-29 | AB7: 30-34 | AC7: 35-39 | AD7: 40-44 | AE7: 45-49 | AF7: 50-54 | AG7: 55-59 | AH7: 60-64 | AI7: 65-69 | AJ7: 70-74 | AK7: 75-79 | AL7: 80-84 | AM7: 85-+ | AN7: 28 DIAS | AO7: 0-5 MESES | AP7: 6-11 MESES | AS7: 10 - 14 | AT7: 15- 19 | AU7: 20- 49 | AX7: TOTAL | AY7: NIÑO | AZ7: Adolescente | BA7: Joven | BB7: Adulto | BC7: Adulto Mayor
A8: 0000 | B8: PERU | C8: PERU | D8: PERU | E8: =SUM(E9:E16) -> 1,655,634 | F8: =SUM(F9:F16) -> 15,712 | G8: 16,435 | H8: 16,469 | I8: 17,838 | J8: 18,010 | K8: 21,120 | L8: 26,285 | M8: 26,908 | N8: 26,517 | O8: 25,193 | P8: 23,455 | Q8: 23,754 | R8: 24,541 | S8: 23,426 | T8: 23,835 | U8: 25,279 | V8: 25,532 | W8: 25,380 | X8: 24,489 | Y8: 23,987 | Z8: 121,156 | AA8: 135,081 | AB8: 135,252 | AC8: 122,328 | AD8: 120,811 | AE8: 112,552 | AF8: 98,537 | AG8: 90,673 | AH8: 76,289 | AI8: 60,761 | AJ8: 48,658 | AK8: 34,917 | AL8: 22,143 | AM8: 22,311 | AN8: 1,178 | AO8: 7,853 | AP8: 7,859 | AQ8: 16,644 | AR8: 840,625 | AS8: 59,071 | AT8: 62,354 | AU8: 379,482 | AV8: 32,018 | AW8: 0 | AX8: 1,655,634 | AY8: 257,696 | AZ8: 147,993 | BA8: 304,713 | BB8: 680,153 | BC8: 265,079
A9: 0401 | B9: AREQUIPA | C9: AREQUIPA | D9: AREQUIPA | E9: 1,283,201 | F9: 12,212 | G9: 12,670 | H9: 12,473 | I9: 13,318 | J9: 13,692 | K9: 16,316 | L9: 20,821 | M9: 21,186 | N9: 21,044 | O9: 19,862 | P9: 18,247 | Q9: 18,345 | R9: 19,113 | S9: 18,152 | T9: 18,268 | U9: 19,265 | V9: 19,130 | W9: 19,074 | X9: 18,820 | Y9: 18,738 | Z9: 95,521 | AA9: 106,508 | AB9: 107,036 | AC9: 95,388 | AD9: 94,524 | AE9: 87,321 | AF9: 75,781 | AG9: 68,727 | AH9: 57,888 | AI9: 46,489 | AJ9: 37,259 | AK9: 26,655 | AL9: 16,720 | AM9: 16,638 | AN9: 917 | AO9: 6,091 | AP9: 6,121 | AQ9: 12,944 | AR9: 648,776 | AS9: 45,178 | AT9: 46,978 | AU9: 295,579 | AV9: 24,320 | AX9: 1,283,201 | AY9: 200,186 | AZ9: 113,002 | BA9: 239,587 | BB9: 528,777 | BC9: 201,649
A10: 0402 | B10: AREQUIPA | C10: AREQUIPA | D10: CAMANA | E10: 73,366 | F10: 698 | G10: 759 | H10: 780 | I10: 798 | J10: 735 | K10: 875 | L10: 1,148 | M10: 1,208 | N10: 1,154 | O10: 1,050 | P10: 1,016 | Q10: 1,112 | R10: 1,118 | S10: 1,077 | T10: 1,095 | U10: 1,175 | V10: 1,150 | W10: 1,160 | X10: 1,069 | Y10: 967 | Z10: 4,862 | AA10: 5,826 | AB10: 6,010 | AC10: 5,580 | AD10: 5,220 | AE10: 4,995 | AF10: 4,680 | AG10: 4,432 | AH10: 3,875 | AI10: 2,782 | AJ10: 2,021 | AK10: 1,309 | AL10: 855 | AM10: 775 | AN10: 51 | AO10: 347 | AP10: 351 | AQ10: 741 | AR10: 37,479 | AS10: 2,777 | AT10: 2,844 | AU10: 17,139 | AV10: 1,358 | AX10: 73,366 | AY10: 11,333 | AZ10: 6,775 | BA10: 12,724 | BB10: 30,917 | BC10: 11,617
A11: 0403 | B11: AREQUIPA | C11: AREQUIPA | D11: CARAVELI | E11: 51,783 | F11: 523 | G11: 547 | H11: 586 | I11: 685 | J11: 604 | K11: 689 | L11: 817 | M11: 810 | N11: 814 | O11: 830 | P11: 850 | Q11: 835 | R11: 798 | S11: 811 | T11: 864 | U11: 946 | V11: 985 | W11: 896 | X11: 791 | Y11: 723 | Z11: 3,350 | AA11: 3,808 | AB11: 3,934 | AC11: 3,856 | AD11: 3,610 | AE11: 3,509 | AF11: 3,155 | AG11: 2,957 | AH11: 2,437 | AI11: 1,830 | AJ11: 1,448 | AK11: 1,010 | AL11: 674 | AM11: 801 | AN11: 45 | AO11: 269 | AP11: 254 | AQ11: 554 | AR11: 26,779 | AS11: 2,208 | AT11: 2,308 | AU11: 11,789 | AV11: 1,142 | AX11: 51,783 | AY11: 8,590 | AZ11: 5,300 | BA11: 8,672 | BB11: 21,021 | BC11: 8,200
A12: 0404 | B12: AREQUIPA | C12: AREQUIPA | D12: CASTILLA | E12: 37,711 | F12: 266 | G12: 294 | H12: 341 | I12: 379 | J12: 370 | K12: 436 | L12: 501 | M12: 524 | N12: 563 | O12: 537 | P12: 555 | Q12: 587 | R12: 590 | S12: 544 | T12: 613 | U12: 717 | V12: 732 | W12: 762 | X12: 565 | Y12: 552 | Z12: 2,652 | AA12: 2,762 | AB12: 2,607 | AC12: 2,486 | AD12: 2,492 | AE12: 2,397 | AF12: 2,243 | AG12: 2,334 | AH12: 1,978 | AI12: 1,563 | AJ12: 1,300 | AK12: 1,023 | AL12: 656 | AM12: 790 | AN12: 16 | AO12: 132 | AP12: 134 | AQ12: 279 | AR12: 19,573 | AS12: 1,517 | AT12: 1,793 | AU12: 7,967 | AV12: 619 | AX12: 37,711 | AY12: 5,353 | AZ12: 3,958 | BA12: 6,531 | BB12: 14,559 | BC12: 7,310
A13: 0405 | B13: AREQUIPA | C13: AREQUIPA | D13: CAYLLOMA | E13: 117,883 | F13: 1,176 | G13: 1,215 | H13: 1,247 | I13: 1,567 | J13: 1,513 | K13: 1,682 | L13: 1,791 | M13: 1,919 | N13: 1,700 | O13: 1,685 | P13: 1,666 | Q13: 1,664 | R13: 1,700 | S13: 1,673 | T13: 1,722 | U13: 1,739 | V13: 2,011 | W13: 1,977 | X13: 1,867 | Y13: 1,725 | Z13: 8,521 | AA13: 9,588 | AB13: 9,441 | AC13: 9,039 | AD13: 8,743 | AE13: 8,178 | AF13: 6,957 | AG13: 6,534 | AH13: 5,276 | AI13: 4,026 | AJ13: 3,292 | AK13: 2,354 | AL13: 1,394 | AM13: 1,301 | AN13: 91 | AO13: 594 | AP13: 582 | AQ13: 1,241 | AR13: 60,419 | AS13: 4,256 | AT13: 4,669 | AU13: 27,645 | AV13: 2,626 | AX13: 117,883 | AY13: 18,825 | AZ13: 10,822 | BA13: 21,701 | BB13: 48,892 | BC13: 17,643
A14: 0406 | B14: AREQUIPA | C14: AREQUIPA | D14: CONDESUYOS | E14: 17,907 | F14: 171 | G14: 193 | H14: 212 | I14: 221 | J14: 193 | K14: 205 | L14: 218 | M14: 212 | N14: 222 | O14: 236 | P14: 214 | Q14: 239 | R14: 231 | S14: 218 | T14: 255 | U14: 312 | V14: 330 | W14: 344 | X14: 262 | Y14: 244 | Z14: 1,198 | AA14: 1,318 | AB14: 1,124 | AC14: 1,142 | AD14: 1,166 | AE14: 1,180 | AF14: 1,068 | AG14: 1,120 | AH14: 907 | AI14: 791 | AJ14: 657 | AK14: 515 | AL14: 441 | AM14: 548 | AN14: 12 | AO14: 85 | AP14: 86 | AQ14: 180 | AR14: 9,427 | AS14: 612 | AT14: 780 | AU14: 3,662 | AV14: 370 | AX14: 17,907 | AY14: 2,536 | AZ14: 1,690 | BA14: 3,022 | BB14: 6,800 | BC14: 3,859
A15: 0407 | B15: AREQUIPA | C15: AREQUIPA | D15: ISLAY | E15: 59,596 | F15: 493 | G15: 570 | H15: 584 | I15: 677 | J15: 696 | K15: 726 | L15: 785 | M15: 832 | N15: 798 | O15: 772 | P15: 687 | Q15: 744 | R15: 748 | S15: 731 | T15: 793 | U15: 853 | V15: 892 | W15: 860 | X15: 840 | Y15: 807 | Z15: 4,003 | AA15: 4,420 | AB15: 4,300 | AC15: 4,111 | AD15: 4,264 | AE15: 4,167 | AF15: 3,886 | AG15: 3,762 | AH15: 3,248 | AI15: 2,685 | AJ15: 2,174 | AK15: 1,600 | AL15: 1,054 | AM15: 1,034 | AN15: 36 | AO15: 248 | AP15: 245 | AQ15: 523 | AR15: 30,829 | AS15: 1,906 | AT15: 2,230 | AU15: 13,199 | AV15: 1,233 | AX15: 59,596 | AY15: 8,364 | AZ15: 4,877 | BA15: 10,070 | BB15: 24,490 | BC15: 11,795
A16: 0408 | B16: AREQUIPA | C16: AREQUIPA | D16: LA UNION | E16: 14,187 | F16: 173 | G16: 187 | H16: 246 | I16: 193 | J16: 207 | K16: 191 | L16: 204 | M16: 217 | N16: 222 | O16: 221 | P16: 220 | Q16: 228 | R16: 243 | S16: 220 | T16: 225 | U16: 272 | V16: 302 | W16: 307 | X16: 275 | Y16: 231 | Z16: 1,049 | AA16: 851 | AB16: 800 | AC16: 726 | AD16: 792 | AE16: 805 | AF16: 767 | AG16: 807 | AH16: 680 | AI16: 595 | AJ16: 507 | AK16: 451 | AL16: 349 | AM16: 424 | AN16: 10 | AO16: 87 | AP16: 86 | AQ16: 182 | AR16: 7,343 | AS16: 617 | AT16: 752 | AU16: 2,502 | AV16: 350 | AX16: 14,187 | AY16: 2,509 | AZ16: 1,569 | BA16: 2,406 | BB16: 4,697 | BC16: 3,006
A19: FUENTE: BOLETIN DEMOGRAFICO Nº 25, 26, 39 / RENIEC / Padrón Nominal/ CNV
A20: La población de 0-5 años corresponden al reporte de la poblacion del Padrón Nominal con corte al 31/12/2025
A21: OFICINA DE GESTION DE LA INFORMACION - MINISTERIO DE SALUD

Sheet DISTRITAL
A4: POBLACION ESTIMADA POR EDADES SIMPLES Y GRUPOS DE EDAD, SEGÚN DEPARTAMENTO, PROVINCIA Y DISTRITO. 2026
A5: * Actualizado con datos INEI y el Padrón Nominal
A6: POBLACION 2026 | G6: POBLACION TOTAL, POR EDADS SIMPLES | AA6: POBLACIÓN TOTAL, POR GRUPOS QUINQUEN ALES DE EDAD | AO6: EDADES ESPECIALES | AR6: NACIMIENTOS VIVOS | AS6: POBLACION FEMENINA TOTAL | AT6: POBLACION FEMENINA | AW6: GESTANTES ESPERADAS
A7: UBIGEO | B7: DIRESA | C7: DEPARTAMENTO | D7: PROVINCIA | E7: DISTRITO | F7: Total | G7: 0 | H7: 1 | I7: 2 | J7: 3 | K7: 4 | L7: 5 | M7: 6 | N7: 7 | O7: 8 | P7: 9 | Q7: 10 | R7: 11 | S7: 12 | T7: 13 | U7: 14 | V7: 15 | W7: 16 | X7: 17 | Y7: 18 | Z7: 19 | AA7: 20-24 | AB7: 25-29 | AC7: 30-34 | AD7: 35-39 | AE7: 40-44 | AF7: 45-49 | AG7: 50-54 | AH7: 55-59 | AI7: 60-64 | AJ7: 65-69 | AK7: 70-74 | AL7: 75-79 | AM7: 80-84 | AN7: 85-+ | AO7: 28 DIAS | AP7: 0-5 MESES | AQ7: 6-11 MESES | AT7: 10 - 14 | AU7: 15- 19 | AV7: 20- 49 | AZ7: TOTAL | BA7: NIÑO | BB7: Adolescente | BC7: Joven | BD7: Adulto | BE7: Adulto Mayor
A8: 000000 | B8: PERU | C8: PERU | D8: PERU | E8: PERU | F8: =SUM(F9:F117) -> 1,655,634 | G8: =SUM(G9:G117) -> 15,712 | H8: 16,435 | I8: 16,469 | J8: 17,838 | K8: 18,010 | L8: 21,120 | M8: 26,285 | N8: 26,908 | O8: 26,517 | P8: 25,193 | Q8: 23,455 | R8: 23,754 | S8: 24,541 | T8: 23,426 | U8: 23,835 | V8: 25,279 | W8: 25,532 | X8: 25,380 | Y8: 24,489 | Z8: 23,987 | AA8: 121,156 | AB8: 135,081 | AC8: 135,252 | AD8: 122,328 | AE8: 120,811 | AF8: 112,552 | AG8: 98,537 | AH8: 90,673 | AI8: 76,289 | AJ8: 60,761 | AK8: 48,658 | AL8: 34,917 | AM8: 22,143 | AN8: 22,311 | AO8: 1,178 | AP8: 7,853 | AQ8: 7,859 | AR8: 16,644 | AS8: 840,625 | AT8: 59,071 | AU8: 62,354 | AV8: 379,482 | AW8: 32,018 | AZ8: 1,655,634 | BA8: 257,696 | BB8: 147,993 | BC8: 304,713 | BD8: 680,153 | BE8: 265,079
A9: 040101 | B9: AREQUIPA | C9: AREQUIPA | D9: AREQUIPA | E9: AREQUIPA | F9: 60,452 | G9: 485 | H9: 534 | I9: 526 | J9: 484 | K9: 527 | L9: 685 | M9: 635 | N9: 684 | O9: 684 | P9: 632 | Q9: 555 | R9: 581 | S9: 604 | T9: 596 | U9: 667 | V9: 660 | W9: 646 | X9: 639 | Y9: 601 | Z9: 610 | AA9: 3,343 | AB9: 3,607 | AC9: 3,923 | AD9: 3,575 | AE9: 3,925 | AF9: 4,241 | AG9: 4,357 | AH9: 4,524 | AI9: 4,341 | AJ9: 3,657 | AK9: 3,149 | AL9: 2,346 | AM9: 1,639 | AN9: 1,790 | AO9: 36 | AP9: 243 | AQ9: 242 | AR9: 514 | AS9: 30,549 | AT9: 1,410 | AU9: 1,509 | AV9: 11,197 | AW9: 930 | AZ9: 60,452 | BA9: 7,012 | BB9: 3,812 | BC9: 8,161 | BD9: 24,545 | BE9: 16,922
A10: 040102 | B10: AREQUIPA | C10: AREQUIPA | D10: AREQUIPA | E10: ALTO SELVA ALEGRE | F10: 96,079 | G10: 901 | H10: 945 | I10: 918 | J10: 898 | K10: 1,041 | L10: 1,320 | M10: 1,513 | N10: 1,571 | O10: 1,551 | P10: 1,460 | Q10: 1,313 | R10: 1,371 | S10: 1,410 | T10: 1,396 | U10: 1,400 | V10: 1,362 | W10: 1,431 | X10: 1,397 | Y10: 1,296 | Z10: 1,403 | AA10: 7,375 | AB10: 8,682 | AC10: 8,480 | AD10: 7,119 | AE10: 6,809 | AF10: 6,135 | AG10: 5,637 | AH10: 5,394 | AI10: 4,753 | AJ10: 3,417 | AK10: 2,450 | AL10: 1,643 | AM10: 1,087 | AN10: 1,201 | AO10: 71 | AP10: 462 | AQ10: 439 | AR10: 955 | AS10: 48,662 | AT10: 3,310 | AU10: 3,346 | AV10: 22,546 | AW10: 1,526 | AZ10: 96,079 | BA10: 14,802 | BB10: 8,396 | BC10: 18,756 | BD10: 39,574 | BE10: 14,551
A11: 040103 | B11: AREQUIPA | C11: AREQUIPA | D11: AREQUIPA | E11: CAYMA | F11: 114,207 | G11: 1,041 | H11: 1,078 | I11: 1,246 | J11: 1,407 | K11: 1,302 | L11: 1,490 | M11: 1,999 | N11: 1,959 | O11: 1,934 | P11: 1,803 | Q11: 1,700 | R11: 1,687 | S11: 1,800 | T11: 1,646 | U11: 1,606 | V11: 1,801 | W11: 1,618 | X11: 1,704 | Y11: 1,695 | Z11: 1,612 | AA11: 8,563 | AB11: 9,779 | AC11: 10,331 | AD11: 8,933 | AE11: 8,223 | AF11: 7,371 | AG11: 6,420 | AH11: 5,869 | AI11: 5,057 | AJ11: 3,940 | AK11: 3,031 | AL11: 2,125 | AM11: 1,185 | AN11: 1,252 | AO11: 80 | AP11: 550 | AQ11: 491 | AR11: 1,104 | AS11: 58,226 | AT11: 4,132 | AU11: 4,117 | AV11: 26,975 | AW11: 2,718 | AZ11: 114,207 | BA11: 18,646 | BB11: 10,175 | BC11: 21,649 | BD11: 47,147 | BE11: 16,590
A12: 040104 | B12: AREQUIPA | C12: AREQUIPA | D12: AREQUIPA | E12: CERRO COLORADO | F12: 231,952 | G12: 2,541 | H12: 2,644 | I12: 2,171 | J12: 2,376 | K12: 2,701 | L12: 3,144 | M12: 4,467 | N12: 4,593 | O12: 4,529 | P12: 4,279 | Q12: 3,870 | R12: 3,730 | S12: 3,894 | T12: 3,610 | U12: 3,583 | V12: 3,864 | W12: 3,718 | X12: 3,841 | Y12: 3,724 | Z12: 3,755 | AA12: 18,888 | AB12: 20,454 | AC12: 20,368 | AD12: 17,961 | AE12: 17,656 | AF12: 15,322 | AG12: 12,443 | AH12: 10,625 | AI12: 8,060 | AJ12: 6,393 | AK12: 5,225 | AL12: 3,401 | AM12: 2,135 | AN12: 1,987 | AO12: 180 | AP12: 1,279 | AQ12: 1,262 | AR12: 2,694 | AS12: 113,748 | AT12: 8,847 | AU12: 8,982 | AV12: 54,679 | AW12: 4,148 | AZ12: 231,952 | BA12: 41,045 | BB12: 22,510 | BC12: 46,821 | BD12: 94,375 | BE12: 27,201
A13: 040105 | B13: AREQUIPA | C13: AREQUIPA | D13: AREQUIPA | E13: CHARACATO | F13: 19,439 | G13: 151 | H13: 172 | I13: 140 | J13: 199 | K13: 163 | L13: 195 | M13: 380 | N13: 338 | O13: 279 | P13: 279 | Q13: 291 | R13: 270 | S13: 309 | T13: 266 | U13: 307 | V13: 291 | W13: 298 | X13: 265 | Y13: 289 | Z13: 348 | AA13: 1,475 | AB13: 1,502 | AC13: 1,528 | AD13: 1,501 | AE13: 1,574 | AF13: 1,429 | AG13: 1,157 | AH13: 1,044 | AI13: 834 | AJ13: 711 | AK13: 556 | AL13: 419 | AM13: 262 | AN13: 217 | AO13: 6 | AP13: 74 | AQ13: 77 | AR13: 160 | AS13: 9,773 | AT13: 700 | AU13: 732 | AV13: 4,571 | AW13: 385 | AZ13: 19,439 | BA13: 2,857 | BB13: 1,736 | BC13: 3,614 | BD13: 8,233 | BE13: 2,999
A14: 040106 | B14: AREQUIPA | C14: AREQUIPA | D14: AREQUIPA | E14: CHIGUATA | F14: 3,638 | G14: 61 | H14: 50 | I14: 45 | J14: 52 | K14: 53 | L14: 69 | M14: 48 | N14: 57 | O14: 53 | P14: 47 | Q14: 39 | R14: 59 | S14: 30 | T14: 30 | U14: 53 | V14: 52 | W14: 28 | X14: 45 | Y14: 46 | Z14: 41 | AA14: 240 | AB14: 270 | AC14: 307 | AD14: 267 | AE14: 249 | AF14: 231 | AG14: 222 | AH14: 205 | AI14: 164 | AJ14: 165 | AK14: 141 | AL14: 89 | AM14: 63 | AN14: 67 | AO14: 6 | AP14: 24 | AQ14: 37 | AR14: 64 | AS14: 1,899 | AT14: 106 | AU14: 109 | AV14: 854 | AW14: 83 | AZ14: 3,638 | BA14: 633 | BB14: 238 | BC14: 597 | BD14: 1,481 | BE14: 689
A15: 040107 | B15: AREQUIPA | C15: AREQUIPA | D15: AREQUIPA | E15: JACOBO HUNTER | F15: 56,949 | G15: 525 | H15: 512 | I15: 515 | J15: 590 | K15: 590 | L15: 722 | M15: 986 | N15: 954 | O15: 935 | P15: 906 | Q15: 812 | R15: 835 | S15: 847 | T15: 875 | U15: 724 | V15: 842 | W15: 878 | X15: 885 | Y15: 788 | Z15: 772 | AA15: 4,225 | AB15: 4,698 | AC15: 4,542 | AD15: 4,346 | AE15: 4,338 | AF15: 4,005 | AG15: 3,460 | AH15: 3,103 | AI15: 2,512 | AJ15: 2,063 | AK15: 1,596 | AL15: 1,177 | AM15: 695 | AN15: 696 | AO15: 37 | AP15: 243 | AQ15: 282 | AR15: 557 | AS15: 29,068 | AT15: 2,031 | AU15: 2,122 | AV15: 13,178 | AW15: 835 | AZ15: 56,949 | BA15: 8,882 | BB15: 5,051 | BC15: 10,483 | BD15: 23,794 | BE15: 8,739
A16: 040108 | B16: AREQUIPA | C16: AREQUIPA | D16: AREQUIPA | E16: LA JOYA | F16: 44,121 | G16: 452 | H16: 521 | I16: 544 | J16: 607 | K16: 605 | L16: 641 | M16: 689 | N16: 626 | O16: 793 | P16: 815 | Q16: 693 | R16: 699 | S16: 771 | T16: 672 | U16: 767 | V16: 778 | W16: 810 | X16: 797 | Y16: 812 | Z16: 772 | AA16: 3,652 | AB16: 4,011 | AC16: 3,597 | AD16: 3,351 | AE16: 2,976 | AF16: 2,852 | AG16: 2,251 | AH16: 2,060 | AI16: 1,677 | AJ16: 1,370 | AK16: 931 | AL16: 703 | AM16: 437 | AN16: 389 | AO16: 30 | AP16: 214 | AQ16: 238 | AR16: 480 | AS16: 22,678 | AT16: 1,878 | AU16: 2,040 | AV16: 10,601 | AW16: 1,173 | AZ16: 44,121 | BA16: 7,685 | BB16: 4,595 | BC16: 9,247 | BD16: 17,087 | BE16: 5,507
A17: 040109 | B17: AREQUIPA | C17: AREQUIPA | D17: AREQUIPA | E17: MARIANO MELGAR | F17: 71,738 | G17: 674 | H17: 710 | I17: 720 | J17: 742 | K17: 750 | L17: 862 | M17: 1,092 | N17: 1,064 | O17: 1,114 | P17: 1,068 | Q17: 952 | R17: 944 | S17: 1,036 | T17: 1,002 | U17: 1,037 | V17: 1,072 | W17: 1,085 | X17: 1,009 | Y17: 1,012 | Z17: 1,036 | AA17: 5,179 | AB17: 5,837 | AC17: 5,855 | AD17: 5,043 | AE17: 5,155 | AF17: 4,964 | AG17: 4,486 | AH17: 4,134 | AI17: 3,545 | AJ17: 2,781 | AK17: 2,224 | AL17: 1,510 | AM17: 988 | AN17: 1,056 | AO17: 48 | AP17: 328 | AQ17: 346 | AR17: 714 | AS17: 36,477 | AT17: 2,461 | AU17: 2,607 | AV17: 16,159 | AW17: 1,796 | AZ17: 71,738 | BA17: 10,692 | BB17: 6,241 | BC17: 13,064 | BD17: 29,637 | BE17: 12,104
A18: 040110 | B18: AREQUIPA | C18: AREQUIPA | D18: AREQUIPA | E18: MIRAFLORES | F18: 70,554 | G18: 598 | H18: 609 | I18: 637 | J18: 744 | K18: 695 | L18: 833 | M18: 1,020 | N18: 1,058 | O18: 1,122 | P18: 975 | Q18: 1,009 | R18: 923 | S18: 925 | T18: 905 | U18: 905 | V18: 923 | W18: 992 | X18: 947 | Y18: 956 | Z18: 1,003 | AA18: 5,196 | AB18: 5,784 | AC18: 5,752 | AD18: 5,057 | AE18: 5,308 | AF18: 5,077 | AG18: 4,563 | AH18: 4,074 | AI18: 3,518 | AJ18: 2,686 | AK18: 2,141 | AL18: 1,523 | AM18: 993 | AN18: 1,103 | AO18: 53 | AP18: 309 | AQ18: 289 | AR18: 634 | AS18: 36,130 | AT18: 2,366 | AU18: 2,480 | AV18: 16,332 | AW18: 1,007 | AZ18: 70,554 | BA18: 10,223 | BB18: 5,597 | BC18: 12,939 | BD18: 29,831 | BE18: 11,964
A19: 040111 | B19: AREQUIPA | C19: AREQUIPA | D19: AREQUIPA | E19: MOLLEBAYA | F19: 8,652 | G19: 78 | H19: 75 | I19: 56 | J19: 84 | K19: 59 | L19: 75 | M19: 116 | N19: 179 | O19: 164 | P19: 133 | Q19: 93 | R19: 115 | S19: 111 | T19: 131 | U19: 128 | V19: 135 | W19: 134 | X19: 121 | Y19: 136 | Z19: 89 | AA19: 513 | AB19: 719 | AC19: 901 | AD19: 779 | AE19: 718 | AF19: 681 | AG19: 417 | AH19: 438 | AI19: 400 | AJ19: 296 | AK19: 244 | AL19: 167 | AM19: 83 | AN19: 84 | AO19: 3 | AP19: 33 | AQ19: 45 | AR19: 83 | AS19: 4,341 | AT19: 289 | AU19: 301 | AV19: 2,241 | AW19: 182 | AZ19: 8,652 | BA19: 1,227 | BB19: 760 | BC19: 1,457 | BD19: 3,934 | BE19: 1,274
A20: 040112 | B20: AREQUIPA | C20: AREQUIPA | D20: AREQUIPA | E20: PAUCARPATA | F20: 142,213 | G20: 1,413 | H20: 1,537 | I20: 1,639 | J20: 1,708 | K20: 1,594 | L20: 1,783 | M20: 2,294 | N20: 2,369 | O20: 2,302 | P20: 2,164 | Q20: 2,103 | R20: 2,111 | S20: 2,121 | T20: 2,031 | U20: 2,164 | V20: 2,231 | W20: 2,264 | X20: 2,159 | Y20: 2,114 | Z20: 2,059 | AA20: 10,384 | AB20: 11,335 | AC20: 11,184 | AD20: 10,225 | AE20: 10,689 | AF20: 10,163 | AG20: 8,859 | AH20: 7,370 | AI20: 5,830 | AJ20: 4,867 | AK20: 4,122 | AL20: 3,229 | AM20: 1,978 | AN20: 1,818 | AO20: 117 | AP20: 708 | AQ20: 705 | AR20: 1,498 | AS20: 72,897 | AT20: 5,257 | AU20: 5,512 | AV20: 32,524 | AW20: 2,212 | AZ20: 142,213 | BA20: 23,017 | BB20: 12,970 | BC20: 25,892 | BD20: 58,490 | BE20: 21,844
A21: 040113 | B21: AREQUIPA | C21: AREQUIPA | D21: AREQUIPA | E21: POCSI | F21: 519 | G21: 8 | H21: 6 | I21: 4 | J21: 5 | K21: 2 | L21: 9 | M21: 2 | N21: 2 | O21: 2 | P21: 2 | Q21: 2 | R21: 2 | S21: 4 | T21: 4 | U21: 3 | V21: 3 | W21: 3 | X21: 3 | Y21: 5 | Z21: 5 | AA21: 25 | AB21: 41 | AC21: 45 | AD21: 33 | AE21: 39 | AF21: 42 | AG21: 39 | AH21: 38 | AI21: 35 | AJ21: 27 | AK21: 24 | AL21: 19 | AM21: 21 | AN21: 15 | AO21: 1 | AP21: 2 | AQ21: 6 | AR21: 8 | AS21: 270 | AT21: 7 | AU21: 7 | AV21: 117 | AW21: 12 | AZ21: 519 | BA21: 46 | BB21: 20 | BC21: 76 | BD21: 236 | BE21: 141
A22: 040114 | B22: AREQUIPA | C22: AREQUIPA | D22: AREQUIPA | E22: POLOBAYA | F22: 879 | G22: 9 | H22: 14 | I22: 5 | J22: 12 | K22: 12 | L22: 18 | M22: 3 | N22: 5 | O22: 6 | P22: 7 | Q22: 6 | R22: 8 | S22: 13 | T22: 8 | U22: 7 | V22: 7 | W22: 8 | X22: 5 | Y22: 7 | Z22: 19 | AA22: 54 | AB22: 64 | AC22: 66 | AD22: 55 | AE22: 54 | AF22: 51 | AG22: 54 | AH22: 73 | AI22: 66 | AJ22: 56 | AK22: 43 | AL22: 20 | AM22: 22 | AN22: 22 | AO22: 0 | AP22: 4 | AQ22: 5 | AR22: 9 | AS22: 452 | AT22: 20 | AU22: 22 | AV22: 179 | AW22: 31 | AZ22: 879 | BA22: 105 | BB22: 48 | BC22: 144 | BD22: 353 | BE22: 229
A23: 040115 | B23: AREQUIPA | C23: AREQUIPA | D23: AREQUIPA | E23: QUEQUEÑA | F23: 8,714 | G23: 33 | H23: 31 | I23: 34 | J23: 43 | K23: 53 | L23: 43 | M23: 113 | N23: 110 | O23: 67 | P23: 95 | Q23: 88 | R23: 95 | S23: 111 | T23: 68 | U23: 81 | V23: 104 | W23: 94 | X23: 97 | Y23: 119 | Z23: 91 | AA23: 401 | AB23: 586 | AC23: 843 | AD23: 906 | AE23: 727 | AF23: 709 | AG23: 679 | AH23: 593 | AI23: 541 | AJ23: 361 | AK23: 288 | AL23: 238 | AM23: 137 | AN23: 135 | AO23: 1 | AP23: 14 | AQ23: 19 | AR23: 35 | AS23: 4,314 | AT23: 207 | AU23: 251 | AV23: 2,166 | AW23: 65 | AZ23: 8,714 | BA23: 805 | BB23: 555 | BC23: 1,197 | BD23: 4,457 | BE23: 1,700
A24: 040116 | B24: AREQUIPA | C24: AREQUIPA | D24: AREQUIPA | E24: SABANDIA | F24: 5,167 | G24: 49 | H24: 56 | I24: 68 | J24: 61 | K24: 98 | L24: 93 | M24: 76 | N24: 72 | O24: 89 | P24: 63 | Q24: 61 | R24: 70 | S24: 74 | T24: 64 | U24: 68 | V24: 75 | W24: 70 | X24: 64 | Y24: 67 | Z24: 61 | AA24: 344 | AB24: 403 | AC24: 369 | AD24: 403 | AE24: 388 | AF24: 366 | AG24: 309 | AH24: 266 | AI24: 220 | AJ24: 194 | AK24: 190 | AL24: 131 | AM24: 104 | AN24: 81 | AO24: 1 | AP24: 20 | AQ24: 29 | AR24: 52 | AS24: 2,634 | AT24: 167 | AU24: 170 | AV24: 1,168 | AW24: 61 | AZ24: 5,167 | BA24: 856 | BB24: 415 | BC24: 875 | BD24: 2,101 | BE24: 920
A25: 040117 | B25: AREQUIPA | C25: AREQUIPA | D25: AREQUIPA | E25: SACHACA | F25: 31,356 | G25: 329 | H25: 311 | I25: 337 | J25: 342 | K25: 361 | L25: 440 | M25: 508 | N25: 525 | O25: 499 | P25: 465 | Q25: 379 | R25: 446 | S25: 466 | T25: 470 | U25: 450 | V25: 479 | W25: 456 | X25: 478 | Y25: 453 | Z25: 450 | AA25: 2,298 | AB25: 2,323 | AC25: 2,420 | AD25: 2,189 | AE25: 2,283 | AF25: 2,135 | AG25: 1,859 | AH25: 1,708 | AI25: 1,479 | AJ25: 1,302 | AK25: 1,045 | AL25: 759 | AM25: 463 | AN25: 449 | AO25: 23 | AP25: 166 | AQ25: 163 | AR25: 348 | AS25: 15,963 | AT25: 1,073 | AU25: 1,169 | AV25: 6,894 | AW25: 700 | AZ25: 31,356 | BA25: 4,942 | BB25: 2,799 | BC25: 5,524 | BD25: 12,594 | BE25: 5,497
A26: 040118 | B26: AREQUIPA | C26: AREQUIPA | D26: AREQUIPA | E26: SAN JUAN DE SIGUAS | F26: 593 | G26: 4 | H26: 5 | I26: 4 | J26: 10 | K26: 11 | L26: 9 | M26: 4 | N26: 7 | O26: 4 | P26: 6 | Q26: 9 | R26: 9 | S26: 9 | T26: 3 | U26: 3 | V26: 3 | W26: 11 | X26: 5 | Y26: 7 | Z26: 6 | AA26: 40 | AB26: 43 | AC26: 47 | AD26: 36 | AE26: 43 | AF26: 33 | AG26: 47 | AH26: 46 | AI26: 36 | AJ26: 37 | AK26: 24 | AL26: 14 | AM26: 7 | AN26: 11 | AO26: 0 | AP26: 2 | AQ26: 2 | AR26: 4 | AS26: 333 | AT26: 22 | AU26: 18 | AV26: 135 | AW26: 9 | AZ26: 593 | BA26: 82 | BB26: 34 | BC26: 96 | BD26: 252 | BE26: 129
A27: 040119 | B27: AREQUIPA | C27: AREQUIPA | D27: AREQUIPA | E27: SAN JUAN DE TARUCANI | F27: 1,363 | G27: 14 | H27: 16 | I27: 16 | J27: 27 | K27: 17 | L27: 27 | M27: 7 | N27: 10 | O27: 9 | P27: 9 | Q27: 10 | R27: 6 | S27: 6 | T27: 21 | U27: 6 | V27: 17 | W27: 9 | X27: 15 | Y27: 13 | Z27: 13 | AA27: 69 | AB27: 98 | AC27: 97 | AD27: 108 | AE27: 128 | AF27: 104 | AG27: 96 | AH27: 106 | AI27: 82 | AJ27: 64 | AK27: 47 | AL27: 35 | AM27: 31 | AN27: 30 | AO27: 2 | AP27: 5 | AQ27: 9 | AR27: 15 | AS27: 715 | AT27: 23 | AU27: 34 | AV27: 337 | AW27: 20 | AZ27: 1,363 | BA27: 168 | BB27: 74 | BC27: 193 | BD27: 639 | BE27: 289
A28: 040120 | B28: AREQUIPA | C28: AREQUIPA | D28: AREQUIPA | E28: SANTA ISABEL DE SIGUAS | F28: 705 | G28: 6 | H28: 9 | I28: 2 | J28: 6 | K28: 4 | L28: 13 | M28: 10 | N28: 11 | O28: 9 | P28: 6 | Q28: 10 | R28: 10 | S28: 9 | T28: 12 | U28: 2 | V28: 10 | W28: 10 | X28: 15 | Y28: 6 | Z28: 9 | AA28: 52 | AB28: 48 | AC28: 53 | AD28: 35 | AE28: 37 | AF28: 46 | AG28: 52 | AH28: 46 | AI28: 46 | AJ28: 38 | AK28: 26 | AL28: 23 | AM28: 18 | AN28: 16 | AO28: 0 | AP28: 6 | AQ28: 0 | AR28: 6 | AS28: 379 | AT28: 29 | AU28: 25 | AV28: 147 | AW28: 7 | AZ28: 705 | BA28: 96 | BB28: 58 | BC28: 115 | BD28: 269 | BE28: 167
A29: 040121 | B29: AREQUIPA | C29: AREQUIPA | D29: AREQUIPA | E29: SANTA RITA DE SIGUAS | F29: 8,708 | G29: 83 | H29: 72 | I29: 89 | J29: 96 | K29: 111 | L29: 110 | M29: 165 | N29: 176 | O29: 140 | P29: 139 | Q29: 142 | R29: 138 | S29: 145 | T29: 147 | U29: 132 | V29: 163 | W29: 129 | X29: 130 | Y29: 137 | Z29: 157 | AA29: 713 | AB29: 887 | AC29: 912 | AD29: 791 | AE29: 682 | AF29: 504 | AG29: 395 | AH29: 385 | AI29: 314 | AJ29: 177 | AK29: 147 | AL29: 97 | AM29: 58 | AN29: 45 | AO29: 6 | AP29: 40 | AQ29: 43 | AR29: 88 | AS29: 4,473 | AT29: 359 | AU29: 371 | AV29: 2,317 | AW29: 155 | AZ29: 8,708 | BA29: 1,461 | BB29: 846 | BC29: 1,894 | BD29: 3,669 | BE29: 838
A30: 040122 | B30: AREQUIPA | C30: AREQUIPA | D30: AREQUIPA | E30: SOCABAYA | F30: 91,133 | G30: 722 | H30: 680 | I30: 728 | J30: 649 | K30: 766 | L30: 946 | M30: 1,400 | N30: 1,467 | O30: 1,472 | P30: 1,476 | Q30: 1,247 | R30: 1,386 | S30: 1,366 | T30: 1,404 | U30: 1,281 | V30: 1,393 | W30: 1,500 | X30: 1,395 | Y30: 1,449 | Z30: 1,419 | AA30: 7,238 | AB30: 7,799 | AC30: 7,445 | AD30: 6,681 | AE30: 6,788 | AF30: 6,350 | AG30: 5,375 | AH30: 4,965 | AI30: 4,280 | AJ30: 3,579 | AK30: 2,610 | AL30: 1,828 | AM30: 1,052 | AN30: 997 | AO30: 55 | AP30: 382 | AQ30: 340 | AR30: 766 | AS30: 46,099 | AT30: 3,376 | AU30: 3,535 | AV30: 21,293 | AW30: 1,514 | AZ30: 91,133 | BA30: 12,939 | BB30: 8,339 | BC30: 17,905 | BD30: 37,604 | BE30: 14,346
A31: 040123 | B31: AREQUIPA | C31: AREQUIPA | D31: AREQUIPA | E31: TIABAYA | F31: 19,046 | G31: 233 | H31: 225 | I31: 266 | J31: 243 | K31: 229 | L31: 297 | M31: 293 | N31: 358 | O31: 286 | P31: 278 | Q31: 229 | R31: 258 | S31: 298 | T31: 245 | U31: 269 | V31: 264 | W31: 257 | X31: 292 | Y31: 241 | Z31: 267 | AA31: 1,382 | AB31: 1,626 | AC31: 1,620 | AD31: 1,469 | AE31: 1,435 | AF31: 1,260 | AG31: 1,050 | AH31: 995 | AI31: 813 | AJ31: 645 | AK31: 526 | AL31: 398 | AM31: 245 | AN31: 254 | AO31: 20 | AP31: 110 | AQ31: 123 | AR31: 247 | AS31: 9,838 | AT31: 664 | AU31: 699 | AV31: 4,414 | AW31: 435 | AZ31: 19,046 | BA31: 3,195 | BB31: 1,625 | BC31: 3,516 | BD31: 7,829 | BE31: 2,881
A32: 040124 | B32: AREQUIPA | C32: AREQUIPA | D32: AREQUIPA | E32: UCHUMAYO | F32: 18,741 | G32: 182 | H32: 203 | I32: 215 | J32: 229 | K32: 197 | L32: 252 | M32: 305 | N32: 293 | O32: 276 | P32: 254 | Q32: 248 | R32: 251 | S32: 286 | T32: 242 | U32: 230 | V32: 258 | W32: 260 | X32: 249 | Y32: 266 | Z32: 251 | AA32: 1,212 | AB32: 1,631 | AC32: 1,660 | AD32: 1,627 | AE32: 1,608 | AF32: 1,361 | AG32: 1,099 | AH32: 1,008 | AI32: 832 | AJ32: 672 | AK32: 459 | AL32: 314 | AM32: 185 | AN32: 126 | AO32: 8 | AP32: 73 | AQ32: 109 | AR32: 193 | AS32: 9,878 | AT32: 690 | AU32: 691 | AV32: 4,667 | AW32: 551 | AZ32: 18,741 | BA32: 2,905 | BB32: 1,525 | BC32: 3,360 | BD32: 8,363 | BE32: 2,588
A33: 040125 | B33: AREQUIPA | C33: AREQUIPA | D33: AREQUIPA | E33: VITOR | F33: 5,439 | G33: 41 | H33: 35 | I33: 49 | J33: 36 | K33: 38 | L33: 36 | M33: 60 | N33: 87 | O33: 70 | P33: 73 | Q33: 62 | R33: 67 | S33: 72 | T33: 97 | U33: 77 | V33: 97 | W33: 92 | X33: 103 | Y33: 98 | Z33: 93 | AA33: 420 | AB33: 464 | AC33: 434 | AD33: 419 | AE33: 384 | AF33: 332 | AG33: 306 | AH33: 329 | AI33: 289 | AJ33: 235 | AK33: 175 | AL33: 105 | AM33: 83 | AN33: 81 | AO33: 3 | AP33: 21 | AQ33: 20 | AR33: 43 | AS33: 2,820 | AT33: 207 | AU33: 260 | AV33: 1,307 | AW33: 101 | AZ33: 5,439 | BA33: 654 | BB33: 538 | BC33: 1,075 | BD33: 2,204 | BE33: 968
A34: 040126 | B34: AREQUIPA | C34: AREQUIPA | D34: AREQUIPA | E34: YANAHUARA | F34: 30,442 | G34: 320 | H34: 286 | I34: 181 | J34: 228 | K34: 304 | L34: 417 | M34: 386 | N34: 369 | O34: 403 | P34: 417 | Q34: 366 | R34: 331 | S34: 352 | T34: 342 | U34: 340 | V34: 331 | W34: 365 | X34: 328 | Y34: 360 | Z34: 369 | AA34: 1,676 | AB34: 1,923 | AC34: 2,069 | AD34: 1,938 | AE34: 2,067 | AF34: 2,197 | AG34: 2,067 | AH34: 1,998 | AI34: 1,911 | AJ34: 1,633 | AK34: 1,439 | AL34: 1,105 | AM34: 760 | AN34: 864 | AO34: 22 | AP34: 165 | AQ34: 155 | AR34: 339 | AS34: 15,020 | AT34: 752 | AU34: 767 | AV34: 5,869 | AW34: 576 | AZ34: 30,442 | BA34: 4,008 | BB34: 2,058 | BC34: 4,328 | BD34: 12,336 | BE34: 7,712
A35: 040127 | B35: AREQUIPA | C35: AREQUIPA | D35: AREQUIPA | E35: YARABAMBA | F35: 1,986 | G35: 42 | H35: 36 | I35: 46 | J35: 42 | K35: 33 | L35: 36 | M35: 15 | N35: 21 | O35: 17 | P35: 14 | Q35: 16 | R35: 18 | S35: 13 | T35: 16 | U35: 11 | V35: 20 | W35: 16 | X35: 17 | Y35: 28 | Z35: 19 | AA35: 116 | AB35: 167 | AC35: 196 | AD35: 155 | AE35: 155 | AF35: 163 | AG35: 122 | AH35: 117 | AI35: 97 | AJ35: 70 | AK35: 63 | AL35: 35 | AM35: 25 | AN35: 29 | AO35: 4 | AP35: 20 | AQ35: 22 | AR35: 44 | AS35: 1,094 | AT35: 46 | AU35: 55 | AV35: 515 | AW35: 90 | AZ35: 1,986 | BA35: 336 | BB35: 93 | BC35: 330 | BD35: 908 | BE35: 319
A36: 040128 | B36: AREQUIPA | C36: AREQUIPA | D36: AREQUIPA | E36: YURA | F36: 47,948 | G36: 575 | H36: 582 | I36: 569 | J36: 614 | K36: 625 | L36: 798 | M36: 997 | N36: 927 | O36: 909 | P36: 779 | Q36: 808 | R36: 782 | S36: 771 | T36: 773 | U36: 733 | V36: 780 | W36: 701 | X36: 792 | Y36: 861 | Z36: 763 | AA36: 3,942 | AB36: 4,609 | AC36: 4,675 | AD36: 3,908 | AE36: 3,348 | AF36: 2,871 | AG36: 2,358 | AH36: 2,097 | AI36: 1,631 | AJ36: 1,309 | AK36: 910 | AL36: 575 | AM36: 307 | AN36: 269 | AO36: 60 | AP36: 281 | AQ36: 294 | AR36: 609 | AS36: 24,138 | AT36: 1,903 | AU36: 1,942 | AV36: 12,022 | AW36: 1,234 | AZ36: 47,948 | BA36: 8,965 | BB36: 4,550 | BC36: 10,175 | BD36: 19,257 | BE36: 5,001
A37: 040129 | B37: AREQUIPA | C37: AREQUIPA | D37: AREQUIPA | E37: JOSE LUIS BUSTAMANTE Y RIVERO | F37: 90,468 | G37: 642 | H37: 716 | I37: 703 | J37: 784 | K37: 751 | L37: 953 | M37: 1,238 | N37: 1,294 | O37: 1,326 | P37: 1,218 | Q37: 1,134 | R37: 1,143 | S37: 1,260 | T37: 1,076 | U37: 1,234 | V37: 1,250 | W37: 1,247 | X37: 1,277 | Y37: 1,234 | Z37: 1,246 | AA37: 6,506 | AB37: 7,118 | AC37: 7,317 | AD37: 6,478 | AE37: 6,738 | AF37: 6,326 | AG37: 5,602 | AH37: 5,117 | AI37: 4,525 | AJ37: 3,744 | AK37: 3,433 | AL37: 2,627 | AM37: 1,657 | AN37: 1,554 | AO37: 44 | AP37: 313 | AQ37: 329 | AR37: 681 | AS37: 45,908 | AT37: 2,846 | AU37: 3,105 | AV37: 20,175 | AW37: 1,764 | AZ37: 90,468 | BA37: 11,902 | BB37: 7,344 | BC37: 16,104 | BD37: 37,578 | BE37: 17,540
A38: 040201 | B38: AREQUIPA | C38: AREQUIPA | D38: CAMANA | E38: CAMANA | F38: 15,591 | G38: 133 | H38: 157 | I38: 100 | J38: 82 | K38: 36 | L38: 19 | M38: 224 | N38: 252 | O38: 260 | P38: 217 | Q38: 252 | R38: 203 | S38: 238 | T38: 238 | U38: 257 | V38: 297 | W38: 257 | X38: 282 | Y38: 248 | Z38: 254 | AA38: 1,252 | AB38: 1,213 | AC38: 1,172 | AD38: 954 | AE38: 954 | AF38: 1,020 | AG38: 1,006 | AH38: 957 | AI38: 923 | AJ38: 675 | AK38: 549 | AL38: 388 | AM38: 275 | AN38: 247 | AO38: 13 | AP38: 69 | AQ38: 64 | AR38: 141 | AS38: 8,067 | AT38: 592 | AU38: 705 | AV38: 3,384 | AW38: 263 | AZ38: 15,591 | BA38: 1,935 | BB38: 1,569 | BC38: 2,967 | BD38: 6,063 | BE38: 3,057
A39: 040202 | B39: AREQUIPA | C39: AREQUIPA | D39: CAMANA | E39: JOSE MARIA QUIMPER | F39: 5,930 | G39: 57 | H39: 54 | I39: 77 | J39: 68 | K39: 48 | L39: 80 | M39: 86 | N39: 123 | O39: 115 | P39: 80 | Q39: 76 | R39: 89 | S39: 94 | T39: 71 | U39: 95 | V39: 92 | W39: 91 | X39: 74 | Y39: 80 | Z39: 74 | AA39: 372 | AB39: 491 | AC39: 455 | AD39: 439 | AE39: 400 | AF39: 365 | AG39: 330 | AH39: 363 | AI39: 355 | AJ39: 293 | AK39: 182 | AL39: 119 | AM39: 75 | AN39: 67 | AO39: 4 | AP39: 33 | AQ39: 24 | AR39: 61 | AS39: 2,977 | AT39: 220 | AU39: 217 | AV39: 1,300 | AW39: 124 | AZ39: 5,930 | BA39: 953 | BB39: 517 | BC39: 1,017 | BD39: 2,352 | BE39: 1,091
A40: 040203 | B40: AREQUIPA | C40: AREQUIPA | D40: CAMANA | E40: MARIANO NICOLAS VALCARCEL | F40: 9,441 | G40: 156 | H40: 152 | I40: 151 | J40: 152 | K40: 180 | L40: 162 | M40: 168 | N40: 130 | O40: 96 | P40: 149 | Q40: 134 | R40: 174 | S40: 162 | T40: 133 | U40: 103 | V40: 108 | W40: 113 | X40: 106 | Y40: 80 | Z40: 46 | AA40: 369 | AB40: 679 | AC40: 1,101 | AD40: 1,030 | AE40: 836 | AF40: 727 | AG40: 608 | AH40: 617 | AI40: 371 | AJ40: 222 | AK40: 107 | AL40: 53 | AM40: 44 | AN40: 22 | AO40: 9 | AP40: 76 | AQ40: 80 | AR40: 166 | AS40: 4,739 | AT40: 412 | AU40: 241 | AV40: 2,588 | AW40: 195 | AZ40: 9,441 | BA40: 1,804 | BB40: 725 | BC40: 1,174 | BD40: 4,919 | BE40: 819
A41: 040204 | B41: AREQUIPA | C41: AREQUIPA | D41: CAMANA | E41: MARISCAL CACERES | F41: 8,409 | G41: 60 | H41: 90 | I41: 103 | J41: 82 | K41: 78 | L41: 108 | M41: 115 | N41: 117 | O41: 128 | P41: 110 | Q41: 99 | R41: 110 | S41: 94 | T41: 116 | U41: 128 | V41: 126 | W41: 125 | X41: 132 | Y41: 132 | Z41: 108 | AA41: 508 | AB41: 732 | AC41: 682 | AD41: 654 | AE41: 638 | AF41: 624 | AG41: 581 | AH41: 507 | AI41: 437 | AJ41: 338 | AK41: 237 | AL41: 134 | AM41: 95 | AN41: 81 | AO41: 1 | AP41: 30 | AQ41: 30 | AR41: 64 | AS41: 4,269 | AT41: 260 | AU41: 319 | AV41: 2,016 | AW41: 176 | AZ41: 8,409 | BA41: 1,200 | BB41: 721 | BC41: 1,480 | BD41: 3,686 | BE41: 1,322
A42: 040205 | B42: AREQUIPA | C42: AREQUIPA | D42: CAMANA | E42: NICOLAS DE PIEROLA | F42: 9,284 | G42: 69 | H42: 73 | I42: 91 | J42: 93 | K42: 81 | L42: 121 | M42: 129 | N42: 168 | O42: 154 | P42: 139 | Q42: 117 | R42: 147 | S42: 153 | T42: 165 | U42: 134 | V42: 144 | W42: 155 | X42: 141 | Y42: 149 | Z42: 137 | AA42: 620 | AB42: 695 | AC42: 721 | AD42: 678 | AE42: 651 | AF42: 621 | AG42: 594 | AH42: 577 | AI42: 507 | AJ42: 371 | AK42: 284 | AL42: 197 | AM42: 110 | AN42: 98 | AO42: 6 | AP42: 30 | AQ42: 39 | AR42: 73 | AS42: 4,723 | AT42: 348 | AU42: 357 | AV42: 2,108 | AW42: 153 | AZ42: 9,284 | BA42: 1,382 | BB42: 892 | BC42: 1,601 | BD42: 3,842 | BE42: 1,567
A43: 040206 | B43: AREQUIPA | C43: AREQUIPA | D43: CAMANA | E43: OCOÑA | F43: 4,869 | G43: 38 | H43: 41 | I43: 52 | J43: 48 | K43: 47 | L43: 67 | M43: 70 | N43: 75 | O43: 65 | P43: 46 | Q43: 48 | R43: 55 | S43: 53 | T43: 66 | U43: 70 | V43: 78 | W43: 72 | X43: 95 | Y43: 62 | Z43: 57 | AA43: 281 | AB43: 368 | AC43: 295 | AD43: 320 | AE43: 345 | AF43: 319 | AG43: 343 | AH43: 336 | AI43: 324 | AJ43: 245 | AK43: 207 | AL43: 121 | AM43: 81 | AN43: 79 | AO43: 3 | AP43: 16 | AQ43: 22 | AR43: 40 | AS43: 2,546 | AT43: 158 | AU43: 199 | AV43: 1,062 | AW43: 106 | AZ43: 4,869 | BA43: 652 | BB43: 434 | BC43: 768 | BD43: 1,958 | BE43: 1,057
A44: 040207 | B44: AREQUIPA | C44: AREQUIPA | D44: CAMANA | E44: QUILCA | F44: 1,441 | G44: 9 | H44: 8 | I44: 11 | J44: 17 | K44: 15 | L44: 13 | M44: 23 | N44: 18 | O44: 12 | P44: 21 | Q44: 15 | R44: 23 | S44: 9 | T44: 18 | U44: 27 | V44: 20 | W44: 23 | X44: 22 | Y44: 12 | Z44: 17 | AA44: 72 | AB44: 102 | AC44: 119 | AD44: 121 | AE44: 110 | AF44: 102 | AG44: 98 | AH44: 85 | AI44: 111 | AJ44: 60 | AK44: 54 | AL44: 33 | AM44: 20 | AN44: 21 | AO44: 1 | AP44: 4 | AQ44: 5 | AR44: 9 | AS44: 767 | AT44: 56 | AU44: 56 | AV44: 351 | AW44: 22 | AZ44: 1,441 | BA44: 185 | BB44: 119 | BC44: 203 | BD44: 635 | BE44: 299
A45: 040208 | B45: AREQUIPA | C45: AREQUIPA | D45: CAMANA | E45: SAMUEL PASTOR | F45: 18,401 | G45: 176 | H45: 184 | I45: 195 | J45: 256 | K45: 250 | L45: 305 | M45: 333 | N45: 325 | O45: 324 | P45: 288 | Q45: 275 | R45: 311 | S45: 315 | T45: 270 | U45: 281 | V45: 310 | W45: 314 | X45: 308 | Y45: 306 | Z45: 274 | AA45: 1,388 | AB45: 1,546 | AC45: 1,465 | AD45: 1,384 | AE45: 1,286 | AF45: 1,217 | AG45: 1,120 | AH45: 990 | AI45: 847 | AJ45: 578 | AK45: 401 | AL45: 264 | AM45: 155 | AN45: 160 | AO45: 14 | AP45: 89 | AQ45: 87 | AR45: 187 | AS45: 9,391 | AT45: 731 | AU45: 750 | AV45: 4,330 | AW45: 319 | AZ45: 18,401 | BA45: 3,222 | BB45: 1,798 | BC45: 3,514 | BD45: 7,462 | BE45: 2,405
A46: 040301 | B46: AREQUIPA | C46: AREQUIPA | D46: CARAVELI | E46: CARAVELI | F46: 5,400 | G46: 86 | H46: 82 | I46: 98 | J46: 88 | K46: 76 | L46: 73 | M46: 89 | N46: 83 | O46: 68 | P46: 65 | Q46: 88 | R46: 46 | S46: 81 | T46: 68 | U46: 59 | V46: 86 | W46: 104 | X46: 89 | Y46: 108 | Z46: 100 | AA46: 453 | AB46: 482 | AC46: 404 | AD46: 349 | AE46: 306 | AF46: 324 | AG46: 325 | AH46: 270 | AI46: 232 | AJ46: 184 | AK46: 132 | AL46: 104 | AM46: 98 | AN46: 100 | AO46: 9 | AP46: 50 | AQ46: 36 | AR46: 91 | AS46: 2,751 | AT46: 170 | AU46: 246 | AV46: 1,224 | AW46: 156 | AZ46: 5,400 | BA46: 942 | BB46: 487 | BC46: 1,143 | BD46: 1,978 | BE46: 850
A47: 040302 | B47: AREQUIPA | C47: AREQUIPA | D47: CARAVELI | E47: ACARI | F47: 6,580 | G47: 45 | H47: 43 | I47: 40 | J47: 63 | K47: 55 | L47: 60 | M47: 83 | N47: 107 | O47: 82 | P47: 105 | Q47: 119 | R47: 110 | S47: 118 | T47: 126 | U47: 94 | V47: 126 | W47: 136 | X47: 130 | Y47: 102 | Z47: 80 | AA47: 422 | AB47: 402 | AC47: 368 | AD47: 415 | AE47: 404 | AF47: 431 | AG47: 425 | AH47: 407 | AI47: 378 | AJ47: 298 | AK47: 281 | AL47: 241 | AM47: 121 | AN47: 163 | AO47: 5 | AP47: 19 | AQ47: 26 | AR47: 48 | AS47: 3,317 | AT47: 286 | AU47: 285 | AV47: 1,288 | AW47: 81 | AZ47: 6,580 | BA47: 912 | BB47: 730 | BC47: 1,006 | BD47: 2,450 | BE47: 1,482
A48: 040303 | B48: AREQUIPA | C48: AREQUIPA | D48: CARAVELI | E48: ATICO | F48: 6,658 | G48: 47 | H48: 60 | I48: 74 | J48: 77 | K48: 57 | L48: 78 | M48: 118 | N48: 92 | O48: 98 | P48: 97 | Q48: 110 | R48: 113 | S48: 74 | T48: 109 | U48: 122 | V48: 115 | W48: 125 | X48: 110 | Y48: 111 | Z48: 87 | AA48: 404 | AB48: 498 | AC48: 559 | AD48: 519 | AE48: 487 | AF48: 497 | AG48: 445 | AH48: 388 | AI48: 293 | AJ48: 259 | AK48: 165 | AL48: 135 | AM48: 78 | AN48: 57 | AO48: 2 | AP48: 27 | AQ48: 20 | AR48: 50 | AS48: 3,427 | AT48: 264 | AU48: 278 | AV48: 1,574 | AW48: 59 | AZ48: 6,658 | BA48: 1,021 | BB48: 655 | BC48: 1,100 | BD48: 2,895 | BE48: 987
A49: 040304 | B49: AREQUIPA | C49: AREQUIPA | D49: CARAVELI | E49: ATIQUIPA | F49: 739 | G49: 8 | H49: 8 | I49: 4 | J49: 11 | K49: 6 | L49: 13 | M49: 3 | N49: 7 | O49: 11 | P49: 12 | Q49: 14 | R49: 8 | S49: 14 | T49: 8 | U49: 6 | V49: 8 | W49: 11 | X49: 9 | Y49: 11 | Z49: 8 | AA49: 46 | AB49: 74 | AC49: 61 | AD49: 51 | AE49: 60 | AF49: 32 | AG49: 48 | AH49: 49 | AI49: 47 | AJ49: 21 | AK49: 34 | AL49: 15 | AM49: 11 | AN49: 10 | AO49: 1 | AP49: 3 | AQ49: 5 | AR49: 8 | AS49: 389 | AT49: 30 | AU49: 29 | AV49: 172 | AW49: 11 | AZ49: 739 | BA49: 105 | BB49: 56 | BC49: 139 | BD49: 301 | BE49: 138
A50: 040305 | B50: AREQUIPA | C50: AREQUIPA | D50: CARAVELI | E50: BELLA UNION | F50: 3,560 | G50: 31 | H50: 51 | I50: 33 | J50: 46 | K50: 45 | L50: 41 | M50: 58 | N50: 48 | O50: 50 | P50: 46 | Q50: 30 | R50: 50 | S50: 48 | T50: 52 | U50: 33 | V50: 56 | W50: 75 | X50: 52 | Y50: 55 | Z50: 53 | AA50: 232 | AB50: 281 | AC50: 251 | AD50: 272 | AE50: 265 | AF50: 269 | AG50: 211 | AH50: 205 | AI50: 177 | AJ50: 121 | AK50: 125 | AL50: 91 | AM50: 54 | AN50: 53 | AO50: 3 | AP50: 13 | AQ50: 18 | AR50: 33 | AS50: 1,816 | AT50: 107 | AU50: 160 | AV50: 837 | AW50: 78 | AZ50: 3,560 | BA50: 529 | BB50: 316 | BC50: 621 | BD50: 1,473 | BE50: 621
A51: 040306 | B51: AREQUIPA | C51: AREQUIPA | D51: CARAVELI | E51: CAHUACHO | F51: 1,365 | G51: 4 | H51: 7 | I51: 8 | J51: 11 | K51: 33 | L51: 9 | M51: 10 | N51: 10 | O51: 26 | P51: 17 | Q51: 16 | R51: 16 | S51: 28 | T51: 23 | U51: 17 | V51: 23 | W51: 16 | X51: 22 | Y51: 26 | Z51: 26 | AA51: 69 | AB51: 92 | AC51: 78 | AD51: 72 | AE51: 89 | AF51: 74 | AG51: 84 | AH51: 79 | AI51: 63 | AJ51: 67 | AK51: 68 | AL51: 57 | AM51: 51 | AN51: 74 | AO51: 1 | AP51: 2 | AQ51: 2 | AR51: 4 | AS51: 719 | AT51: 58 | AU51: 63 | AV51: 242 | AW51: 6 | AZ51: 1,365 | BA51: 167 | BB51: 129 | BC51: 213 | BD51: 476 | BE51: 380
A52: 040307 | B52: AREQUIPA | C52: AREQUIPA | D52: CARAVELI | E52: CHALA | F52: 11,388 | G52: 149 | H52: 145 | I52: 171 | J52: 178 | K52: 158 | L52: 191 | M52: 230 | N52: 236 | O52: 265 | P52: 221 | Q52: 236 | R52: 194 | S52: 169 | T52: 155 | U52: 214 | V52: 225 | W52: 229 | X52: 207 | Y52: 169 | Z52: 167 | AA52: 757 | AB52: 853 | AC52: 945 | AD52: 977 | AE52: 835 | AF52: 741 | AG52: 615 | AH52: 528 | AI52: 429 | AJ52: 316 | AK52: 203 | AL52: 117 | AM52: 77 | AN52: 86 | AO52: 13 | AP52: 77 | AQ52: 72 | AR52: 158 | AS52: 5,819 | AT52: 460 | AU52: 515 | AV52: 2,805 | AW52: 378 | AZ52: 11,388 | BA52: 2,374 | BB52: 1,199 | BC52: 1,946 | BD52: 4,641 | BE52: 1,228
A53: 040308 | B53: AREQUIPA | C53: AREQUIPA | D53: CARAVELI | E53: CHAPARRA | F53: 3,742 | G53: 34 | H53: 39 | I53: 37 | J53: 57 | K53: 49 | L53: 61 | M53: 52 | N53: 54 | O53: 45 | P53: 48 | Q53: 62 | R53: 76 | S53: 55 | T53: 47 | U53: 84 | V53: 82 | W53: 68 | X53: 76 | Y53: 48 | Z53: 39 | AA53: 197 | AB53: 207 | AC53: 321 | AD53: 336 | AE53: 335 | AF53: 268 | AG53: 231 | AH53: 259 | AI53: 134 | AJ53: 108 | AK53: 104 | AL53: 42 | AM53: 41 | AN53: 46 | AO53: 2 | AP53: 21 | AQ53: 13 | AR53: 36 | AS53: 2,029 | AT53: 204 | AU53: 210 | AV53: 868 | AW53: 63 | AZ53: 3,742 | BA53: 614 | BB53: 412 | BC53: 491 | BD53: 1,750 | BE53: 475
A54: 040309 | B54: AREQUIPA | C54: AREQUIPA | D54: CARAVELI | E54: HUANUHUANU | F54: 3,453 | G54: 35 | H54: 39 | I54: 33 | J54: 48 | K54: 44 | L54: 54 | M54: 42 | N54: 47 | O54: 37 | P54: 59 | Q54: 43 | R54: 65 | S54: 51 | T54: 92 | U54: 84 | V54: 63 | W54: 62 | X54: 57 | Y54: 46 | Z54: 47 | AA54: 198 | AB54: 261 | AC54: 357 | AD54: 313 | AE54: 253 | AF54: 273 | AG54: 225 | AH54: 178 | AI54: 145 | AJ54: 79 | AK54: 48 | AL54: 15 | AM54: 21 | AN54: 39 | AO54: 4 | AP54: 15 | AQ54: 20 | AR54: 37 | AS54: 1,938 | AT54: 221 | AU54: 164 | AV54: 914 | AW54: 107 | AZ54: 3,453 | BA54: 546 | BB54: 409 | BC54: 552 | BD54: 1,599 | BE54: 347
A55: 040310 | B55: AREQUIPA | C55: AREQUIPA | D55: CARAVELI | E55: JAQUI | F55: 1,968 | G55: 23 | H55: 15 | I55: 21 | J55: 17 | K55: 19 | L55: 28 | M55: 29 | N55: 28 | O55: 29 | P55: 25 | Q55: 24 | R55: 45 | S55: 40 | T55: 30 | U55: 35 | V55: 40 | W55: 35 | X55: 33 | Y55: 32 | Z55: 24 | AA55: 108 | AB55: 145 | AC55: 122 | AD55: 102 | AE55: 119 | AF55: 133 | AG55: 133 | AH55: 136 | AI55: 127 | AJ55: 100 | AK55: 63 | AL55: 39 | AM55: 34 | AN55: 35 | AO55: 0 | AP55: 10 | AQ55: 13 | AR55: 24 | AS55: 1,030 | AT55: 92 | AU55: 93 | AV55: 384 | AW55: 62 | AZ55: 1,968 | BA55: 303 | BB55: 213 | BC55: 309 | BD55: 745 | BE55: 398
A56: 040311 | B56: AREQUIPA | C56: AREQUIPA | D56: CARAVELI | E56: LOMAS | F56: 1,735 | G56: 18 | H56: 16 | I56: 19 | J56: 28 | K56: 23 | L56: 18 | M56: 23 | N56: 18 | O56: 26 | P56: 39 | Q56: 23 | R56: 19 | S56: 26 | T56: 21 | U56: 26 | V56: 25 | W56: 26 | X56: 22 | Y56: 17 | Z56: 18 | AA56: 119 | AB56: 139 | AC56: 140 | AD56: 133 | AE56: 134 | AF56: 135 | AG56: 107 | AH56: 112 | AI56: 103 | AJ56: 61 | AK56: 48 | AL56: 32 | AM56: 10 | AN56: 11 | AO56: 3 | AP56: 10 | AQ56: 8 | AR56: 19 | AS56: 914 | AT56: 61 | AU56: 62 | AV56: 421 | AW56: 45 | AZ56: 1,735 | BA56: 270 | BB56: 146 | BC56: 293 | BD56: 761 | BE56: 265
A57: 040312 | B57: AREQUIPA | C57: AREQUIPA | D57: CARAVELI | E57: QUICACHA | F57: 2,388 | G57: 25 | H57: 18 | I57: 19 | J57: 29 | K57: 22 | L57: 40 | M57: 42 | N57: 38 | O57: 35 | P57: 40 | Q57: 45 | R57: 51 | S57: 38 | T57: 51 | U57: 39 | V57: 55 | W57: 51 | X57: 53 | Y57: 37 | Z57: 42 | AA57: 178 | AB57: 159 | AC57: 159 | AD57: 160 | AE57: 136 | AF57: 145 | AG57: 131 | AH57: 130 | AI57: 111 | AJ57: 90 | AK57: 66 | AL57: 50 | AM57: 38 | AN57: 65 | AO57: 2 | AP57: 14 | AQ57: 11 | AR57: 27 | AS57: 1,228 | AT57: 135 | AU57: 121 | AV57: 469 | AW57: 43 | AZ57: 2,388 | BA57: 404 | BB57: 287 | BC57: 416 | BD57: 861 | BE57: 420
A58: 040313 | B58: AREQUIPA | C58: AREQUIPA | D58: CARAVELI | E58: YAUCA | F58: 2,807 | G58: 18 | H58: 24 | I58: 29 | J58: 32 | K58: 17 | L58: 23 | M58: 38 | N58: 42 | O58: 42 | P58: 56 | Q58: 40 | R58: 42 | S58: 56 | T58: 29 | U58: 51 | V58: 42 | W58: 47 | X58: 36 | Y58: 29 | Z58: 32 | AA58: 167 | AB58: 215 | AC58: 169 | AD58: 157 | AE58: 187 | AF58: 187 | AG58: 175 | AH58: 216 | AI58: 198 | AJ58: 126 | AK58: 111 | AL58: 72 | AM58: 40 | AN58: 62 | AO58: 0 | AP58: 8 | AQ58: 10 | AR58: 19 | AS58: 1,402 | AT58: 120 | AU58: 82 | AV58: 591 | AW58: 53 | AZ58: 2,807 | BA58: 403 | BB58: 261 | BC58: 443 | BD58: 1,091 | BE58: 609
A59: 040401 | B59: AREQUIPA | C59: AREQUIPA | D59: CASTILLA | E59: APLAO | F59: 10,434 | G59: 103 | H59: 106 | I59: 112 | J59: 114 | K59: 117 | L59: 144 | M59: 135 | N59: 134 | O59: 140 | P59: 120 | Q59: 131 | R59: 168 | S59: 207 | T59: 134 | U59: 170 | V59: 147 | W59: 201 | X59: 194 | Y59: 158 | Z59: 159 | AA59: 746 | AB59: 817 | AC59: 743 | AD59: 664 | AE59: 658 | AF59: 688 | AG59: 651 | AH59: 674 | AI59: 528 | AJ59: 443 | AK59: 357 | AL59: 265 | AM59: 143 | AN59: 163 | AO59: 5 | AP59: 49 | AQ59: 54 | AR59: 109 | AS59: 5,344 | AT59: 397 | AU59: 463 | AV59: 2,299 | AW59: 269 | AZ59: 10,434 | BA59: 1,524 | BB59: 1,053 | BC59: 1,880 | BD59: 4,078 | BE59: 1,899
A60: 040402 | B60: AREQUIPA | C60: AREQUIPA | D60: CASTILLA | E60: ANDAGUA | F60: 982 | G60: 11 | H60: 11 | I60: 7 | J60: 8 | K60: 10 | L60: 12 | M60: 12 | N60: 12 | O60: 8 | P60: 12 | Q60: 12 | R60: 11 | S60: 11 | T60: 14 | U60: 13 | V60: 7 | W60: 20 | X60: 12 | Y60: 12 | Z60: 10 | AA60: 76 | AB60: 54 | AC60: 52 | AD60: 53 | AE60: 61 | AF60: 64 | AG60: 66 | AH60: 63 | AI60: 64 | AJ60: 53 | AK60: 51 | AL60: 45 | AM60: 20 | AN60: 35 | AO60: 1 | AP60: 5 | AQ60: 6 | AR60: 12 | AS60: 522 | AT60: 35 | AU60: 32 | AV60: 180 | AW60: 22 | AZ60: 982 | BA60: 126 | BB60: 77 | BC60: 152 | BD60: 359 | BE60: 268
A61: 040403 | B61: AREQUIPA | C61: AREQUIPA | D61: CASTILLA | E61: AYO | F61: 372 | G61: 1 | H61: 2 | I61: 2 | J61: 2 | K61: 6 | L61: 3 | M61: 2 | N61: 2 | O61: 2 | P61: 1 | Q61: 0 | R61: 6 | S61: 1 | T61: 1 | U61: 2 | V61: 1 | W61: 3 | X61: 3 | Y61: 1 | Z61: 3 | AA61: 7 | AB61: 15 | AC61: 21 | AD61: 27 | AE61: 25 | AF61: 21 | AG61: 33 | AH61: 25 | AI61: 30 | AJ61: 30 | AK61: 18 | AL61: 30 | AM61: 16 | AN61: 30 | AO61: 0 | AP61: 1 | AQ61: 0 | AR61: 1 | AS61: 199 | AT61: 7 | AU61: 3 | AV61: 56 | AW61: 3 | AZ61: 372 | BA61: 29 | BB61: 11 | BC61: 26 | BD61: 152 | BE61: 154
A62: 040404 | B62: AREQUIPA | C62: AREQUIPA | D62: CASTILLA | E62: CHACHAS | F62: 1,806 | G62: 16 | H62: 13 | I62: 26 | J62: 26 | K62: 31 | L62: 31 | M62: 23 | N62: 26 | O62: 29 | P62: 30 | Q62: 45 | R62: 27 | S62: 30 | T62: 25 | U62: 37 | V62: 47 | W62: 29 | X62: 39 | Y62: 24 | Z62: 25 | AA62: 138 | AB62: 136 | AC62: 144 | AD62: 127 | AE62: 90 | AF62: 100 | AG62: 86 | AH62: 112 | AI62: 89 | AJ62: 62 | AK62: 41 | AL62: 36 | AM62: 26 | AN62: 40 | AO62: 4 | AP62: 13 | AQ62: 3 | AR62: 17 | AS62: 995 | AT62: 96 | AU62: 97 | AV62: 376 | AW62: 21 | AZ62: 1,806 | BA62: 323 | BB62: 207 | BC62: 323 | BD62: 659 | BE62: 294
A63: 040405 | B63: AREQUIPA | C63: AREQUIPA | D63: CASTILLA | E63: CHILCAYMARCA | F63: 1,144 | G63: 5 | H63: 13 | I63: 15 | J63: 14 | K63: 10 | L63: 12 | M63: 18 | N63: 17 | O63: 18 | P63: 21 | Q63: 17 | R63: 26 | S63: 6 | T63: 13 | U63: 9 | V63: 25 | W63: 19 | X63: 26 | Y63: 19 | Z63: 8 | AA63: 69 | AB63: 93 | AC63: 97 | AD63: 100 | AE63: 103 | AF63: 88 | AG63: 71 | AH63: 56 | AI63: 54 | AJ63: 38 | AK63: 24 | AL63: 15 | AM63: 14 | AN63: 11 | AO63: 0 | AP63: 3 | AQ63: 2 | AR63: 5 | AS63: 593 | AT63: 33 | AU63: 56 | AV63: 282 | AW63: 6 | AZ63: 1,144 | BA63: 186 | BB63: 98 | BC63: 189 | BD63: 515 | BE63: 156
A64: 040406 | B64: AREQUIPA | C64: AREQUIPA | D64: CASTILLA | E64: CHOCO | F64: 808 | G64: 7 | H64: 2 | I64: 7 | J64: 13 | K64: 4 | L64: 5 | M64: 7 | N64: 8 | O64: 6 | P64: 5 | Q64: 5 | R64: 11 | S64: 5 | T64: 10 | U64: 10 | V64: 7 | W64: 13 | X64: 5 | Y64: 12 | Z64: 12 | AA64: 41 | AB64: 35 | AC64: 51 | AD64: 49 | AE64: 65 | AF64: 59 | AG64: 53 | AH64: 46 | AI64: 53 | AJ64: 50 | AK64: 40 | AL64: 47 | AM64: 27 | AN64: 38 | AO64: 0 | AP64: 3 | AQ64: 4 | AR64: 7 | AS64: 465 | AT64: 31 | AU64: 29 | AV64: 156 | AW64: 11 | AZ64: 808 | BA64: 80 | BB64: 50 | BC64: 100 | BD64: 323 | BE64: 255
A65: 040407 | B65: AREQUIPA | C65: AREQUIPA | D65: CASTILLA | E65: HUANCARQUI | F65: 1,718 | G65: 12 | H65: 16 | I65: 19 | J65: 15 | K65: 13 | L65: 27 | M65: 16 | N65: 14 | O65: 18 | P65: 19 | Q65: 19 | R65: 5 | S65: 21 | T65: 13 | U65: 25 | V65: 23 | W65: 16 | X65: 24 | Y65: 13 | Z65: 17 | AA65: 91 | AB65: 102 | AC65: 145 | AD65: 120 | AE65: 128 | AF65: 120 | AG65: 129 | AH65: 128 | AI65: 120 | AJ65: 84 | AK65: 80 | AL65: 51 | AM65: 33 | AN65: 42 | AO65: 2 | AP65: 6 | AQ65: 6 | AR65: 12 | AS65: 921 | AT65: 44 | AU65: 51 | AV65: 365 | AW65: 23 | AZ65: 1,718 | BA65: 193 | BB65: 122 | BC65: 223 | BD65: 770 | BE65: 410
A66: 040408 | B66: AREQUIPA | C66: AREQUIPA | D66: CASTILLA | E66: MACHAGUAY | F66: 470 | G66: 4 | H66: 3 | I66: 7 | J66: 3 | K66: 4 | L66: 2 | M66: 2 | N66: 4 | O66: 2 | P66: 5 | Q66: 2 | R66: 9 | S66: 3 | T66: 5 | U66: 7 | V66: 5 | W66: 7 | X66: 9 | Y66: 6 | Z66: 9 | AA66: 25 | AB66: 19 | AC66: 18 | AD66: 15 | AE66: 24 | AF66: 29 | AG66: 34 | AH66: 35 | AI66: 37 | AJ66: 19 | AK66: 39 | AL66: 21 | AM66: 24 | AN66: 33 | AO66: 0 | AP66: 3 | AQ66: 1 | AR66: 4 | AS66: 259 | AT66: 17 | AU66: 18 | AV66: 72 | AW66: 5 | AZ66: 470 | BA66: 47 | BB66: 36 | BC66: 59 | BD66: 155 | BE66: 173
A67: 040409 | B67: AREQUIPA | C67: AREQUIPA | D67: CASTILLA | E67: ORCOPAMPA | F67: 9,035 | G67: 32 | H67: 49 | I67: 56 | J67: 77 | K67: 51 | L67: 86 | M67: 151 | N67: 172 | O67: 202 | P67: 191 | Q67: 191 | R67: 191 | S67: 160 | T67: 189 | U67: 203 | V67: 267 | W67: 229 | X67: 264 | Y67: 177 | Z67: 134 | AA67: 748 | AB67: 721 | AC67: 683 | AD67: 691 | AE67: 630 | AF67: 530 | AG67: 425 | AH67: 457 | AI67: 345 | AJ67: 254 | AK67: 209 | AL67: 121 | AM67: 75 | AN67: 74 | AO67: 0 | AP67: 17 | AQ67: 15 | AR67: 34 | AS67: 4,591 | AT67: 480 | AU67: 548 | AV67: 2,033 | AW67: 121 | AZ67: 9,035 | BA67: 1,449 | BB67: 1,312 | BC67: 1,780 | BD67: 3,416 | BE67: 1,078
A68: 040410 | B68: AREQUIPA | C68: AREQUIPA | D68: CASTILLA | E68: PAMPACOLCA | F68: 2,119 | G68: 10 | H68: 17 | I68: 20 | J68: 15 | K68: 30 | L68: 32 | M68: 25 | N68: 22 | O68: 35 | P68: 26 | Q68: 32 | R68: 34 | S68: 34 | T68: 30 | U68: 32 | V68: 43 | W68: 40 | X68: 43 | Y68: 26 | Z68: 37 | AA68: 149 | AB68: 116 | AC68: 102 | AD68: 86 | AE68: 103 | AF68: 125 | AG68: 125 | AH68: 161 | AI68: 112 | AJ68: 94 | AK68: 76 | AL68: 105 | AM68: 88 | AN68: 94 | AO68: 0 | AP68: 4 | AQ68: 6 | AR68: 10 | AS68: 1,096 | AT68: 80 | AU68: 103 | AV68: 337 | AW68: 13 | AZ68: 2,119 | BA68: 298 | BB68: 222 | BC68: 328 | BD68: 702 | BE68: 569
A69: 040411 | B69: AREQUIPA | C69: AREQUIPA | D69: CASTILLA | E69: TIPAN | F69: 451 | G69: 5 | H69: 2 | I69: 1 | J69: 4 | K69: 3 | L69: 1 | M69: 5 | N69: 6 | O69: 3 | P69: 3 | Q69: 2 | R69: 5 | S69: 3 | T69: 7 | U69: 4 | V69: 6 | W69: 3 | X69: 8 | Y69: 9 | Z69: 10 | AA69: 22 | AB69: 19 | AC69: 22 | AD69: 17 | AE69: 26 | AF69: 23 | AG69: 24 | AH69: 39 | AI69: 36 | AJ69: 29 | AK69: 28 | AL69: 36 | AM69: 10 | AN69: 30 | AO69: 0 | AP69: 2 | AQ69: 3 | AR69: 5 | AS69: 238 | AT69: 12 | AU69: 21 | AV69: 61 | AW69: 9 | AZ69: 451 | BA69: 40 | BB69: 31 | BC69: 60 | BD69: 151 | BE69: 169
A70: 040412 | B70: AREQUIPA | C70: AREQUIPA | D70: CASTILLA | E70: UÑON | F70: 296 | G70: 3 | H70: 1 | I70: 2 | J70: 2 | K70: 2 | L70: 2 | M70: 5 | N70: 0 | O70: 3 | P70: 5 | Q70: 0 | R70: 2 | S70: 0 | T70: 2 | U70: 6 | V70: 2 | W70: 2 | X70: 2 | Y70: 0 | Z70: 4 | AA70: 9 | AB70: 23 | AC70: 18 | AD70: 17 | AE70: 20 | AF70: 24 | AG70: 23 | AH70: 18 | AI70: 28 | AJ70: 21 | AK70: 17 | AL70: 12 | AM70: 10 | AN70: 11 | AO70: 0 | AP70: 0 | AQ70: 3 | AR70: 3 | AS70: 162 | AT70: 6 | AU70: 7 | AV70: 57 | AW70: 6 | AZ70: 296 | BA70: 27 | BB70: 14 | BC70: 36 | BD70: 120 | BE70: 99
A71: 040413 | B71: AREQUIPA | C71: AREQUIPA | D71: CASTILLA | E71: URACA | F71: 6,548 | G71: 48 | H71: 53 | I71: 55 | J71: 73 | K71: 71 | L71: 66 | M71: 82 | N71: 90 | O71: 83 | P71: 84 | Q71: 90 | R71: 75 | S71: 84 | T71: 84 | U71: 78 | V71: 120 | W71: 128 | X71: 103 | Y71: 90 | Z71: 107 | AA71: 447 | AB71: 525 | AC71: 441 | AD71: 457 | AE71: 468 | AF71: 431 | AG71: 428 | AH71: 425 | AI71: 368 | AJ71: 280 | AK71: 234 | AL71: 156 | AM71: 107 | AN71: 117 | AO71: 2 | AP71: 21 | AQ71: 27 | AR71: 51 | AS71: 3,388 | AT71: 224 | AU71: 301 | AV71: 1,446 | AW71: 98 | AZ71: 6,548 | BA71: 870 | BB71: 597 | BC71: 1,169 | BD71: 2,650 | BE71: 1,262
A72: 040414 | B72: AREQUIPA | C72: AREQUIPA | D72: CASTILLA | E72: VIRACO | F72: 1,528 | G72: 9 | H72: 6 | I72: 12 | J72: 13 | K72: 18 | L72: 13 | M72: 18 | N72: 17 | O72: 14 | P72: 15 | Q72: 9 | R72: 17 | S72: 25 | T72: 17 | U72: 17 | V72: 17 | W72: 22 | X72: 30 | Y72: 18 | Z72: 17 | AA72: 84 | AB72: 87 | AC72: 70 | AD72: 63 | AE72: 91 | AF72: 95 | AG72: 95 | AH72: 95 | AI72: 114 | AJ72: 106 | AK72: 86 | AL72: 83 | AM72: 63 | AN72: 72 | AO72: 2 | AP72: 5 | AQ72: 4 | AR72: 9 | AS72: 800 | AT72: 55 | AU72: 64 | AV72: 247 | AW72: 12 | AZ72: 1,528 | BA72: 161 | BB72: 128 | BC72: 206 | BD72: 509 | BE72: 524
A73: 040501 | B73: AREQUIPA | C73: AREQUIPA | D73: CAYLLOMA | E73: CHIVAY | F73: 7,927 | G73: 50 | H73: 49 | I73: 52 | J73: 98 | K73: 52 | L73: 85 | M73: 137 | N73: 142 | O73: 145 | P73: 139 | Q73: 144 | R73: 121 | S73: 170 | T73: 148 | U73: 124 | V73: 172 | W73: 177 | X73: 165 | Y73: 164 | Z73: 139 | AA73: 752 | AB73: 704 | AC73: 641 | AD73: 534 | AE73: 475 | AF73: 436 | AG73: 355 | AH73: 429 | AI73: 317 | AJ73: 217 | AK73: 201 | AL73: 189 | AM73: 90 | AN73: 114 | AO73: 2 | AP73: 27 | AQ73: 23 | AR73: 53 | AS73: 4,035 | AT73: 343 | AU73: 398 | AV73: 1,807 | AW73: 88 | AZ73: 7,927 | BA73: 1,214 | BB73: 956 | BC73: 1,759 | BD73: 2,870 | BE73: 1,128
A74: 040502 | B74: AREQUIPA | C74: AREQUIPA | D74: CAYLLOMA | E74: ACHOMA | F74: 1,214 | G74: 5 | H74: 5 | I74: 8 | J74: 13 | K74: 12 | L74: 7 | M74: 12 | N74: 11 | O74: 9 | P74: 5 | Q74: 7 | R74: 9 | S74: 11 | T74: 11 | U74: 11 | V74: 15 | W74: 10 | X74: 15 | Y74: 8 | Z74: 21 | AA74: 82 | AB74: 101 | AC74: 77 | AD74: 59 | AE74: 82 | AF74: 96 | AG74: 90 | AH74: 99 | AI74: 85 | AJ74: 59 | AK74: 55 | AL74: 44 | AM74: 40 | AN74: 40 | AO74: 1 | AP74: 4 | AQ74: 1 | AR74: 5 | AS74: 652 | AT74: 26 | AU74: 40 | AV74: 253 | AW74: 7 | AZ74: 1,214 | BA74: 103 | BB74: 73 | BC74: 212 | BD74: 503 | BE74: 323
A75: 040503 | B75: AREQUIPA | C75: AREQUIPA | D75: CAYLLOMA | E75: CABANACONDE | F75: 2,958 | G75: 14 | H75: 12 | I75: 15 | J75: 19 | K75: 20 | L75: 29 | M75: 41 | N75: 32 | O75: 25 | P75: 22 | Q75: 27 | R75: 29 | S75: 29 | T75: 41 | U75: 37 | V75: 33 | W75: 58 | X75: 42 | Y75: 38 | Z75: 33 | AA75: 187 | AB75: 213 | AC75: 183 | AD75: 156 | AE75: 192 | AF75: 194 | AG75: 211 | AH75: 265 | AI75: 169 | AJ75: 162 | AK75: 124 | AL75: 97 | AM75: 99 | AN75: 110 | AO75: 1 | AP75: 5 | AQ75: 9 | AR75: 14 | AS75: 1,500 | AT75: 77 | AU75: 105 | AV75: 555 | AW75: 30 | AZ75: 2,958 | BA75: 285 | BB75: 240 | BC75: 471 | BD75: 1,201 | BE75: 761
A76: 040504 | B76: AREQUIPA | C76: AREQUIPA | D76: CAYLLOMA | E76: CALLALLI | F76: 2,195 | G76: 11 | H76: 8 | I76: 19 | J76: 17 | K76: 17 | L76: 25 | M76: 25 | N76: 17 | O76: 21 | P76: 28 | Q76: 23 | R76: 34 | S76: 17 | T76: 32 | U76: 9 | V76: 23 | W76: 29 | X76: 19 | Y76: 26 | Z76: 21 | AA76: 146 | AB76: 175 | AC76: 154 | AD76: 135 | AE76: 121 | AF76: 166 | AG76: 172 | AH76: 172 | AI76: 148 | AJ76: 121 | AK76: 107 | AL76: 67 | AM76: 40 | AN76: 50 | AO76: 2 | AP76: 4 | AQ76: 7 | AR76: 11 | AS76: 1,156 | AT76: 61 | AU76: 72 | AV76: 452 | AW76: 14 | AZ76: 2,195 | BA76: 245 | BB76: 129 | BC76: 368 | BD76: 920 | BE76: 533
A77: 040505 | B77: AREQUIPA | C77: AREQUIPA | D77: CAYLLOMA | E77: CAYLLOMA | F77: 5,321 | G77: 34 | H77: 38 | I77: 37 | J77: 60 | K77: 67 | L77: 60 | M77: 63 | N77: 82 | O77: 96 | P77: 95 | Q77: 96 | R77: 102 | S77: 108 | T77: 82 | U77: 98 | V77: 112 | W77: 100 | X77: 114 | Y77: 112 | Z77: 84 | AA77: 475 | AB77: 470 | AC77: 378 | AD77: 373 | AE77: 341 | AF77: 312 | AG77: 282 | AH77: 286 | AI77: 245 | AJ77: 183 | AK77: 135 | AL77: 97 | AM77: 57 | AN77: 47 | AO77: 1 | AP77: 10 | AQ77: 24 | AR77: 36 | AS77: 2,792 | AT77: 269 | AU77: 273 | AV77: 1,218 | AW77: 65 | AZ77: 5,321 | BA77: 830 | BB77: 614 | BC77: 1,141 | BD77: 1,972 | BE77: 764
A78: 040506 | B78: AREQUIPA | C78: AREQUIPA | D78: CAYLLOMA | E78: COPORAQUE | F78: 1,547 | G78: 12 | H78: 18 | I78: 9 | J78: 15 | K78: 10 | L78: 16 | M78: 25 | N78: 23 | O78: 17 | P78: 17 | Q78: 16 | R78: 14 | S78: 6 | T78: 14 | U78: 11 | V78: 20 | W78: 22 | X78: 16 | Y78: 18 | Z78: 22 | AA78: 85 | AB78: 116 | AC78: 98 | AD78: 119 | AE78: 151 | AF78: 101 | AG78: 94 | AH78: 92 | AI78: 98 | AJ78: 74 | AK78: 66 | AL78: 52 | AM78: 38 | AN78: 42 | AO78: 1 | AP78: 2 | AQ78: 10 | AR78: 12 | AS78: 769 | AT78: 30 | AU78: 48 | AV78: 342 | AW78: 38 | AZ78: 1,547 | BA78: 192 | BB78: 89 | BC78: 241 | BD78: 655 | BE78: 370
A79: 040507 | B79: AREQUIPA | C79: AREQUIPA | D79: CAYLLOMA | E79: HUAMBO | F79: 955 | G79: 4 | H79: 6 | I79: 9 | J79: 5 | K79: 8 | L79: 6 | M79: 9 | N79: 9 | O79: 2 | P79: 4 | Q79: 13 | R79: 9 | S79: 8 | T79: 8 | U79: 13 | V79: 12 | W79: 21 | X79: 21 | Y79: 11 | Z79: 6 | AA79: 56 | AB79: 60 | AC79: 56 | AD79: 45 | AE79: 58 | AF79: 49 | AG79: 66 | AH79: 73 | AI79: 52 | AJ79: 84 | AK79: 50 | AL79: 41 | AM79: 42 | AN79: 39 | AO79: 0 | AP79: 4 | AQ79: 0 | AR79: 4 | AS79: 520 | AT79: 32 | AU79: 44 | AV79: 165 | AW79: 6 | AZ79: 955 | BA79: 84 | BB79: 83 | BC79: 133 | BD79: 347 | BE79: 308
A80: 040508 | B80: AREQUIPA | C80: AREQUIPA | D80: CAYLLOMA | E80: HUANCA | F80: 1,493 | G80: 8 | H80: 12 | I80: 11 | J80: 12 | K80: 14 | L80: 10 | M80: 7 | N80: 7 | O80: 8 | P80: 9 | Q80: 11 | R80: 9 | S80: 7 | T80: 15 | U80: 9 | V80: 8 | W80: 18 | X80: 20 | Y80: 13 | Z80: 21 | AA80: 74 | AB80: 84 | AC80: 79 | AD80: 89 | AE80: 109 | AF80: 120 | AG80: 117 | AH80: 109 | AI80: 121 | AJ80: 96 | AK80: 87 | AL80: 66 | AM80: 52 | AN80: 61 | AO80: 0 | AP80: 6 | AQ80: 2 | AR80: 8 | AS80: 810 | AT80: 28 | AU80: 47 | AV80: 278 | AW80: 10 | AZ80: 1,493 | BA80: 118 | BB80: 77 | BC80: 192 | BD80: 623 | BE80: 483
A81: 040509 | B81: AREQUIPA | C81: AREQUIPA | D81: CAYLLOMA | E81: ICHUPAMPA | F81: 966 | G81: 5 | H81: 3 | I81: 5 | J81: 12 | K81: 7 | L81: 14 | M81: 9 | N81: 10 | O81: 13 | P81: 7 | Q81: 7 | R81: 15 | S81: 16 | T81: 7 | U81: 16 | V81: 9 | W81: 13 | X81: 16 | Y81: 3 | Z81: 14 | AA81: 54 | AB81: 72 | AC81: 83 | AD81: 65 | AE81: 61 | AF81: 64 | AG81: 59 | AH81: 64 | AI81: 56 | AJ81: 60 | AK81: 47 | AL81: 34 | AM81: 24 | AN81: 22 | AO81: 1 | AP81: 1 | AQ81: 4 | AR81: 5 | AS81: 514 | AT81: 32 | AU81: 26 | AV81: 217 | AW81: 7 | AZ81: 966 | BA81: 107 | BB81: 77 | BC81: 143 | BD81: 396 | BE81: 243
A82: 040510 | B82: AREQUIPA | C82: AREQUIPA | D82: CAYLLOMA | E82: LARI | F82: 1,332 | G82: 6 | H82: 12 | I82: 12 | J82: 15 | K82: 11 | L82: 14 | M82: 14 | N82: 16 | O82: 7 | P82: 16 | Q82: 21 | R82: 21 | S82: 13 | T82: 23 | U82: 18 | V82: 23 | W82: 24 | X82: 20 | Y82: 25 | Z82: 22 | AA82: 100 | AB82: 110 | AC82: 107 | AD82: 66 | AE82: 86 | AF82: 90 | AG82: 83 | AH82: 82 | AI82: 71 | AJ82: 62 | AK82: 38 | AL82: 35 | AM82: 42 | AN82: 27 | AO82: 0 | AP82: 3 | AQ82: 3 | AR82: 6 | AS82: 714 | AT82: 55 | AU82: 62 | AV82: 286 | AW82: 22 | AZ82: 1,332 | BA82: 165 | BB82: 121 | BC82: 257 | BD82: 514 | BE82: 275
A83: 040511 | B83: AREQUIPA | C83: AREQUIPA | D83: CAYLLOMA | E83: LLUTA | F83: 1,271 | G83: 6 | H83: 7 | I83: 13 | J83: 18 | K83: 8 | L83: 10 | M83: 4 | N83: 8 | O83: 14 | P83: 4 | Q83: 12 | R83: 16 | S83: 18 | T83: 16 | U83: 7 | V83: 22 | W83: 12 | X83: 22 | Y83: 22 | Z83: 9 | AA83: 62 | AB83: 59 | AC83: 71 | AD83: 77 | AE83: 85 | AF83: 94 | AG83: 90 | AH83: 99 | AI83: 82 | AJ83: 62 | AK83: 79 | AL83: 67 | AM83: 46 | AN83: 50 | AO83: 1 | AP83: 5 | AQ83: 1 | AR83: 6 | AS83: 732 | AT83: 39 | AU83: 60 | AV83: 241 | AW83: 25 | AZ83: 1,271 | BA83: 120 | BB83: 97 | BC83: 152 | BD83: 516 | BE83: 386
A84: 040512 | B84: AREQUIPA | C84: AREQUIPA | D84: CAYLLOMA | E84: MACA | F84: 1,058 | G84: 6 | H84: 6 | I84: 3 | J84: 4 | K84: 8 | L84: 3 | M84: 6 | N84: 12 | O84: 11 | P84: 6 | Q84: 12 | R84: 2 | S84: 12 | T84: 9 | U84: 1 | V84: 14 | W84: 12 | X84: 16 | Y84: 7 | Z84: 16 | AA84: 64 | AB84: 68 | AC84: 55 | AD84: 80 | AE84: 82 | AF84: 85 | AG84: 73 | AH84: 72 | AI84: 57 | AJ84: 68 | AK84: 51 | AL84: 68 | AM84: 30 | AN84: 39 | AO84: 0 | AP84: 5 | AQ84: 1 | AR84: 6 | AS84: 555 | AT84: 15 | AU84: 30 | AV84: 217 | AW84: 9 | AZ84: 1,058 | BA84: 79 | BB84: 64 | BC84: 155 | BD84: 447 | BE84: 313
A85: 040513 | B85: AREQUIPA | C85: AREQUIPA | D85: CAYLLOMA | E85: MADRIGAL | F85: 929 | G85: 2 | H85: 5 | I85: 3 | J85: 5 | K85: 3 | L85: 3 | M85: 4 | N85: 5 | O85: 5 | P85: 4 | Q85: 3 | R85: 3 | S85: 9 | T85: 11 | U85: 10 | V85: 8 | W85: 15 | X85: 12 | Y85: 8 | Z85: 10 | AA85: 57 | AB85: 53 | AC85: 50 | AD85: 62 | AE85: 55 | AF85: 72 | AG85: 56 | AH85: 61 | AI85: 78 | AJ85: 68 | AK85: 56 | AL85: 54 | AM85: 35 | AN85: 44 | AO85: 0 | AP85: 1 | AQ85: 1 | AR85: 2 | AS85: 485 | AT85: 21 | AU85: 35 | AV85: 164 | AW85: 4 | AZ85: 929 | BA85: 45 | BB85: 65 | BC85: 128 | BD85: 356 | BE85: 335
A86: 040514 | B86: AREQUIPA | C86: AREQUIPA | D86: CAYLLOMA | E86: SAN ANTONIO DE CHUCA | F86: 1,184 | G86: 13 | H86: 12 | I86: 12 | J86: 11 | K86: 13 | L86: 11 | M86: 17 | N86: 18 | O86: 16 | P86: 17 | Q86: 27 | R86: 25 | S86: 10 | T86: 11 | U86: 12 | V86: 19 | W86: 26 | X86: 29 | Y86: 23 | Z86: 13 | AA86: 75 | AB86: 76 | AC86: 65 | AD86: 80 | AE86: 80 | AF86: 76 | AG86: 76 | AH86: 85 | AI86: 71 | AJ86: 49 | AK86: 54 | AL86: 31 | AM86: 17 | AN86: 14 | AO86: 1 | AP86: 8 | AQ86: 5 | AR86: 13 | AS86: 605 | AT86: 41 | AU86: 56 | AV86: 244 | AW86: 28 | AZ86: 1,184 | BA86: 192 | BB86: 107 | BC86: 187 | BD86: 462 | BE86: 236
A87: 040515 | B87: AREQUIPA | C87: AREQUIPA | D87: CAYLLOMA | E87: SIBAYO | F87: 1,111 | G87: 3 | H87: 5 | I87: 12 | J87: 8 | K87: 3 | L87: 10 | M87: 5 | N87: 15 | O87: 7 | P87: 14 | Q87: 15 | R87: 13 | S87: 15 | T87: 15 | U87: 1 | V87: 23 | W87: 20 | X87: 18 | Y87: 14 | Z87: 13 | AA87: 88 | AB87: 87 | AC87: 86 | AD87: 76 | AE87: 83 | AF87: 95 | AG87: 60 | AH87: 67 | AI87: 66 | AJ87: 48 | AK87: 44 | AL87: 41 | AM87: 19 | AN87: 22 | AO87: 0 | AP87: 2 | AQ87: 1 | AR87: 3 | AS87: 572 | AT87: 23 | AU87: 41 | AV87: 262 | AW87: 5 | AZ87: 1,111 | BA87: 110 | BB87: 92 | BC87: 202 | BD87: 467 | BE87: 240
A88: 040516 | B88: AREQUIPA | C88: AREQUIPA | D88: CAYLLOMA | E88: TAPAY | F88: 1,024 | G88: 1 | H88: 2 | I88: 4 | J88: 8 | K88: 9 | L88: 9 | M88: 10 | N88: 8 | O88: 10 | P88: 7 | Q88: 6 | R88: 9 | S88: 11 | T88: 8 | U88: 15 | V88: 10 | W88: 15 | X88: 11 | Y88: 11 | Z88: 12 | AA88: 50 | AB88: 73 | AC88: 69 | AD88: 85 | AE88: 78 | AF88: 70 | AG88: 56 | AH88: 67 | AI88: 70 | AJ88: 65 | AK88: 60 | AL88: 39 | AM88: 37 | AN88: 29 | AO88: 0 | AP88: 1 | AQ88: 0 | AR88: 1 | AS88: 582 | AT88: 31 | AU88: 41 | AV88: 225 | AW88: 2 | AZ88: 1,024 | BA88: 83 | BB88: 70 | BC88: 146 | BD88: 425 | BE88: 300
A89: 040517 | B89: AREQUIPA | C89: AREQUIPA | D89: CAYLLOMA | E89: TISCO | F89: 2,179 | G89: 6 | H89: 10 | I89: 12 | J89: 16 | K89: 14 | L89: 14 | M89: 27 | N89: 23 | O89: 25 | P89: 24 | Q89: 25 | R89: 19 | S89: 32 | T89: 36 | U89: 34 | V89: 40 | W89: 34 | X89: 46 | Y89: 43 | Z89: 28 | AA89: 182 | AB89: 158 | AC89: 134 | AD89: 125 | AE89: 149 | AF89: 147 | AG89: 146 | AH89: 160 | AI89: 127 | AJ89: 93 | AK89: 81 | AL89: 87 | AM89: 44 | AN89: 38 | AO89: 0 | AP89: 3 | AQ89: 3 | AR89: 6 | AS89: 1,185 | AT89: 76 | AU89: 102 | AV89: 470 | AW89: 19 | AZ89: 2,179 | BA89: 215 | BB89: 222 | BC89: 411 | BD89: 861 | BE89: 470
A90: 040518 | B90: AREQUIPA | C90: AREQUIPA | D90: CAYLLOMA | E90: TUTI | F90: 1,090 | G90: 6 | H90: 7 | I90: 9 | J90: 9 | K90: 6 | L90: 10 | M90: 18 | N90: 16 | O90: 8 | P90: 13 | Q90: 16 | R90: 16 | S90: 15 | T90: 2 | U90: 9 | V90: 13 | W90: 25 | X90: 16 | Y90: 20 | Z90: 27 | AA90: 84 | AB90: 78 | AC90: 77 | AD90: 79 | AE90: 82 | AF90: 71 | AG90: 57 | AH90: 60 | AI90: 55 | AJ90: 43 | AK90: 62 | AL90: 42 | AM90: 19 | AN90: 20 | AO90: 1 | AP90: 5 | AQ90: 1 | AR90: 6 | AS90: 579 | AT90: 30 | AU90: 41 | AV90: 252 | AW90: 18 | AZ90: 1,090 | BA90: 134 | BB90: 80 | BC90: 209 | BD90: 426 | BE90: 241
A91: 040519 | B91: AREQUIPA | C91: AREQUIPA | D91: CAYLLOMA | E91: YANQUE | F91: 3,124 | G91: 17 | H91: 15 | I91: 21 | J91: 19 | K91: 23 | L91: 39 | M91: 38 | N91: 37 | O91: 29 | P91: 31 | Q91: 38 | R91: 27 | S91: 38 | T91: 38 | U91: 37 | V91: 34 | W91: 42 | X91: 54 | Y91: 50 | Z91: 50 | AA91: 229 | AB91: 268 | AC91: 256 | AD91: 217 | AE91: 226 | AF91: 221 | AG91: 179 | AH91: 179 | AI91: 170 | AJ91: 148 | AK91: 148 | AL91: 80 | AM91: 64 | AN91: 62 | AO91: 1 | AP91: 10 | AQ91: 7 | AR91: 18 | AS91: 1,622 | AT91: 98 | AU91: 107 | AV91: 743 | AW91: 23 | AZ91: 3,124 | BA91: 334 | BB91: 243 | BC91: 597 | BD91: 1,278 | BE91: 672
A92: 040520 | B92: AREQUIPA | C92: AREQUIPA | D92: CAYLLOMA | E92: MAJES | F92: 79,005 | G92: 967 | H92: 983 | I92: 981 | J92: 1,203 | K92: 1,208 | L92: 1,307 | M92: 1,320 | N92: 1,428 | O92: 1,232 | P92: 1,223 | Q92: 1,147 | R92: 1,171 | S92: 1,155 | T92: 1,146 | U92: 1,250 | V92: 1,129 | W92: 1,338 | X92: 1,305 | Y92: 1,251 | Z92: 1,164 | AA92: 5,619 | AB92: 6,563 | AC92: 6,722 | AD92: 6,517 | AE92: 6,147 | AF92: 5,619 | AG92: 4,635 | AH92: 4,013 | AI92: 3,138 | AJ92: 2,264 | AK92: 1,747 | AL92: 1,123 | AM92: 559 | AN92: 431 | AO92: 78 | AP92: 488 | AQ92: 479 | AR92: 1,026 | AS92: 40,040 | AT92: 2,929 | AU92: 3,041 | AV92: 19,254 | AW92: 2,206 | AZ92: 79,005 | BA92: 14,170 | BB92: 7,323 | BC92: 14,597 | BD92: 33,653 | BE92: 9,262
A93: 040601 | B93: AREQUIPA | C93: AREQUIPA | D93: CONDESUYOS | E93: CHUQUIBAMBA | F93: 3,511 | G93: 30 | H93: 34 | I93: 40 | J93: 31 | K93: 37 | L93: 44 | M93: 47 | N93: 51 | O93: 54 | P93: 57 | Q93: 55 | R93: 52 | S93: 56 | T93: 47 | U93: 66 | V93: 76 | W93: 62 | X93: 65 | Y93: 62 | Z93: 49 | AA93: 256 | AB93: 249 | AC93: 210 | AD93: 172 | AE93: 217 | AF93: 206 | AG93: 182 | AH93: 191 | AI93: 161 | AJ93: 151 | AK93: 170 | AL93: 114 | AM93: 96 | AN93: 121 | AO93: 1 | AP93: 15 | AQ93: 15 | AR93: 32 | AS93: 1,798 | AT93: 141 | AU93: 138 | AV93: 676 | AW93: 63 | AZ93: 3,511 | BA93: 532 | BB93: 372 | BC93: 616 | BD93: 1,178 | BE93: 813
A94: 040602 | B94: AREQUIPA | C94: AREQUIPA | D94: CONDESUYOS | E94: ANDARAY | F94: 739 | G94: 0 | H94: 2 | I94: 2 | J94: 5 | K94: 3 | L94: 4 | M94: 5 | N94: 2 | O94: 6 | P94: 7 | Q94: 6 | R94: 4 | S94: 4 | T94: 9 | U94: 2 | V94: 8 | W94: 5 | X94: 11 | Y94: 5 | Z94: 12 | AA94: 36 | AB94: 62 | AC94: 43 | AD94: 60 | AE94: 39 | AF94: 58 | AG94: 48 | AH94: 46 | AI94: 55 | AJ94: 39 | AK94: 57 | AL94: 29 | AM94: 24 | AN94: 41 | AO94: 0 | AP94: 0 | AQ94: 0 | AR94: 0 | AS94: 376 | AT94: 13 | AU94: 18 | AV94: 151 | AW94: 1 | AZ94: 739 | BA94: 46 | BB94: 39 | BC94: 115 | BD94: 294 | BE94: 245
A95: 040603 | B95: AREQUIPA | C95: AREQUIPA | D95: CONDESUYOS | E95: CAYARANI | F95: 3,293 | G95: 23 | H95: 20 | I95: 27 | J95: 36 | K95: 44 | L95: 39 | M95: 52 | N95: 53 | O95: 52 | P95: 57 | Q95: 50 | R95: 61 | S95: 44 | T95: 70 | U95: 61 | V95: 88 | W95: 80 | X95: 75 | Y95: 70 | Z95: 71 | AA95: 321 | AB95: 272 | AC95: 240 | AD95: 203 | AE95: 184 | AF95: 200 | AG95: 148 | AH95: 199 | AI95: 131 | AJ95: 113 | AK95: 73 | AL95: 47 | AM95: 44 | AN95: 45 | AO95: 1 | AP95: 9 | AQ95: 14 | AR95: 24 | AS95: 1,704 | AT95: 154 | AU95: 208 | AV95: 722 | AW95: 28 | AZ95: 3,293 | BA95: 514 | BB95: 418 | BC95: 734 | BD95: 1,174 | BE95: 453
A96: 040604 | B96: AREQUIPA | C96: AREQUIPA | D96: CONDESUYOS | E96: CHICHAS | F96: 789 | G96: 3 | H96: 4 | I96: 6 | J96: 4 | K96: 4 | L96: 3 | M96: 8 | N96: 7 | O96: 6 | P96: 6 | Q96: 8 | R96: 8 | S96: 11 | T96: 8 | U96: 8 | V96: 9 | W96: 11 | X96: 12 | Y96: 5 | Z96: 11 | AA96: 32 | AB96: 38 | AC96: 40 | AD96: 35 | AE96: 34 | AF96: 50 | AG96: 61 | AH96: 62 | AI96: 49 | AJ96: 58 | AK96: 38 | AL96: 49 | AM96: 38 | AN96: 63 | AO96: 2 | AP96: 3 | AQ96: 0 | AR96: 3 | AS96: 432 | AT96: 25 | AU96: 27 | AV96: 121 | AW96: 5 | AZ96: 789 | BA96: 67 | BB96: 59 | BC96: 86 | BD96: 282 | BE96: 295
A97: 040605 | B97: AREQUIPA | C97: AREQUIPA | D97: CONDESUYOS | E97: IRAY | F97: 764 | G97: 5 | H97: 7 | I97: 7 | J97: 5 | K97: 11 | L97: 7 | M97: 9 | N97: 6 | O97: 9 | P97: 5 | Q97: 9 | R97: 10 | S97: 9 | T97: 9 | U97: 4 | V97: 4 | W97: 11 | X97: 13 | Y97: 6 | Z97: 5 | AA97: 40 | AB97: 44 | AC97: 41 | AD97: 33 | AE97: 42 | AF97: 42 | AG97: 59 | AH97: 54 | AI97: 52 | AJ97: 47 | AK97: 35 | AL97: 40 | AM97: 35 | AN97: 49 | AO97: 0 | AP97: 3 | AQ97: 2 | AR97: 5 | AS97: 407 | AT97: 21 | AU97: 21 | AV97: 128 | AW97: 6 | AZ97: 764 | BA97: 90 | BB97: 50 | BC97: 95 | BD97: 271 | BE97: 258
A98: 040606 | B98: AREQUIPA | C98: AREQUIPA | D98: CONDESUYOS | E98: RIO GRANDE | F98: 4,058 | G98: 55 | H98: 73 | I98: 79 | J98: 61 | K98: 39 | L98: 52 | M98: 56 | N98: 57 | O98: 47 | P98: 48 | Q98: 29 | R98: 39 | S98: 58 | T98: 40 | U98: 59 | V98: 58 | W98: 86 | X98: 71 | Y98: 39 | Z98: 47 | AA98: 230 | AB98: 286 | AC98: 247 | AD98: 303 | AE98: 296 | AF98: 293 | AG98: 271 | AH98: 269 | AI98: 215 | AJ98: 173 | AK98: 129 | AL98: 99 | AM98: 74 | AN98: 80 | AO98: 3 | AP98: 24 | AQ98: 31 | AR98: 58 | AS98: 2,151 | AT98: 123 | AU98: 155 | AV98: 873 | AW98: 132 | AZ98: 4,058 | BA98: 635 | BB98: 372 | BC98: 602 | BD98: 1,679 | BE98: 770
A99: 040607 | B99: AREQUIPA | C99: AREQUIPA | D99: CONDESUYOS | E99: SALAMANCA | F99: 486 | G99: 7 | H99: 5 | I99: 5 | J99: 5 | K99: 5 | L99: 4 | M99: 4 | N99: 3 | O99: 5 | P99: 3 | Q99: 5 | R99: 5 | S99: 5 | T99: 5 | U99: 2 | V99: 4 | W99: 7 | X99: 8 | Y99: 5 | Z99: 6 | AA99: 29 | AB99: 23 | AC99: 24 | AD99: 24 | AE99: 25 | AF99: 29 | AG99: 34 | AH99: 37 | AI99: 28 | AJ99: 31 | AK99: 28 | AL99: 28 | AM99: 27 | AN99: 21 | AO99: 1 | AP99: 6 | AQ99: 1 | AR99: 7 | AS99: 255 | AT99: 9 | AU99: 15 | AV99: 69 | AW99: 16 | AZ99: 486 | BA99: 56 | BB99: 31 | BC99: 63 | BD99: 173 | BE99: 163
A100: 040608 | B100: AREQUIPA | C100: AREQUIPA | D100: CONDESUYOS | E100: YANAQUIHUA | F100: 4,267 | G100: 48 | H100: 48 | I100: 46 | J100: 74 | K100: 50 | L100: 52 | M100: 37 | N100: 33 | O100: 43 | P100: 53 | Q100: 52 | R100: 60 | S100: 44 | T100: 30 | U100: 53 | V100: 65 | W100: 68 | X100: 89 | Y100: 70 | Z100: 43 | AA100: 254 | AB100: 344 | AC100: 279 | AD100: 312 | AE100: 329 | AF100: 302 | AG100: 265 | AH100: 262 | AI100: 216 | AJ100: 179 | AK100: 127 | AL100: 109 | AM100: 103 | AN100: 128 | AO100: 4 | AP100: 25 | AQ100: 23 | AR100: 51 | AS100: 2,304 | AT100: 126 | AU100: 198 | AV100: 922 | AW100: 119 | AZ100: 4,267 | BA100: 596 | BB100: 349 | BC100: 711 | BD100: 1,749 | BE100: 862
A101: 040701 | B101: AREQUIPA | C101: AREQUIPA | D101: ISLAY | E101: MOLLENDO | F101: 28,448 | G101: 219 | H101: 263 | I101: 238 | J101: 292 | K101: 324 | L101: 316 | M101: 379 | N101: 428 | O101: 386 | P101: 385 | Q101: 329 | R101: 347 | S101: 382 | T101: 353 | U101: 419 | V101: 395 | W101: 429 | X101: 403 | Y101: 402 | Z101: 386 | AA101: 1,909 | AB101: 2,009 | AC101: 1,905 | AD101: 1,813 | AE101: 2,009 | AF101: 2,045 | AG101: 1,865 | AH101: 1,771 | AI101: 1,579 | AJ101: 1,315 | AK101: 1,160 | AL101: 876 | AM101: 606 | AN101: 511 | AO101: 16 | AP101: 100 | AQ101: 119 | AR101: 232 | AS101: 14,600 | AT101: 936 | AU101: 1,044 | AV101: 6,041 | AW101: 604 | AZ101: 28,448 | BA101: 3,906 | BB101: 2,381 | BC101: 4,706 | BD101: 11,408 | BE101: 6,047
A102: 040702 | B102: AREQUIPA | C102: AREQUIPA | D102: ISLAY | E102: COCACHACRA | F102: 9,232 | G102: 88 | H102: 80 | I102: 104 | J102: 97 | K102: 97 | L102: 99 | M102: 97 | N102: 115 | O102: 134 | P102: 97 | Q102: 108 | R102: 89 | S102: 83 | T102: 119 | U102: 111 | V102: 130 | W102: 110 | X102: 126 | Y102: 120 | Z102: 126 | AA102: 583 | AB102: 690 | AC102: 700 | AD102: 701 | AE102: 671 | AF102: 641 | AG102: 644 | AH102: 670 | AI102: 513 | AJ102: 447 | AK102: 304 | AL102: 224 | AM102: 151 | AN102: 163 | AO102: 5 | AP102: 50 | AQ102: 38 | AR102: 94 | AS102: 4,855 | AT102: 273 | AU102: 330 | AV102: 2,111 | AW102: 170 | AZ102: 9,232 | BA102: 1,205 | BB102: 679 | BC102: 1,519 | BD102: 4,027 | BE102: 1,802
A103: 040703 | B103: AREQUIPA | C103: AREQUIPA | D103: ISLAY | E103: DEAN VALDIVIA | F103: 7,797 | G103: 55 | H103: 75 | I103: 81 | J103: 99 | K103: 101 | L103: 98 | M103: 114 | N103: 106 | O103: 93 | P103: 106 | Q103: 81 | R103: 85 | S103: 122 | T103: 83 | U103: 105 | V103: 120 | W103: 133 | X103: 104 | Y103: 108 | Z103: 107 | AA103: 570 | AB103: 647 | AC103: 668 | AD103: 550 | AE103: 576 | AF103: 513 | AG103: 464 | AH103: 461 | AI103: 390 | AJ103: 311 | AK103: 238 | AL103: 171 | AM103: 124 | AN103: 138 | AO103: 6 | AP103: 34 | AQ103: 21 | AR103: 58 | AS103: 4,008 | AT103: 237 | AU103: 298 | AV103: 1,827 | AW103: 73 | AZ103: 7,797 | BA103: 1,094 | BB103: 667 | BC103: 1,432 | BD103: 3,232 | BE103: 1,372
A104: 040704 | B104: AREQUIPA | C104: AREQUIPA | D104: ISLAY | E104: ISLAY | F104: 5,470 | G104: 62 | H104: 80 | I104: 80 | J104: 85 | K104: 85 | L104: 94 | M104: 97 | N104: 85 | O104: 81 | P104: 93 | Q104: 70 | R104: 95 | S104: 71 | T104: 80 | U104: 66 | V104: 84 | W104: 109 | X104: 104 | Y104: 95 | Z104: 79 | AA104: 376 | AB104: 438 | AC104: 423 | AD104: 415 | AE104: 404 | AF104: 406 | AG104: 344 | AH104: 295 | AI104: 215 | AJ104: 181 | AK104: 134 | AL104: 90 | AM104: 22 | AN104: 32 | AO104: 6 | AP104: 27 | AQ104: 35 | AR104: 66 | AS104: 2,824 | AT104: 189 | AU104: 257 | AV104: 1,306 | AW104: 201 | AZ104: 5,470 | BA104: 1,007 | BB104: 514 | BC104: 988 | BD104: 2,287 | BE104: 674
A105: 040705 | B105: AREQUIPA | C105: AREQUIPA | D105: ISLAY | E105: MEJIA | F105: 1,462 | G105: 4 | H105: 7 | I105: 7 | J105: 17 | K105: 13 | L105: 14 | M105: 13 | N105: 15 | O105: 14 | P105: 16 | Q105: 22 | R105: 11 | S105: 9 | T105: 13 | U105: 14 | V105: 8 | W105: 11 | X105: 12 | Y105: 16 | Z105: 17 | AA105: 95 | AB105: 99 | AC105: 99 | AD105: 108 | AE105: 116 | AF105: 95 | AG105: 108 | AH105: 119 | AI105: 123 | AJ105: 68 | AK105: 70 | AL105: 44 | AM105: 35 | AN105: 30 | AO105: 0 | AP105: 1 | AQ105: 3 | AR105: 4 | AS105: 791 | AT105: 38 | AU105: 27 | AV105: 352 | AW105: 6 | AZ105: 1,462 | BA105: 153 | BB105: 67 | BC105: 227 | BD105: 645 | BE105: 370
A106: 040706 | B106: AREQUIPA | C106: AREQUIPA | D106: ISLAY | E106: PUNTA DE BOMBON | F106: 7,187 | G106: 65 | H106: 65 | I106: 74 | J106: 87 | K106: 76 | L106: 105 | M106: 85 | N106: 83 | O106: 90 | P106: 75 | Q106: 77 | R106: 117 | S106: 81 | T106: 83 | U106: 78 | V106: 116 | W106: 100 | X106: 111 | Y106: 99 | Z106: 92 | AA106: 470 | AB106: 537 | AC106: 505 | AD106: 524 | AE106: 488 | AF106: 467 | AG106: 461 | AH106: 446 | AI106: 428 | AJ106: 363 | AK106: 268 | AL106: 195 | AM106: 116 | AN106: 160 | AO106: 3 | AP106: 36 | AQ106: 29 | AR106: 69 | AS106: 3,751 | AT106: 233 | AU106: 274 | AV106: 1,562 | AW106: 179 | AZ106: 7,187 | BA106: 999 | BB106: 569 | BC106: 1,198 | BD106: 2,891 | BE106: 1,530
A107: 040801 | B107: AREQUIPA | C107: AREQUIPA | D107: LA UNION | E107: COTAHUASI | F107: 3,087 | G107: 54 | H107: 30 | I107: 33 | J107: 40 | K107: 48 | L107: 49 | M107: 45 | N107: 44 | O107: 40 | P107: 43 | Q107: 62 | R107: 40 | S107: 61 | T107: 53 | U107: 43 | V107: 55 | W107: 73 | X107: 58 | Y107: 70 | Z107: 58 | AA107: 231 | AB107: 192 | AC107: 153 | AD107: 170 | AE107: 183 | AF107: 176 | AG107: 158 | AH107: 169 | AI107: 152 | AJ107: 111 | AK107: 109 | AL107: 91 | AM107: 81 | AN107: 112 | AO107: 4 | AP107: 26 | AQ107: 28 | AR107: 57 | AS107: 1,573 | AT107: 130 | AU107: 170 | AV107: 569 | AW107: 100 | AZ107: 3,087 | BA107: 528 | BB107: 343 | BC107: 551 | BD107: 1,009 | BE107: 656
A108: 040802 | B108: AREQUIPA | C108: AREQUIPA | D108: LA UNION | E108: ALCA | F108: 1,827 | G108: 23 | H108: 17 | I108: 25 | J108: 27 | K108: 32 | L108: 27 | M108: 26 | N108: 33 | O108: 35 | P108: 33 | Q108: 29 | R108: 30 | S108: 18 | T108: 20 | U108: 32 | V108: 35 | W108: 35 | X108: 42 | Y108: 41 | Z108: 33 | AA108: 148 | AB108: 112 | AC108: 104 | AD108: 87 | AE108: 86 | AF108: 99 | AG108: 101 | AH108: 111 | AI108: 94 | AJ108: 76 | AK108: 57 | AL108: 66 | AM108: 46 | AN108: 47 | AO108: 2 | AP108: 10 | AQ108: 13 | AR108: 25 | AS108: 932 | AT108: 71 | AU108: 103 | AV108: 308 | AW108: 63 | AZ108: 1,827 | BA108: 337 | BB108: 182 | BC108: 334 | BD108: 588 | BE108: 386
A109: 040803 | B109: AREQUIPA | C109: AREQUIPA | D109: LA UNION | E109: CHARCANA | F109: 714 | G109: 8 | H109: 6 | I109: 12 | J109: 11 | K109: 9 | L109: 9 | M109: 14 | N109: 15 | O109: 8 | P109: 16 | Q109: 10 | R109: 13 | S109: 13 | T109: 10 | U109: 11 | V109: 12 | W109: 13 | X109: 17 | Y109: 13 | Z109: 4 | AA109: 42 | AB109: 48 | AC109: 39 | AD109: 38 | AE109: 38 | AF109: 46 | AG109: 39 | AH109: 42 | AI109: 27 | AJ109: 32 | AK109: 32 | AL109: 31 | AM109: 17 | AN109: 19 | AO109: 1 | AP109: 6 | AQ109: 2 | AR109: 8 | AS109: 379 | AT109: 40 | AU109: 36 | AV109: 118 | AW109: 10 | AZ109: 714 | BA109: 131 | BB109: 76 | BC109: 107 | BD109: 242 | BE109: 158
A110: 040804 | B110: AREQUIPA | C110: AREQUIPA | D110: LA UNION | E110: HUAYNACOTAS | F110: 2,092 | G110: 20 | H110: 20 | I110: 35 | J110: 30 | K110: 37 | L110: 36 | M110: 40 | N110: 33 | O110: 37 | P110: 36 | Q110: 30 | R110: 44 | S110: 34 | T110: 34 | U110: 35 | V110: 43 | W110: 45 | X110: 46 | Y110: 39 | Z110: 33 | AA110: 183 | AB110: 143 | AC110: 102 | AD110: 97 | AE110: 120 | AF110: 127 | AG110: 119 | AH110: 121 | AI110: 80 | AJ110: 82 | AK110: 65 | AL110: 53 | AM110: 40 | AN110: 53 | AO110: 0 | AP110: 9 | AQ110: 11 | AR110: 22 | AS110: 1,086 | AT110: 88 | AU110: 107 | AV110: 392 | AW110: 65 | AZ110: 2,092 | BA110: 398 | BB110: 237 | BC110: 398 | BD110: 686 | BE110: 373
A111: 040805 | B111: AREQUIPA | C111: AREQUIPA | D111: LA UNION | E111: PAMPAMARCA | F111: 1,306 | G111: 13 | H111: 71 | I111: 94 | J111: 22 | K111: 13 | L111: 15 | M111: 10 | N111: 16 | O111: 15 | P111: 21 | Q111: 14 | R111: 19 | S111: 23 | T111: 16 | U111: 27 | V111: 25 | W111: 23 | X111: 30 | Y111: 30 | Z111: 17 | AA111: 97 | AB111: 57 | AC111: 73 | AD111: 65 | AE111: 73 | AF111: 66 | AG111: 59 | AH111: 57 | AI111: 51 | AJ111: 66 | AK111: 43 | AL111: 35 | AM111: 22 | AN111: 28 | AO111: 0 | AP111: 8 | AQ111: 5 | AR111: 13 | AS111: 679 | AT111: 62 | AU111: 64 | AV111: 205 | AW111: 15 | AZ111: 1,306 | BA111: 323 | BB111: 144 | BC111: 201 | BD111: 393 | BE111: 245
A112: 040806 | B112: AREQUIPA | C112: AREQUIPA | D112: LA UNION | E112: PUYCA | F112: 2,545 | G112: 28 | H112: 25 | I112: 24 | J112: 32 | K112: 32 | L112: 30 | M112: 44 | N112: 58 | O112: 54 | P112: 51 | Q112: 49 | R112: 62 | S112: 64 | T112: 62 | U112: 49 | V112: 77 | W112: 67 | X112: 66 | Y112: 53 | Z112: 43 | AA112: 211 | AB112: 146 | AC112: 153 | AD112: 118 | AE112: 140 | AF112: 128 | AG112: 137 | AH112: 132 | AI112: 115 | AJ112: 86 | AK112: 82 | AL112: 59 | AM112: 40 | AN112: 28 | AO112: 0 | AP112: 13 | AQ112: 15 | AR112: 30 | AS112: 1,313 | AT112: 146 | AU112: 160 | AV112: 446 | AW112: 48 | AZ112: 2,545 | BA112: 489 | BB112: 385 | BC112: 453 | BD112: 808 | BE112: 410
A113: 040807 | B113: AREQUIPA | C113: AREQUIPA | D113: LA UNION | E113: QUECHUALLA | F113: 435 | G113: 2 | H113: 0 | I113: 3 | J113: 1 | K113: 4 | L113: 2 | M113: 2 | N113: 2 | O113: 5 | P113: 4 | Q113: 1 | R113: 1 | S113: 1 | T113: 1 | U113: 1 | V113: 2 | W113: 2 | X113: 2 | Y113: 5 | Z113: 2 | AA113: 10 | AB113: 29 | AC113: 45 | AD113: 33 | AE113: 27 | AF113: 31 | AG113: 27 | AH113: 41 | AI113: 40 | AJ113: 37 | AK113: 20 | AL113: 19 | AM113: 14 | AN113: 19 | AO113: 0 | AP113: 1 | AQ113: 1 | AR113: 2 | AS113: 221 | AT113: 4 | AU113: 8 | AV113: 90 | AW113: 3 | AZ113: 435 | BA113: 27 | BB113: 9 | BC113: 46 | BD113: 204 | BE113: 149
A114: 040808 | B114: AREQUIPA | C114: AREQUIPA | D114: LA UNION | E114: SAYLA | F114: 348 | G114: 9 | H114: 3 | I114: 10 | J114: 3 | K114: 3 | L114: 2 | M114: 2 | N114: 5 | O114: 3 | P114: 3 | Q114: 2 | R114: 2 | S114: 8 | T114: 6 | U114: 5 | V114: 5 | W114: 10 | X114: 9 | Y114: 7 | Z114: 8 | AA114: 18 | AB114: 21 | AC114: 21 | AD114: 19 | AE114: 18 | AF114: 22 | AG114: 13 | AH114: 23 | AI114: 12 | AJ114: 23 | AK114: 16 | AL114: 9 | AM114: 6 | AN114: 22 | AO114: 1 | AP114: 6 | AQ114: 3 | AR114: 9 | AS114: 199 | AT114: 14 | AU114: 27 | AV114: 60 | AW114: 19 | AZ114: 348 | BA114: 47 | BB114: 43 | BC114: 54 | BD114: 116 | BE114: 88
A115: 040809 | B115: AREQUIPA | C115: AREQUIPA | D115: LA UNION | E115: TAURIA | F115: 525 | G115: 4 | H115: 8 | I115: 2 | J115: 19 | K115: 21 | L115: 8 | M115: 7 | N115: 4 | O115: 11 | P115: 1 | Q115: 6 | R115: 5 | S115: 10 | T115: 1 | U115: 5 | V115: 6 | W115: 12 | X115: 11 | Y115: 3 | Z115: 12 | AA115: 29 | AB115: 27 | AC115: 39 | AD115: 38 | AE115: 35 | AF115: 18 | AG115: 12 | AH115: 26 | AI115: 28 | AJ115: 14 | AK115: 27 | AL115: 28 | AM115: 21 | AN115: 27 | AO115: 0 | AP115: 2 | AQ115: 2 | AR115: 4 | AS115: 265 | AT115: 22 | AU115: 28 | AV115: 77 | AW115: 12 | AZ115: 525 | BA115: 96 | BB115: 45 | BC115: 71 | BD115: 168 | BE115: 145
A116: 040810 | B116: AREQUIPA | C116: AREQUIPA | D116: LA UNION | E116: TOMEPAMPA | F116: 717 | G116: 9 | H116: 4 | I116: 4 | J116: 7 | K116: 5 | L116: 8 | M116: 10 | N116: 4 | O116: 11 | P116: 5 | Q116: 7 | R116: 9 | S116: 9 | T116: 14 | U116: 9 | V116: 8 | W116: 15 | X116: 15 | Y116: 9 | Z116: 10 | AA116: 49 | AB116: 41 | AC116: 47 | AD116: 31 | AE116: 43 | AF116: 46 | AG116: 56 | AH116: 37 | AI116: 44 | AJ116: 42 | AK116: 30 | AL116: 30 | AM116: 23 | AN116: 26 | AO116: 2 | AP116: 5 | AQ116: 4 | AR116: 9 | AS116: 374 | AT116: 25 | AU116: 28 | AV116: 135 | AW116: 11 | AZ116: 717 | BA116: 83 | BB116: 70 | BC116: 109 | BD116: 260 | BE116: 195
A117: 040811 | B117: AREQUIPA | C117: AREQUIPA | D117: LA UNION | E117: TORO | F117: 591 | G117: 3 | H117: 3 | I117: 4 | J117: 1 | K117: 3 | L117: 5 | M117: 4 | N117: 3 | O117: 3 | P117: 8 | Q117: 10 | R117: 3 | S117: 2 | T117: 3 | U117: 8 | V117: 4 | W117: 7 | X117: 11 | Y117: 5 | Z117: 11 | AA117: 31 | AB117: 35 | AC117: 24 | AD117: 30 | AE117: 29 | AF117: 46 | AG117: 46 | AH117: 48 | AI117: 37 | AJ117: 26 | AK117: 26 | AL117: 30 | AM117: 39 | AN117: 43 | AO117: 0 | AP117: 1 | AQ117: 2 | AR117: 3 | AS117: 322 | AT117: 15 | AU117: 21 | AV117: 102 | AW117: 4 | AZ117: 591 | BA117: 50 | BB117: 35 | BC117: 82 | BD117: 223 | BE117: 201
A120: FUENTE: BOLETIN DEMOGRAFICO Nº 25, 26, 39 / RENIEC / Padrón Nominal/ CNV
A121: La población de 0-5 años corresponden al reporte de la poblacion del Padrón Nominal con corte al 31/12/2025
A122: OFICINA DE GESTION DE LA INFORMACION - MINISTERIO DE SALUD

Sheet EESS
A4: POBLACION ESTIMADA POR EDADES SIMPLES Y GRUPOS DE EDAD, SEGÚN DEPARTAMENTO, PROVINCIA Y DISTRITO. 2026
A5: * Actualizado con datos INEI y el Padrón Nominal
A6: POBLACION 2026 | J6: POBLACION TOTAL, POR EDADS SIMPLES | AD6: POBLACIÓN TOTAL, POR GRUPOS QUINQUEN ALES DE EDAD | AR6: EDADES ESPECIALES | AU6: NACIMIENTOS VIVOS | AV6: POBLACION FEMENINA TOTAL | AW6: POBLACION FEMENINA | AZ6: GESTANTES ESPERADAS
A7: UBIGEO | B7: DIRESA | C7: DEPARTAMENTO | D7: PROVINCIA | E7: DISTRITO | I7: Total | J7: 0 | K7: 1 | L7: 2 | M7: 3 | N7: 4 | O7: 5 | P7: 6 | Q7: 7 | R7: 8 | S7: 9 | T7: 10 | U7: 11 | V7: 12 | W7: 13 | X7: 14 | Y7: 15 | Z7: 16 | AA7: 17 | AB7: 18 | AC7: 19 | AD7: 20-24 | AE7: 25-29 | AF7: 30-34 | AG7: 35-39 | AH7: 40-44 | AI7: 45-49 | AJ7: 50-54 | AK7: 55-59 | AL7: 60-64 | AM7: 65-69 | AN7: 70-74 | AO7: 75-79 | AP7: 80-84 | AQ7: 85-+ | AR7: 28 DIAS | AS7: 0-5 MESES | AT7: 6-11 MESES | AW7: 10 - 14 | AX7: 15- 19 | AY7: 20- 49 | BC7: TOTAL | BD7: NIÑO | BE7: Adolescente | BF7: Joven | BG7: Adulto | BH7: Adulto Mayor
A8: 000000 | B8: PERU | C8: PERU | D8: PERU | E8: PERU | I8: 1,655,634 | J8: 15,712 | K8: 16,435 | L8: 16,469 | M8: 17,838 | N8: 18,010 | O8: 21,120 | P8: 26,285 | Q8: 26,908 | R8: 26,517 | S8: 25,193 | T8: 23,455 | U8: 23,754 | V8: 24,541 | W8: 23,426 | X8: 23,835 | Y8: 25,279 | Z8: 25,532 | AA8: 25,380 | AB8: 24,489 | AC8: 23,987 | AD8: 121,156 | AE8: 135,081 | AF8: 135,252 | AG8: 122,328 | AH8: 120,811 | AI8: 112,552 | AJ8: 98,537 | AK8: 90,673 | AL8: 76,289 | AM8: 60,761 | AN8: 48,658 | AO8: 34,917 | AP8: 22,143 | AQ8: 22,311 | AR8: 1,178 | AS8: 7,853 | AT8: 7,859 | AU8: 16,644 | AV8: 840,625 | AW8: 59,071 | AX8: 62,354 | AY8: 379,482 | AZ8: 32,018 | BC8: 1,655,634 | BD8: 257,696 | BE8: 147,993 | BF8: 304,713 | BG8: 680,153 | BH8: 265,079
A9: 040101 | B9: AREQUIPA | C9: AREQUIPA | D9: AREQUIPA | E9: AREQUIPA | I9: 60,452 | J9: 485 | K9: 534 | L9: 526 | M9: 484 | N9: 527 | O9: 685 | P9: 635 | Q9: 684 | R9: 684 | S9: 632 | T9: 555 | U9: 581 | V9: 604 | W9: 596 | X9: 667 | Y9: 660 | Z9: 646 | AA9: 639 | AB9: 601 | AC9: 610 | AD9: 3,343 | AE9: 3,607 | AF9: 3,923 | AG9: 3,575 | AH9: 3,925 | AI9: 4,241 | AJ9: 4,357 | AK9: 4,524 | AL9: 4,341 | AM9: 3,657 | AN9: 3,149 | AO9: 2,346 | AP9: 1,639 | AQ9: 1,790 | AR9: 36 | AS9: 243 | AT9: 242 | AU9: 514 | AV9: 30,549 | AW9: 1,410 | AX9: 1,509 | AY9: 11,197 | AZ9: 930 | BC9: 60,452 | BD9: 7,012 | BE9: 3,812 | BF9: 8,161 | BG9: 24,545 | BH9: 16,922
F10: 7397 | G10: INSTITUTO REGIONAL DE ENFERMEDADES NEOPLASICAS | H10: 0 | I10: 0 | J10: 0 | K10: 0 | L10: 0 | M10: 0 | N10: 0 | O10: 0 | P10: 0 | Q10: 0 | R10: 0 | S10: 0 | T10: 0 | U10: 0 | V10: 0 | W10: 0 | X10: 0 | Y10: 0 | Z10: 0 | AA10: 0 | AB10: 0 | AC10: 0 | AD10: 0 | AE10: 0 | AF10: 0 | AG10: 0 | AH10: 0 | AI10: 0 | AJ10: 0 | AK10: 0 | AL10: 0 | AM10: 0 | AN10: 0 | AO10: 0 | AP10: 0 | AQ10: 0 | AR10: 0 | AS10: 0 | AT10: 0 | AU10: 0 | AV10: 0 | AW10: 0 | AX10: 0 | AY10: 0 | AZ10: 0 | BC10: 0 | BD10: 0 | BE10: 0 | BF10: 0 | BG10: 0 | BH10: 0
F11: 1232 | G11: HOSPITAL GOYENECHE | H11: 0 | I11: 0 | J11: 0 | K11: 0 | L11: 0 | M11: 0 | N11: 0 | O11: 0 | P11: 0 | Q11: 0 | R11: 0 | S11: 0 | T11: 0 | U11: 0 | V11: 0 | W11: 0 | X11: 0 | Y11: 0 | Z11: 0 | AA11: 0 | AB11: 0 | AC11: 0 | AD11: 0 | AE11: 0 | AF11: 0 | AG11: 0 | AH11: 0 | AI11: 0 | AJ11: 0 | AK11: 0 | AL11: 0 | AM11: 0 | AN11: 0 | AO11: 0 | AP11: 0 | AQ11: 0 | AR11: 0 | AS11: 0 | AT11: 0 | AU11: 0 | AV11: 0 | AW11: 0 | AX11: 0 | AY11: 0 | AZ11: 0 | BC11: 0 | BD11: 0 | BE11: 0 | BF11: 0 | BG11: 0 | BH11: 0
F12: 1231 | G12: HOSPITAL REGIONAL HONORIO DELGADO ESPINOZA | H12: 0 | I12: 0 | J12: 0 | K12: 0 | L12: 0 | M12: 0 | N12: 0 | O12: 0 | P12: 0 | Q12: 0 | R12: 0 | S12: 0 | T12: 0 | U12: 0 | V12: 0 | W12: 0 | X12: 0 | Y12: 0 | Z12: 0 | AA12: 0 | AB12: 0 | AC12: 0 | AD12: 0 | AE12: 0 | AF12: 0 | AG12: 0 | AH12: 0 | AI12: 0 | AJ12: 0 | AK12: 0 | AL12: 0 | AM12: 0 | AN12: 0 | AO12: 0 | AP12: 0 | AQ12: 0 | AR12: 0 | AS12: 0 | AT12: 0 | AU12: 0 | AV12: 0 | AW12: 0 | AX12: 0 | AY12: 0 | AZ12: 0 | BC12: 0 | BD12: 0 | BE12: 0 | BF12: 0 | BG12: 0 | BH12: 0
F13: 1291 | G13: CENTRO DE SALUD ALTO SELVA ALEGRE | H13: 20 | I13: 12,092 | J13: 97 | K13: 106 | L13: 106 | M13: 96 | N13: 107 | O13: 137 | P13: 127 | Q13: 136 | R13: 136 | S13: 128 | T13: 111 | U13: 117 | V13: 120 | W13: 120 | X13: 135 | Y13: 132 | Z13: 130 | AA13: 127 | AB13: 121 | AC13: 122 | AD13: 667 | AE13: 723 | AF13: 783 | AG13: 715 | AH13: 785 | AI13: 849 | AJ13: 873 | AK13: 904 | AL13: 869 | AM13: 733 | AN13: 629 | AO13: 470 | AP13: 327 | AQ13: 358 | AR13: 8 | AS13: 47 | AT13: 50 | AU13: 102 | AV13: 6,109 | AW13: 282 | AX13: 301 | AY13: 2,241 | AZ13: 186 | BC13: 12,092 | BD13: 1,404 | BE13: 764 | BF13: 1,633 | BG13: 4,909 | BH13: 3,386
F14: 1294 | G14: CENTRO DE SALUD MARIANO MELGAR | H14: 20 | I14: 12,090 | J14: 97 | K14: 107 | L14: 105 | M14: 97 | N14: 105 | O14: 137 | P14: 127 | Q14: 137 | R14: 137 | S14: 126 | T14: 111 | U14: 116 | V14: 121 | W14: 119 | X14: 133 | Y14: 132 | Z14: 129 | AA14: 128 | AB14: 120 | AC14: 122 | AD14: 669 | AE14: 721 | AF14: 785 | AG14: 715 | AH14: 785 | AI14: 848 | AJ14: 871 | AK14: 905 | AL14: 868 | AM14: 731 | AN14: 630 | AO14: 469 | AP14: 328 | AQ14: 358 | AR14: 7 | AS14: 49 | AT14: 48 | AU14: 103 | AV14: 6,110 | AW14: 282 | AX14: 302 | AY14: 2,239 | AZ14: 186 | BC14: 12,090 | BD14: 1,402 | BE14: 762 | BF14: 1,632 | BG14: 4,909 | BH14: 3,384
F15: 1293 | G15: CENTRO DE SALUD MIRAFLORES | H15: 20 | I15: 12,090 | J15: 97 | K15: 107 | L15: 105 | M15: 97 | N15: 105 | O15: 137 | P15: 127 | Q15: 137 | R15: 137 | S15: 126 | T15: 111 | U15: 116 | V15: 121 | W15: 119 | X15: 133 | Y15: 132 | Z15: 129 | AA15: 128 | AB15: 120 | AC15: 122 | AD15: 669 | AE15: 721 | AF15: 785 | AG15: 715 | AH15: 785 | AI15: 848 | AJ15: 871 | AK15: 905 | AL15: 868 | AM15: 731 | AN15: 630 | AO15: 469 | AP15: 328 | AQ15: 358 | AR15: 7 | AS15: 49 | AT15: 48 | AU15: 103 | AV15: 6,110 | AW15: 282 | AX15: 302 | AY15: 2,239 | AZ15: 186 | BC15: 12,090 | BD15: 1,402 | BE15: 762 | BF15: 1,632 | BG15: 4,909 | BH15: 3,384
F16: 1233 | G16: CENTRO DE SALUD YANAHUARA | H16: 20 | I16: 12,090 | J16: 97 | K16: 107 | L16: 105 | M16: 97 | N16: 105 | O16: 137 | P16: 127 | Q16: 137 | R16: 137 | S16: 126 | T16: 111 | U16: 116 | V16: 121 | W16: 119 | X16: 133 | Y16: 132 | Z16: 129 | AA16: 128 | AB16: 120 | AC16: 122 | AD16: 669 | AE16: 721 | AF16: 785 | AG16: 715 | AH16: 785 | AI16: 848 | AJ16: 871 | AK16: 905 | AL16: 868 | AM16: 731 | AN16: 630 | AO16: 469 | AP16: 328 | AQ16: 358 | AR16: 7 | AS16: 49 | AT16: 48 | AU16: 103 | AV16: 6,110 | AW16: 282 | AX16: 302 | AY16: 2,239 | AZ16: 186 | BC16: 12,090 | BD16: 1,402 | BE16: 762 | BF16: 1,632 | BG16: 4,909 | BH16: 3,384
F17: 1263 | G17: PUESTO DE SALUD 13 DE ENERO (VRH) | H17: 20 | I17: 12,090 | J17: 97 | K17: 107 | L17: 105 | M17: 97 | N17: 105 | O17: 137 | P17: 127 | Q17: 137 | R17: 137 | S17: 126 | T17: 111 | U17: 116 | V17: 121 | W17: 119 | X17: 133 | Y17: 132 | Z17: 129 | AA17: 128 | AB17: 120 | AC17: 122 | AD17: 669 | AE17: 721 | AF17: 785 | AG17: 715 | AH17: 785 | AI17: 848 | AJ17: 871 | AK17: 905 | AL17: 868 | AM17: 731 | AN17: 630 | AO17: 469 | AP17: 328 | AQ17: 358 | AR17: 7 | AS17: 49 | AT17: 48 | AU17: 103 | AV17: 6,110 | AW17: 282 | AX17: 302 | AY17: 2,239 | AZ17: 186 | BC17: 12,090 | BD17: 1,402 | BE17: 762 | BF17: 1,632 | BG17: 4,909 | BH17: 3,384
A18: 040102 | B18: AREQUIPA | C18: AREQUIPA | D18: AREQUIPA | E18: ALTO SELVA ALEGRE | I18: 96,079 | J18: 901 | K18: 945 | L18: 918 | M18: 898 | N18: 1,041 | O18: 1,320 | P18: 1,513 | Q18: 1,571 | R18: 1,551 | S18: 1,460 | T18: 1,313 | U18: 1,371 | V18: 1,410 | W18: 1,396 | X18: 1,400 | Y18: 1,362 | Z18: 1,431 | AA18: 1,397 | AB18: 1,296 | AC18: 1,403 | AD18: 7,375 | AE18: 8,682 | AF18: 8,480 | AG18: 7,119 | AH18: 6,809 | AI18: 6,135 | AJ18: 5,637 | AK18: 5,394 | AL18: 4,753 | AM18: 3,417 | AN18: 2,450 | AO18: 1,643 | AP18: 1,087 | AQ18: 1,201 | AR18: 71 | AS18: 462 | AT18: 439 | AU18: 955 | AV18: 48,662 | AW18: 3,310 | AX18: 3,346 | AY18: 22,546 | AZ18: 1,526 | BC18: 96,079 | BD18: 14,802 | BE18: 8,396 | BF18: 18,756 | BG18: 39,574 | BH18: 14,551
F19: 1291 | G19: CENTRO DE SALUD ALTO SELVA ALEGRE | H19: 25 | I19: 24,020 | J19: 225 | K19: 236 | L19: 230 | M19: 225 | N19: 260 | O19: 330 | P19: 378 | Q19: 393 | R19: 388 | S19: 365 | T19: 328 | U19: 343 | V19: 353 | W19: 349 | X19: 350 | Y19: 341 | Z19: 358 | AA19: 349 | AB19: 324 | AC19: 351 | AD19: 1,844 | AE19: 2,171 | AF19: 2,120 | AG19: 1,780 | AH19: 1,702 | AI19: 1,534 | AJ19: 1,409 | AK19: 1,349 | AL19: 1,188 | AM19: 854 | AN19: 613 | AO19: 411 | AP19: 272 | AQ19: 300 | AR19: 18 | AS19: 116 | AT19: 110 | AU19: 239 | AV19: 12,166 | AW19: 828 | AX19: 837 | AY19: 5,637 | AZ19: 382 | BC19: 24,020 | BD19: 3,701 | BE19: 2,099 | BF19: 4,689 | BG19: 9,894 | BH19: 3,638
F20: 1300 | G20: APURIMAC | H20: 11 | I20: 10,569 | J20: 99 | K20: 104 | L20: 101 | M20: 99 | N20: 115 | O20: 145 | P20: 166 | Q20: 173 | R20: 171 | S20: 161 | T20: 144 | U20: 151 | V20: 155 | W20: 154 | X20: 154 | Y20: 150 | Z20: 157 | AA20: 154 | AB20: 143 | AC20: 154 | AD20: 811 | AE20: 955 | AF20: 933 | AG20: 783 | AH20: 749 | AI20: 675 | AJ20: 620 | AK20: 593 | AL20: 523 | AM20: 376 | AN20: 270 | AO20: 181 | AP20: 120 | AQ20: 132 | AR20: 8 | AS20: 51 | AT20: 48 | AU20: 105 | AV20: 5,353 | AW20: 364 | AX20: 368 | AY20: 2,480 | AZ20: 168 | BC20: 10,569 | BD20: 1,628 | BE20: 924 | BF20: 2,063 | BG20: 4,353 | BH20: 1,601
F21: 1302 | G21: INDEPENDENCIA | H21: 26 | I21: 24,980 | J21: 235 | K21: 246 | L21: 238 | M21: 232 | N21: 270 | O21: 344 | P21: 394 | Q21: 408 | R21: 403 | S21: 379 | T21: 342 | U21: 356 | V21: 366 | W21: 362 | X21: 364 | Y21: 354 | Z21: 372 | AA21: 362 | AB21: 336 | AC21: 366 | AD21: 1,917 | AE21: 2,257 | AF21: 2,204 | AG21: 1,851 | AH21: 1,771 | AI21: 1,594 | AJ21: 1,466 | AK21: 1,403 | AL21: 1,237 | AM21: 888 | AN21: 636 | AO21: 427 | AP21: 282 | AQ21: 313 | AR21: 18 | AS21: 120 | AT21: 114 | AU21: 247 | AV21: 12,652 | AW21: 860 | AX21: 869 | AY21: 5,861 | AZ21: 396 | BC21: 24,980 | BD21: 3,849 | BE21: 2,182 | BF21: 4,876 | BG21: 10,289 | BH21: 3,783
F22: 1301 | G22: LEONES DEL MISTI | H22: 10 | I22: 9,608 | J22: 90 | K22: 95 | L22: 92 | M22: 90 | N22: 104 | O22: 132 | P22: 151 | Q22: 157 | R22: 155 | S22: 146 | T22: 131 | U22: 137 | V22: 141 | W22: 140 | X22: 140 | Y22: 136 | Z22: 143 | AA22: 140 | AB22: 130 | AC22: 140 | AD22: 738 | AE22: 868 | AF22: 848 | AG22: 712 | AH22: 681 | AI22: 614 | AJ22: 564 | AK22: 539 | AL22: 475 | AM22: 342 | AN22: 245 | AO22: 164 | AP22: 109 | AQ22: 120 | AR22: 7 | AS22: 46 | AT22: 44 | AU22: 96 | AV22: 4,866 | AW22: 331 | AX22: 335 | AY22: 2,255 | AZ22: 153 | BC22: 9,608 | BD22: 1,480 | BE22: 840 | BF22: 1,876 | BG22: 3,957 | BH22: 1,455
F23: 1303 | G23: SAN JUAN BAUTISTA | H23: 16 | I23: 15,373 | J23: 144 | K23: 151 | L23: 147 | M23: 144 | N23: 167 | O23: 211 | P23: 242 | Q23: 251 | R23: 248 | S23: 234 | T23: 210 | U23: 219 | V23: 226 | W23: 223 | X23: 224 | Y23: 218 | Z23: 229 | AA23: 224 | AB23: 207 | AC23: 224 | AD23: 1,180 | AE23: 1,389 | AF23: 1,357 | AG23: 1,139 | AH23: 1,089 | AI23: 982 | AJ23: 902 | AK23: 863 | AL23: 760 | AM23: 547 | AN23: 392 | AO23: 263 | AP23: 174 | AQ23: 192 | AR23: 11 | AS23: 74 | AT23: 70 | AU23: 153 | AV23: 7,786 | AW23: 530 | AX23: 535 | AY23: 3,607 | AZ23: 244 | BC23: 15,373 | BD23: 2,368 | BE23: 1,343 | BF23: 3,001 | BG23: 6,332 | BH23: 2,328
F24: 1304 | G24: HEROES DEL CENEPA | H24: 12 | I24: 11,529 | J24: 108 | K24: 113 | L24: 110 | M24: 108 | N24: 125 | O24: 158 | P24: 182 | Q24: 189 | R24: 186 | S24: 175 | T24: 158 | U24: 165 | V24: 169 | W24: 168 | X24: 168 | Y24: 163 | Z24: 172 | AA24: 168 | AB24: 156 | AC24: 168 | AD24: 885 | AE24: 1,042 | AF24: 1,018 | AG24: 854 | AH24: 817 | AI24: 736 | AJ24: 676 | AK24: 647 | AL24: 570 | AM24: 410 | AN24: 294 | AO24: 197 | AP24: 130 | AQ24: 144 | AR24: 9 | AS24: 55 | AT24: 53 | AU24: 115 | AV24: 5,839 | AW24: 397 | AX24: 402 | AY24: 2,706 | AZ24: 183 | BC24: 11,529 | BD24: 1,776 | BE24: 1,008 | BF24: 2,251 | BG24: 4,749 | BH24: 1,746
A25: 040103 | B25: AREQUIPA | C25: AREQUIPA | D25: AREQUIPA | E25: CAYMA | I25: 114,207 | J25: 1,041 | K25: 1,078 | L25: 1,246 | M25: 1,407 | N25: 1,302 | O25: 1,490 | P25: 1,999 | Q25: 1,959 | R25: 1,934 | S25: 1,803 | T25: 1,700 | U25: 1,687 | V25: 1,800 | W25: 1,646 | X25: 1,606 | Y25: 1,801 | Z25: 1,618 | AA25: 1,704 | AB25: 1,695 | AC25: 1,612 | AD25: 8,563 | AE25: 9,779 | AF25: 10,331 | AG25: 8,933 | AH25: 8,223 | AI25: 7,371 | AJ25: 6,420 | AK25: 5,869 | AL25: 5,057 | AM25: 3,940 | AN25: 3,031 | AO25: 2,125 | AP25: 1,185 | AQ25: 1,252 | AR25: 80 | AS25: 550 | AT25: 491 | AU25: 1,104 | AV25: 58,226 | AW25: 4,132 | AX25: 4,117 | AY25: 26,975 | AZ25: 2,718 | BC25: 114,207 | BD25: 18,646 | BE25: 10,175 | BF25: 21,649 | BG25: 47,147 | BH25: 16,590
F26: 1234 | G26: CENTRO DE SALUD FRANCISCO BOLOGNESI | H26: 16 | I26: 18,273 | J26: 167 | K26: 172 | L26: 199 | M26: 225 | N26: 208 | O26: 238 | P26: 320 | Q26: 313 | R26: 309 | S26: 288 | T26: 272 | U26: 270 | V26: 288 | W26: 263 | X26: 257 | Y26: 288 | Z26: 259 | AA26: 273 | AB26: 271 | AC26: 258 | AD26: 1,370 | AE26: 1,565 | AF26: 1,653 | AG26: 1,429 | AH26: 1,316 | AI26: 1,179 | AJ26: 1,027 | AK26: 939 | AL26: 809 | AM26: 630 | AN26: 485 | AO26: 340 | AP26: 190 | AQ26: 200 | AR26: 13 | AS26: 88 | AT26: 79 | AU26: 177 | AV26: 9,316 | AW26: 661 | AX26: 659 | AY26: 4,316 | AZ26: 435 | BC26: 18,273 | BD26: 2,983 | BE26: 1,628 | BF26: 3,464 | BG26: 7,544 | BH26: 2,654
F27: 1244 | G27: PUESTO DE SALUD LA TOMILLA | H27: 8 | I27: 9,137 | J27: 83 | K27: 86 | L27: 100 | M27: 113 | N27: 104 | O27: 119 | P27: 160 | Q27: 157 | R27: 155 | S27: 144 | T27: 136 | U27: 135 | V27: 144 | W27: 132 | X27: 128 | Y27: 144 | Z27: 129 | AA27: 136 | AB27: 136 | AC27: 129 | AD27: 685 | AE27: 782 | AF27: 826 | AG27: 715 | AH27: 658 | AI27: 590 | AJ27: 514 | AK27: 470 | AL27: 405 | AM27: 315 | AN27: 242 | AO27: 170 | AP27: 95 | AQ27: 100 | AR27: 6 | AS27: 44 | AT27: 39 | AU27: 88 | AV27: 4,658 | AW27: 331 | AX27: 329 | AY27: 2,158 | AZ27: 217 | BC27: 9,137 | BD27: 1,492 | BE27: 814 | BF27: 1,732 | BG27: 3,772 | BH27: 1,327
F28: 1235 | G28: BUENOS AIRES DE CAYMA | H28: 20 | I28: 22,841 | J28: 208 | K28: 216 | L28: 249 | M28: 281 | N28: 260 | O28: 298 | P28: 400 | Q28: 392 | R28: 387 | S28: 361 | T28: 340 | U28: 337 | V28: 360 | W28: 329 | X28: 321 | Y28: 360 | Z28: 324 | AA28: 341 | AB28: 339 | AC28: 322 | AD28: 1,713 | AE28: 1,956 | AF28: 2,066 | AG28: 1,787 | AH28: 1,645 | AI28: 1,474 | AJ28: 1,284 | AK28: 1,174 | AL28: 1,011 | AM28: 788 | AN28: 606 | AO28: 425 | AP28: 237 | AQ28: 250 | AR28: 16 | AS28: 110 | AT28: 98 | AU28: 221 | AV28: 11,645 | AW28: 826 | AX28: 823 | AY28: 5,395 | AZ28: 544 | BC28: 22,841 | BD28: 3,729 | BE28: 2,035 | BF28: 4,330 | BG28: 9,429 | BH28: 3,318
F29: 1245 | G29: SAN JOSE | H29: 20 | I29: 22,841 | J29: 208 | K29: 216 | L29: 249 | M29: 281 | N29: 260 | O29: 298 | P29: 400 | Q29: 392 | R29: 387 | S29: 361 | T29: 340 | U29: 337 | V29: 360 | W29: 329 | X29: 321 | Y29: 360 | Z29: 324 | AA29: 341 | AB29: 339 | AC29: 322 | AD29: 1,713 | AE29: 1,956 | AF29: 2,066 | AG29: 1,787 | AH29: 1,645 | AI29: 1,474 | AJ29: 1,284 | AK29: 1,174 | AL29: 1,011 | AM29: 788 | AN29: 606 | AO29: 425 | AP29: 237 | AQ29: 250 | AR29: 16 | AS29: 110 | AT29: 98 | AU29: 221 | AV29: 11,645 | AW29: 826 | AX29: 823 | AY29: 5,395 | AZ29: 544 | BC29: 22,841 | BD29: 3,729 | BE29: 2,035 | BF29: 4,330 | BG29: 9,429 | BH29: 3,318
F30: 1246 | G30: DEAN VALDIVIA | H30: 15 | I30: 17,131 | J30: 156 | K30: 162 | L30: 187 | M30: 211 | N30: 195 | O30: 224 | P30: 300 | Q30: 294 | R30: 290 | S30: 270 | T30: 255 | U30: 253 | V30: 270 | W30: 247 | X30: 241 | Y30: 270 | Z30: 243 | AA30: 256 | AB30: 254 | AC30: 242 | AD30: 1,284 | AE30: 1,467 | AF30: 1,550 | AG30: 1,340 | AH30: 1,233 | AI30: 1,106 | AJ30: 963 | AK30: 880 | AL30: 759 | AM30: 591 | AN30: 455 | AO30: 319 | AP30: 178 | AQ30: 188 | AR30: 12 | AS30: 83 | AT30: 74 | AU30: 166 | AV30: 8,734 | AW30: 620 | AX30: 618 | AY30: 4,046 | AZ30: 408 | BC30: 17,131 | BD30: 2,797 | BE30: 1,526 | BF30: 3,247 | BG30: 7,072 | BH30: 2,489
F31: 6890 | G31: PUESTO DE SALUD RAFAEL BELAUNDE | H31: 21 | I31: 23,984 | J31: 219 | K31: 226 | L31: 262 | M31: 296 | N31: 275 | O31: 313 | P31: 419 | Q31: 411 | R31: 406 | S31: 379 | T31: 357 | U31: 355 | V31: 378 | W31: 346 | X31: 338 | Y31: 379 | Z31: 339 | AA31: 357 | AB31: 356 | AC31: 339 | AD31: 1,798 | AE31: 2,053 | AF31: 2,170 | AG31: 1,875 | AH31: 1,726 | AI31: 1,548 | AJ31: 1,348 | AK31: 1,232 | AL31: 1,062 | AM31: 828 | AN31: 637 | AO31: 446 | AP31: 248 | AQ31: 264 | AR31: 17 | AS31: 115 | AT31: 103 | AU31: 231 | AV31: 12,228 | AW31: 868 | AX31: 865 | AY31: 5,665 | AZ31: 570 | BC31: 23,984 | BD31: 3,916 | BE31: 2,137 | BF31: 4,546 | BG31: 9,901 | BH31: 3,484
A32: 040104 | B32: AREQUIPA | C32: AREQUIPA | D32: AREQUIPA | E32: CERRO COLORADO | I32: 231,952 | J32: 2,541 | K32: 2,644 | L32: 2,171 | M32: 2,376 | N32: 2,701 | O32: 3,144 | P32: 4,467 | Q32: 4,593 | R32: 4,529 | S32: 4,279 | T32: 3,870 | U32: 3,730 | V32: 3,894 | W32: 3,610 | X32: 3,583 | Y32: 3,864 | Z32: 3,718 | AA32: 3,841 | AB32: 3,724 | AC32: 3,755 | AD32: 18,888 | AE32: 20,454 | AF32: 20,368 | AG32: 17,961 | AH32: 17,656 | AI32: 15,322 | AJ32: 12,443 | AK32: 10,625 | AL32: 8,060 | AM32: 6,393 | AN32: 5,225 | AO32: 3,401 | AP32: 2,135 | AQ32: 1,987 | AR32: 180 | AS32: 1,279 | AT32: 1,262 | AU32: 2,694 | AV32: 113,748 | AW32: 8,847 | AX32: 8,982 | AY32: 54,679 | AZ32: 4,148 | BC32: 231,952 | BD32: 41,045 | BE32: 22,510 | BF32: 46,821 | BG32: 94,375 | BH32: 27,201
F33: 1236 | G33: CERRO COLORADO | H33: 11 | I33: 25,515 | J33: 280 | K33: 291 | L33: 239 | M33: 261 | N33: 297 | O33: 346 | P33: 491 | Q33: 505 | R33: 498 | S33: 471 | T33: 426 | U33: 410 | V33: 428 | W33: 397 | X33: 394 | Y33: 425 | Z33: 409 | AA33: 423 | AB33: 410 | AC33: 413 | AD33: 2,078 | AE33: 2,250 | AF33: 2,240 | AG33: 1,976 | AH33: 1,942 | AI33: 1,685 | AJ33: 1,369 | AK33: 1,169 | AL33: 887 | AM33: 703 | AN33: 575 | AO33: 374 | AP33: 235 | AQ33: 219 | AR33: 20 | AS33: 141 | AT33: 139 | AU33: 296 | AV33: 12,512 | AW33: 973 | AX33: 988 | AY33: 6,015 | AZ33: 456 | BC33: 25,515 | BD33: 4,515 | BE33: 2,476 | BF33: 5,150 | BG33: 10,381 | BH33: 2,992
F34: 1248 | G34: ALTO LIBERTAD | H34: 9 | I34: 20,876 | J34: 229 | K34: 238 | L34: 195 | M34: 214 | N34: 243 | O34: 283 | P34: 402 | Q34: 413 | R34: 408 | S34: 385 | T34: 348 | U34: 336 | V34: 350 | W34: 325 | X34: 322 | Y34: 348 | Z34: 335 | AA34: 346 | AB34: 335 | AC34: 338 | AD34: 1,700 | AE34: 1,841 | AF34: 1,833 | AG34: 1,616 | AH34: 1,589 | AI34: 1,379 | AJ34: 1,120 | AK34: 956 | AL34: 725 | AM34: 575 | AN34: 470 | AO34: 306 | AP34: 192 | AQ34: 179 | AR34: 16 | AS34: 115 | AT34: 114 | AU34: 242 | AV34: 10,237 | AW34: 796 | AX34: 808 | AY34: 4,921 | AZ34: 373 | BC34: 20,876 | BD34: 3,694 | BE34: 2,026 | BF34: 4,214 | BG34: 8,494 | BH34: 2,448
F35: 1238 | G35: CENTRO DE SALUD MARISCAL CASTILLA | H35: 8 | I35: 18,556 | J35: 203 | K35: 212 | L35: 174 | M35: 190 | N35: 216 | O35: 252 | P35: 357 | Q35: 367 | R35: 362 | S35: 342 | T35: 310 | U35: 298 | V35: 312 | W35: 289 | X35: 287 | Y35: 309 | Z35: 297 | AA35: 307 | AB35: 298 | AC35: 300 | AD35: 1,511 | AE35: 1,636 | AF35: 1,629 | AG35: 1,437 | AH35: 1,412 | AI35: 1,226 | AJ35: 995 | AK35: 850 | AL35: 645 | AM35: 511 | AN35: 418 | AO35: 272 | AP35: 171 | AQ35: 159 | AR35: 14 | AS35: 102 | AT35: 101 | AU35: 216 | AV35: 9,100 | AW35: 708 | AX35: 719 | AY35: 4,374 | AZ35: 332 | BC35: 18,556 | BD35: 3,284 | BE35: 1,801 | BF35: 3,746 | BG35: 7,550 | BH35: 2,176
F36: 1249 | G36: CENTRO DE SALUD SEMI RURAL PACHACUTEC | H36: 8 | I36: 18,556 | J36: 203 | K36: 212 | L36: 174 | M36: 190 | N36: 216 | O36: 252 | P36: 357 | Q36: 367 | R36: 362 | S36: 342 | T36: 310 | U36: 298 | V36: 312 | W36: 289 | X36: 287 | Y36: 309 | Z36: 297 | AA36: 307 | AB36: 298 | AC36: 300 | AD36: 1,511 | AE36: 1,636 | AF36: 1,629 | AG36: 1,437 | AH36: 1,412 | AI36: 1,226 | AJ36: 995 | AK36: 850 | AL36: 645 | AM36: 511 | AN36: 418 | AO36: 272 | AP36: 171 | AQ36: 159 | AR36: 14 | AS36: 102 | AT36: 101 | AU36: 216 | AV36: 9,100 | AW36: 708 | AX36: 719 | AY36: 4,374 | AZ36: 332 | BC36: 18,556 | BD36: 3,284 | BE36: 1,801 | BF36: 3,746 | BG36: 7,550 | BH36: 2,176
F37: 1250 | G37: PUESTO DE SALUD JOSE SANTOS ATAHUALPA | H37: 3 | I37: 6,959 | J37: 76 | K37: 79 | L37: 65 | M37: 71 | N37: 81 | O37: 94 | P37: 134 | Q37: 138 | R37: 136 | S37: 128 | T37: 116 | U37: 112 | V37: 117 | W37: 108 | X37: 107 | Y37: 116 | Z37: 112 | AA37: 115 | AB37: 112 | AC37: 113 | AD37: 567 | AE37: 614 | AF37: 611 | AG37: 539 | AH37: 530 | AI37: 460 | AJ37: 373 | AK37: 319 | AL37: 242 | AM37: 192 | AN37: 157 | AO37: 102 | AP37: 64 | AQ37: 60 | AR37: 5 | AS37: 38 | AT37: 38 | AU37: 81 | AV37: 3,412 | AW37: 265 | AX37: 269 | AY37: 1,640 | AZ37: 124 | BC37: 6,959 | BD37: 1,231 | BE37: 675 | BF37: 1,405 | BG37: 2,831 | BH37: 816
F38: 1252 | G38: PUESTO DE SALUD EL CURAL | H38: 1 | I38: 2,320 | J38: 25 | K38: 26 | L38: 22 | M38: 24 | N38: 27 | O38: 31 | P38: 45 | Q38: 46 | R38: 45 | S38: 43 | T38: 39 | U38: 37 | V38: 39 | W38: 36 | X38: 36 | Y38: 39 | Z38: 37 | AA38: 38 | AB38: 37 | AC38: 38 | AD38: 189 | AE38: 205 | AF38: 204 | AG38: 180 | AH38: 177 | AI38: 153 | AJ38: 124 | AK38: 106 | AL38: 81 | AM38: 64 | AN38: 52 | AO38: 34 | AP38: 21 | AQ38: 20 | AR38: 2 | AS38: 13 | AT38: 13 | AU38: 27 | AV38: 1,137 | AW38: 88 | AX38: 90 | AY38: 547 | AZ38: 41 | BC38: 2,320 | BD38: 410 | BE38: 225 | BF38: 468 | BG38: 944 | BH38: 272
F39: 1237 | G39: MARITZA CAMPOS DIAZ - ZAMACOLA | H39: 13 | I39: 30,154 | J39: 330 | K39: 344 | L39: 282 | M39: 309 | N39: 351 | O39: 409 | P39: 581 | Q39: 597 | R39: 589 | S39: 556 | T39: 503 | U39: 485 | V39: 506 | W39: 469 | X39: 466 | Y39: 502 | Z39: 483 | AA39: 499 | AB39: 484 | AC39: 488 | AD39: 2,455 | AE39: 2,659 | AF39: 2,648 | AG39: 2,335 | AH39: 2,295 | AI39: 1,992 | AJ39: 1,618 | AK39: 1,381 | AL39: 1,048 | AM39: 831 | AN39: 679 | AO39: 442 | AP39: 278 | AQ39: 258 | AR39: 23 | AS39: 166 | AT39: 164 | AU39: 350 | AV39: 14,787 | AW39: 1,150 | AX39: 1,168 | AY39: 7,108 | AZ39: 539 | BC39: 30,154 | BD39: 5,336 | BE39: 2,926 | BF39: 6,087 | BG39: 12,269 | BH39: 3,536
F40: 1251 | G40: PUESTO DE SALUD NAZARENO | H40: 17 | I40: 39,432 | J40: 432 | K40: 449 | L40: 369 | M40: 404 | N40: 459 | O40: 534 | P40: 759 | Q40: 781 | R40: 770 | S40: 727 | T40: 658 | U40: 634 | V40: 662 | W40: 614 | X40: 609 | Y40: 657 | Z40: 632 | AA40: 653 | AB40: 633 | AC40: 638 | AD40: 3,211 | AE40: 3,477 | AF40: 3,463 | AG40: 3,053 | AH40: 3,002 | AI40: 2,605 | AJ40: 2,115 | AK40: 1,806 | AL40: 1,370 | AM40: 1,087 | AN40: 888 | AO40: 578 | AP40: 363 | AQ40: 338 | AR40: 31 | AS40: 217 | AT40: 215 | AU40: 458 | AV40: 19,337 | AW40: 1,504 | AX40: 1,527 | AY40: 9,295 | AZ40: 705 | BC40: 39,432 | BD40: 6,978 | BE40: 3,827 | BF40: 7,960 | BG40: 16,044 | BH40: 4,624
F41: 1247 | G41: PUESTO DE SALUD CIUDAD MUNICIPAL | H41: 19 | I41: 44,069 | J41: 483 | K41: 502 | L41: 412 | M41: 452 | N41: 514 | O41: 597 | P41: 850 | Q41: 874 | R41: 861 | S41: 814 | T41: 734 | U41: 710 | V41: 740 | W41: 686 | X41: 681 | Y41: 734 | Z41: 707 | AA41: 730 | AB41: 707 | AC41: 714 | AD41: 3,588 | AE41: 3,886 | AF41: 3,871 | AG41: 3,412 | AH41: 3,355 | AI41: 2,911 | AJ41: 2,365 | AK41: 2,019 | AL41: 1,530 | AM41: 1,216 | AN41: 993 | AO41: 647 | AP41: 405 | AQ41: 376 | AR41: 35 | AS41: 244 | AT41: 238 | AU41: 512 | AV41: 21,614 | AW41: 1,682 | AX41: 1,706 | AY41: 10,390 | AZ41: 790 | BC41: 44,069 | BD41: 7,798 | BE41: 4,277 | BF41: 8,895 | BG41: 17,931 | BH41: 5,169
F42: 11023 | G42: PUESTO DE SALUD PERUARBO | H42: 11 | I42: 25,515 | J42: 280 | K42: 291 | L42: 239 | M42: 261 | N42: 297 | O42: 346 | P42: 491 | Q42: 505 | R42: 498 | S42: 471 | T42: 426 | U42: 410 | V42: 428 | W42: 397 | X42: 394 | Y42: 425 | Z42: 409 | AA42: 423 | AB42: 410 | AC42: 413 | AD42: 2,078 | AE42: 2,250 | AF42: 2,240 | AG42: 1,976 | AH42: 1,942 | AI42: 1,685 | AJ42: 1,369 | AK42: 1,169 | AL42: 887 | AM42: 703 | AN42: 575 | AO42: 374 | AP42: 235 | AQ42: 219 | AR42: 20 | AS42: 141 | AT42: 139 | AU42: 296 | AV42: 12,512 | AW42: 973 | AX42: 988 | AY42: 6,015 | AZ42: 456 | BC42: 25,515 | BD42: 4,515 | BE42: 2,476 | BF42: 5,150 | BG42: 10,381 | BH42: 2,992
A43: 040105 | B43: AREQUIPA | C43: AREQUIPA | D43: AREQUIPA | E43: CHARACATO | I43: 19,439 | J43: 151 | K43: 172 | L43: 140 | M43: 199 | N43: 163 | O43: 195 | P43: 380 | Q43: 338 | R43: 279 | S43: 279 | T43: 291 | U43: 270 | V43: 309 | W43: 266 | X43: 307 | Y43: 291 | Z43: 298 | AA43: 265 | AB43: 289 | AC43: 348 | AD43: 1,475 | AE43: 1,502 | AF43: 1,528 | AG43: 1,501 | AH43: 1,574 | AI43: 1,429 | AJ43: 1,157 | AK43: 1,044 | AL43: 834 | AM43: 711 | AN43: 556 | AO43: 419 | AP43: 262 | AQ43: 217 | AR43: 6 | AS43: 74 | AT43: 77 | AU43: 160 | AV43: 9,773 | AW43: 700 | AX43: 732 | AY43: 4,571 | AZ43: 385 | BC43: 19,439 | BD43: 2,857 | BE43: 1,736 | BF43: 3,614 | BG43: 8,233 | BH43: 2,999
F44: 1261 | G44: CENTRO DE SALUD DE CHARACATO | H44: 100 | I44: 19,439 | J44: 151 | K44: 172 | L44: 140 | M44: 199 | N44: 163 | O44: 195 | P44: 380 | Q44: 338 | R44: 279 | S44: 279 | T44: 291 | U44: 270 | V44: 309 | W44: 266 | X44: 307 | Y44: 291 | Z44: 298 | AA44: 265 | AB44: 289 | AC44: 348 | AD44: 1,475 | AE44: 1,502 | AF44: 1,528 | AG44: 1,501 | AH44: 1,574 | AI44: 1,429 | AJ44: 1,157 | AK44: 1,044 | AL44: 834 | AM44: 711 | AN44: 556 | AO44: 419 | AP44: 262 | AQ44: 217 | AR44: 6 | AS44: 74 | AT44: 77 | AU44: 160 | AV44: 9,773 | AW44: 700 | AX44: 732 | AY44: 4,571 | AZ44: 385 | BC44: 19,439 | BD44: 2,857 | BE44: 1,736 | BF44: 3,614 | BG44: 8,233 | BH44: 2,999
A45: 040106 | B45: AREQUIPA | C45: AREQUIPA | D45: AREQUIPA | E45: CHIGUATA | I45: 3,638 | J45: 61 | K45: 50 | L45: 45 | M45: 52 | N45: 53 | O45: 69 | P45: 48 | Q45: 57 | R45: 53 | S45: 47 | T45: 39 | U45: 59 | V45: 30 | W45: 30 | X45: 53 | Y45: 52 | Z45: 28 | AA45: 45 | AB45: 46 | AC45: 41 | AD45: 240 | AE45: 270 | AF45: 307 | AG45: 267 | AH45: 249 | AI45: 231 | AJ45: 222 | AK45: 205 | AL45: 164 | AM45: 165 | AN45: 141 | AO45: 89 | AP45: 63 | AQ45: 67 | AR45: 6 | AS45: 24 | AT45: 37 | AU45: 64 | AV45: 1,899 | AW45: 106 | AX45: 109 | AY45: 854 | AZ45: 83 | BC45: 3,638 | BD45: 633 | BE45: 238 | BF45: 597 | BG45: 1,481 | BH45: 689
F46: 1299 | G46: CENTRO DE SALUD CHIGUATA | H46: 80 | I46: 2,910 | J46: 49 | K46: 40 | L46: 36 | M46: 42 | N46: 42 | O46: 55 | P46: 38 | Q46: 46 | R46: 42 | S46: 38 | T46: 31 | U46: 47 | V46: 24 | W46: 24 | X46: 42 | Y46: 42 | Z46: 22 | AA46: 36 | AB46: 37 | AC46: 33 | AD46: 192 | AE46: 216 | AF46: 246 | AG46: 214 | AH46: 199 | AI46: 185 | AJ46: 178 | AK46: 164 | AL46: 131 | AM46: 132 | AN46: 113 | AO46: 71 | AP46: 50 | AQ46: 54 | AR46: 5 | AS46: 19 | AT46: 30 | AU46: 51 | AV46: 1,519 | AW46: 85 | AX46: 87 | AY46: 683 | AZ46: 66 | BC46: 2,910 | BD46: 506 | BE46: 190 | BF46: 478 | BG46: 1,185 | BH46: 551
F47: 1320 | G47: PUESTO DE SALUD ARENALES | H47: 20 | I47: 728 | J47: 12 | K47: 10 | L47: 9 | M47: 10 | N47: 11 | O47: 14 | P47: 10 | Q47: 11 | R47: 11 | S47: 9 | T47: 8 | U47: 12 | V47: 6 | W47: 6 | X47: 11 | Y47: 10 | Z47: 6 | AA47: 9 | AB47: 9 | AC47: 8 | AD47: 48 | AE47: 54 | AF47: 61 | AG47: 53 | AH47: 50 | AI47: 46 | AJ47: 44 | AK47: 41 | AL47: 33 | AM47: 33 | AN47: 28 | AO47: 18 | AP47: 13 | AQ47: 13 | AR47: 1 | AS47: 5 | AT47: 7 | AU47: 13 | AV47: 380 | AW47: 21 | AX47: 22 | AY47: 171 | AZ47: 17 | BC47: 728 | BD47: 127 | BE47: 48 | BF47: 119 | BG47: 296 | BH47: 138
A48: 040107 | B48: AREQUIPA | C48: AREQUIPA | D48: AREQUIPA | E48: JACOBO HUNTER | I48: 56,949 | J48: 525 | K48: 512 | L48: 515 | M48: 590 | N48: 590 | O48: 722 | P48: 986 | Q48: 954 | R48: 935 | S48: 906 | T48: 812 | U48: 835 | V48: 847 | W48: 875 | X48: 724 | Y48: 842 | Z48: 878 | AA48: 885 | AB48: 788 | AC48: 772 | AD48: 4,225 | AE48: 4,698 | AF48: 4,542 | AG48: 4,346 | AH48: 4,338 | AI48: 4,005 | AJ48: 3,460 | AK48: 3,103 | AL48: 2,512 | AM48: 2,063 | AN48: 1,596 | AO48: 1,177 | AP48: 695 | AQ48: 696 | AR48: 37 | AS48: 243 | AT48: 282 | AU48: 557 | AV48: 29,068 | AW48: 2,031 | AX48: 2,122 | AY48: 13,178 | AZ48: 835 | BC48: 56,949 | BD48: 8,882 | BE48: 5,051 | BF48: 10,483 | BG48: 23,794 | BH48: 8,739
F49: 1259 | G49: CENTRO DE SALUD JAVIER LLOSA GARCIA - HUNTER | H49: 33 | I49: 18,794 | J49: 173 | K49: 169 | L49: 171 | M49: 195 | N49: 195 | O49: 238 | P49: 324 | Q49: 315 | R49: 308 | S49: 298 | T49: 268 | U49: 275 | V49: 279 | W49: 288 | X49: 239 | Y49: 278 | Z49: 290 | AA49: 290 | AB49: 260 | AC49: 255 | AD49: 1,394 | AE49: 1,549 | AF49: 1,499 | AG49: 1,434 | AH49: 1,432 | AI49: 1,322 | AJ49: 1,142 | AK49: 1,026 | AL49: 829 | AM49: 681 | AN49: 526 | AO49: 388 | AP49: 228 | AQ49: 229 | AR49: 12 | AS49: 81 | AT49: 94 | AU49: 183 | AV49: 9,593 | AW49: 670 | AX49: 700 | AY49: 4,349 | AZ49: 275 | BC49: 18,794 | BD49: 2,932 | BE49: 1,666 | BF49: 3,461 | BG49: 7,853 | BH49: 2,883
F50: 1273 | G50: PUESTO DE SALUD DANIEL ALCIDES CARRION | H50: 15 | I50: 8,542 | J50: 79 | K50: 77 | L50: 77 | M50: 89 | N50: 89 | O50: 108 | P50: 148 | Q50: 143 | R50: 140 | S50: 136 | T50: 122 | U50: 125 | V50: 127 | W50: 131 | X50: 109 | Y50: 126 | Z50: 132 | AA50: 133 | AB50: 118 | AC50: 116 | AD50: 634 | AE50: 705 | AF50: 681 | AG50: 652 | AH50: 651 | AI50: 601 | AJ50: 519 | AK50: 465 | AL50: 377 | AM50: 309 | AN50: 239 | AO50: 177 | AP50: 104 | AQ50: 104 | AR50: 6 | AS50: 36 | AT50: 42 | AU50: 84 | AV50: 4,360 | AW50: 305 | AX50: 318 | AY50: 1,977 | AZ50: 125 | BC50: 8,542 | BD50: 1,332 | BE50: 758 | BF50: 1,572 | BG50: 3,569 | BH50: 1,311
F51: 1274 | G51: PUESTO DE SALUD PAMPAS DEL CUZCO | H51: 16 | I51: 9,112 | J51: 84 | K51: 82 | L51: 82 | M51: 94 | N51: 94 | O51: 116 | P51: 158 | Q51: 153 | R51: 150 | S51: 145 | T51: 130 | U51: 134 | V51: 136 | W51: 140 | X51: 116 | Y51: 135 | Z51: 140 | AA51: 142 | AB51: 126 | AC51: 124 | AD51: 676 | AE51: 752 | AF51: 727 | AG51: 695 | AH51: 694 | AI51: 641 | AJ51: 554 | AK51: 496 | AL51: 402 | AM51: 330 | AN51: 255 | AO51: 188 | AP51: 111 | AQ51: 111 | AR51: 6 | AS51: 39 | AT51: 45 | AU51: 89 | AV51: 4,651 | AW51: 325 | AX51: 340 | AY51: 2,108 | AZ51: 134 | BC51: 9,112 | BD51: 1,421 | BE51: 808 | BF51: 1,677 | BG51: 3,807 | BH51: 1,398
F52: 1275 | G52: PUESTO DE SALUD CHILPINILLA | H52: 9 | I52: 5,125 | J52: 47 | K52: 46 | L52: 46 | M52: 53 | N52: 53 | O52: 65 | P52: 89 | Q52: 86 | R52: 84 | S52: 82 | T52: 73 | U52: 75 | V52: 76 | W52: 79 | X52: 65 | Y52: 76 | Z52: 79 | AA52: 80 | AB52: 71 | AC52: 69 | AD52: 380 | AE52: 423 | AF52: 409 | AG52: 391 | AH52: 390 | AI52: 360 | AJ52: 311 | AK52: 279 | AL52: 226 | AM52: 186 | AN52: 144 | AO52: 106 | AP52: 63 | AQ52: 63 | AR52: 3 | AS52: 22 | AT52: 25 | AU52: 50 | AV52: 2,616 | AW52: 183 | AX52: 191 | AY52: 1,186 | AZ52: 75 | BC52: 5,125 | BD52: 799 | BE52: 455 | BF52: 943 | BG52: 2,141 | BH52: 787
F53: 1276 | G53: CENTRO DE SALUD CAMINOS DEL INCA | H53: 10 | I53: 5,695 | J53: 53 | K53: 51 | L53: 52 | M53: 59 | N53: 59 | O53: 72 | P53: 99 | Q53: 95 | R53: 94 | S53: 91 | T53: 81 | U53: 84 | V53: 85 | W53: 88 | X53: 72 | Y53: 84 | Z53: 88 | AA53: 89 | AB53: 79 | AC53: 77 | AD53: 423 | AE53: 470 | AF53: 454 | AG53: 435 | AH53: 434 | AI53: 401 | AJ53: 346 | AK53: 310 | AL53: 251 | AM53: 206 | AN53: 160 | AO53: 118 | AP53: 70 | AQ53: 70 | AR53: 4 | AS53: 24 | AT53: 28 | AU53: 56 | AV53: 2,907 | AW53: 203 | AX53: 212 | AY53: 1,318 | AZ53: 84 | BC53: 5,695 | BD53: 888 | BE53: 505 | BF53: 1,048 | BG53: 2,379 | BH53: 874
F54: 1277 | G54: ALTO ALIANZA | H54: 8 | I54: 4,556 | J54: 42 | K54: 41 | L54: 41 | M54: 47 | N54: 47 | O54: 58 | P54: 79 | Q54: 76 | R54: 75 | S54: 72 | T54: 65 | U54: 67 | V54: 68 | W54: 70 | X54: 58 | Y54: 67 | Z54: 70 | AA54: 71 | AB54: 63 | AC54: 62 | AD54: 338 | AE54: 376 | AF54: 363 | AG54: 348 | AH54: 347 | AI54: 320 | AJ54: 277 | AK54: 248 | AL54: 201 | AM54: 165 | AN54: 128 | AO54: 94 | AP54: 56 | AQ54: 56 | AR54: 3 | AS54: 19 | AT54: 23 | AU54: 45 | AV54: 2,325 | AW54: 162 | AX54: 170 | AY54: 1,054 | AZ54: 67 | BC54: 4,556 | BD54: 711 | BE54: 404 | BF54: 839 | BG54: 1,904 | BH54: 699
F55: 1279 | G55: PUESTO DE SALUD UPIS PAISAJISTA | H55: 9 | I55: 5,125 | J55: 47 | K55: 46 | L55: 46 | M55: 53 | N55: 53 | O55: 65 | P55: 89 | Q55: 86 | R55: 84 | S55: 82 | T55: 73 | U55: 75 | V55: 76 | W55: 79 | X55: 65 | Y55: 76 | Z55: 79 | AA55: 80 | AB55: 71 | AC55: 69 | AD55: 380 | AE55: 423 | AF55: 409 | AG55: 391 | AH55: 390 | AI55: 360 | AJ55: 311 | AK55: 279 | AL55: 226 | AM55: 186 | AN55: 144 | AO55: 106 | AP55: 63 | AQ55: 63 | AR55: 3 | AS55: 22 | AT55: 25 | AU55: 50 | AV55: 2,616 | AW55: 183 | AX55: 191 | AY55: 1,186 | AZ55: 75 | BC55: 5,125 | BD55: 799 | BE55: 455 | BF55: 943 | BG55: 2,141 | BH55: 787
A56: 040108 | B56: AREQUIPA | C56: AREQUIPA | D56: AREQUIPA | E56: LA JOYA | I56: 44,121 | J56: 452 | K56: 521 | L56: 544 | M56: 607 | N56: 605 | O56: 641 | P56: 689 | Q56: 626 | R56: 793 | S56: 815 | T56: 693 | U56: 699 | V56: 771 | W56: 672 | X56: 767 | Y56: 778 | Z56: 810 | AA56: 797 | AB56: 812 | AC56: 772 | AD56: 3,652 | AE56: 4,011 | AF56: 3,597 | AG56: 3,351 | AH56: 2,976 | AI56: 2,852 | AJ56: 2,251 | AK56: 2,060 | AL56: 1,677 | AM56: 1,370 | AN56: 931 | AO56: 703 | AP56: 437 | AQ56: 389 | AR56: 30 | AS56: 214 | AT56: 238 | AU56: 480 | AV56: 22,678 | AW56: 1,878 | AX56: 2,040 | AY56: 10,601 | AZ56: 1,173 | BC56: 44,121 | BD56: 7,685 | BE56: 4,595 | BF56: 9,247 | BG56: 17,087 | BH56: 5,507
F57: 1322 | G57: LA JOYA | H57: 20 | I57: 8,824 | J57: 90 | K57: 104 | L57: 109 | M57: 121 | N57: 121 | O57: 128 | P57: 138 | Q57: 125 | R57: 159 | S57: 163 | T57: 139 | U57: 140 | V57: 154 | W57: 134 | X57: 153 | Y57: 156 | Z57: 162 | AA57: 159 | AB57: 162 | AC57: 154 | AD57: 730 | AE57: 802 | AF57: 719 | AG57: 670 | AH57: 595 | AI57: 570 | AJ57: 450 | AK57: 412 | AL57: 335 | AM57: 274 | AN57: 186 | AO57: 141 | AP57: 87 | AQ57: 78 | AR57: 6 | AS57: 43 | AT57: 48 | AU57: 96 | AV57: 4,536 | AW57: 376 | AX57: 408 | AY57: 2,120 | AZ57: 235 | BC57: 8,824 | BD57: 1,537 | BE57: 919 | BF57: 1,849 | BG57: 3,417 | BH57: 1,101
F58: 1327 | G58: PUESTO DE SALUD CERRITO BUENA VISTA | H58: 14 | I58: 6,177 | J58: 63 | K58: 73 | L58: 76 | M58: 85 | N58: 85 | O58: 90 | P58: 96 | Q58: 88 | R58: 111 | S58: 114 | T58: 97 | U58: 98 | V58: 108 | W58: 94 | X58: 107 | Y58: 109 | Z58: 113 | AA58: 112 | AB58: 114 | AC58: 108 | AD58: 511 | AE58: 562 | AF58: 504 | AG58: 469 | AH58: 417 | AI58: 399 | AJ58: 315 | AK58: 288 | AL58: 235 | AM58: 192 | AN58: 130 | AO58: 98 | AP58: 61 | AQ58: 54 | AR58: 4 | AS58: 30 | AT58: 33 | AU58: 67 | AV58: 3,175 | AW58: 263 | AX58: 286 | AY58: 1,484 | AZ58: 164 | BC58: 6,177 | BD58: 1,076 | BE58: 643 | BF58: 1,295 | BG58: 2,392 | BH58: 771
F59: 1330 | G59: EL CRUCE - TRIUNFO | H59: 27 | I59: 11,913 | J59: 121 | K59: 141 | L59: 147 | M59: 166 | N59: 164 | O59: 174 | P59: 187 | Q59: 169 | R59: 212 | S59: 220 | T59: 185 | U59: 188 | V59: 208 | W59: 182 | X59: 208 | Y59: 210 | Z59: 218 | AA59: 214 | AB59: 218 | AC59: 209 | AD59: 985 | AE59: 1,082 | AF59: 970 | AG59: 903 | AH59: 803 | AI59: 769 | AJ59: 606 | AK59: 556 | AL59: 453 | AM59: 369 | AN59: 251 | AO59: 191 | AP59: 118 | AQ59: 106 | AR59: 7 | AS59: 57 | AT59: 64 | AU59: 130 | AV59: 6,123 | AW59: 507 | AX59: 551 | AY59: 2,863 | AZ59: 317 | BC59: 11,913 | BD59: 2,075 | BE59: 1,240 | BF59: 2,498 | BG59: 4,615 | BH59: 1,489
F60: 1328 | G60: LOS MEDANOS | H60: 5 | I60: 2,206 | J60: 23 | K60: 26 | L60: 27 | M60: 30 | N60: 30 | O60: 32 | P60: 34 | Q60: 31 | R60: 40 | S60: 41 | T60: 35 | U60: 35 | V60: 39 | W60: 34 | X60: 38 | Y60: 39 | Z60: 41 | AA60: 40 | AB60: 41 | AC60: 39 | AD60: 183 | AE60: 201 | AF60: 180 | AG60: 168 | AH60: 149 | AI60: 143 | AJ60: 113 | AK60: 103 | AL60: 84 | AM60: 69 | AN60: 47 | AO60: 35 | AP60: 22 | AQ60: 19 | AR60: 2 | AS60: 11 | AT60: 12 | AU60: 24 | AV60: 1,134 | AW60: 94 | AX60: 102 | AY60: 530 | AZ60: 59 | BC60: 2,206 | BD60: 384 | BE60: 230 | BF60: 462 | BG60: 854 | BH60: 275
F61: 1329 | G61: BENITO LAZO | H61: 5 | I61: 2,206 | J61: 23 | K61: 26 | L61: 27 | M61: 30 | N61: 30 | O61: 32 | P61: 34 | Q61: 31 | R61: 40 | S61: 41 | T61: 35 | U61: 35 | V61: 39 | W61: 34 | X61: 38 | Y61: 39 | Z61: 41 | AA61: 40 | AB61: 41 | AC61: 39 | AD61: 183 | AE61: 201 | AF61: 180 | AG61: 168 | AH61: 149 | AI61: 143 | AJ61: 113 | AK61: 103 | AL61: 84 | AM61: 69 | AN61: 47 | AO61: 35 | AP61: 22 | AQ61: 19 | AR61: 2 | AS61: 11 | AT61: 12 | AU61: 24 | AV61: 1,134 | AW61: 94 | AX61: 102 | AY61: 530 | AZ61: 59 | BC61: 2,206 | BD61: 384 | BE61: 230 | BF61: 462 | BG61: 854 | BH61: 275
F62: 1323 | G62: SAN ISIDRO | H62: 13 | I62: 5,736 | J62: 59 | K62: 68 | L62: 71 | M62: 79 | N62: 79 | O62: 83 | P62: 90 | Q62: 81 | R62: 103 | S62: 106 | T62: 90 | U62: 91 | V62: 100 | W62: 87 | X62: 100 | Y62: 101 | Z62: 105 | AA62: 104 | AB62: 106 | AC62: 100 | AD62: 475 | AE62: 521 | AF62: 468 | AG62: 436 | AH62: 387 | AI62: 371 | AJ62: 293 | AK62: 268 | AL62: 218 | AM62: 178 | AN62: 121 | AO62: 91 | AP62: 57 | AQ62: 51 | AR62: 4 | AS62: 28 | AT62: 31 | AU62: 62 | AV62: 2,948 | AW62: 244 | AX62: 265 | AY62: 1,378 | AZ62: 152 | BC62: 5,736 | BD62: 999 | BE62: 597 | BF62: 1,202 | BG62: 2,221 | BH62: 716
F63: 1333 | G63: SAN JOSE | H63: 3 | I63: 1,324 | J63: 14 | K63: 16 | L63: 16 | M63: 18 | N63: 18 | O63: 19 | P63: 21 | Q63: 19 | R63: 24 | S63: 24 | T63: 21 | U63: 21 | V63: 23 | W63: 20 | X63: 23 | Y63: 23 | Z63: 24 | AA63: 24 | AB63: 24 | AC63: 23 | AD63: 110 | AE63: 120 | AF63: 108 | AG63: 101 | AH63: 89 | AI63: 86 | AJ63: 68 | AK63: 62 | AL63: 50 | AM63: 41 | AN63: 28 | AO63: 21 | AP63: 13 | AQ63: 12 | AR63: 1 | AS63: 6 | AT63: 7 | AU63: 14 | AV63: 680 | AW63: 56 | AX63: 61 | AY63: 318 | AZ63: 35 | BC63: 1,324 | BD63: 231 | BE63: 138 | BF63: 277 | BG63: 513 | BH63: 165
F64: 1332 | G64: PUESTO DE SALUD SAN CAMILO 6 | H64: 6 | I64: 2,647 | J64: 27 | K64: 31 | L64: 33 | M64: 36 | N64: 36 | O64: 38 | P64: 41 | Q64: 38 | R64: 48 | S64: 49 | T64: 42 | U64: 42 | V64: 46 | W64: 40 | X64: 46 | Y64: 47 | Z64: 49 | AA64: 48 | AB64: 49 | AC64: 46 | AD64: 219 | AE64: 241 | AF64: 216 | AG64: 201 | AH64: 179 | AI64: 171 | AJ64: 135 | AK64: 124 | AL64: 101 | AM64: 82 | AN64: 56 | AO64: 42 | AP64: 26 | AQ64: 23 | AR64: 2 | AS64: 13 | AT64: 14 | AU64: 29 | AV64: 1,361 | AW64: 113 | AX64: 122 | AY64: 636 | AZ64: 70 | BC64: 2,647 | BD64: 461 | BE64: 276 | BF64: 555 | BG64: 1,025 | BH64: 330
F65: 1331 | G65: LA CANO | H65: 7 | I65: 3,088 | J65: 32 | K65: 36 | L65: 38 | M65: 42 | N65: 42 | O65: 45 | P65: 48 | Q65: 44 | R65: 56 | S65: 57 | T65: 49 | U65: 49 | V65: 54 | W65: 47 | X65: 54 | Y65: 54 | Z65: 57 | AA65: 56 | AB65: 57 | AC65: 54 | AD65: 256 | AE65: 281 | AF65: 252 | AG65: 235 | AH65: 208 | AI65: 200 | AJ65: 158 | AK65: 144 | AL65: 117 | AM65: 96 | AN65: 65 | AO65: 49 | AP65: 31 | AQ65: 27 | AR65: 2 | AS65: 15 | AT65: 17 | AU65: 34 | AV65: 1,587 | AW65: 131 | AX65: 143 | AY65: 742 | AZ65: 82 | BC65: 3,088 | BD65: 538 | BE65: 322 | BF65: 647 | BG65: 1,196 | BH65: 385
A66: 040109 | B66: AREQUIPA | C66: AREQUIPA | D66: AREQUIPA | E66: MARIANO MELGAR | I66: 71,738 | J66: 674 | K66: 710 | L66: 720 | M66: 742 | N66: 750 | O66: 862 | P66: 1,092 | Q66: 1,064 | R66: 1,114 | S66: 1,068 | T66: 952 | U66: 944 | V66: 1,036 | W66: 1,002 | X66: 1,037 | Y66: 1,072 | Z66: 1,085 | AA66: 1,009 | AB66: 1,012 | AC66: 1,036 | AD66: 5,179 | AE66: 5,837 | AF66: 5,855 | AG66: 5,043 | AH66: 5,155 | AI66: 4,964 | AJ66: 4,486 | AK66: 4,134 | AL66: 3,545 | AM66: 2,781 | AN66: 2,224 | AO66: 1,510 | AP66: 988 | AQ66: 1,056 | AR66: 48 | AS66: 328 | AT66: 346 | AU66: 714 | AV66: 36,477 | AW66: 2,461 | AX66: 2,607 | AY66: 16,159 | AZ66: 1,796 | BC66: 71,738 | BD66: 10,692 | BE66: 6,241 | BF66: 13,064 | BG66: 29,637 | BH66: 12,104
F67: 1294 | G67: CENTRO DE SALUD MARIANO MELGAR | H67: 30 | I67: 21,520 | J67: 202 | K67: 213 | L67: 216 | M67: 224 | N67: 225 | O67: 260 | P67: 329 | Q67: 319 | R67: 334 | S67: 319 | T67: 287 | U67: 283 | V67: 311 | W67: 302 | X67: 312 | Y67: 323 | Z67: 325 | AA67: 302 | AB67: 305 | AC67: 311 | AD67: 1,553 | AE67: 1,752 | AF67: 1,756 | AG67: 1,512 | AH67: 1,546 | AI67: 1,489 | AJ67: 1,346 | AK67: 1,240 | AL67: 1,063 | AM67: 835 | AN67: 667 | AO67: 453 | AP67: 295 | AQ67: 317 | AR67: 13 | AS67: 97 | AT67: 104 | AU67: 214 | AV67: 10,944 | AW67: 739 | AX67: 783 | AY67: 4,847 | AZ67: 539 | BC67: 21,520 | BD67: 3,209 | BE67: 1,873 | BF67: 3,919 | BG67: 8,892 | BH67: 3,631
F68: 1308 | G68: PUESTO DE SALUD ATALAYA | H68: 20 | I68: 14,348 | J68: 135 | K68: 142 | L68: 144 | M68: 148 | N68: 150 | O68: 172 | P68: 218 | Q68: 213 | R68: 223 | S68: 214 | T68: 190 | U68: 189 | V68: 207 | W68: 200 | X68: 207 | Y68: 214 | Z68: 217 | AA68: 202 | AB68: 202 | AC68: 207 | AD68: 1,036 | AE68: 1,167 | AF68: 1,171 | AG68: 1,009 | AH68: 1,031 | AI68: 993 | AJ68: 897 | AK68: 827 | AL68: 709 | AM68: 556 | AN68: 445 | AO68: 302 | AP68: 198 | AQ68: 211 | AR68: 10 | AS68: 66 | AT68: 69 | AU68: 143 | AV68: 7,295 | AW68: 492 | AX68: 521 | AY68: 3,232 | AZ68: 359 | BC68: 14,348 | BD68: 2,138 | BE68: 1,248 | BF68: 2,613 | BG68: 5,927 | BH68: 2,421
F69: 1295 | G69: CENTRO DE SALUD GENERALISIMO SAN MARTIN | H69: 20 | I69: 14,348 | J69: 135 | K69: 142 | L69: 144 | M69: 148 | N69: 150 | O69: 172 | P69: 218 | Q69: 213 | R69: 223 | S69: 214 | T69: 190 | U69: 189 | V69: 207 | W69: 200 | X69: 207 | Y69: 214 | Z69: 217 | AA69: 202 | AB69: 202 | AC69: 207 | AD69: 1,036 | AE69: 1,167 | AF69: 1,171 | AG69: 1,009 | AH69: 1,031 | AI69: 993 | AJ69: 897 | AK69: 827 | AL69: 709 | AM69: 556 | AN69: 445 | AO69: 302 | AP69: 198 | AQ69: 211 | AR69: 10 | AS69: 66 | AT69: 69 | AU69: 143 | AV69: 7,295 | AW69: 492 | AX69: 521 | AY69: 3,232 | AZ69: 359 | BC69: 14,348 | BD69: 2,138 | BE69: 1,248 | BF69: 2,613 | BG69: 5,927 | BH69: 2,421
F70: 1309 | G70: JERUSALEN | H70: 20 | I70: 14,348 | J70: 135 | K70: 142 | L70: 144 | M70: 148 | N70: 150 | O70: 172 | P70: 218 | Q70: 213 | R70: 223 | S70: 214 | T70: 190 | U70: 189 | V70: 207 | W70: 200 | X70: 207 | Y70: 214 | Z70: 217 | AA70: 202 | AB70: 202 | AC70: 207 | AD70: 1,036 | AE70: 1,167 | AF70: 1,171 | AG70: 1,009 | AH70: 1,031 | AI70: 993 | AJ70: 897 | AK70: 827 | AL70: 709 | AM70: 556 | AN70: 445 | AO70: 302 | AP70: 198 | AQ70: 211 | AR70: 10 | AS70: 66 | AT70: 69 | AU70: 143 | AV70: 7,295 | AW70: 492 | AX70: 521 | AY70: 3,232 | AZ70: 359 | BC70: 14,348 | BD70: 2,138 | BE70: 1,248 | BF70: 2,613 | BG70: 5,927 | BH70: 2,421
F71: 7743 | G71: PUESTO DE SALUD SANTA ROSA | H71: 0 | I71: 0 | J71: 0 | K71: 0 | L71: 0 | M71: 0 | N71: 0 | O71: 0 | P71: 0 | Q71: 0 | R71: 0 | S71: 0 | T71: 0 | U71: 0 | V71: 0 | W71: 0 | X71: 0 | Y71: 0 | Z71: 0 | AA71: 0 | AB71: 0 | AC71: 0 | AD71: 0 | AE71: 0 | AF71: 0 | AG71: 0 | AH71: 0 | AI71: 0 | AJ71: 0 | AK71: 0 | AL71: 0 | AM71: 0 | AN71: 0 | AO71: 0 | AP71: 0 | AQ71: 0 | AR71: 0 | AS71: 0 | AT71: 0 | AU71: 0 | AV71: 0 | AW71: 0 | AX71: 0 | AY71: 0 | AZ71: 0 | BC71: 0 | BD71: 0 | BE71: 0 | BF71: 0 | BG71: 0 | BH71: 0
F72: 7722 | G72: EL MIRADOR | H72: 10 | I72: 7,174 | J72: 67 | K72: 71 | L72: 72 | M72: 74 | N72: 75 | O72: 86 | P72: 109 | Q72: 106 | R72: 111 | S72: 107 | T72: 95 | U72: 94 | V72: 104 | W72: 100 | X72: 104 | Y72: 107 | Z72: 109 | AA72: 101 | AB72: 101 | AC72: 104 | AD72: 518 | AE72: 584 | AF72: 586 | AG72: 504 | AH72: 516 | AI72: 496 | AJ72: 449 | AK72: 413 | AL72: 355 | AM72: 278 | AN72: 222 | AO72: 151 | AP72: 99 | AQ72: 106 | AR72: 5 | AS72: 33 | AT72: 35 | AU72: 71 | AV72: 3,648 | AW72: 246 | AX72: 261 | AY72: 1,616 | AZ72: 180 | BC72: 7,174 | BD72: 1,069 | BE72: 624 | BF72: 1,306 | BG72: 2,964 | BH72: 1,210
A73: 040110 | B73: AREQUIPA | C73: AREQUIPA | D73: AREQUIPA | E73: MIRAFLORES | I73: 70,554 | J73: 598 | K73: 609 | L73: 637 | M73: 744 | N73: 695 | O73: 833 | P73: 1,020 | Q73: 1,058 | R73: 1,122 | S73: 975 | T73: 1,009 | U73: 923 | V73: 925 | W73: 905 | X73: 905 | Y73: 923 | Z73: 992 | AA73: 947 | AB73: 956 | AC73: 1,003 | AD73: 5,196 | AE73: 5,784 | AF73: 5,752 | AG73: 5,057 | AH73: 5,308 | AI73: 5,077 | AJ73: 4,563 | AK73: 4,074 | AL73: 3,518 | AM73: 2,686 | AN73: 2,141 | AO73: 1,523 | AP73: 993 | AQ73: 1,103 | AR73: 53 | AS73: 309 | AT73: 289 | AU73: 634 | AV73: 36,130 | AW73: 2,366 | AX73: 2,480 | AY73: 16,332 | AZ73: 1,007 | BC73: 70,554 | BD73: 10,223 | BE73: 5,597 | BF73: 12,939 | BG73: 29,831 | BH73: 11,964
F74: 1293 | G74: CENTRO DE SALUD MIRAFLORES | H74: 34 | I74: 23,988 | J74: 203 | K74: 207 | L74: 217 | M74: 253 | N74: 236 | O74: 283 | P74: 347 | Q74: 360 | R74: 381 | S74: 332 | T74: 343 | U74: 314 | V74: 315 | W74: 308 | X74: 308 | Y74: 314 | Z74: 337 | AA74: 322 | AB74: 325 | AC74: 341 | AD74: 1,767 | AE74: 1,967 | AF74: 1,956 | AG74: 1,719 | AH74: 1,805 | AI74: 1,726 | AJ74: 1,551 | AK74: 1,385 | AL74: 1,196 | AM74: 913 | AN74: 728 | AO74: 518 | AP74: 338 | AQ74: 375 | AR74: 18 | AS74: 105 | AT74: 98 | AU74: 216 | AV74: 12,284 | AW74: 804 | AX74: 843 | AY74: 5,553 | AZ74: 342 | BC74: 23,988 | BD74: 3,476 | BE74: 1,903 | BF74: 4,399 | BG74: 10,143 | BH74: 4,068
F75: 1292 | G75: CENTRO DE SALUD EDIFICADORES MISTI | H75: 40 | I75: 28,223 | J75: 239 | K75: 243 | L75: 254 | M75: 297 | N75: 277 | O75: 333 | P75: 407 | Q75: 422 | R75: 449 | S75: 389 | T75: 403 | U75: 369 | V75: 369 | W75: 362 | X75: 362 | Y75: 369 | Z75: 398 | AA75: 378 | AB75: 383 | AC75: 402 | AD75: 2,077 | AE75: 2,313 | AF75: 2,301 | AG75: 2,022 | AH75: 2,122 | AI75: 2,031 | AJ75: 1,826 | AK75: 1,630 | AL75: 1,408 | AM75: 1,074 | AN75: 857 | AO75: 609 | AP75: 398 | AQ75: 442 | AR75: 22 | AS75: 123 | AT75: 116 | AU75: 253 | AV75: 14,453 | AW75: 947 | AX75: 993 | AY75: 6,532 | AZ75: 402 | BC75: 28,223 | BD75: 4,089 | BE75: 2,238 | BF75: 5,176 | BG75: 11,933 | BH75: 4,786
F76: 1306 | G76: CENTRO DE SALUD PORVENIR-MIRAFLORES | H76: 10 | I76: 7,055 | J76: 60 | K76: 61 | L76: 64 | M76: 74 | N76: 70 | O76: 83 | P76: 102 | Q76: 106 | R76: 112 | S76: 98 | T76: 101 | U76: 92 | V76: 93 | W76: 91 | X76: 91 | Y76: 92 | Z76: 99 | AA76: 95 | AB76: 96 | AC76: 100 | AD76: 520 | AE76: 578 | AF76: 575 | AG76: 506 | AH76: 531 | AI76: 508 | AJ76: 456 | AK76: 407 | AL76: 352 | AM76: 269 | AN76: 214 | AO76: 152 | AP76: 99 | AQ76: 110 | AR76: 5 | AS76: 31 | AT76: 29 | AU76: 63 | AV76: 3,613 | AW76: 237 | AX76: 248 | AY76: 1,633 | AZ76: 101 | BC76: 7,055 | BD76: 1,022 | BE76: 560 | BF76: 1,294 | BG76: 2,983 | BH76: 1,196
F77: 1307 | G77: CENTRO DE SALUD MATEO PUMACAHUA | H77: 8 | I77: 5,644 | J77: 48 | K77: 49 | L77: 51 | M77: 60 | N77: 56 | O77: 67 | P77: 82 | Q77: 85 | R77: 90 | S77: 78 | T77: 81 | U77: 74 | V77: 74 | W77: 72 | X77: 72 | Y77: 74 | Z77: 79 | AA77: 76 | AB77: 76 | AC77: 80 | AD77: 416 | AE77: 463 | AF77: 460 | AG77: 405 | AH77: 425 | AI77: 406 | AJ77: 365 | AK77: 326 | AL77: 281 | AM77: 215 | AN77: 171 | AO77: 122 | AP77: 79 | AQ77: 88 | AR77: 4 | AS77: 25 | AT77: 23 | AU77: 51 | AV77: 2,890 | AW77: 189 | AX77: 198 | AY77: 1,307 | AZ77: 81 | BC77: 5,644 | BD77: 818 | BE77: 448 | BF77: 1,035 | BG77: 2,386 | BH77: 957
F78: 1305 | G78: PUESTO DE SALUD TOMASA T. COMDEMAYTA | H78: 8 | I78: 5,644 | J78: 48 | K78: 49 | L78: 51 | M78: 60 | N78: 56 | O78: 67 | P78: 82 | Q78: 85 | R78: 90 | S78: 78 | T78: 81 | U78: 74 | V78: 74 | W78: 72 | X78: 72 | Y78: 74 | Z78: 79 | AA78: 76 | AB78: 76 | AC78: 80 | AD78: 416 | AE78: 463 | AF78: 460 | AG78: 405 | AH78: 425 | AI78: 406 | AJ78: 365 | AK78: 326 | AL78: 281 | AM78: 215 | AN78: 171 | AO78: 122 | AP78: 79 | AQ78: 88 | AR78: 4 | AS78: 25 | AT78: 23 | AU78: 51 | AV78: 2,890 | AW78: 189 | AX78: 198 | AY78: 1,307 | AZ78: 81 | BC78: 5,644 | BD78: 818 | BE78: 448 | BF78: 1,035 | BG78: 2,386 | BH78: 957
A79: 040111 | B79: AREQUIPA | C79: AREQUIPA | D79: AREQUIPA | E79: MOLLEBAYA | I79: 8,652 | J79: 78 | K79: 75 | L79: 56 | M79: 84 | N79: 59 | O79: 75 | P79: 116 | Q79: 179 | R79: 164 | S79: 133 | T79: 93 | U79: 115 | V79: 111 | W79: 131 | X79: 128 | Y79: 135 | Z79: 134 | AA79: 121 | AB79: 136 | AC79: 89 | AD79: 513 | AE79: 719 | AF79: 901 | AG79: 779 | AH79: 718 | AI79: 681 | AJ79: 417 | AK79: 438 | AL79: 400 | AM79: 296 | AN79: 244 | AO79: 167 | AP79: 83 | AQ79: 84 | AR79: 3 | AS79: 33 | AT79: 45 | AU79: 83 | AV79: 4,341 | AW79: 289 | AX79: 301 | AY79: 2,241 | AZ79: 182 | BC79: 8,652 | BD79: 1,227 | BE79: 760 | BF79: 1,457 | BG79: 3,934 | BH79: 1,274
F80: 1285 | G80: PUESTO DE SALUD MOLLEBAYA | H80: 30 | I80: 2,596 | J80: 23 | K80: 23 | L80: 17 | M80: 25 | N80: 18 | O80: 23 | P80: 35 | Q80: 54 | R80: 49 | S80: 40 | T80: 28 | U80: 35 | V80: 33 | W80: 39 | X80: 38 | Y80: 41 | Z80: 40 | AA80: 36 | AB80: 41 | AC80: 27 | AD80: 154 | AE80: 216 | AF80: 270 | AG80: 234 | AH80: 215 | AI80: 204 | AJ80: 125 | AK80: 131 | AL80: 120 | AM80: 89 | AN80: 73 | AO80: 50 | AP80: 25 | AQ80: 25 | AR80: 1 | AS80: 10 | AT80: 14 | AU80: 25 | AV80: 1,302 | AW80: 87 | AX80: 90 | AY80: 672 | AZ80: 55 | BC80: 2,596 | BD80: 368 | BE80: 228 | BF80: 437 | BG80: 1,180 | BH80: 382
F81: 11677 | G81: PUESTO DE SALUD MACHAHUAYA | H81: 70 | I81: 6,056 | J81: 55 | K81: 52 | L81: 39 | M81: 59 | N81: 41 | O81: 52 | P81: 81 | Q81: 125 | R81: 115 | S81: 93 | T81: 65 | U81: 80 | V81: 78 | W81: 92 | X81: 90 | Y81: 94 | Z81: 94 | AA81: 85 | AB81: 95 | AC81: 62 | AD81: 359 | AE81: 503 | AF81: 631 | AG81: 545 | AH81: 503 | AI81: 477 | AJ81: 292 | AK81: 307 | AL81: 280 | AM81: 207 | AN81: 171 | AO81: 117 | AP81: 58 | AQ81: 59 | AR81: 2 | AS81: 23 | AT81: 31 | AU81: 58 | AV81: 3,039 | AW81: 202 | AX81: 211 | AY81: 1,569 | AZ81: 127 | BC81: 6,056 | BD81: 859 | BE81: 532 | BF81: 1,020 | BG81: 2,754 | BH81: 892
A82: 040112 | B82: AREQUIPA | C82: AREQUIPA | D82: AREQUIPA | E82: PAUCARPATA | I82: 142,213 | J82: 1,413 | K82: 1,537 | L82: 1,639 | M82: 1,708 | N82: 1,594 | O82: 1,783 | P82: 2,294 | Q82: 2,369 | R82: 2,302 | S82: 2,164 | T82: 2,103 | U82: 2,111 | V82: 2,121 | W82: 2,031 | X82: 2,164 | Y82: 2,231 | Z82: 2,264 | AA82: 2,159 | AB82: 2,114 | AC82: 2,059 | AD82: 10,384 | AE82: 11,335 | AF82: 11,184 | AG82: 10,225 | AH82: 10,689 | AI82: 10,163 | AJ82: 8,859 | AK82: 7,370 | AL82: 5,830 | AM82: 4,867 | AN82: 4,122 | AO82: 3,229 | AP82: 1,978 | AQ82: 1,818 | AR82: 117 | AS82: 708 | AT82: 705 | AU82: 1,498 | AV82: 72,897 | AW82: 5,257 | AX82: 5,512 | AY82: 32,524 | AZ82: 2,212 | BC82: 142,213 | BD82: 23,017 | BE82: 12,970 | BF82: 25,892 | BG82: 58,490 | BH82: 21,844
F83: 1298 | G83: CENTRO DE SALUD 15 DE AGOSTO | H83: 11 | I83: 15,643 | J83: 155 | K83: 168 | L83: 180 | M83: 186 | N83: 172 | O83: 195 | P83: 250 | Q83: 258 | R83: 254 | S83: 240 | T83: 233 | U83: 232 | V83: 233 | W83: 226 | X83: 240 | Y83: 248 | Z83: 250 | AA83: 236 | AB83: 233 | AC83: 226 | AD83: 1,142 | AE83: 1,247 | AF83: 1,230 | AG83: 1,123 | AH83: 1,176 | AI83: 1,119 | AJ83: 974 | AK83: 809 | AL83: 643 | AM83: 535 | AN83: 452 | AO83: 356 | AP83: 219 | AQ83: 202 | AR83: 14 | AS83: 76 | AT83: 79 | AU83: 164 | AV83: 8,017 | AW83: 577 | AX83: 607 | AY83: 3,578 | AZ83: 243 | BC83: 15,643 | BD83: 2,533 | BE83: 1,425 | BF83: 2,850 | BG83: 6,435 | BH83: 2,402
F84: 1316 | G84: PUESTO DE SALUD MIGUEL GRAU MODULO A | H84: 8 | I84: 11,377 | J84: 113 | K84: 123 | L84: 131 | M84: 137 | N84: 128 | O84: 143 | P84: 184 | Q84: 190 | R84: 184 | S84: 173 | T84: 168 | U84: 169 | V84: 170 | W84: 162 | X84: 173 | Y84: 178 | Z84: 181 | AA84: 173 | AB84: 169 | AC84: 165 | AD84: 831 | AE84: 907 | AF84: 895 | AG84: 818 | AH84: 855 | AI84: 813 | AJ84: 709 | AK84: 590 | AL84: 466 | AM84: 389 | AN84: 330 | AO84: 258 | AP84: 158 | AQ84: 145 | AR84: 9 | AS84: 57 | AT84: 56 | AU84: 120 | AV84: 5,832 | AW84: 421 | AX84: 441 | AY84: 2,602 | AZ84: 177 | BC84: 11,377 | BD84: 1,841 | BE84: 1,038 | BF84: 2,071 | BG84: 4,679 | BH84: 1,748
F85: 1317 | G85: CENTRO DE SALUD MIGUEL GRAU B | H85: 7 | I85: 9,955 | J85: 99 | K85: 108 | L85: 115 | M85: 120 | N85: 112 | O85: 125 | P85: 161 | Q85: 166 | R85: 161 | S85: 151 | T85: 147 | U85: 148 | V85: 148 | W85: 142 | X85: 151 | Y85: 156 | Z85: 158 | AA85: 151 | AB85: 148 | AC85: 144 | AD85: 727 | AE85: 793 | AF85: 783 | AG85: 716 | AH85: 748 | AI85: 711 | AJ85: 620 | AK85: 516 | AL85: 408 | AM85: 341 | AN85: 289 | AO85: 226 | AP85: 138 | AQ85: 127 | AR85: 8 | AS85: 50 | AT85: 49 | AU85: 105 | AV85: 5,103 | AW85: 368 | AX85: 386 | AY85: 2,277 | AZ85: 155 | BC85: 9,955 | BD85: 1,611 | BE85: 908 | BF85: 1,812 | BG85: 4,094 | BH85: 1,529
F86: 1318 | G86: PUESTO DE SALUD MIGUEL GRAU MODULO C-D | H86: 7.5 | I86: 10,666 | J86: 106 | K86: 115 | L86: 123 | M86: 128 | N86: 120 | O86: 134 | P86: 172 | Q86: 178 | R86: 173 | S86: 162 | T86: 158 | U86: 158 | V86: 159 | W86: 152 | X86: 162 | Y86: 167 | Z86: 170 | AA86: 162 | AB86: 159 | AC86: 154 | AD86: 779 | AE86: 850 | AF86: 839 | AG86: 767 | AH86: 802 | AI86: 762 | AJ86: 664 | AK86: 553 | AL86: 437 | AM86: 365 | AN86: 309 | AO86: 242 | AP86: 148 | AQ86: 136 | AR86: 9 | AS86: 53 | AT86: 53 | AU86: 112 | AV86: 5,467 | AW86: 394 | AX86: 413 | AY86: 2,439 | AZ86: 166 | BC86: 10,666 | BD86: 1,726 | BE86: 973 | BF86: 1,942 | BG86: 4,387 | BH86: 1,638
F87: 1296 | G87: CENTRO DE SALUD AMPLIACIÓN PAUCARPATA | H87: 10 | I87: 14,221 | J87: 141 | K87: 154 | L87: 164 | M87: 171 | N87: 159 | O87: 178 | P87: 229 | Q87: 237 | R87: 230 | S87: 216 | T87: 210 | U87: 211 | V87: 212 | W87: 203 | X87: 216 | Y87: 223 | Z87: 226 | AA87: 216 | AB87: 211 | AC87: 206 | AD87: 1,038 | AE87: 1,134 | AF87: 1,118 | AG87: 1,023 | AH87: 1,069 | AI87: 1,016 | AJ87: 886 | AK87: 737 | AL87: 583 | AM87: 487 | AN87: 412 | AO87: 323 | AP87: 198 | AQ87: 182 | AR87: 12 | AS87: 71 | AT87: 71 | AU87: 150 | AV87: 7,290 | AW87: 526 | AX87: 551 | AY87: 3,252 | AZ87: 221 | BC87: 14,221 | BD87: 2,302 | BE87: 1,297 | BF87: 2,589 | BG87: 5,849 | BH87: 2,184
F88: 1310 | G88: CENTRO DE SALUD MANUEL PRADO | H88: 8 | I88: 11,377 | J88: 113 | K88: 123 | L88: 131 | M88: 137 | N88: 128 | O88: 143 | P88: 184 | Q88: 190 | R88: 184 | S88: 173 | T88: 168 | U88: 169 | V88: 170 | W88: 162 | X88: 173 | Y88: 178 | Z88: 181 | AA88: 173 | AB88: 169 | AC88: 165 | AD88: 831 | AE88: 907 | AF88: 895 | AG88: 818 | AH88: 855 | AI88: 813 | AJ88: 709 | AK88: 590 | AL88: 466 | AM88: 389 | AN88: 330 | AO88: 258 | AP88: 158 | AQ88: 145 | AR88: 9 | AS88: 57 | AT88: 56 | AU88: 120 | AV88: 5,832 | AW88: 421 | AX88: 441 | AY88: 2,602 | AZ88: 177 | BC88: 11,377 | BD88: 1,841 | BE88: 1,038 | BF88: 2,071 | BG88: 4,679 | BH88: 1,748
F89: 1313 | G89: CENTRO DE SALUD NUEVA ALBORADA | H89: 8 | I89: 11,377 | J89: 113 | K89: 123 | L89: 131 | M89: 137 | N89: 128 | O89: 143 | P89: 184 | Q89: 190 | R89: 184 | S89: 173 | T89: 168 | U89: 169 | V89: 170 | W89: 162 | X89: 173 | Y89: 178 | Z89: 181 | AA89: 173 | AB89: 169 | AC89: 165 | AD89: 831 | AE89: 907 | AF89: 895 | AG89: 818 | AH89: 855 | AI89: 813 | AJ89: 709 | AK89: 590 | AL89: 466 | AM89: 389 | AN89: 330 | AO89: 258 | AP89: 158 | AQ89: 145 | AR89: 9 | AS89: 57 | AT89: 56 | AU89: 120 | AV89: 5,832 | AW89: 421 | AX89: 441 | AY89: 2,602 | AZ89: 177 | BC89: 11,377 | BD89: 1,841 | BE89: 1,038 | BF89: 2,071 | BG89: 4,679 | BH89: 1,748
F90: 1315 | G90: CENTRO DE SALUD CAMPO MARTE | H90: 7 | I90: 9,955 | J90: 99 | K90: 108 | L90: 115 | M90: 120 | N90: 112 | O90: 125 | P90: 161 | Q90: 166 | R90: 161 | S90: 151 | T90: 147 | U90: 148 | V90: 148 | W90: 142 | X90: 151 | Y90: 156 | Z90: 158 | AA90: 151 | AB90: 148 | AC90: 144 | AD90: 727 | AE90: 793 | AF90: 783 | AG90: 716 | AH90: 748 | AI90: 711 | AJ90: 620 | AK90: 516 | AL90: 408 | AM90: 341 | AN90: 289 | AO90: 226 | AP90: 138 | AQ90: 127 | AR90: 8 | AS90: 50 | AT90: 49 | AU90: 105 | AV90: 5,103 | AW90: 368 | AX90: 386 | AY90: 2,277 | AZ90: 155 | BC90: 9,955 | BD90: 1,611 | BE90: 908 | BF90: 1,812 | BG90: 4,094 | BH90: 1,529
F91: 1297 | G91: CENTRO DE SALUD CIUDAD BLANCA | H91: 10 | I91: 14,221 | J91: 141 | K91: 154 | L91: 164 | M91: 171 | N91: 159 | O91: 178 | P91: 229 | Q91: 237 | R91: 230 | S91: 216 | T91: 210 | U91: 211 | V91: 212 | W91: 203 | X91: 216 | Y91: 223 | Z91: 226 | AA91: 216 | AB91: 211 | AC91: 206 | AD91: 1,038 | AE91: 1,134 | AF91: 1,118 | AG91: 1,023 | AH91: 1,069 | AI91: 1,016 | AJ91: 886 | AK91: 737 | AL91: 583 | AM91: 487 | AN91: 412 | AO91: 323 | AP91: 198 | AQ91: 182 | AR91: 12 | AS91: 71 | AT91: 71 | AU91: 150 | AV91: 7,290 | AW91: 526 | AX91: 551 | AY91: 3,252 | AZ91: 221 | BC91: 14,221 | BD91: 2,302 | BE91: 1,297 | BF91: 2,589 | BG91: 5,849 | BH91: 2,184
F92: 1314 | G92: SAN JUAN DE CIUDAD BLANCA | H92: 8 | I92: 11,377 | J92: 113 | K92: 123 | L92: 131 | M92: 137 | N92: 128 | O92: 143 | P92: 184 | Q92: 190 | R92: 184 | S92: 173 | T92: 168 | U92: 169 | V92: 170 | W92: 162 | X92: 173 | Y92: 178 | Z92: 181 | AA92: 173 | AB92: 169 | AC92: 165 | AD92: 831 | AE92: 907 | AF92: 895 | AG92: 818 | AH92: 855 | AI92: 813 | AJ92: 709 | AK92: 590 | AL92: 466 | AM92: 389 | AN92: 330 | AO92: 258 | AP92: 158 | AQ92: 145 | AR92: 9 | AS92: 57 | AT92: 56 | AU92: 120 | AV92: 5,832 | AW92: 421 | AX92: 441 | AY92: 2,602 | AZ92: 177 | BC92: 11,377 | BD92: 1,841 | BE92: 1,038 | BF92: 2,071 | BG92: 4,679 | BH92: 1,748
F93: 1311 | G93: ALTO JESUS | H93: 4 | I93: 5,689 | J93: 57 | K93: 61 | L93: 66 | M93: 68 | N93: 64 | O93: 71 | P93: 92 | Q93: 95 | R93: 92 | S93: 87 | T93: 84 | U93: 84 | V93: 85 | W93: 81 | X93: 87 | Y93: 89 | Z93: 91 | AA93: 86 | AB93: 85 | AC93: 82 | AD93: 415 | AE93: 453 | AF93: 447 | AG93: 409 | AH93: 428 | AI93: 407 | AJ93: 354 | AK93: 295 | AL93: 233 | AM93: 195 | AN93: 165 | AO93: 129 | AP93: 79 | AQ93: 73 | AR93: 5 | AS93: 28 | AT93: 28 | AU93: 60 | AV93: 2,916 | AW93: 210 | AX93: 220 | AY93: 1,301 | AZ93: 88 | BC93: 5,689 | BD93: 921 | BE93: 519 | BF93: 1,036 | BG93: 2,340 | BH93: 874
F94: 1312 | G94: ISRAEL | H94: 6 | I94: 8,533 | J94: 85 | K94: 92 | L94: 98 | M94: 102 | N94: 96 | O94: 107 | P94: 138 | Q94: 142 | R94: 138 | S94: 130 | T94: 126 | U94: 127 | V94: 127 | W94: 122 | X94: 130 | Y94: 134 | Z94: 136 | AA94: 130 | AB94: 127 | AC94: 124 | AD94: 623 | AE94: 680 | AF94: 671 | AG94: 614 | AH94: 641 | AI94: 610 | AJ94: 532 | AK94: 442 | AL94: 350 | AM94: 292 | AN94: 247 | AO94: 194 | AP94: 119 | AQ94: 109 | AR94: 7 | AS94: 42 | AT94: 42 | AU94: 90 | AV94: 4,374 | AW94: 315 | AX94: 331 | AY94: 1,951 | AZ94: 133 | BC94: 8,533 | BD94: 1,381 | BE94: 778 | BF94: 1,554 | BG94: 3,509 | BH94: 1,311
F95: 7744 | G95: P.S. VILLA JESUS | H95: 5.5 | I95: 7,822 | J95: 78 | K95: 85 | L95: 90 | M95: 94 | N95: 88 | O95: 98 | P95: 126 | Q95: 130 | R95: 127 | S95: 119 | T95: 116 | U95: 116 | V95: 117 | W95: 112 | X95: 119 | Y95: 123 | Z95: 125 | AA95: 119 | AB95: 116 | AC95: 113 | AD95: 571 | AE95: 623 | AF95: 615 | AG95: 562 | AH95: 588 | AI95: 559 | AJ95: 487 | AK95: 405 | AL95: 321 | AM95: 268 | AN95: 227 | AO95: 178 | AP95: 109 | AQ95: 100 | AR95: 6 | AS95: 39 | AT95: 39 | AU95: 82 | AV95: 4,009 | AW95: 289 | AX95: 303 | AY95: 1,789 | AZ95: 122 | BC95: 7,822 | BD95: 1,266 | BE95: 713 | BF95: 1,424 | BG95: 3,217 | BH95: 1,201
A96: 040113 | B96: AREQUIPA | C96: AREQUIPA | D96: AREQUIPA | E96: POCSI | I96: 519 | J96: 8 | K96: 6 | L96: 4 | M96: 5 | N96: 2 | O96: 9 | P96: 2 | Q96: 2 | R96: 2 | S96: 2 | T96: 2 | U96: 2 | V96: 4 | W96: 4 | X96: 3 | Y96: 3 | Z96: 3 | AA96: 3 | AB96: 5 | AC96: 5 | AD96: 25 | AE96: 41 | AF96: 45 | AG96: 33 | AH96: 39 | AI96: 42 | AJ96: 39 | AK96: 38 | AL96: 35 | AM96: 27 | AN96: 24 | AO96: 19 | AP96: 21 | AQ96: 15 | AR96: 1 | AS96: 2 | AT96: 6 | AU96: 8 | AV96: 270 | AW96: 7 | AX96: 7 | AY96: 117 | AZ96: 12 | BC96: 519 | BD96: 46 | BE96: 20 | BF96: 76 | BG96: 236 | BH96: 141
F97: 1288 | G97: PUESTO DE SALUD POCSI | H97: 56 | I97: 291 | J97: 4 | K97: 3 | L97: 2 | M97: 3 | N97: 1 | O97: 5 | P97: 1 | Q97: 1 | R97: 1 | S97: 1 | T97: 1 | U97: 1 | V97: 2 | W97: 2 | X97: 2 | Y97: 2 | Z97: 2 | AA97: 2 | AB97: 3 | AC97: 3 | AD97: 14 | AE97: 23 | AF97: 25 | AG97: 18 | AH97: 22 | AI97: 24 | AJ97: 22 | AK97: 21 | AL97: 20 | AM97: 15 | AN97: 13 | AO97: 11 | AP97: 12 | AQ97: 8 | AR97: 1 | AS97: 1 | AT97: 3 | AU97: 4 | AV97: 151 | AW97: 4 | AX97: 4 | AY97: 66 | AZ97: 7 | BC97: 291 | BD97: 26 | BE97: 11 | BF97: 43 | BG97: 132 | BH97: 79
F98: 1289 | G98: PUESTO DE SALUD PIACA | H98: 44 | I98: 228 | J98: 4 | K98: 3 | L98: 2 | M98: 2 | N98: 1 | O98: 4 | P98: 1 | Q98: 1 | R98: 1 | S98: 1 | T98: 1 | U98: 1 | V98: 2 | W98: 2 | X98: 1 | Y98: 1 | Z98: 1 | AA98: 1 | AB98: 2 | AC98: 2 | AD98: 11 | AE98: 18 | AF98: 20 | AG98: 15 | AH98: 17 | AI98: 18 | AJ98: 17 | AK98: 17 | AL98: 15 | AM98: 12 | AN98: 11 | AO98: 8 | AP98: 9 | AQ98: 7 | AR98: 0 | AS98: 1 | AT98: 3 | AU98: 4 | AV98: 119 | AW98: 3 | AX98: 3 | AY98: 51 | AZ98: 5 | BC98: 228 | BD98: 20 | BE98: 9 | BF98: 33 | BG98: 104 | BH98: 62
A99: 040114 | B99: AREQUIPA | C99: AREQUIPA | D99: AREQUIPA | E99: POLOBAYA | I99: 879 | J99: 9 | K99: 14 | L99: 5 | M99: 12 | N99: 12 | O99: 18 | P99: 3 | Q99: 5 | R99: 6 | S99: 7 | T99: 6 | U99: 8 | V99: 13 | W99: 8 | X99: 7 | Y99: 7 | Z99: 8 | AA99: 5 | AB99: 7 | AC99: 19 | AD99: 54 | AE99: 64 | AF99: 66 | AG99: 55 | AH99: 54 | AI99: 51 | AJ99: 54 | AK99: 73 | AL99: 66 | AM99: 56 | AN99: 43 | AO99: 20 | AP99: 22 | AQ99: 22 | AR99: 0 | AS99: 4 | AT99: 5 | AU99: 9 | AV99: 452 | AW99: 20 | AX99: 22 | AY99: 179 | AZ99: 31 | BC99: 879 | BD99: 105 | BE99: 48 | BF99: 144 | BG99: 353 | BH99: 229
F100: 1262 | G100: PUESTO DE SALUD POLOBAYA | H100: 100 | I100: 879 | J100: 9 | K100: 14 | L100: 5 | M100: 12 | N100: 12 | O100: 18 | P100: 3 | Q100: 5 | R100: 6 | S100: 7 | T100: 6 | U100: 8 | V100: 13 | W100: 8 | X100: 7 | Y100: 7 | Z100: 8 | AA100: 5 | AB100: 7 | AC100: 19 | AD100: 54 | AE100: 64 | AF100: 66 | AG100: 55 | AH100: 54 | AI100: 51 | AJ100: 54 | AK100: 73 | AL100: 66 | AM100: 56 | AN100: 43 | AO100: 20 | AP100: 22 | AQ100: 22 | AR100: 0 | AS100: 4 | AT100: 5 | AU100: 9 | AV100: 452 | AW100: 20 | AX100: 22 | AY100: 179 | AZ100: 31 | BC100: 879 | BD100: 105 | BE100: 48 | BF100: 144 | BG100: 353 | BH100: 229
A101: 040115 | B101: AREQUIPA | C101: AREQUIPA | D101: AREQUIPA | E101: QUEQUEÑA | I101: 8,714 | J101: 33 | K101: 31 | L101: 34 | M101: 43 | N101: 53 | O101: 43 | P101: 113 | Q101: 110 | R101: 67 | S101: 95 | T101: 88 | U101: 95 | V101: 111 | W101: 68 | X101: 81 | Y101: 104 | Z101: 94 | AA101: 97 | AB101: 119 | AC101: 91 | AD101: 401 | AE101: 586 | AF101: 843 | AG101: 906 | AH101: 727 | AI101: 709 | AJ101: 679 | AK101: 593 | AL101: 541 | AM101: 361 | AN101: 288 | AO101: 238 | AP101: 137 | AQ101: 135 | AR101: 1 | AS101: 14 | AT101: 19 | AU101: 35 | AV101: 4,314 | AW101: 207 | AX101: 251 | AY101: 2,166 | AZ101: 65 | BC101: 8,714 | BD101: 805 | BE101: 555 | BF101: 1,197 | BG101: 4,457 | BH101: 1,700
F102: 1286 | G102: PUESTO DE SALUD QUEQUEÑA | H102: 100 | I102: 8,714 | J102: 33 | K102: 31 | L102: 34 | M102: 43 | N102: 53 | O102: 43 | P102: 113 | Q102: 110 | R102: 67 | S102: 95 | T102: 88 | U102: 95 | V102: 111 | W102: 68 | X102: 81 | Y102: 104 | Z102: 94 | AA102: 97 | AB102: 119 | AC102: 91 | AD102: 401 | AE102: 586 | AF102: 843 | AG102: 906 | AH102: 727 | AI102: 709 | AJ102: 679 | AK102: 593 | AL102: 541 | AM102: 361 | AN102: 288 | AO102: 238 | AP102: 137 | AQ102: 135 | AR102: 1 | AS102: 14 | AT102: 19 | AU102: 35 | AV102: 4,314 | AW102: 207 | AX102: 251 | AY102: 2,166 | AZ102: 65 | BC102: 8,714 | BD102: 805 | BE102: 555 | BF102: 1,197 | BG102: 4,457 | BH102: 1,700
A103: 040116 | B103: AREQUIPA | C103: AREQUIPA | D103: AREQUIPA | E103: SABANDIA | I103: 5,167 | J103: 49 | K103: 56 | L103: 68 | M103: 61 | N103: 98 | O103: 93 | P103: 76 | Q103: 72 | R103: 89 | S103: 63 | T103: 61 | U103: 70 | V103: 74 | W103: 64 | X103: 68 | Y103: 75 | Z103: 70 | AA103: 64 | AB103: 67 | AC103: 61 | AD103: 344 | AE103: 403 | AF103: 369 | AG103: 403 | AH103: 388 | AI103: 366 | AJ103: 309 | AK103: 266 | AL103: 220 | AM103: 194 | AN103: 190 | AO103: 131 | AP103: 104 | AQ103: 81 | AR103: 1 | AS103: 20 | AT103: 29 | AU103: 52 | AV103: 2,634 | AW103: 167 | AX103: 170 | AY103: 1,168 | AZ103: 61 | BC103: 5,167 | BD103: 856 | BE103: 415 | BF103: 875 | BG103: 2,101 | BH103: 920
F104: 1284 | G104: PUESTO DE SALUD LEOPOLDO RONDON - SABANDIA | H104: 100 | I104: 5,167 | J104: 49 | K104: 56 | L104: 68 | M104: 61 | N104: 98 | O104: 93 | P104: 76 | Q104: 72 | R104: 89 | S104: 63 | T104: 61 | U104: 70 | V104: 74 | W104: 64 | X104: 68 | Y104: 75 | Z104: 70 | AA104: 64 | AB104: 67 | AC104: 61 | AD104: 344 | AE104: 403 | AF104: 369 | AG104: 403 | AH104: 388 | AI104: 366 | AJ104: 309 | AK104: 266 | AL104: 220 | AM104: 194 | AN104: 190 | AO104: 131 | AP104: 104 | AQ104: 81 | AR104: 1 | AS104: 20 | AT104: 29 | AU104: 52 | AV104: 2,634 | AW104: 167 | AX104: 170 | AY104: 1,168 | AZ104: 61 | BC104: 5,167 | BD104: 856 | BE104: 415 | BF104: 875 | BG104: 2,101 | BH104: 920
A105: 040117 | B105: AREQUIPA | C105: AREQUIPA | D105: AREQUIPA | E105: SACHACA | I105: 31,356 | J105: 329 | K105: 311 | L105: 337 | M105: 342 | N105: 361 | O105: 440 | P105: 508 | Q105: 525 | R105: 499 | S105: 465 | T105: 379 | U105: 446 | V105: 466 | W105: 470 | X105: 450 | Y105: 479 | Z105: 456 | AA105: 478 | AB105: 453 | AC105: 450 | AD105: 2,298 | AE105: 2,323 | AF105: 2,420 | AG105: 2,189 | AH105: 2,283 | AI105: 2,135 | AJ105: 1,859 | AK105: 1,708 | AL105: 1,479 | AM105: 1,302 | AN105: 1,045 | AO105: 759 | AP105: 463 | AQ105: 449 | AR105: 23 | AS105: 166 | AT105: 163 | AU105: 348 | AV105: 15,963 | AW105: 1,073 | AX105: 1,169 | AY105: 6,894 | AZ105: 700 | BC105: 31,356 | BD105: 4,942 | BE105: 2,799 | BF105: 5,524 | BG105: 12,594 | BH105: 5,497
F106: 1282 | G106: PUESTO DE SALUD SACHACA | H106: 65 | I106: 20,381 | J106: 214 | K106: 202 | L106: 219 | M106: 222 | N106: 235 | O106: 286 | P106: 330 | Q106: 341 | R106: 324 | S106: 302 | T106: 246 | U106: 290 | V106: 303 | W106: 305 | X106: 292 | Y106: 311 | Z106: 296 | AA106: 311 | AB106: 294 | AC106: 292 | AD106: 1,494 | AE106: 1,510 | AF106: 1,573 | AG106: 1,423 | AH106: 1,484 | AI106: 1,388 | AJ106: 1,208 | AK106: 1,110 | AL106: 961 | AM106: 846 | AN106: 679 | AO106: 493 | AP106: 301 | AQ106: 292 | AR106: 15 | AS106: 108 | AT106: 106 | AU106: 226 | AV106: 10,376 | AW106: 697 | AX106: 760 | AY106: 4,481 | AZ106: 455 | BC106: 20,381 | BD106: 3,212 | BE106: 1,819 | BF106: 3,591 | BG106: 8,186 | BH106: 3,573
F107: 1283 | G107: PUESTO DE SALUD PAMPA DE CAMARONES | H107: 35 | I107: 10,975 | J107: 115 | K107: 109 | L107: 118 | M107: 120 | N107: 126 | O107: 154 | P107: 178 | Q107: 184 | R107: 175 | S107: 163 | T107: 133 | U107: 156 | V107: 163 | W107: 165 | X107: 158 | Y107: 168 | Z107: 160 | AA107: 167 | AB107: 159 | AC107: 158 | AD107: 804 | AE107: 813 | AF107: 847 | AG107: 766 | AH107: 799 | AI107: 747 | AJ107: 651 | AK107: 598 | AL107: 518 | AM107: 456 | AN107: 366 | AO107: 266 | AP107: 162 | AQ107: 157 | AR107: 8 | AS107: 58 | AT107: 57 | AU107: 122 | AV107: 5,587 | AW107: 376 | AX107: 409 | AY107: 2,413 | AZ107: 245 | BC107: 10,975 | BD107: 1,730 | BE107: 980 | BF107: 1,933 | BG107: 4,408 | BH107: 1,924
A108: 040118 | B108: AREQUIPA | C108: AREQUIPA | D108: AREQUIPA | E108: SAN JUAN DE SIGUAS | I108: 593 | J108: 4 | K108: 5 | L108: 4 | M108: 10 | N108: 11 | O108: 9 | P108: 4 | Q108: 7 | R108: 4 | S108: 6 | T108: 9 | U108: 9 | V108: 9 | W108: 3 | X108: 3 | Y108: 3 | Z108: 11 | AA108: 5 | AB108: 7 | AC108: 6 | AD108: 40 | AE108: 43 | AF108: 47 | AG108: 36 | AH108: 43 | AI108: 33 | AJ108: 47 | AK108: 46 | AL108: 36 | AM108: 37 | AN108: 24 | AO108: 14 | AP108: 7 | AQ108: 11 | AR108: 0 | AS108: 2 | AT108: 2 | AU108: 4 | AV108: 333 | AW108: 22 | AX108: 18 | AY108: 135 | AZ108: 9 | BC108: 593 | BD108: 82 | BE108: 34 | BF108: 96 | BG108: 252 | BH108: 129
F109: 1339 | G109: PUESTO DE SALUD SAN JUAN DE SIGUAS - TAMBILLO | H109: 100 | I109: 593 | J109: 4 | K109: 5 | L109: 4 | M109: 10 | N109: 11 | O109: 9 | P109: 4 | Q109: 7 | R109: 4 | S109: 6 | T109: 9 | U109: 9 | V109: 9 | W109: 3 | X109: 3 | Y109: 3 | Z109: 11 | AA109: 5 | AB109: 7 | AC109: 6 | AD109: 40 | AE109: 43 | AF109: 47 | AG109: 36 | AH109: 43 | AI109: 33 | AJ109: 47 | AK109: 46 | AL109: 36 | AM109: 37 | AN109: 24 | AO109: 14 | AP109: 7 | AQ109: 11 | AR109: 0 | AS109: 2 | AT109: 2 | AU109: 4 | AV109: 333 | AW109: 22 | AX109: 18 | AY109: 135 | AZ109: 9 | BC109: 593 | BD109: 82 | BE109: 34 | BF109: 96 | BG109: 252 | BH109: 129
A110: 040119 | B110: AREQUIPA | C110: AREQUIPA | D110: AREQUIPA | E110: SAN JUAN DE TARUCANI | I110: 1,363 | J110: 14 | K110: 16 | L110: 16 | M110: 27 | N110: 17 | O110: 27 | P110: 7 | Q110: 10 | R110: 9 | S110: 9 | T110: 10 | U110: 6 | V110: 6 | W110: 21 | X110: 6 | Y110: 17 | Z110: 9 | AA110: 15 | AB110: 13 | AC110: 13 | AD110: 69 | AE110: 98 | AF110: 97 | AG110: 108 | AH110: 128 | AI110: 104 | AJ110: 96 | AK110: 106 | AL110: 82 | AM110: 64 | AN110: 47 | AO110: 35 | AP110: 31 | AQ110: 30 | AR110: 2 | AS110: 5 | AT110: 9 | AU110: 15 | AV110: 715 | AW110: 23 | AX110: 34 | AY110: 337 | AZ110: 20 | BC110: 1,363 | BD110: 168 | BE110: 74 | BF110: 193 | BG110: 639 | BH110: 289
F111: 1319 | G111: PUESTO DE SALUD SAN JUAN DE TARUCANI | H111: 80 | I111: 1,090 | J111: 11 | K111: 13 | L111: 13 | M111: 22 | N111: 14 | O111: 22 | P111: 6 | Q111: 8 | R111: 7 | S111: 7 | T111: 8 | U111: 5 | V111: 5 | W111: 17 | X111: 5 | Y111: 14 | Z111: 7 | AA111: 12 | AB111: 10 | AC111: 10 | AD111: 55 | AE111: 78 | AF111: 78 | AG111: 86 | AH111: 102 | AI111: 83 | AJ111: 77 | AK111: 85 | AL111: 66 | AM111: 51 | AN111: 38 | AO111: 28 | AP111: 25 | AQ111: 24 | AR111: 2 | AS111: 4 | AT111: 7 | AU111: 12 | AV111: 572 | AW111: 18 | AX111: 27 | AY111: 270 | AZ111: 16 | BC111: 1,090 | BD111: 134 | BE111: 59 | BF111: 154 | BG111: 511 | BH111: 231
F112: 1321 | G112: PUESTO DE SALUD SALINAS HUITO | H112: 20 | I112: 273 | J112: 3 | K112: 3 | L112: 3 | M112: 5 | N112: 3 | O112: 5 | P112: 1 | Q112: 2 | R112: 2 | S112: 2 | T112: 2 | U112: 1 | V112: 1 | W112: 4 | X112: 1 | Y112: 3 | Z112: 2 | AA112: 3 | AB112: 3 | AC112: 3 | AD112: 14 | AE112: 20 | AF112: 19 | AG112: 22 | AH112: 26 | AI112: 21 | AJ112: 19 | AK112: 21 | AL112: 16 | AM112: 13 | AN112: 9 | AO112: 7 | AP112: 6 | AQ112: 6 | AR112: 0 | AS112: 1 | AT112: 2 | AU112: 3 | AV112: 143 | AW112: 5 | AX112: 7 | AY112: 67 | AZ112: 4 | BC112: 273 | BD112: 34 | BE112: 15 | BF112: 39 | BG112: 128 | BH112: 58
A113: 040120 | B113: AREQUIPA | C113: AREQUIPA | D113: AREQUIPA | E113: SANTA ISABEL DE SIGUAS | I113: 705 | J113: 6 | K113: 9 | L113: 2 | M113: 6 | N113: 4 | O113: 13 | P113: 10 | Q113: 11 | R113: 9 | S113: 6 | T113: 10 | U113: 10 | V113: 9 | W113: 12 | X113: 2 | Y113: 10 | Z113: 10 | AA113: 15 | AB113: 6 | AC113: 9 | AD113: 52 | AE113: 48 | AF113: 53 | AG113: 35 | AH113: 37 | AI113: 46 | AJ113: 52 | AK113: 46 | AL113: 46 | AM113: 38 | AN113: 26 | AO113: 23 | AP113: 18 | AQ113: 16 | AR113: 0 | AS113: 6 | AT113: 0 | AU113: 6 | AV113: 379 | AW113: 29 | AX113: 25 | AY113: 147 | AZ113: 7 | BC113: 705 | BD113: 96 | BE113: 58 | BF113: 115 | BG113: 269 | BH113: 167
F114: 1336 | G114: SANTA ISABEL DE SIGUAS | H114: 74 | I114: 521 | J114: 4 | K114: 7 | L114: 2 | M114: 4 | N114: 2 | O114: 9 | P114: 8 | Q114: 9 | R114: 7 | S114: 4 | T114: 8 | U114: 8 | V114: 7 | W114: 8 | X114: 2 | Y114: 8 | Z114: 8 | AA114: 11 | AB114: 4 | AC114: 7 | AD114: 38 | AE114: 36 | AF114: 39 | AG114: 25 | AH114: 27 | AI114: 34 | AJ114: 38 | AK114: 34 | AL114: 34 | AM114: 28 | AN114: 20 | AO114: 17 | AP114: 14 | AQ114: 12 | AR114: 0 | AS114: 4 | AT114: 0 | AU114: 4 | AV114: 281 | AW114: 21 | AX114: 19 | AY114: 109 | AZ114: 5 | BC114: 521 | BD114: 72 | BE114: 42 | BF114: 85 | BG114: 199 | BH114: 123
F115: 1378 | G115: PUESTO DE SALUD SONDOR | H115: 13 | I115: 92 | J115: 1 | K115: 1 | L115: 0 | M115: 1 | N115: 1 | O115: 2 | P115: 1 | Q115: 1 | R115: 1 | S115: 1 | T115: 1 | U115: 1 | V115: 1 | W115: 2 | X115: 0 | Y115: 1 | Z115: 1 | AA115: 2 | AB115: 1 | AC115: 1 | AD115: 7 | AE115: 6 | AF115: 7 | AG115: 5 | AH115: 5 | AI115: 6 | AJ115: 7 | AK115: 6 | AL115: 6 | AM115: 5 | AN115: 3 | AO115: 3 | AP115: 2 | AQ115: 2 | AR115: 0 | AS115: 1 | AT115: 0 | AU115: 1 | AV115: 49 | AW115: 4 | AX115: 3 | AY115: 19 | AZ115: 1 | BC115: 92 | BD115: 12 | BE115: 8 | BF115: 15 | BG115: 35 | BH115: 22
F116: 1337 | G116: PUESTO DE SALUD PITAY | H116: 13 | I116: 92 | J116: 1 | K116: 1 | L116: 0 | M116: 1 | N116: 1 | O116: 2 | P116: 1 | Q116: 1 | R116: 1 | S116: 1 | T116: 1 | U116: 1 | V116: 1 | W116: 2 | X116: 0 | Y116: 1 | Z116: 1 | AA116: 2 | AB116: 1 | AC116: 1 | AD116: 7 | AE116: 6 | AF116: 7 | AG116: 5 | AH116: 5 | AI116: 6 | AJ116: 7 | AK116: 6 | AL116: 6 | AM116: 5 | AN116: 3 | AO116: 3 | AP116: 2 | AQ116: 2 | AR116: 0 | AS116: 1 | AT116: 0 | AU116: 1 | AV116: 49 | AW116: 4 | AX116: 3 | AY116: 19 | AZ116: 1 | BC116: 92 | BD116: 12 | BE116: 8 | BF116: 15 | BG116: 35 | BH116: 22
A117: 040121 | B117: AREQUIPA | C117: AREQUIPA | D117: AREQUIPA | E117: SANTA RITA DE SIGUAS | I117: 8,708 | J117: 83 | K117: 72 | L117: 89 | M117: 96 | N117: 111 | O117: 110 | P117: 165 | Q117: 176 | R117: 140 | S117: 139 | T117: 142 | U117: 138 | V117: 145 | W117: 147 | X117: 132 | Y117: 163 | Z117: 129 | AA117: 130 | AB117: 137 | AC117: 157 | AD117: 713 | AE117: 887 | AF117: 912 | AG117: 791 | AH117: 682 | AI117: 504 | AJ117: 395 | AK117: 385 | AL117: 314 | AM117: 177 | AN117: 147 | AO117: 97 | AP117: 58 | AQ117: 45 | AR117: 6 | AS117: 40 | AT117: 43 | AU117: 88 | AV117: 4,473 | AW117: 359 | AX117: 371 | AY117: 2,317 | AZ117: 155 | BC117: 8,708 | BD117: 1,461 | BE117: 846 | BF117: 1,894 | BG117: 3,669 | BH117: 838
F118: 1335 | G118: CENTRO DE SALUD SANTA RITA DE SIGUAS | H118: 100 | I118: 8,708 | J118: 83 | K118: 72 | L118: 89 | M118: 96 | N118: 111 | O118: 110 | P118: 165 | Q118: 176 | R118: 140 | S118: 139 | T118: 142 | U118: 138 | V118: 145 | W118: 147 | X118: 132 | Y118: 163 | Z118: 129 | AA118: 130 | AB118: 137 | AC118: 157 | AD118: 713 | AE118: 887 | AF118: 912 | AG118: 791 | AH118: 682 | AI118: 504 | AJ118: 395 | AK118: 385 | AL118: 314 | AM118: 177 | AN118: 147 | AO118: 97 | AP118: 58 | AQ118: 45 | AR118: 6 | AS118: 40 | AT118: 43 | AU118: 88 | AV118: 4,473 | AW118: 359 | AX118: 371 | AY118: 2,317 | AZ118: 155 | BC118: 8,708 | BD118: 1,461 | BE118: 846 | BF118: 1,894 | BG118: 3,669 | BH118: 838
A119: 040122 | B119: AREQUIPA | C119: AREQUIPA | D119: AREQUIPA | E119: SOCABAYA | I119: 91,133 | J119: 722 | K119: 680 | L119: 728 | M119: 649 | N119: 766 | O119: 946 | P119: 1,400 | Q119: 1,467 | R119: 1,472 | S119: 1,476 | T119: 1,247 | U119: 1,386 | V119: 1,366 | W119: 1,404 | X119: 1,281 | Y119: 1,393 | Z119: 1,500 | AA119: 1,395 | AB119: 1,449 | AC119: 1,419 | AD119: 7,238 | AE119: 7,799 | AF119: 7,445 | AG119: 6,681 | AH119: 6,788 | AI119: 6,350 | AJ119: 5,375 | AK119: 4,965 | AL119: 4,280 | AM119: 3,579 | AN119: 2,610 | AO119: 1,828 | AP119: 1,052 | AQ119: 997 | AR119: 55 | AS119: 382 | AT119: 340 | AU119: 766 | AV119: 46,099 | AW119: 3,376 | AX119: 3,535 | AY119: 21,293 | AZ119: 1,514 | BC119: 91,133 | BD119: 12,939 | BE119: 8,339 | BF119: 17,905 | BG119: 37,604 | BH119: 14,346
F120: 1258 | G120: CENTRO DE SALUD SAN MARTIN DE SOCABAYA | H120: 21 | I120: 19,138 | J120: 151 | K120: 142 | L120: 153 | M120: 136 | N120: 160 | O120: 199 | P120: 294 | Q120: 308 | R120: 309 | S120: 310 | T120: 261 | U120: 291 | V120: 286 | W120: 295 | X120: 269 | Y120: 292 | Z120: 315 | AA120: 293 | AB120: 304 | AC120: 298 | AD120: 1,520 | AE120: 1,637 | AF120: 1,564 | AG120: 1,403 | AH120: 1,425 | AI120: 1,333 | AJ120: 1,128 | AK120: 1,043 | AL120: 898 | AM120: 751 | AN120: 547 | AO120: 384 | AP120: 222 | AQ120: 208 | AR120: 11 | AS120: 81 | AT120: 72 | AU120: 160 | AV120: 9,680 | AW120: 709 | AX120: 742 | AY120: 4,471 | AZ120: 318 | BC120: 19,138 | BD120: 2,717 | BE120: 1,751 | BF120: 3,760 | BG120: 7,897 | BH120: 3,013
F121: 1269 | G121: PUESTO DE SALUD CIUDAD MI TRABAJO | H121: 16 | I121: 14,581 | J121: 116 | K121: 109 | L121: 116 | M121: 104 | N121: 123 | O121: 151 | P121: 224 | Q121: 235 | R121: 236 | S121: 236 | T121: 200 | U121: 222 | V121: 219 | W121: 225 | X121: 205 | Y121: 223 | Z121: 240 | AA121: 223 | AB121: 232 | AC121: 227 | AD121: 1,158 | AE121: 1,248 | AF121: 1,191 | AG121: 1,069 | AH121: 1,086 | AI121: 1,016 | AJ121: 860 | AK121: 794 | AL121: 685 | AM121: 573 | AN121: 418 | AO121: 292 | AP121: 168 | AQ121: 160 | AR121: 9 | AS121: 61 | AT121: 54 | AU121: 123 | AV121: 7,376 | AW121: 540 | AX121: 566 | AY121: 3,407 | AZ121: 242 | BC121: 14,581 | BD121: 2,070 | BE121: 1,334 | BF121: 2,865 | BG121: 6,017 | BH121: 2,295
F122: 1270 | G122: PUESTO DE SALUD LARA | H122: 16 | I122: 14,581 | J122: 116 | K122: 109 | L122: 116 | M122: 104 | N122: 123 | O122: 151 | P122: 224 | Q122: 235 | R122: 236 | S122: 236 | T122: 200 | U122: 222 | V122: 219 | W122: 225 | X122: 205 | Y122: 223 | Z122: 240 | AA122: 223 | AB122: 232 | AC122: 227 | AD122: 1,158 | AE122: 1,248 | AF122: 1,191 | AG122: 1,069 | AH122: 1,086 | AI122: 1,016 | AJ122: 860 | AK122: 794 | AL122: 685 | AM122: 573 | AN122: 418 | AO122: 292 | AP122: 168 | AQ122: 160 | AR122: 9 | AS122: 61 | AT122: 54 | AU122: 123 | AV122: 7,376 | AW122: 540 | AX122: 566 | AY122: 3,407 | AZ122: 242 | BC122: 14,581 | BD122: 2,070 | BE122: 1,334 | BF122: 2,865 | BG122: 6,017 | BH122: 2,295
F123: 1271 | G123: CENTRO DE SALUD SAN FERNANDO | H123: 6 | I123: 5,468 | J123: 43 | K123: 41 | L123: 44 | M123: 39 | N123: 46 | O123: 57 | P123: 84 | Q123: 88 | R123: 88 | S123: 89 | T123: 75 | U123: 83 | V123: 82 | W123: 84 | X123: 77 | Y123: 84 | Z123: 90 | AA123: 84 | AB123: 87 | AC123: 85 | AD123: 434 | AE123: 468 | AF123: 447 | AG123: 401 | AH123: 407 | AI123: 381 | AJ123: 323 | AK123: 298 | AL123: 257 | AM123: 215 | AN123: 157 | AO123: 110 | AP123: 63 | AQ123: 60 | AR123: 3 | AS123: 23 | AT123: 20 | AU123: 46 | AV123: 2,766 | AW123: 203 | AX123: 212 | AY123: 1,278 | AZ123: 91 | BC123: 5,468 | BD123: 776 | BE123: 500 | BF123: 1,074 | BG123: 2,256 | BH123: 861
F124: 1272 | G124: PUESTO DE SALUD SALAVERRY | H124: 12 | I124: 10,936 | J124: 87 | K124: 82 | L124: 87 | M124: 78 | N124: 92 | O124: 114 | P124: 168 | Q124: 176 | R124: 177 | S124: 177 | T124: 150 | U124: 166 | V124: 164 | W124: 168 | X124: 154 | Y124: 167 | Z124: 180 | AA124: 167 | AB124: 174 | AC124: 170 | AD124: 869 | AE124: 936 | AF124: 893 | AG124: 802 | AH124: 815 | AI124: 762 | AJ124: 645 | AK124: 596 | AL124: 514 | AM124: 429 | AN124: 313 | AO124: 219 | AP124: 126 | AQ124: 120 | AR124: 7 | AS124: 46 | AT124: 41 | AU124: 92 | AV124: 5,532 | AW124: 405 | AX124: 424 | AY124: 2,555 | AZ124: 182 | BC124: 10,936 | BD124: 1,553 | BE124: 1,001 | BF124: 2,149 | BG124: 4,512 | BH124: 1,722
F125: 1268 | G125: CENTRO DE SALUD 4 DE OCTUBRE | H125: 20 | I125: 18,227 | J125: 144 | K125: 136 | L125: 146 | M125: 130 | N125: 153 | O125: 189 | P125: 280 | Q125: 293 | R125: 294 | S125: 295 | T125: 249 | U125: 277 | V125: 273 | W125: 281 | X125: 256 | Y125: 279 | Z125: 300 | AA125: 279 | AB125: 290 | AC125: 284 | AD125: 1,448 | AE125: 1,560 | AF125: 1,489 | AG125: 1,336 | AH125: 1,358 | AI125: 1,270 | AJ125: 1,075 | AK125: 993 | AL125: 856 | AM125: 716 | AN125: 522 | AO125: 366 | AP125: 210 | AQ125: 199 | AR125: 11 | AS125: 76 | AT125: 68 | AU125: 153 | AV125: 9,220 | AW125: 675 | AX125: 707 | AY125: 4,259 | AZ125: 303 | BC125: 18,227 | BD125: 2,588 | BE125: 1,668 | BF125: 3,581 | BG125: 7,521 | BH125: 2,869
F126: 23338 | G126: PUESTO DE SALUD HORACIO ZEBALLOS GÁMEZ | H126: 9 | I126: 8,202 | J126: 65 | K126: 61 | L126: 66 | M126: 58 | N126: 69 | O126: 85 | P126: 126 | Q126: 132 | R126: 132 | S126: 133 | T126: 112 | U126: 125 | V126: 123 | W126: 126 | X126: 115 | Y126: 125 | Z126: 135 | AA126: 126 | AB126: 130 | AC126: 128 | AD126: 651 | AE126: 702 | AF126: 670 | AG126: 601 | AH126: 611 | AI126: 572 | AJ126: 484 | AK126: 447 | AL126: 385 | AM126: 322 | AN126: 235 | AO126: 165 | AP126: 95 | AQ126: 90 | AR126: 5 | AS126: 34 | AT126: 31 | AU126: 69 | AV126: 4,149 | AW126: 304 | AX126: 318 | AY126: 1,916 | AZ126: 136 | BC126: 8,202 | BD126: 1,165 | BE126: 751 | BF126: 1,611 | BG126: 3,384 | BH126: 1,291
A127: 040123 | B127: AREQUIPA | C127: AREQUIPA | D127: AREQUIPA | E127: TIABAYA | I127: 19,046 | J127: 233 | K127: 225 | L127: 266 | M127: 243 | N127: 229 | O127: 297 | P127: 293 | Q127: 358 | R127: 286 | S127: 278 | T127: 229 | U127: 258 | V127: 298 | W127: 245 | X127: 269 | Y127: 264 | Z127: 257 | AA127: 292 | AB127: 241 | AC127: 267 | AD127: 1,382 | AE127: 1,626 | AF127: 1,620 | AG127: 1,469 | AH127: 1,435 | AI127: 1,260 | AJ127: 1,050 | AK127: 995 | AL127: 813 | AM127: 645 | AN127: 526 | AO127: 398 | AP127: 245 | AQ127: 254 | AR127: 20 | AS127: 110 | AT127: 123 | AU127: 247 | AV127: 9,838 | AW127: 664 | AX127: 699 | AY127: 4,414 | AZ127: 435 | BC127: 19,046 | BD127: 3,195 | BE127: 1,625 | BF127: 3,516 | BG127: 7,829 | BH127: 2,881
F128: 1260 | G128: CENTRO DE SALUD TIABAYA | H128: 100 | I128: 19,046 | J128: 233 | K128: 225 | L128: 266 | M128: 243 | N128: 229 | O128: 297 | P128: 293 | Q128: 358 | R128: 286 | S128: 278 | T128: 229 | U128: 258 | V128: 298 | W128: 245 | X128: 269 | Y128: 264 | Z128: 257 | AA128: 292 | AB128: 241 | AC128: 267 | AD128: 1,382 | AE128: 1,626 | AF128: 1,620 | AG128: 1,469 | AH128: 1,435 | AI128: 1,260 | AJ128: 1,050 | AK128: 995 | AL128: 813 | AM128: 645 | AN128: 526 | AO128: 398 | AP128: 245 | AQ128: 254 | AR128: 20 | AS128: 110 | AT128: 123 | AU128: 247 | AV128: 9,838 | AW128: 664 | AX128: 699 | AY128: 4,414 | AZ128: 435 | BC128: 19,046 | BD128: 3,195 | BE128: 1,625 | BF128: 3,516 | BG128: 7,829 | BH128: 2,881
A129: 040124 | B129: AREQUIPA | C129: AREQUIPA | D129: AREQUIPA | E129: UCHUMAYO | I129: 18,741 | J129: 182 | K129: 203 | L129: 215 | M129: 229 | N129: 197 | O129: 252 | P129: 305 | Q129: 293 | R129: 276 | S129: 254 | T129: 248 | U129: 251 | V129: 286 | W129: 242 | X129: 230 | Y129: 258 | Z129: 260 | AA129: 249 | AB129: 266 | AC129: 251 | AD129: 1,212 | AE129: 1,631 | AF129: 1,660 | AG129: 1,627 | AH129: 1,608 | AI129: 1,361 | AJ129: 1,099 | AK129: 1,008 | AL129: 832 | AM129: 672 | AN129: 459 | AO129: 314 | AP129: 185 | AQ129: 126 | AR129: 8 | AS129: 73 | AT129: 109 | AU129: 193 | AV129: 9,878 | AW129: 690 | AX129: 691 | AY129: 4,667 | AZ129: 551 | BC129: 18,741 | BD129: 2,905 | BE129: 1,525 | BF129: 3,360 | BG129: 8,363 | BH129: 2,588
F130: 1280 | G130: CERRO VERDE | H130: 43.5 | I130: 8,153 | J130: 79 | K130: 89 | L130: 93 | M130: 99 | N130: 85 | O130: 109 | P130: 132 | Q130: 128 | R130: 120 | S130: 111 | T130: 108 | U130: 109 | V130: 125 | W130: 106 | X130: 100 | Y130: 112 | Z130: 113 | AA130: 109 | AB130: 115 | AC130: 109 | AD130: 527 | AE130: 710 | AF130: 722 | AG130: 707 | AH130: 700 | AI130: 592 | AJ130: 478 | AK130: 439 | AL130: 362 | AM130: 293 | AN130: 199 | AO130: 136 | AP130: 81 | AQ130: 55 | AR130: 4 | AS130: 32 | AT130: 48 | AU130: 84 | AV130: 4,297 | AW130: 300 | AX130: 300 | AY130: 2,030 | AZ130: 239 | BC130: 8,153 | BD130: 1,263 | BE130: 664 | BF130: 1,461 | BG130: 3,638 | BH130: 1,126
F131: 1281 | G131: CONGATA | H131: 43.5 | I131: 8,152 | J131: 79 | K131: 88 | L131: 94 | M131: 100 | N131: 86 | O131: 110 | P131: 133 | Q131: 127 | R131: 120 | S131: 110 | T131: 108 | U131: 109 | V131: 124 | W131: 105 | X131: 100 | Y131: 112 | Z131: 113 | AA131: 108 | AB131: 116 | AC131: 109 | AD131: 527 | AE131: 709 | AF131: 722 | AG131: 708 | AH131: 699 | AI131: 592 | AJ131: 478 | AK131: 438 | AL131: 362 | AM131: 292 | AN131: 200 | AO131: 137 | AP131: 80 | AQ131: 55 | AR131: 3 | AS131: 32 | AT131: 47 | AU131: 84 | AV131: 4,297 | AW131: 300 | AX131: 301 | AY131: 2,030 | AZ131: 240 | BC131: 8,152 | BD131: 1,264 | BE131: 663 | BF131: 1,462 | BG131: 3,638 | BH131: 1,126
F132: 1290 | G132: UCHUMAYO | H132: 13 | I132: 2,436 | J132: 24 | K132: 26 | L132: 28 | M132: 30 | N132: 26 | O132: 33 | P132: 40 | Q132: 38 | R132: 36 | S132: 33 | T132: 32 | U132: 33 | V132: 37 | W132: 31 | X132: 30 | Y132: 34 | Z132: 34 | AA132: 32 | AB132: 35 | AC132: 33 | AD132: 158 | AE132: 212 | AF132: 216 | AG132: 212 | AH132: 209 | AI132: 177 | AJ132: 143 | AK132: 131 | AL132: 108 | AM132: 87 | AN132: 60 | AO132: 41 | AP132: 24 | AQ132: 16 | AR132: 1 | AS132: 9 | AT132: 14 | AU132: 25 | AV132: 1,284 | AW132: 90 | AX132: 90 | AY132: 607 | AZ132: 72 | BC132: 2,436 | BD132: 378 | BE132: 198 | BF132: 437 | BG132: 1,087 | BH132: 336
A133: 040125 | B133: AREQUIPA | C133: AREQUIPA | D133: AREQUIPA | E133: VITOR | I133: 5,439 | J133: 41 | K133: 35 | L133: 49 | M133: 36 | N133: 38 | O133: 36 | P133: 60 | Q133: 87 | R133: 70 | S133: 73 | T133: 62 | U133: 67 | V133: 72 | W133: 97 | X133: 77 | Y133: 97 | Z133: 92 | AA133: 103 | AB133: 98 | AC133: 93 | AD133: 420 | AE133: 464 | AF133: 434 | AG133: 419 | AH133: 384 | AI133: 332 | AJ133: 306 | AK133: 329 | AL133: 289 | AM133: 235 | AN133: 175 | AO133: 105 | AP133: 83 | AQ133: 81 | AR133: 3 | AS133: 21 | AT133: 20 | AU133: 43 | AV133: 2,820 | AW133: 207 | AX133: 260 | AY133: 1,307 | AZ133: 101 | BC133: 5,439 | BD133: 654 | BE133: 538 | BF133: 1,075 | BG133: 2,204 | BH133: 968
F134: 1324 | G134: CENTRO DE SALUD VITOR | H134: 80 | I134: 4,351 | J134: 33 | K134: 28 | L134: 39 | M134: 29 | N134: 30 | O134: 29 | P134: 48 | Q134: 70 | R134: 56 | S134: 58 | T134: 50 | U134: 54 | V134: 58 | W134: 78 | X134: 62 | Y134: 78 | Z134: 74 | AA134: 82 | AB134: 78 | AC134: 74 | AD134: 336 | AE134: 371 | AF134: 347 | AG134: 335 | AH134: 307 | AI134: 266 | AJ134: 245 | AK134: 263 | AL134: 231 | AM134: 188 | AN134: 140 | AO134: 84 | AP134: 66 | AQ134: 65 | AR134: 2 | AS134: 17 | AT134: 16 | AU134: 34 | AV134: 2,256 | AW134: 166 | AX134: 208 | AY134: 1,046 | AZ134: 81 | BC134: 4,351 | BD134: 523 | BE134: 430 | BF134: 860 | BG134: 1,763 | BH134: 774
F135: 1334 | G135: PUESTO DE SALUD YURAMAYO | H135: 20 | I135: 1,088 | J135: 8 | K135: 7 | L135: 10 | M135: 7 | N135: 8 | O135: 7 | P135: 12 | Q135: 17 | R135: 14 | S135: 15 | T135: 12 | U135: 13 | V135: 14 | W135: 19 | X135: 15 | Y135: 19 | Z135: 18 | AA135: 21 | AB135: 20 | AC135: 19 | AD135: 84 | AE135: 93 | AF135: 87 | AG135: 84 | AH135: 77 | AI135: 66 | AJ135: 61 | AK135: 66 | AL135: 58 | AM135: 47 | AN135: 35 | AO135: 21 | AP135: 17 | AQ135: 16 | AR135: 1 | AS135: 4 | AT135: 4 | AU135: 9 | AV135: 564 | AW135: 41 | AX135: 52 | AY135: 261 | AZ135: 20 | BC135: 1,088 | BD135: 131 | BE135: 108 | BF135: 215 | BG135: 441 | BH135: 194
A136: 040126 | B136: AREQUIPA | C136: AREQUIPA | D136: AREQUIPA | E136: YANAHUARA | I136: 30,442 | J136: 320 | K136: 286 | L136: 181 | M136: 228 | N136: 304 | O136: 417 | P136: 386 | Q136: 369 | R136: 403 | S136: 417 | T136: 366 | U136: 331 | V136: 352 | W136: 342 | X136: 340 | Y136: 331 | Z136: 365 | AA136: 328 | AB136: 360 | AC136: 369 | AD136: 1,676 | AE136: 1,923 | AF136: 2,069 | AG136: 1,938 | AH136: 2,067 | AI136: 2,197 | AJ136: 2,067 | AK136: 1,998 | AL136: 1,911 | AM136: 1,633 | AN136: 1,439 | AO136: 1,105 | AP136: 760 | AQ136: 864 | AR136: 22 | AS136: 165 | AT136: 155 | AU136: 339 | AV136: 15,020 | AW136: 752 | AX136: 767 | AY136: 5,869 | AZ136: 576 | BC136: 30,442 | BD136: 4,008 | BE136: 2,058 | BF136: 4,328 | BG136: 12,336 | BH136: 7,712
F137: 1233 | G137: CENTRO DE SALUD YANAHUARA | H137: 38 | I137: 11,568 | J137: 122 | K137: 109 | L137: 69 | M137: 87 | N137: 116 | O137: 158 | P137: 147 | Q137: 140 | R137: 153 | S137: 158 | T137: 139 | U137: 126 | V137: 134 | W137: 130 | X137: 129 | Y137: 126 | Z137: 139 | AA137: 125 | AB137: 137 | AC137: 140 | AD137: 637 | AE137: 731 | AF137: 786 | AG137: 736 | AH137: 785 | AI137: 835 | AJ137: 785 | AK137: 759 | AL137: 726 | AM137: 621 | AN137: 547 | AO137: 420 | AP137: 289 | AQ137: 328 | AR137: 8 | AS137: 63 | AT137: 59 | AU137: 129 | AV137: 5,708 | AW137: 286 | AX137: 291 | AY137: 2,230 | AZ137: 219 | BC137: 11,568 | BD137: 1,523 | BE137: 782 | BF137: 1,645 | BG137: 4,688 | BH137: 2,931
F138: 1241 | G138: PUESTO DE SALUD SUMBAY - CHASQUIPAMPA | H138: 4 | I138: 1,218 | J138: 13 | K138: 11 | L138: 7 | M138: 9 | N138: 12 | O138: 17 | P138: 15 | Q138: 15 | R138: 16 | S138: 17 | T138: 15 | U138: 13 | V138: 14 | W138: 14 | X138: 14 | Y138: 13 | Z138: 15 | AA138: 13 | AB138: 14 | AC138: 15 | AD138: 67 | AE138: 77 | AF138: 83 | AG138: 78 | AH138: 83 | AI138: 88 | AJ138: 83 | AK138: 80 | AL138: 76 | AM138: 65 | AN138: 58 | AO138: 44 | AP138: 30 | AQ138: 35 | AR138: 1 | AS138: 7 | AT138: 6 | AU138: 14 | AV138: 601 | AW138: 30 | AX138: 31 | AY138: 235 | AZ138: 23 | BC138: 1,218 | BD138: 160 | BE138: 82 | BF138: 173 | BG138: 493 | BH138: 308
G139: NO MINSA | H139: 58 | I139: 17,656 | J139: 185 | K139: 166 | L139: 105 | M139: 132 | N139: 176 | O139: 242 | P139: 224 | Q139: 214 | R139: 234 | S139: 242 | T139: 212 | U139: 192 | V139: 204 | W139: 198 | X139: 197 | Y139: 192 | Z139: 211 | AA139: 190 | AB139: 209 | AC139: 214 | AD139: 972 | AE139: 1,115 | AF139: 1,200 | AG139: 1,124 | AH139: 1,199 | AI139: 1,274 | AJ139: 1,199 | AK139: 1,159 | AL139: 1,109 | AM139: 947 | AN139: 834 | AO139: 641 | AP139: 441 | AQ139: 501 | AR139: 13 | AS139: 95 | AT139: 90 | AU139: 196 | AV139: 8,711 | AW139: 436 | AX139: 445 | AY139: 3,404 | AZ139: 334 | BC139: 17,656 | BD139: 2,325 | BE139: 1,194 | BF139: 2,510 | BG139: 7,155 | BH139: 4,473
A140: 040127 | B140: AREQUIPA | C140: AREQUIPA | D140: AREQUIPA | E140: YARABAMBA | I140: 1,986 | J140: 42 | K140: 36 | L140: 46 | M140: 42 | N140: 33 | O140: 36 | P140: 15 | Q140: 21 | R140: 17 | S140: 14 | T140: 16 | U140: 18 | V140: 13 | W140: 16 | X140: 11 | Y140: 20 | Z140: 16 | AA140: 17 | AB140: 28 | AC140: 19 | AD140: 116 | AE140: 167 | AF140: 196 | AG140: 155 | AH140: 155 | AI140: 163 | AJ140: 122 | AK140: 117 | AL140: 97 | AM140: 70 | AN140: 63 | AO140: 35 | AP140: 25 | AQ140: 29 | AR140: 4 | AS140: 20 | AT140: 22 | AU140: 44 | AV140: 1,094 | AW140: 46 | AX140: 55 | AY140: 515 | AZ140: 90 | BC140: 1,986 | BD140: 336 | BE140: 93 | BF140: 330 | BG140: 908 | BH140: 319
F141: 1287 | G141: PUESTO DE SALUD YARABAMBA | H141: 100 | I141: 1,986 | J141: 42 | K141: 36 | L141: 46 | M141: 42 | N141: 33 | O141: 36 | P141: 15 | Q141: 21 | R141: 17 | S141: 14 | T141: 16 | U141: 18 | V141: 13 | W141: 16 | X141: 11 | Y141: 20 | Z141: 16 | AA141: 17 | AB141: 28 | AC141: 19 | AD141: 116 | AE141: 167 | AF141: 196 | AG141: 155 | AH141: 155 | AI141: 163 | AJ141: 122 | AK141: 117 | AL141: 97 | AM141: 70 | AN141: 63 | AO141: 35 | AP141: 25 | AQ141: 29 | AR141: 4 | AS141: 20 | AT141: 22 | AU141: 44 | AV141: 1,094 | AW141: 46 | AX141: 55 | AY141: 515 | AZ141: 90 | BC141: 1,986 | BD141: 336 | BE141: 93 | BF141: 330 | BG141: 908 | BH141: 319
A142: 040128 | B142: AREQUIPA | C142: AREQUIPA | D142: AREQUIPA | E142: YURA | I142: 47,948 | J142: 575 | K142: 582 | L142: 569 | M142: 614 | N142: 625 | O142: 798 | P142: 997 | Q142: 927 | R142: 909 | S142: 779 | T142: 808 | U142: 782 | V142: 771 | W142: 773 | X142: 733 | Y142: 780 | Z142: 701 | AA142: 792 | AB142: 861 | AC142: 763 | AD142: 3,942 | AE142: 4,609 | AF142: 4,675 | AG142: 3,908 | AH142: 3,348 | AI142: 2,871 | AJ142: 2,358 | AK142: 2,097 | AL142: 1,631 | AM142: 1,309 | AN142: 910 | AO142: 575 | AP142: 307 | AQ142: 269 | AR142: 60 | AS142: 281 | AT142: 294 | AU142: 609 | AV142: 24,138 | AW142: 1,903 | AX142: 1,942 | AY142: 12,022 | AZ142: 1,234 | BC142: 47,948 | BD142: 8,965 | BE142: 4,550 | BF142: 10,175 | BG142: 19,257 | BH142: 5,001
F143: 1253 | G143: CENTRO DE SALUD CIUDAD DE DIOS | H143: 85 | I143: 40,756 | J143: 489 | K143: 495 | L143: 484 | M143: 522 | N143: 531 | O143: 678 | P143: 847 | Q143: 788 | R143: 773 | S143: 662 | T143: 687 | U143: 665 | V143: 655 | W143: 657 | X143: 623 | Y143: 663 | Z143: 596 | AA143: 673 | AB143: 732 | AC143: 649 | AD143: 3,351 | AE143: 3,918 | AF143: 3,974 | AG143: 3,322 | AH143: 2,846 | AI143: 2,440 | AJ143: 2,004 | AK143: 1,782 | AL143: 1,386 | AM143: 1,113 | AN143: 773 | AO143: 489 | AP143: 261 | AQ143: 229 | AR143: 51 | AS143: 239 | AT143: 250 | AU143: 518 | AV143: 20,517 | AW143: 1,618 | AX143: 1,651 | AY143: 10,219 | AZ143: 1,049 | BC143: 40,756 | BD143: 7,620 | BE143: 3,867 | BF143: 8,649 | BG143: 16,368 | BH143: 4,251
F144: 1254 | G144: PUESTO DE SALUD YURA | H144: 15 | I144: 7,192 | J144: 86 | K144: 87 | L144: 85 | M144: 92 | N144: 94 | O144: 120 | P144: 150 | Q144: 139 | R144: 136 | S144: 117 | T144: 121 | U144: 117 | V144: 116 | W144: 116 | X144: 110 | Y144: 117 | Z144: 105 | AA144: 119 | AB144: 129 | AC144: 114 | AD144: 591 | AE144: 691 | AF144: 701 | AG144: 586 | AH144: 502 | AI144: 431 | AJ144: 354 | AK144: 315 | AL144: 245 | AM144: 196 | AN144: 137 | AO144: 86 | AP144: 46 | AQ144: 40 | AR144: 9 | AS144: 42 | AT144: 44 | AU144: 91 | AV144: 3,621 | AW144: 285 | AX144: 291 | AY144: 1,803 | AZ144: 185 | BC144: 7,192 | BD144: 1,345 | BE144: 683 | BF144: 1,526 | BG144: 2,889 | BH144: 750
A145: 040129 | B145: AREQUIPA | C145: AREQUIPA | D145: AREQUIPA | E145: JOSE LUIS BUSTAMANTE Y RIVERO | I145: 90,468 | J145: 642 | K145: 716 | L145: 703 | M145: 784 | N145: 751 | O145: 953 | P145: 1,238 | Q145: 1,294 | R145: 1,326 | S145: 1,218 | T145: 1,134 | U145: 1,143 | V145: 1,260 | W145: 1,076 | X145: 1,234 | Y145: 1,250 | Z145: 1,247 | AA145: 1,277 | AB145: 1,234 | AC145: 1,246 | AD145: 6,506 | AE145: 7,118 | AF145: 7,317 | AG145: 6,478 | AH145: 6,738 | AI145: 6,326 | AJ145: 5,602 | AK145: 5,117 | AL145: 4,525 | AM145: 3,744 | AN145: 3,433 | AO145: 2,627 | AP145: 1,657 | AQ145: 1,554 | AR145: 44 | AS145: 313 | AT145: 329 | AU145: 681 | AV145: 45,908 | AW145: 2,846 | AX145: 3,105 | AY145: 20,175 | AZ145: 1,764 | BC145: 90,468 | BD145: 11,902 | BE145: 7,344 | BF145: 16,104 | BG145: 37,578 | BH145: 17,540
F146: 1257 | G146: VICTOR RAUL HINOJOSA | H146: 57 | I146: 51,566 | J146: 366 | K146: 408 | L146: 401 | M146: 447 | N146: 428 | O146: 544 | P146: 706 | Q146: 738 | R146: 755 | S146: 694 | T146: 647 | U146: 652 | V146: 719 | W146: 613 | X146: 704 | Y146: 712 | Z146: 710 | AA146: 727 | AB146: 704 | AC146: 710 | AD146: 3,708 | AE146: 4,057 | AF146: 4,171 | AG146: 3,692 | AH146: 3,841 | AI146: 3,605 | AJ146: 3,194 | AK146: 2,917 | AL146: 2,578 | AM146: 2,135 | AN146: 1,957 | AO146: 1,497 | AP146: 944 | AQ146: 886 | AR146: 26 | AS146: 179 | AT146: 187 | AU146: 389 | AV146: 26,167 | AW146: 1,622 | AX146: 1,769 | AY146: 11,499 | AZ146: 1,006 | BC146: 51,566 | BD146: 6,785 | BE146: 4,187 | BF146: 9,179 | BG146: 21,419 | BH146: 9,997
F147: 1263 | G147: PUESTO DE SALUD 13 DE ENERO | H147: 19 | I147: 17,189 | J147: 122 | K147: 136 | L147: 134 | M147: 149 | N147: 143 | O147: 181 | P147: 235 | Q147: 246 | R147: 252 | S147: 231 | T147: 215 | U147: 217 | V147: 239 | W147: 204 | X147: 234 | Y147: 238 | Z147: 237 | AA147: 243 | AB147: 234 | AC147: 237 | AD147: 1,236 | AE147: 1,352 | AF147: 1,390 | AG147: 1,231 | AH147: 1,280 | AI147: 1,202 | AJ147: 1,064 | AK147: 972 | AL147: 860 | AM147: 711 | AN147: 652 | AO147: 499 | AP147: 315 | AQ147: 295 | AR147: 8 | AS147: 59 | AT147: 63 | AU147: 129 | AV147: 8,723 | AW147: 541 | AX147: 590 | AY147: 3,833 | AZ147: 335 | BC147: 17,189 | BD147: 2,261 | BE147: 1,395 | BF147: 3,060 | BG147: 7,140 | BH147: 3,333
F148: 1264 | G148: CENTRO DE SALUD LAS ESMERALDAS | H148: 14 | I148: 12,666 | J148: 90 | K148: 100 | L148: 98 | M148: 110 | N148: 105 | O148: 133 | P148: 173 | Q148: 181 | R148: 186 | S148: 171 | T148: 159 | U148: 160 | V148: 176 | W148: 151 | X148: 173 | Y148: 175 | Z148: 175 | AA148: 179 | AB148: 173 | AC148: 174 | AD148: 911 | AE148: 997 | AF148: 1,024 | AG148: 907 | AH148: 943 | AI148: 886 | AJ148: 784 | AK148: 716 | AL148: 634 | AM148: 524 | AN148: 481 | AO148: 368 | AP148: 232 | AQ148: 218 | AR148: 6 | AS148: 44 | AT148: 46 | AU148: 95 | AV148: 6,427 | AW148: 398 | AX148: 435 | AY148: 2,825 | AZ148: 247 | BC148: 12,666 | BD148: 1,666 | BE148: 1,028 | BF148: 2,255 | BG148: 5,261 | BH148: 2,456
F149: 1267 | G149: CERRO JULI | H149: 10 | I149: 9,047 | J149: 64 | K149: 72 | L149: 70 | M149: 78 | N149: 75 | O149: 95 | P149: 124 | Q149: 129 | R149: 133 | S149: 122 | T149: 113 | U149: 114 | V149: 126 | W149: 108 | X149: 123 | Y149: 125 | Z149: 125 | AA149: 128 | AB149: 123 | AC149: 125 | AD149: 651 | AE149: 712 | AF149: 732 | AG149: 648 | AH149: 674 | AI149: 633 | AJ149: 560 | AK149: 512 | AL149: 453 | AM149: 374 | AN149: 343 | AO149: 263 | AP149: 166 | AQ149: 155 | AR149: 4 | AS149: 31 | AT149: 33 | AU149: 68 | AV149: 4,591 | AW149: 285 | AX149: 311 | AY149: 2,018 | AZ149: 176 | BC149: 9,047 | BD149: 1,190 | BE149: 734 | BF149: 1,610 | BG149: 3,758 | BH149: 1,754
F150: 1266 | G150: FELIX NAQUIRA VILDOSO | H150: 0 | I150: 0 | J150: 0 | K150: 0 | L150: 0 | M150: 0 | N150: 0 | O150: 0 | P150: 0 | Q150: 0 | R150: 0 | S150: 0 | T150: 0 | U150: 0 | V150: 0 | W150: 0 | X150: 0 | Y150: 0 | Z150: 0 | AA150: 0 | AB150: 0 | AC150: 0 | AD150: 0 | AE150: 0 | AF150: 0 | AG150: 0 | AH150: 0 | AI150: 0 | AJ150: 0 | AK150: 0 | AL150: 0 | AM150: 0 | AN150: 0 | AO150: 0 | AP150: 0 | AQ150: 0 | AR150: 0 | AS150: 0 | AT150: 0 | AU150: 0 | AV150: 0 | AW150: 0 | AX150: 0 | AY150: 0 | AZ150: 0 | BC150: 0 | BD150: 0 | BE150: 0 | BF150: 0 | BG150: 0 | BH150: 0
F151: 1265 | G151: HUGO LUMBRERAS CRUZ | H151: 0 | I151: 0 | J151: 0 | K151: 0 | L151: 0 | M151: 0 | N151: 0 | O151: 0 | P151: 0 | Q151: 0 | R151: 0 | S151: 0 | T151: 0 | U151: 0 | V151: 0 | W151: 0 | X151: 0 | Y151: 0 | Z151: 0 | AA151: 0 | AB151: 0 | AC151: 0 | AD151: 0 | AE151: 0 | AF151: 0 | AG151: 0 | AH151: 0 | AI151: 0 | AJ151: 0 | AK151: 0 | AL151: 0 | AM151: 0 | AN151: 0 | AO151: 0 | AP151: 0 | AQ151: 0 | AR151: 0 | AS151: 0 | AT151: 0 | AU151: 0 | AV151: 0 | AW151: 0 | AX151: 0 | AY151: 0 | AZ151: 0 | BC151: 0 | BD151: 0 | BE151: 0 | BF151: 0 | BG151: 0 | BH151: 0
A152: 040201 | B152: AREQUIPA | C152: AREQUIPA | D152: CAMANA | E152: CAMANA | I152: 15,591 | J152: 133 | K152: 157 | L152: 100 | M152: 82 | N152: 36 | O152: 19 | P152: 224 | Q152: 252 | R152: 260 | S152: 217 | T152: 252 | U152: 203 | V152: 238 | W152: 238 | X152: 257 | Y152: 297 | Z152: 257 | AA152: 282 | AB152: 248 | AC152: 254 | AD152: 1,252 | AE152: 1,213 | AF152: 1,172 | AG152: 954 | AH152: 954 | AI152: 1,020 | AJ152: 1,006 | AK152: 957 | AL152: 923 | AM152: 675 | AN152: 549 | AO152: 388 | AP152: 275 | AQ152: 247 | AR152: 13 | AS152: 69 | AT152: 64 | AU152: 141 | AV152: 8,067 | AW152: 592 | AX152: 705 | AY152: 3,384 | AZ152: 263 | BC152: 15,591 | BD152: 1,935 | BE152: 1,569 | BF152: 2,967 | BG152: 6,063 | BH152: 3,057
F153: 1344 | G153: HOSPITAL DE CAMANA | H153: 100 | I153: 15,591 | J153: 133 | K153: 157 | L153: 100 | M153: 82 | N153: 36 | O153: 19 | P153: 224 | Q153: 252 | R153: 260 | S153: 217 | T153: 252 | U153: 203 | V153: 238 | W153: 238 | X153: 257 | Y153: 297 | Z153: 257 | AA153: 282 | AB153: 248 | AC153: 254 | AD153: 1,252 | AE153: 1,213 | AF153: 1,172 | AG153: 954 | AH153: 954 | AI153: 1,020 | AJ153: 1,006 | AK153: 957 | AL153: 923 | AM153: 675 | AN153: 549 | AO153: 388 | AP153: 275 | AQ153: 247 | AR153: 13 | AS153: 69 | AT153: 64 | AU153: 141 | AV153: 8,067 | AW153: 592 | AX153: 705 | AY153: 3,384 | AZ153: 263 | BC153: 15,591 | BD153: 1,935 | BE153: 1,569 | BF153: 2,967 | BG153: 6,063 | BH153: 3,057
A154: 040202 | B154: AREQUIPA | C154: AREQUIPA | D154: CAMANA | E154: JOSE MARIA QUIMPER | I154: 5,930 | J154: 57 | K154: 54 | L154: 77 | M154: 68 | N154: 48 | O154: 80 | P154: 86 | Q154: 123 | R154: 115 | S154: 80 | T154: 76 | U154: 89 | V154: 94 | W154: 71 | X154: 95 | Y154: 92 | Z154: 91 | AA154: 74 | AB154: 80 | AC154: 74 | AD154: 372 | AE154: 491 | AF154: 455 | AG154: 439 | AH154: 400 | AI154: 365 | AJ154: 330 | AK154: 363 | AL154: 355 | AM154: 293 | AN154: 182 | AO154: 119 | AP154: 75 | AQ154: 67 | AR154: 4 | AS154: 33 | AT154: 24 | AU154: 61 | AV154: 2,977 | AW154: 220 | AX154: 217 | AY154: 1,300 | AZ154: 124 | BC154: 5,930 | BD154: 953 | BE154: 517 | BF154: 1,017 | BG154: 2,352 | BH154: 1,091
F155: 1355 | G155: EL CARDO | H155: 10 | I155: 593 | J155: 6 | K155: 5 | L155: 8 | M155: 7 | N155: 5 | O155: 8 | P155: 9 | Q155: 12 | R155: 12 | S155: 8 | T155: 8 | U155: 9 | V155: 9 | W155: 7 | X155: 10 | Y155: 9 | Z155: 9 | AA155: 7 | AB155: 8 | AC155: 7 | AD155: 37 | AE155: 49 | AF155: 46 | AG155: 44 | AH155: 40 | AI155: 37 | AJ155: 33 | AK155: 36 | AL155: 36 | AM155: 29 | AN155: 18 | AO155: 12 | AP155: 8 | AQ155: 7 | AR155: 0 | AS155: 3 | AT155: 2 | AU155: 6 | AV155: 298 | AW155: 22 | AX155: 22 | AY155: 130 | AZ155: 12 | BC155: 593 | BD155: 95 | BE155: 52 | BF155: 102 | BG155: 235 | BH155: 109
F156: 1354 | G156: PUESTO DE SALUD LUIS FERNANDEZ CORTEGANA - HUACAPUY | H156: 45 | I156: 2,668 | J156: 25 | K156: 25 | L156: 34 | M156: 30 | N156: 21 | O156: 36 | P156: 38 | Q156: 56 | R156: 51 | S156: 36 | T156: 34 | U156: 40 | V156: 43 | W156: 32 | X156: 42 | Y156: 42 | Z156: 41 | AA156: 34 | AB156: 36 | AC156: 34 | AD156: 168 | AE156: 221 | AF156: 204 | AG156: 197 | AH156: 180 | AI156: 164 | AJ156: 148 | AK156: 164 | AL156: 159 | AM156: 132 | AN156: 82 | AO156: 53 | AP156: 33 | AQ156: 30 | AR156: 2 | AS156: 15 | AT156: 11 | AU156: 28 | AV156: 1,339 | AW156: 99 | AX156: 97 | AY156: 585 | AZ156: 56 | BC156: 2,668 | BD156: 429 | BE156: 232 | BF156: 457 | BG156: 1,059 | BH156: 491
F157: 1356 | G157: PUESTO DE SALUD EL PUENTE | H157: 45 | I157: 2,669 | J157: 26 | K157: 24 | L157: 35 | M157: 31 | N157: 22 | O157: 36 | P157: 39 | Q157: 55 | R157: 52 | S157: 36 | T157: 34 | U157: 40 | V157: 42 | W157: 32 | X157: 43 | Y157: 41 | Z157: 41 | AA157: 33 | AB157: 36 | AC157: 33 | AD157: 167 | AE157: 221 | AF157: 205 | AG157: 198 | AH157: 180 | AI157: 164 | AJ157: 149 | AK157: 163 | AL157: 160 | AM157: 132 | AN157: 82 | AO157: 54 | AP157: 34 | AQ157: 30 | AR157: 2 | AS157: 15 | AT157: 11 | AU157: 27 | AV157: 1,340 | AW157: 99 | AX157: 98 | AY157: 585 | AZ157: 56 | BC157: 2,669 | BD157: 429 | BE157: 233 | BF157: 458 | BG157: 1,058 | BH157: 491
A158: 040203 | B158: AREQUIPA | C158: AREQUIPA | D158: CAMANA | E158: MARIANO NICOLAS VALCARCEL | I158: 9,441 | J158: 156 | K158: 152 | L158: 151 | M158: 152 | N158: 180 | O158: 162 | P158: 168 | Q158: 130 | R158: 96 | S158: 149 | T158: 134 | U158: 174 | V158: 162 | W158: 133 | X158: 103 | Y158: 108 | Z158: 113 | AA158: 106 | AB158: 80 | AC158: 46 | AD158: 369 | AE158: 679 | AF158: 1,101 | AG158: 1,030 | AH158: 836 | AI158: 727 | AJ158: 608 | AK158: 617 | AL158: 371 | AM158: 222 | AN158: 107 | AO158: 53 | AP158: 44 | AQ158: 22 | AR158: 9 | AS158: 76 | AT158: 80 | AU158: 166 | AV158: 4,739 | AW158: 412 | AX158: 241 | AY158: 2,588 | AZ158: 195 | BC158: 9,441 | BD158: 1,804 | BE158: 725 | BF158: 1,174 | BG158: 4,919 | BH158: 819
F159: 1365 | G159: PUESTO DE SALUD URASQUI | H159: 15 | I159: 1,416 | J159: 23 | K159: 23 | L159: 23 | M159: 23 | N159: 27 | O159: 24 | P159: 25 | Q159: 20 | R159: 14 | S159: 22 | T159: 20 | U159: 26 | V159: 24 | W159: 20 | X159: 15 | Y159: 16 | Z159: 17 | AA159: 16 | AB159: 12 | AC159: 7 | AD159: 55 | AE159: 102 | AF159: 165 | AG159: 155 | AH159: 125 | AI159: 109 | AJ159: 91 | AK159: 93 | AL159: 56 | AM159: 33 | AN159: 16 | AO159: 8 | AP159: 7 | AQ159: 3 | AR159: 1 | AS159: 11 | AT159: 12 | AU159: 25 | AV159: 711 | AW159: 62 | AX159: 36 | AY159: 388 | AZ159: 29 | BC159: 1,416 | BD159: 271 | BE159: 109 | BF159: 176 | BG159: 738 | BH159: 123
F160: 18691 | G160: PUESTO DE SALUD SECOCHA | H160: 75 | I160: 7,081 | J160: 117 | K160: 114 | L160: 113 | M160: 114 | N160: 135 | O160: 122 | P160: 126 | Q160: 97 | R160: 72 | S160: 112 | T160: 101 | U160: 131 | V160: 122 | W160: 100 | X160: 78 | Y160: 81 | Z160: 85 | AA160: 79 | AB160: 60 | AC160: 34 | AD160: 277 | AE160: 509 | AF160: 826 | AG160: 772 | AH160: 627 | AI160: 545 | AJ160: 456 | AK160: 462 | AL160: 278 | AM160: 167 | AN160: 80 | AO160: 40 | AP160: 33 | AQ160: 17 | AR160: 7 | AS160: 57 | AT160: 60 | AU160: 124 | AV160: 3,554 | AW160: 309 | AX160: 181 | AY160: 1,941 | AZ160: 146 | BC160: 7,081 | BD160: 1,353 | BE160: 543 | BF160: 881 | BG160: 3,689 | BH160: 614
F161: 1366 | G161: LA EUGENIA | H161: 10 | I161: 944 | J161: 16 | K161: 15 | L161: 15 | M161: 15 | N161: 18 | O161: 16 | P161: 17 | Q161: 13 | R161: 10 | S161: 15 | T161: 13 | U161: 17 | V161: 16 | W161: 13 | X161: 10 | Y161: 11 | Z161: 11 | AA161: 11 | AB161: 8 | AC161: 5 | AD161: 37 | AE161: 68 | AF161: 110 | AG161: 103 | AH161: 84 | AI161: 73 | AJ161: 61 | AK161: 62 | AL161: 37 | AM161: 22 | AN161: 11 | AO161: 5 | AP161: 4 | AQ161: 2 | AR161: 1 | AS161: 8 | AT161: 8 | AU161: 17 | AV161: 474 | AW161: 41 | AX161: 24 | AY161: 259 | AZ161: 20 | BC161: 944 | BD161: 180 | BE161: 73 | BF161: 117 | BG161: 492 | BH161: 82
A162: 040204 | B162: AREQUIPA | C162: AREQUIPA | D162: CAMANA | E162: MARISCAL CACERES | I162: 8,409 | J162: 60 | K162: 90 | L162: 103 | M162: 82 | N162: 78 | O162: 108 | P162: 115 | Q162: 117 | R162: 128 | S162: 110 | T162: 99 | U162: 110 | V162: 94 | W162: 116 | X162: 128 | Y162: 126 | Z162: 125 | AA162: 132 | AB162: 132 | AC162: 108 | AD162: 508 | AE162: 732 | AF162: 682 | AG162: 654 | AH162: 638 | AI162: 624 | AJ162: 581 | AK162: 507 | AL162: 437 | AM162: 338 | AN162: 237 | AO162: 134 | AP162: 95 | AQ162: 81 | AR162: 1 | AS162: 30 | AT162: 30 | AU162: 64 | AV162: 4,269 | AW162: 260 | AX162: 319 | AY162: 2,016 | AZ162: 176 | BC162: 8,409 | BD162: 1,200 | BE162: 721 | BF162: 1,480 | BG162: 3,686 | BH162: 1,322
F163: 1345 | G163: CENTRO DE SALUD SAN JOSE | H163: 20 | I163: 1,682 | J163: 12 | K163: 18 | L163: 21 | M163: 16 | N163: 16 | O163: 22 | P163: 23 | Q163: 23 | R163: 26 | S163: 22 | T163: 20 | U163: 22 | V163: 19 | W163: 23 | X163: 26 | Y163: 25 | Z163: 25 | AA163: 26 | AB163: 26 | AC163: 22 | AD163: 102 | AE163: 146 | AF163: 136 | AG163: 131 | AH163: 128 | AI163: 125 | AJ163: 116 | AK163: 101 | AL163: 87 | AM163: 68 | AN163: 47 | AO163: 27 | AP163: 19 | AQ163: 16 | AR163: 0 | AS163: 6 | AT163: 6 | AU163: 13 | AV163: 854 | AW163: 52 | AX163: 64 | AY163: 403 | AZ163: 35 | BC163: 1,682 | BD163: 240 | BE163: 144 | BF163: 296 | BG163: 737 | BH163: 264
F164: 1353 | G164: CENTRO DE SALUD PUCCHUN | H164: 80 | I164: 6,727 | J164: 48 | K164: 72 | L164: 82 | M164: 66 | N164: 62 | O164: 86 | P164: 92 | Q164: 94 | R164: 102 | S164: 88 | T164: 79 | U164: 88 | V164: 75 | W164: 93 | X164: 102 | Y164: 101 | Z164: 100 | AA164: 106 | AB164: 106 | AC164: 86 | AD164: 406 | AE164: 586 | AF164: 546 | AG164: 523 | AH164: 510 | AI164: 499 | AJ164: 465 | AK164: 406 | AL164: 350 | AM164: 270 | AN164: 190 | AO164: 107 | AP164: 76 | AQ164: 65 | AR164: 1 | AS164: 24 | AT164: 24 | AU164: 51 | AV164: 3,415 | AW164: 208 | AX164: 255 | AY164: 1,613 | AZ164: 141 | BC164: 6,727 | BD164: 960 | BE164: 577 | BF164: 1,184 | BG164: 2,949 | BH164: 1,058
A165: 040205 | B165: AREQUIPA | C165: AREQUIPA | D165: CAMANA | E165: NICOLAS DE PIEROLA | I165: 9,284 | J165: 69 | K165: 73 | L165: 91 | M165: 93 | N165: 81 | O165: 121 | P165: 129 | Q165: 168 | R165: 154 | S165: 139 | T165: 117 | U165: 147 | V165: 153 | W165: 165 | X165: 134 | Y165: 144 | Z165: 155 | AA165: 141 | AB165: 149 | AC165: 137 | AD165: 620 | AE165: 695 | AF165: 721 | AG165: 678 | AH165: 651 | AI165: 621 | AJ165: 594 | AK165: 577 | AL165: 507 | AM165: 371 | AN165: 284 | AO165: 197 | AP165: 110 | AQ165: 98 | AR165: 6 | AS165: 30 | AT165: 39 | AU165: 73 | AV165: 4,723 | AW165: 348 | AX165: 357 | AY165: 2,108 | AZ165: 153 | BC165: 9,284 | BD165: 1,382 | BE165: 892 | BF165: 1,601 | BG165: 3,842 | BH165: 1,567
F166: 1347 | G166: CENTRO DE SALUD SAN GREGORIO | H166: 65 | I166: 6,034 | J166: 45 | K166: 48 | L166: 59 | M166: 60 | N166: 52 | O166: 79 | P166: 83 | Q166: 110 | R166: 100 | S166: 90 | T166: 76 | U166: 95 | V166: 100 | W166: 108 | X166: 87 | Y166: 93 | Z166: 101 | AA166: 91 | AB166: 97 | AC166: 89 | AD166: 403 | AE166: 452 | AF166: 469 | AG166: 440 | AH166: 423 | AI166: 404 | AJ166: 386 | AK166: 375 | AL166: 330 | AM166: 242 | AN166: 184 | AO166: 128 | AP166: 72 | AQ166: 64 | AR166: 4 | AS166: 19 | AT166: 25 | AU166: 48 | AV166: 3,070 | AW166: 226 | AX166: 232 | AY166: 1,370 | AZ166: 100 | BC166: 6,034 | BD166: 898 | BE166: 580 | BF166: 1,041 | BG166: 2,497 | BH166: 1,019
F167: 1360 | G167: PUESTO DE SALUD HACIENDA DEL MEDIO | H167: 33 | I167: 3,064 | J167: 23 | K167: 24 | L167: 30 | M167: 31 | N167: 27 | O167: 40 | P167: 43 | Q167: 55 | R167: 51 | S167: 46 | T167: 39 | U167: 49 | V167: 50 | W167: 54 | X167: 44 | Y167: 48 | Z167: 51 | AA167: 47 | AB167: 49 | AC167: 45 | AD167: 205 | AE167: 229 | AF167: 238 | AG167: 224 | AH167: 215 | AI167: 205 | AJ167: 196 | AK167: 190 | AL167: 167 | AM167: 122 | AN167: 94 | AO167: 65 | AP167: 36 | AQ167: 32 | AR167: 2 | AS167: 10 | AT167: 13 | AU167: 24 | AV167: 1,559 | AW167: 115 | AX167: 118 | AY167: 696 | AZ167: 50 | BC167: 3,064 | BD167: 456 | BE167: 294 | BF167: 528 | BG167: 1,268 | BH167: 517
F168: 1361 | G168: SONAY | H168: 2 | I168: 186 | J168: 1 | K168: 1 | L168: 2 | M168: 2 | N168: 2 | O168: 2 | P168: 3 | Q168: 3 | R168: 3 | S168: 3 | T168: 2 | U168: 3 | V168: 3 | W168: 3 | X168: 3 | Y168: 3 | Z168: 3 | AA168: 3 | AB168: 3 | AC168: 3 | AD168: 12 | AE168: 14 | AF168: 14 | AG168: 14 | AH168: 13 | AI168: 12 | AJ168: 12 | AK168: 12 | AL168: 10 | AM168: 7 | AN168: 6 | AO168: 4 | AP168: 2 | AQ168: 2 | AR168: 0 | AS168: 1 | AT168: 1 | AU168: 1 | AV168: 94 | AW168: 7 | AX168: 7 | AY168: 42 | AZ168: 3 | BC168: 186 | BD168: 28 | BE168: 18 | BF168: 32 | BG168: 77 | BH168: 31
A169: 040206 | B169: AREQUIPA | C169: AREQUIPA | D169: CAMANA | E169: OCOÑA | I169: 4,869 | J169: 38 | K169: 41 | L169: 52 | M169: 48 | N169: 47 | O169: 67 | P169: 70 | Q169: 75 | R169: 65 | S169: 46 | T169: 48 | U169: 55 | V169: 53 | W169: 66 | X169: 70 | Y169: 78 | Z169: 72 | AA169: 95 | AB169: 62 | AC169: 57 | AD169: 281 | AE169: 368 | AF169: 295 | AG169: 320 | AH169: 345 | AI169: 319 | AJ169: 343 | AK169: 336 | AL169: 324 | AM169: 245 | AN169: 207 | AO169: 121 | AP169: 81 | AQ169: 79 | AR169: 3 | AS169: 16 | AT169: 22 | AU169: 40 | AV169: 2,546 | AW169: 158 | AX169: 199 | AY169: 1,062 | AZ169: 106 | BC169: 4,869 | BD169: 652 | BE169: 434 | BF169: 768 | BG169: 1,958 | BH169: 1,057
F170: 1348 | G170: CENTRO DE SALUD OCOÑA | H170: 78 | I170: 3,798 | J170: 29 | K170: 32 | L170: 40 | M170: 38 | N170: 37 | O170: 52 | P170: 54 | Q170: 59 | R170: 50 | S170: 36 | T170: 38 | U170: 43 | V170: 41 | W170: 51 | X170: 54 | Y170: 61 | Z170: 56 | AA170: 74 | AB170: 49 | AC170: 44 | AD170: 219 | AE170: 287 | AF170: 230 | AG170: 250 | AH170: 269 | AI170: 249 | AJ170: 268 | AK170: 262 | AL170: 252 | AM170: 191 | AN170: 162 | AO170: 95 | AP170: 63 | AQ170: 61 | AR170: 3 | AS170: 13 | AT170: 17 | AU170: 31 | AV170: 1,986 | AW170: 123 | AX170: 155 | AY170: 829 | AZ170: 83 | BC170: 3,798 | BD170: 508 | BE170: 339 | BF170: 599 | BG170: 1,527 | BH170: 824
F171: 1363 | G171: LA PLANCHADA | H171: 15 | I171: 730 | J171: 6 | K171: 6 | L171: 8 | M171: 7 | N171: 7 | O171: 10 | P171: 11 | Q171: 11 | R171: 10 | S171: 7 | T171: 7 | U171: 8 | V171: 8 | W171: 10 | X171: 11 | Y171: 12 | Z171: 11 | AA171: 14 | AB171: 9 | AC171: 9 | AD171: 42 | AE171: 55 | AF171: 44 | AG171: 48 | AH171: 52 | AI171: 48 | AJ171: 51 | AK171: 50 | AL171: 49 | AM171: 37 | AN171: 31 | AO171: 18 | AP171: 12 | AQ171: 12 | AR171: 0 | AS171: 2 | AT171: 3 | AU171: 6 | AV171: 382 | AW171: 24 | AX171: 30 | AY171: 159 | AZ171: 16 | BC171: 730 | BD171: 98 | BE171: 65 | BF171: 115 | BG171: 294 | BH171: 159
F172: 1364 | G172: PESCADORES | H172: 7 | I172: 341 | J172: 3 | K172: 3 | L172: 4 | M172: 3 | N172: 3 | O172: 5 | P172: 5 | Q172: 5 | R172: 5 | S172: 3 | T172: 3 | U172: 4 | V172: 4 | W172: 5 | X172: 5 | Y172: 5 | Z172: 5 | AA172: 7 | AB172: 4 | AC172: 4 | AD172: 20 | AE172: 26 | AF172: 21 | AG172: 22 | AH172: 24 | AI172: 22 | AJ172: 24 | AK172: 24 | AL172: 23 | AM172: 17 | AN172: 14 | AO172: 8 | AP172: 6 | AQ172: 6 | AR172: 0 | AS172: 1 | AT172: 2 | AU172: 3 | AV172: 178 | AW172: 11 | AX172: 14 | AY172: 74 | AZ172: 7 | BC172: 341 | BD172: 46 | BE172: 30 | BF172: 54 | BG172: 137 | BH172: 74
A173: 040207 | B173: AREQUIPA | C173: AREQUIPA | D173: CAMANA | E173: QUILCA | I173: 1,441 | J173: 9 | K173: 8 | L173: 11 | M173: 17 | N173: 15 | O173: 13 | P173: 23 | Q173: 18 | R173: 12 | S173: 21 | T173: 15 | U173: 23 | V173: 9 | W173: 18 | X173: 27 | Y173: 20 | Z173: 23 | AA173: 22 | AB173: 12 | AC173: 17 | AD173: 72 | AE173: 102 | AF173: 119 | AG173: 121 | AH173: 110 | AI173: 102 | AJ173: 98 | AK173: 85 | AL173: 111 | AM173: 60 | AN173: 54 | AO173: 33 | AP173: 20 | AQ173: 21 | AR173: 1 | AS173: 4 | AT173: 5 | AU173: 9 | AV173: 767 | AW173: 56 | AX173: 56 | AY173: 351 | AZ173: 22 | BC173: 1,441 | BD173: 185 | BE173: 119 | BF173: 203 | BG173: 635 | BH173: 299
F174: 1362 | G174: PUESTO DE SALUD QUILCA | H174: 100 | I174: 1,441 | J174: 9 | K174: 8 | L174: 11 | M174: 17 | N174: 15 | O174: 13 | P174: 23 | Q174: 18 | R174: 12 | S174: 21 | T174: 15 | U174: 23 | V174: 9 | W174: 18 | X174: 27 | Y174: 20 | Z174: 23 | AA174: 22 | AB174: 12 | AC174: 17 | AD174: 72 | AE174: 102 | AF174: 119 | AG174: 121 | AH174: 110 | AI174: 102 | AJ174: 98 | AK174: 85 | AL174: 111 | AM174: 60 | AN174: 54 | AO174: 33 | AP174: 20 | AQ174: 21 | AR174: 1 | AS174: 4 | AT174: 5 | AU174: 9 | AV174: 767 | AW174: 56 | AX174: 56 | AY174: 351 | AZ174: 22 | BC174: 1,441 | BD174: 185 | BE174: 119 | BF174: 203 | BG174: 635 | BH174: 299
A175: 040208 | B175: AREQUIPA | C175: AREQUIPA | D175: CAMANA | E175: SAMUEL PASTOR | I175: 18,401 | J175: 176 | K175: 184 | L175: 195 | M175: 256 | N175: 250 | O175: 305 | P175: 333 | Q175: 325 | R175: 324 | S175: 288 | T175: 275 | U175: 311 | V175: 315 | W175: 270 | X175: 281 | Y175: 310 | Z175: 314 | AA175: 308 | AB175: 306 | AC175: 274 | AD175: 1,388 | AE175: 1,546 | AF175: 1,465 | AG175: 1,384 | AH175: 1,286 | AI175: 1,217 | AJ175: 1,120 | AK175: 990 | AL175: 847 | AM175: 578 | AN175: 401 | AO175: 264 | AP175: 155 | AQ175: 160 | AR175: 14 | AS175: 89 | AT175: 87 | AU175: 187 | AV175: 9,391 | AW175: 731 | AX175: 750 | AY175: 4,330 | AZ175: 319 | BC175: 18,401 | BD175: 3,222 | BE175: 1,798 | BF175: 3,514 | BG175: 7,462 | BH175: 2,405
F176: 1346 | G176: LA PAMPA | H176: 33 | I176: 6,072 | J176: 58 | K176: 61 | L176: 64 | M176: 84 | N176: 83 | O176: 101 | P176: 110 | Q176: 107 | R176: 107 | S176: 95 | T176: 91 | U176: 103 | V176: 104 | W176: 89 | X176: 93 | Y176: 102 | Z176: 104 | AA176: 102 | AB176: 101 | AC176: 90 | AD176: 458 | AE176: 510 | AF176: 483 | AG176: 457 | AH176: 424 | AI176: 402 | AJ176: 370 | AK176: 327 | AL176: 280 | AM176: 191 | AN176: 132 | AO176: 87 | AP176: 51 | AQ176: 53 | AR176: 5 | AS176: 29 | AT176: 29 | AU176: 62 | AV176: 3,099 | AW176: 241 | AX176: 248 | AY176: 1,429 | AZ176: 105 | BC176: 6,072 | BD176: 1,063 | BE176: 593 | BF176: 1,160 | BG176: 2,462 | BH176: 794
F177: 1357 | G177: EL CARMEN-CAMANA | H177: 36 | I177: 6,625 | J177: 64 | K177: 65 | L177: 71 | M177: 93 | N177: 88 | O177: 109 | P177: 120 | Q177: 117 | R177: 116 | S177: 104 | T177: 99 | U177: 112 | V177: 114 | W177: 97 | X177: 101 | Y177: 112 | Z177: 113 | AA177: 111 | AB177: 110 | AC177: 99 | AD177: 500 | AE177: 557 | AF177: 528 | AG177: 497 | AH177: 463 | AI177: 437 | AJ177: 402 | AK177: 355 | AL177: 305 | AM177: 208 | AN177: 145 | AO177: 95 | AP177: 56 | AQ177: 57 | AR177: 5 | AS177: 32 | AT177: 31 | AU177: 67 | AV177: 3,380 | AW177: 263 | AX177: 268 | AY177: 1,558 | AZ177: 115 | BC177: 6,625 | BD177: 1,160 | BE177: 647 | BF177: 1,265 | BG177: 2,687 | BH177: 865
F178: 1359 | G178: JUAN PABLO VIZCARDO GUZMAN | H178: 13 | I178: 2,392 | J178: 23 | K178: 24 | L178: 25 | M178: 33 | N178: 33 | O178: 40 | P178: 43 | Q178: 42 | R178: 42 | S178: 37 | T178: 36 | U178: 40 | V178: 41 | W178: 35 | X178: 37 | Y178: 40 | Z178: 41 | AA178: 40 | AB178: 40 | AC178: 36 | AD178: 180 | AE178: 201 | AF178: 190 | AG178: 180 | AH178: 167 | AI178: 158 | AJ178: 146 | AK178: 129 | AL178: 110 | AM178: 75 | AN178: 52 | AO178: 34 | AP178: 20 | AQ178: 21 | AR178: 2 | AS178: 12 | AT178: 11 | AU178: 24 | AV178: 1,221 | AW178: 95 | AX178: 98 | AY178: 563 | AZ178: 41 | BC178: 2,392 | BD178: 419 | BE178: 234 | BF178: 457 | BG178: 970 | BH178: 313
F179: 1358 | G179: PUESTO DE SALUD LA PUNTA | H179: 3 | I179: 552 | J179: 5 | K179: 6 | L179: 6 | M179: 8 | N179: 8 | O179: 9 | P179: 10 | Q179: 10 | R179: 10 | S179: 9 | T179: 8 | U179: 9 | V179: 9 | W179: 8 | X179: 8 | Y179: 9 | Z179: 9 | AA179: 9 | AB179: 9 | AC179: 8 | AD179: 42 | AE179: 46 | AF179: 44 | AG179: 42 | AH179: 39 | AI179: 37 | AJ179: 34 | AK179: 30 | AL179: 25 | AM179: 17 | AN179: 12 | AO179: 8 | AP179: 5 | AQ179: 5 | AR179: 0 | AS179: 3 | AT179: 3 | AU179: 6 | AV179: 282 | AW179: 22 | AX179: 23 | AY179: 130 | AZ179: 10 | BC179: 552 | BD179: 97 | BE179: 54 | BF179: 105 | BG179: 224 | BH179: 72
F180: 7723 | G180: PUESTO DE SALUD SOLIDARIDAD | H180: 15 | I180: 2,760 | J180: 26 | K180: 28 | L180: 29 | M180: 38 | N180: 38 | O180: 46 | P180: 50 | Q180: 49 | R180: 49 | S180: 43 | T180: 41 | U180: 47 | V180: 47 | W180: 41 | X180: 42 | Y180: 47 | Z180: 47 | AA180: 46 | AB180: 46 | AC180: 41 | AD180: 208 | AE180: 232 | AF180: 220 | AG180: 208 | AH180: 193 | AI180: 183 | AJ180: 168 | AK180: 149 | AL180: 127 | AM180: 87 | AN180: 60 | AO180: 40 | AP180: 23 | AQ180: 24 | AR180: 2 | AS180: 13 | AT180: 13 | AU180: 28 | AV180: 1,409 | AW180: 110 | AX180: 113 | AY180: 650 | AZ180: 48 | BC180: 2,760 | BD180: 483 | BE180: 270 | BF180: 527 | BG180: 1,119 | BH180: 361
A181: 040301 | B181: AREQUIPA | C181: AREQUIPA | D181: CARAVELI | E181: CARAVELI | I181: 5,400 | J181: 86 | K181: 82 | L181: 98 | M181: 88 | N181: 76 | O181: 73 | P181: 89 | Q181: 83 | R181: 68 | S181: 65 | T181: 88 | U181: 46 | V181: 81 | W181: 68 | X181: 59 | Y181: 86 | Z181: 104 | AA181: 89 | AB181: 108 | AC181: 100 | AD181: 453 | AE181: 482 | AF181: 404 | AG181: 349 | AH181: 306 | AI181: 324 | AJ181: 325 | AK181: 270 | AL181: 232 | AM181: 184 | AN181: 132 | AO181: 104 | AP181: 98 | AQ181: 100 | AR181: 9 | AS181: 50 | AT181: 36 | AU181: 91 | AV181: 2,751 | AW181: 170 | AX181: 246 | AY181: 1,224 | AZ181: 156 | BC181: 5,400 | BD181: 942 | BE181: 487 | BF181: 1,143 | BG181: 1,978 | BH181: 850
F182: 1351 | G182: CENTRO DE SALUD CARAVELI | H182: 100 | I182: 5,400 | J182: 86 | K182: 82 | L182: 98 | M182: 88 | N182: 76 | O182: 73 | P182: 89 | Q182: 83 | R182: 68 | S182: 65 | T182: 88 | U182: 46 | V182: 81 | W182: 68 | X182: 59 | Y182: 86 | Z182: 104 | AA182: 89 | AB182: 108 | AC182: 100 | AD182: 453 | AE182: 482 | AF182: 404 | AG182: 349 | AH182: 306 | AI182: 324 | AJ182: 325 | AK182: 270 | AL182: 232 | AM182: 184 | AN182: 132 | AO182: 104 | AP182: 98 | AQ182: 100 | AR182: 9 | AS182: 50 | AT182: 36 | AU182: 91 | AV182: 2,751 | AW182: 170 | AX182: 246 | AY182: 1,224 | AZ182: 156 | BC182: 5,400 | BD182: 942 | BE182: 487 | BF182: 1,143 | BG182: 1,978 | BH182: 850
A183: 040302 | B183: AREQUIPA | C183: AREQUIPA | D183: CARAVELI | E183: ACARI | I183: 6,580 | J183: 45 | K183: 43 | L183: 40 | M183: 63 | N183: 55 | O183: 60 | P183: 83 | Q183: 107 | R183: 82 | S183: 105 | T183: 119 | U183: 110 | V183: 118 | W183: 126 | X183: 94 | Y183: 126 | Z183: 136 | AA183: 130 | AB183: 102 | AC183: 80 | AD183: 422 | AE183: 402 | AF183: 368 | AG183: 415 | AH183: 404 | AI183: 431 | AJ183: 425 | AK183: 407 | AL183: 378 | AM183: 298 | AN183: 281 | AO183: 241 | AP183: 121 | AQ183: 163 | AR183: 5 | AS183: 19 | AT183: 26 | AU183: 48 | AV183: 3,317 | AW183: 286 | AX183: 285 | AY183: 1,288 | AZ183: 81 | BC183: 6,580 | BD183: 912 | BE183: 730 | BF183: 1,006 | BG183: 2,450 | BH183: 1,482
F184: 1352 | G184: CENTRO DE SALUD ACARI | H184: 100 | I184: 6,580 | J184: 45 | K184: 43 | L184: 40 | M184: 63 | N184: 55 | O184: 60 | P184: 83 | Q184: 107 | R184: 82 | S184: 105 | T184: 119 | U184: 110 | V184: 118 | W184: 126 | X184: 94 | Y184: 126 | Z184: 136 | AA184: 130 | AB184: 102 | AC184: 80 | AD184: 422 | AE184: 402 | AF184: 368 | AG184: 415 | AH184: 404 | AI184: 431 | AJ184: 425 | AK184: 407 | AL184: 378 | AM184: 298 | AN184: 281 | AO184: 241 | AP184: 121 | AQ184: 163 | AR184: 5 | AS184: 19 | AT184: 26 | AU184: 48 | AV184: 3,317 | AW184: 286 | AX184: 285 | AY184: 1,288 | AZ184: 81 | BC184: 6,580 | BD184: 912 | BE184: 730 | BF184: 1,006 | BG184: 2,450 | BH184: 1,482
A185: 040303 | B185: AREQUIPA | C185: AREQUIPA | D185: CARAVELI | E185: ATICO | I185: 6,658 | J185: 47 | K185: 60 | L185: 74 | M185: 77 | N185: 57 | O185: 78 | P185: 118 | Q185: 92 | R185: 98 | S185: 97 | T185: 110 | U185: 113 | V185: 74 | W185: 109 | X185: 122 | Y185: 115 | Z185: 125 | AA185: 110 | AB185: 111 | AC185: 87 | AD185: 404 | AE185: 498 | AF185: 559 | AG185: 519 | AH185: 487 | AI185: 497 | AJ185: 445 | AK185: 388 | AL185: 293 | AM185: 259 | AN185: 165 | AO185: 135 | AP185: 78 | AQ185: 57 | AR185: 2 | AS185: 27 | AT185: 20 | AU185: 50 | AV185: 3,427 | AW185: 264 | AX185: 278 | AY185: 1,574 | AZ185: 59 | BC185: 6,658 | BD185: 1,021 | BE185: 655 | BF185: 1,100 | BG185: 2,895 | BH185: 987
F186: 1349 | G186: CENTRO DE SALUD ATICO | H186: 100 | I186: 6,658 | J186: 47 | K186: 60 | L186: 74 | M186: 77 | N186: 57 | O186: 78 | P186: 118 | Q186: 92 | R186: 98 | S186: 97 | T186: 110 | U186: 113 | V186: 74 | W186: 109 | X186: 122 | Y186: 115 | Z186: 125 | AA186: 110 | AB186: 111 | AC186: 87 | AD186: 404 | AE186: 498 | AF186: 559 | AG186: 519 | AH186: 487 | AI186: 497 | AJ186: 445 | AK186: 388 | AL186: 293 | AM186: 259 | AN186: 165 | AO186: 135 | AP186: 78 | AQ186: 57 | AR186: 2 | AS186: 27 | AT186: 20 | AU186: 50 | AV186: 3,427 | AW186: 264 | AX186: 278 | AY186: 1,574 | AZ186: 59 | BC186: 6,658 | BD186: 1,021 | BE186: 655 | BF186: 1,100 | BG186: 2,895 | BH186: 987
A187: 040304 | B187: AREQUIPA | C187: AREQUIPA | D187: CARAVELI | E187: ATIQUIPA | I187: 739 | J187: 8 | K187: 8 | L187: 4 | M187: 11 | N187: 6 | O187: 13 | P187: 3 | Q187: 7 | R187: 11 | S187: 12 | T187: 14 | U187: 8 | V187: 14 | W187: 8 | X187: 6 | Y187: 8 | Z187: 11 | AA187: 9 | AB187: 11 | AC187: 8 | AD187: 46 | AE187: 74 | AF187: 61 | AG187: 51 | AH187: 60 | AI187: 32 | AJ187: 48 | AK187: 49 | AL187: 47 | AM187: 21 | AN187: 34 | AO187: 15 | AP187: 11 | AQ187: 10 | AR187: 1 | AS187: 3 | AT187: 5 | AU187: 8 | AV187: 389 | AW187: 30 | AX187: 29 | AY187: 172 | AZ187: 11 | BC187: 739 | BD187: 105 | BE187: 56 | BF187: 139 | BG187: 301 | BH187: 138
F188: 1369 | G188: PUESTO DE SALUD ATIQUIPA | H188: 75 | I188: 554 | J188: 6 | K188: 6 | L188: 3 | M188: 8 | N188: 4 | O188: 10 | P188: 2 | Q188: 5 | R188: 8 | S188: 9 | T188: 10 | U188: 6 | V188: 10 | W188: 6 | X188: 4 | Y188: 6 | Z188: 8 | AA188: 7 | AB188: 8 | AC188: 6 | AD188: 34 | AE188: 55 | AF188: 46 | AG188: 38 | AH188: 45 | AI188: 24 | AJ188: 36 | AK188: 37 | AL188: 35 | AM188: 16 | AN188: 25 | AO188: 11 | AP188: 8 | AQ188: 7 | AR188: 1 | AS188: 2 | AT188: 4 | AU188: 6 | AV188: 292 | AW188: 22 | AX188: 22 | AY188: 129 | AZ188: 8 | BC188: 554 | BD188: 79 | BE188: 42 | BF188: 104 | BG188: 226 | BH188: 103
F189: 1368 | G189: PUESTO DE SALUD SANTA ROSA | H189: 25 | I189: 185 | J189: 2 | K189: 2 | L189: 1 | M189: 3 | N189: 2 | O189: 3 | P189: 1 | Q189: 2 | R189: 3 | S189: 3 | T189: 4 | U189: 2 | V189: 4 | W189: 2 | X189: 2 | Y189: 2 | Z189: 3 | AA189: 2 | AB189: 3 | AC189: 2 | AD189: 12 | AE189: 19 | AF189: 15 | AG189: 13 | AH189: 15 | AI189: 8 | AJ189: 12 | AK189: 12 | AL189: 12 | AM189: 5 | AN189: 9 | AO189: 4 | AP189: 3 | AQ189: 3 | AR189: 0 | AS189: 1 | AT189: 1 | AU189: 2 | AV189: 97 | AW189: 8 | AX189: 7 | AY189: 43 | AZ189: 3 | BC189: 185 | BD189: 26 | BE189: 14 | BF189: 35 | BG189: 75 | BH189: 35
A190: 040305 | B190: AREQUIPA | C190: AREQUIPA | D190: CARAVELI | E190: BELLA UNION | I190: 3,560 | J190: 31 | K190: 51 | L190: 33 | M190: 46 | N190: 45 | O190: 41 | P190: 58 | Q190: 48 | R190: 50 | S190: 46 | T190: 30 | U190: 50 | V190: 48 | W190: 52 | X190: 33 | Y190: 56 | Z190: 75 | AA190: 52 | AB190: 55 | AC190: 53 | AD190: 232 | AE190: 281 | AF190: 251 | AG190: 272 | AH190: 265 | AI190: 269 | AJ190: 211 | AK190: 205 | AL190: 177 | AM190: 121 | AN190: 125 | AO190: 91 | AP190: 54 | AQ190: 53 | AR190: 3 | AS190: 13 | AT190: 18 | AU190: 33 | AV190: 1,816 | AW190: 107 | AX190: 160 | AY190: 837 | AZ190: 78 | BC190: 3,560 | BD190: 529 | BE190: 316 | BF190: 621 | BG190: 1,473 | BH190: 621
F191: 1374 | G191: PUESTO DE SALUD BELLA UNION | H191: 100 | I191: 3,560 | J191: 31 | K191: 51 | L191: 33 | M191: 46 | N191: 45 | O191: 41 | P191: 58 | Q191: 48 | R191: 50 | S191: 46 | T191: 30 | U191: 50 | V191: 48 | W191: 52 | X191: 33 | Y191: 56 | Z191: 75 | AA191: 52 | AB191: 55 | AC191: 53 | AD191: 232 | AE191: 281 | AF191: 251 | AG191: 272 | AH191: 265 | AI191: 269 | AJ191: 211 | AK191: 205 | AL191: 177 | AM191: 121 | AN191: 125 | AO191: 91 | AP191: 54 | AQ191: 53 | AR191: 3 | AS191: 13 | AT191: 18 | AU191: 33 | AV191: 1,816 | AW191: 107 | AX191: 160 | AY191: 837 | AZ191: 78 | BC191: 3,560 | BD191: 529 | BE191: 316 | BF191: 621 | BG191: 1,473 | BH191: 621
A192: 040306 | B192: AREQUIPA | C192: AREQUIPA | D192: CARAVELI | E192: CAHUACHO | I192: 1,365 | J192: 4 | K192: 7 | L192: 8 | M192: 11 | N192: 33 | O192: 9 | P192: 10 | Q192: 10 | R192: 26 | S192: 17 | T192: 16 | U192: 16 | V192: 28 | W192: 23 | X192: 17 | Y192: 23 | Z192: 16 | AA192: 22 | AB192: 26 | AC192: 26 | AD192: 69 | AE192: 92 | AF192: 78 | AG192: 72 | AH192: 89 | AI192: 74 | AJ192: 84 | AK192: 79 | AL192: 63 | AM192: 67 | AN192: 68 | AO192: 57 | AP192: 51 | AQ192: 74 | AR192: 1 | AS192: 2 | AT192: 2 | AU192: 4 | AV192: 719 | AW192: 58 | AX192: 63 | AY192: 242 | AZ192: 6 | BC192: 1,365 | BD192: 167 | BE192: 129 | BF192: 213 | BG192: 476 | BH192: 380
F193: 1377 | G193: PUESTO DE SALUD CAHUACHO | H193: 31 | I193: 423 | J193: 1 | K193: 2 | L193: 2 | M193: 3 | N193: 10 | O193: 3 | P193: 3 | Q193: 3 | R193: 8 | S193: 5 | T193: 5 | U193: 5 | V193: 9 | W193: 7 | X193: 5 | Y193: 7 | Z193: 5 | AA193: 7 | AB193: 8 | AC193: 8 | AD193: 21 | AE193: 29 | AF193: 24 | AG193: 22 | AH193: 28 | AI193: 23 | AJ193: 26 | AK193: 24 | AL193: 20 | AM193: 21 | AN193: 21 | AO193: 18 | AP193: 16 | AQ193: 23 | AR193: 0 | AS193: 1 | AT193: 1 | AU193: 1 | AV193: 223 | AW193: 18 | AX193: 20 | AY193: 75 | AZ193: 2 | BC193: 423 | BD193: 52 | BE193: 40 | BF193: 66 | BG193: 148 | BH193: 118
F194: 1338 | G194: PUESTO DE SALUD SONDOR - CARAVELI | H194: 33 | I194: 450 | J194: 1 | K194: 2 | L194: 3 | M194: 4 | N194: 11 | O194: 3 | P194: 3 | Q194: 3 | R194: 9 | S194: 6 | T194: 5 | U194: 5 | V194: 9 | W194: 8 | X194: 6 | Y194: 8 | Z194: 5 | AA194: 7 | AB194: 9 | AC194: 9 | AD194: 23 | AE194: 30 | AF194: 26 | AG194: 24 | AH194: 29 | AI194: 24 | AJ194: 28 | AK194: 26 | AL194: 21 | AM194: 22 | AN194: 22 | AO194: 19 | AP194: 17 | AQ194: 24 | AR194: 0 | AS194: 1 | AT194: 1 | AU194: 1 | AV194: 237 | AW194: 19 | AX194: 21 | AY194: 80 | AZ194: 2 | BC194: 450 | BD194: 55 | BE194: 43 | BF194: 70 | BG194: 157 | BH194: 125
F195: 1379 | G195: PUESTO DE SALUD AYROCA | H195: 36 | I195: 492 | J195: 2 | K195: 3 | L195: 3 | M195: 4 | N195: 12 | O195: 3 | P195: 4 | Q195: 4 | R195: 9 | S195: 6 | T195: 6 | U195: 6 | V195: 10 | W195: 8 | X195: 6 | Y195: 8 | Z195: 6 | AA195: 8 | AB195: 9 | AC195: 9 | AD195: 25 | AE195: 33 | AF195: 28 | AG195: 26 | AH195: 32 | AI195: 27 | AJ195: 30 | AK195: 29 | AL195: 22 | AM195: 24 | AN195: 25 | AO195: 20 | AP195: 18 | AQ195: 27 | AR195: 1 | AS195: 0 | AT195: 0 | AU195: 2 | AV195: 259 | AW195: 21 | AX195: 22 | AY195: 87 | AZ195: 2 | BC195: 492 | BD195: 60 | BE195: 46 | BF195: 77 | BG195: 171 | BH195: 137
A196: 040307 | B196: AREQUIPA | C196: AREQUIPA | D196: CARAVELI | E196: CHALA | I196: 11,388 | J196: 149 | K196: 145 | L196: 171 | M196: 178 | N196: 158 | O196: 191 | P196: 230 | Q196: 236 | R196: 265 | S196: 221 | T196: 236 | U196: 194 | V196: 169 | W196: 155 | X196: 214 | Y196: 225 | Z196: 229 | AA196: 207 | AB196: 169 | AC196: 167 | AD196: 757 | AE196: 853 | AF196: 945 | AG196: 977 | AH196: 835 | AI196: 741 | AJ196: 615 | AK196: 528 | AL196: 429 | AM196: 316 | AN196: 203 | AO196: 117 | AP196: 77 | AQ196: 86 | AR196: 13 | AS196: 77 | AT196: 72 | AU196: 158 | AV196: 5,819 | AW196: 460 | AX196: 515 | AY196: 2,805 | AZ196: 378 | BC196: 11,388 | BD196: 2,374 | BE196: 1,199 | BF196: 1,946 | BG196: 4,641 | BH196: 1,228
F197: 1350 | G197: CENTRO DE SALUD CHALA | H197: 100 | I197: 11,388 | J197: 149 | K197: 145 | L197: 171 | M197: 178 | N197: 158 | O197: 191 | P197: 230 | Q197: 236 | R197: 265 | S197: 221 | T197: 236 | U197: 194 | V197: 169 | W197: 155 | X197: 214 | Y197: 225 | Z197: 229 | AA197: 207 | AB197: 169 | AC197: 167 | AD197: 757 | AE197: 853 | AF197: 945 | AG197: 977 | AH197: 835 | AI197: 741 | AJ197: 615 | AK197: 528 | AL197: 429 | AM197: 316 | AN197: 203 | AO197: 117 | AP197: 77 | AQ197: 86 | AR197: 13 | AS197: 77 | AT197: 72 | AU197: 158 | AV197: 5,819 | AW197: 460 | AX197: 515 | AY197: 2,805 | AZ197: 378 | BC197: 11,388 | BD197: 2,374 | BE197: 1,199 | BF197: 1,946 | BG197: 4,641 | BH197: 1,228
A198: 040308 | B198: AREQUIPA | C198: AREQUIPA | D198: CARAVELI | E198: CHAPARRA | I198: 3,742 | J198: 34 | K198: 39 | L198: 37 | M198: 57 | N198: 49 | O198: 61 | P198: 52 | Q198: 54 | R198: 45 | S198: 48 | T198: 62 | U198: 76 | V198: 55 | W198: 47 | X198: 84 | Y198: 82 | Z198: 68 | AA198: 76 | AB198: 48 | AC198: 39 | AD198: 197 | AE198: 207 | AF198: 321 | AG198: 336 | AH198: 335 | AI198: 268 | AJ198: 231 | AK198: 259 | AL198: 134 | AM198: 108 | AN198: 104 | AO198: 42 | AP198: 41 | AQ198: 46 | AR198: 2 | AS198: 21 | AT198: 13 | AU198: 36 | AV198: 2,029 | AW198: 204 | AX198: 210 | AY198: 868 | AZ198: 63 | BC198: 3,742 | BD198: 614 | BE198: 412 | BF198: 491 | BG198: 1,750 | BH198: 475
F199: 1370 | G199: PUESTO DE SALUD CHAPARRA | H199: 80 | I199: 2,994 | J199: 27 | K199: 31 | L199: 30 | M199: 46 | N199: 39 | O199: 49 | P199: 42 | Q199: 43 | R199: 36 | S199: 38 | T199: 50 | U199: 61 | V199: 44 | W199: 38 | X199: 67 | Y199: 66 | Z199: 54 | AA199: 61 | AB199: 38 | AC199: 31 | AD199: 158 | AE199: 166 | AF199: 257 | AG199: 269 | AH199: 268 | AI199: 214 | AJ199: 185 | AK199: 207 | AL199: 107 | AM199: 86 | AN199: 83 | AO199: 34 | AP199: 33 | AQ199: 37 | AR199: 2 | AS199: 17 | AT199: 10 | AU199: 29 | AV199: 1,623 | AW199: 163 | AX199: 168 | AY199: 694 | AZ199: 50 | BC199: 2,994 | BD199: 491 | BE199: 330 | BF199: 393 | BG199: 1,400 | BH199: 380
F200: 1371 | G200: PUESTO DE SALUD ACHANIZO | H200: 20 | I200: 748 | J200: 7 | K200: 8 | L200: 7 | M200: 11 | N200: 10 | O200: 12 | P200: 10 | Q200: 11 | R200: 9 | S200: 10 | T200: 12 | U200: 15 | V200: 11 | W200: 9 | X200: 17 | Y200: 16 | Z200: 14 | AA200: 15 | AB200: 10 | AC200: 8 | AD200: 39 | AE200: 41 | AF200: 64 | AG200: 67 | AH200: 67 | AI200: 54 | AJ200: 46 | AK200: 52 | AL200: 27 | AM200: 22 | AN200: 21 | AO200: 8 | AP200: 8 | AQ200: 9 | AR200: 0 | AS200: 4 | AT200: 3 | AU200: 7 | AV200: 406 | AW200: 41 | AX200: 42 | AY200: 174 | AZ200: 13 | BC200: 748 | BD200: 123 | BE200: 82 | BF200: 98 | BG200: 350 | BH200: 95
A201: 040309 | B201: AREQUIPA | C201: AREQUIPA | D201: CARAVELI | E201: HUANUHUANU | I201: 3,453 | J201: 35 | K201: 39 | L201: 33 | M201: 48 | N201: 44 | O201: 54 | P201: 42 | Q201: 47 | R201: 37 | S201: 59 | T201: 43 | U201: 65 | V201: 51 | W201: 92 | X201: 84 | Y201: 63 | Z201: 62 | AA201: 57 | AB201: 46 | AC201: 47 | AD201: 198 | AE201: 261 | AF201: 357 | AG201: 313 | AH201: 253 | AI201: 273 | AJ201: 225 | AK201: 178 | AL201: 145 | AM201: 79 | AN201: 48 | AO201: 15 | AP201: 21 | AQ201: 39 | AR201: 4 | AS201: 15 | AT201: 20 | AU201: 37 | AV201: 1,938 | AW201: 221 | AX201: 164 | AY201: 914 | AZ201: 107 | BC201: 3,453 | BD201: 546 | BE201: 409 | BF201: 552 | BG201: 1,599 | BH201: 347
F202: 25072 | G202: PUESTO DE SALUD MOLLEHUACA | H202: 20 | I202: 691 | J202: 7 | K202: 8 | L202: 7 | M202: 10 | N202: 9 | O202: 11 | P202: 8 | Q202: 9 | R202: 7 | S202: 12 | T202: 9 | U202: 13 | V202: 10 | W202: 18 | X202: 17 | Y202: 13 | Z202: 12 | AA202: 11 | AB202: 9 | AC202: 9 | AD202: 40 | AE202: 52 | AF202: 71 | AG202: 63 | AH202: 51 | AI202: 55 | AJ202: 45 | AK202: 36 | AL202: 29 | AM202: 16 | AN202: 10 | AO202: 3 | AP202: 4 | AQ202: 8 | AR202: 1 | AS202: 3 | AT202: 4 | AU202: 7 | AV202: 388 | AW202: 44 | AX202: 33 | AY202: 183 | AZ202: 21 | BC202: 691 | BD202: 109 | BE202: 82 | BF202: 110 | BG202: 320 | BH202: 69
F203: 1367 | G203: PUESTO DE SALUD TOCOTA | H203: 80 | I203: 2,762 | J203: 28 | K203: 31 | L203: 26 | M203: 38 | N203: 35 | O203: 43 | P203: 34 | Q203: 38 | R203: 30 | S203: 47 | T203: 34 | U203: 52 | V203: 41 | W203: 74 | X203: 67 | Y203: 50 | Z203: 50 | AA203: 46 | AB203: 37 | AC203: 38 | AD203: 158 | AE203: 209 | AF203: 286 | AG203: 250 | AH203: 202 | AI203: 218 | AJ203: 180 | AK203: 142 | AL203: 116 | AM203: 63 | AN203: 38 | AO203: 12 | AP203: 17 | AQ203: 31 | AR203: 3 | AS203: 12 | AT203: 16 | AU203: 30 | AV203: 1,550 | AW203: 177 | AX203: 131 | AY203: 731 | AZ203: 86 | BC203: 2,762 | BD203: 437 | BE203: 327 | BF203: 442 | BG203: 1,279 | BH203: 278
... 178 more rows

Sheet RED DE SALUD AREQUIPA CAYLLOMA
A4: POBLACION ESTIMADA POR EDADES SIMPLES Y GRUPOS DE EDAD, SEGÚN DEPARTAMENTO, PROVINCIA Y DISTRITO. 2026
A5: * Actualizado con datos INEI y el Padrón Nominal
A6: POBLACION 2026 | J6: POBLACION TOTAL, POR EDADS SIMPLES | AD6: POBLACIÓN TOTAL, POR GRUPOS QUINQUEN ALES DE EDAD | AR6: EDADES ESPECIALES | AU6: NACIMIENTOS VIVOS | AV6: POBLACION FEMENINA TOTAL | AW6: POBLACION FEMENINA | AZ6: GESTANTES ESPERADAS
A7: UBIGEO | B7: DIRESA | C7: DEPARTAMENTO | D7: PROVINCIA | E7: DISTRITO | I7: Total | J7: 0 | K7: 1 | L7: 2 | M7: 3 | N7: 4 | O7: 5 | P7: 6 | Q7: 7 | R7: 8 | S7: 9 | T7: 10 | U7: 11 | V7: 12 | W7: 13 | X7: 14 | Y7: 15 | Z7: 16 | AA7: 17 | AB7: 18 | AC7: 19 | AD7: 20-24 | AE7: 25-29 | AF7: 30-34 | AG7: 35-39 | AH7: 40-44 | AI7: 45-49 | AJ7: 50-54 | AK7: 55-59 | AL7: 60-64 | AM7: 65-69 | AN7: 70-74 | AO7: 75-79 | AP7: 80-84 | AQ7: 85-+ | AR7: 28 DIAS | AS7: 0-5 MESES | AT7: 6-11 MESES | AW7: 10 - 14 | AX7: 15- 19 | AY7: 20- 49 | BC7: TOTAL | BD7: NIÑO | BE7: Adolescente | BF7: Joven | BG7: Adulto | BH7: Adulto Mayor
A8: 000000 | B8: PERU | C8: PERU | D8: PERU | E8: PERU | I8: 1,655,634 | J8: 15,712 | K8: 16,435 | L8: 16,469 | M8: 17,838 | N8: 18,010 | O8: 21,120 | P8: 26,285 | Q8: 26,908 | R8: 26,517 | S8: 25,193 | T8: 23,455 | U8: 23,754 | V8: 24,541 | W8: 23,426 | X8: 23,835 | Y8: 25,279 | Z8: 25,532 | AA8: 25,380 | AB8: 24,489 | AC8: 23,987 | AD8: 121,156 | AE8: 135,081 | AF8: 135,252 | AG8: 122,328 | AH8: 120,811 | AI8: 112,552 | AJ8: 98,537 | AK8: 90,673 | AL8: 76,289 | AM8: 60,761 | AN8: 48,658 | AO8: 34,917 | AP8: 22,143 | AQ8: 22,311 | AR8: 1,178 | AS8: 7,853 | AT8: 7,859 | AU8: 16,644 | AV8: 840,625 | AW8: 59,071 | AX8: 62,354 | AY8: 379,482 | AZ8: 32,018 | BC8: 1,655,634 | BD8: 257,696 | BE8: 147,993 | BF8: 304,713 | BG8: 680,153 | BH8: 265,079
A9: 040101 | B9: AREQUIPA | C9: AREQUIPA | D9: AREQUIPA | E9: AREQUIPA | I9: 60,452 | J9: 485 | K9: 534 | L9: 526 | M9: 484 | N9: 527 | O9: 685 | P9: 635 | Q9: 684 | R9: 684 | S9: 632 | T9: 555 | U9: 581 | V9: 604 | W9: 596 | X9: 667 | Y9: 660 | Z9: 646 | AA9: 639 | AB9: 601 | AC9: 610 | AD9: 3,343 | AE9: 3,607 | AF9: 3,923 | AG9: 3,575 | AH9: 3,925 | AI9: 4,241 | AJ9: 4,357 | AK9: 4,524 | AL9: 4,341 | AM9: 3,657 | AN9: 3,149 | AO9: 2,346 | AP9: 1,639 | AQ9: 1,790 | AR9: 36 | AS9: 243 | AT9: 242 | AU9: 514 | AV9: 30,549 | AW9: 1,410 | AX9: 1,509 | AY9: 11,197 | AZ9: 930 | BC9: 60,452 | BD9: 7,012 | BE9: 3,812 | BF9: 8,161 | BG9: 24,545 | BH9: 16,922
F10: 7397 | G10: INSTITUTO REGIONAL DE ENFERMEDADES NEOPLASICAS | H10: 0 | I10: 0 | J10: 0 | K10: 0 | L10: 0 | M10: 0 | N10: 0 | O10: 0 | P10: 0 | Q10: 0 | R10: 0 | S10: 0 | T10: 0 | U10: 0 | V10: 0 | W10: 0 | X10: 0 | Y10: 0 | Z10: 0 | AA10: 0 | AB10: 0 | AC10: 0 | AD10: 0 | AE10: 0 | AF10: 0 | AG10: 0 | AH10: 0 | AI10: 0 | AJ10: 0 | AK10: 0 | AL10: 0 | AM10: 0 | AN10: 0 | AO10: 0 | AP10: 0 | AQ10: 0 | AR10: 0 | AS10: 0 | AT10: 0 | AU10: 0 | AV10: 0 | AW10: 0 | AX10: 0 | AY10: 0 | AZ10: 0 | BC10: 0 | BD10: 0 | BE10: 0 | BF10: 0 | BG10: 0 | BH10: 0
F11: 1232 | G11: HOSPITAL GOYENECHE | H11: 0 | I11: 0 | J11: 0 | K11: 0 | L11: 0 | M11: 0 | N11: 0 | O11: 0 | P11: 0 | Q11: 0 | R11: 0 | S11: 0 | T11: 0 | U11: 0 | V11: 0 | W11: 0 | X11: 0 | Y11: 0 | Z11: 0 | AA11: 0 | AB11: 0 | AC11: 0 | AD11: 0 | AE11: 0 | AF11: 0 | AG11: 0 | AH11: 0 | AI11: 0 | AJ11: 0 | AK11: 0 | AL11: 0 | AM11: 0 | AN11: 0 | AO11: 0 | AP11: 0 | AQ11: 0 | AR11: 0 | AS11: 0 | AT11: 0 | AU11: 0 | AV11: 0 | AW11: 0 | AX11: 0 | AY11: 0 | AZ11: 0 | BC11: 0 | BD11: 0 | BE11: 0 | BF11: 0 | BG11: 0 | BH11: 0
F12: 1231 | G12: HOSPITAL REGIONAL HONORIO DELGADO ESPINOZA | H12: 0 | I12: 0 | J12: 0 | K12: 0 | L12: 0 | M12: 0 | N12: 0 | O12: 0 | P12: 0 | Q12: 0 | R12: 0 | S12: 0 | T12: 0 | U12: 0 | V12: 0 | W12: 0 | X12: 0 | Y12: 0 | Z12: 0 | AA12: 0 | AB12: 0 | AC12: 0 | AD12: 0 | AE12: 0 | AF12: 0 | AG12: 0 | AH12: 0 | AI12: 0 | AJ12: 0 | AK12: 0 | AL12: 0 | AM12: 0 | AN12: 0 | AO12: 0 | AP12: 0 | AQ12: 0 | AR12: 0 | AS12: 0 | AT12: 0 | AU12: 0 | AV12: 0 | AW12: 0 | AX12: 0 | AY12: 0 | AZ12: 0 | BC12: 0 | BD12: 0 | BE12: 0 | BF12: 0 | BG12: 0 | BH12: 0
F13: 1291 | G13: CENTRO DE SALUD ALTO SELVA ALEGRE | H13: 20 | I13: 12,092 | J13: 97 | K13: 106 | L13: 106 | M13: 96 | N13: 107 | O13: 137 | P13: 127 | Q13: 136 | R13: 136 | S13: 128 | T13: 111 | U13: 117 | V13: 120 | W13: 120 | X13: 135 | Y13: 132 | Z13: 130 | AA13: 127 | AB13: 121 | AC13: 122 | AD13: 667 | AE13: 723 | AF13: 783 | AG13: 715 | AH13: 785 | AI13: 849 | AJ13: 873 | AK13: 904 | AL13: 869 | AM13: 733 | AN13: 629 | AO13: 470 | AP13: 327 | AQ13: 358 | AR13: 8 | AS13: 47 | AT13: 50 | AU13: 102 | AV13: 6,109 | AW13: 282 | AX13: 301 | AY13: 2,241 | AZ13: 186 | BC13: 12,092 | BD13: 1,404 | BE13: 764 | BF13: 1,633 | BG13: 4,909 | BH13: 3,386
F14: 1294 | G14: CENTRO DE SALUD MARIANO MELGAR | H14: 20 | I14: 12,090 | J14: 97 | K14: 107 | L14: 105 | M14: 97 | N14: 105 | O14: 137 | P14: 127 | Q14: 137 | R14: 137 | S14: 126 | T14: 111 | U14: 116 | V14: 121 | W14: 119 | X14: 133 | Y14: 132 | Z14: 129 | AA14: 128 | AB14: 120 | AC14: 122 | AD14: 669 | AE14: 721 | AF14: 785 | AG14: 715 | AH14: 785 | AI14: 848 | AJ14: 871 | AK14: 905 | AL14: 868 | AM14: 731 | AN14: 630 | AO14: 469 | AP14: 328 | AQ14: 358 | AR14: 7 | AS14: 49 | AT14: 48 | AU14: 103 | AV14: 6,110 | AW14: 282 | AX14: 302 | AY14: 2,239 | AZ14: 186 | BC14: 12,090 | BD14: 1,402 | BE14: 762 | BF14: 1,632 | BG14: 4,909 | BH14: 3,384
F15: 1293 | G15: CENTRO DE SALUD MIRAFLORES | H15: 20 | I15: 12,090 | J15: 97 | K15: 107 | L15: 105 | M15: 97 | N15: 105 | O15: 137 | P15: 127 | Q15: 137 | R15: 137 | S15: 126 | T15: 111 | U15: 116 | V15: 121 | W15: 119 | X15: 133 | Y15: 132 | Z15: 129 | AA15: 128 | AB15: 120 | AC15: 122 | AD15: 669 | AE15: 721 | AF15: 785 | AG15: 715 | AH15: 785 | AI15: 848 | AJ15: 871 | AK15: 905 | AL15: 868 | AM15: 731 | AN15: 630 | AO15: 469 | AP15: 328 | AQ15: 358 | AR15: 7 | AS15: 49 | AT15: 48 | AU15: 103 | AV15: 6,110 | AW15: 282 | AX15: 302 | AY15: 2,239 | AZ15: 186 | BC15: 12,090 | BD15: 1,402 | BE15: 762 | BF15: 1,632 | BG15: 4,909 | BH15: 3,384
F16: 1233 | G16: CENTRO DE SALUD YANAHUARA | H16: 20 | I16: 12,090 | J16: 97 | K16: 107 | L16: 105 | M16: 97 | N16: 105 | O16: 137 | P16: 127 | Q16: 137 | R16: 137 | S16: 126 | T16: 111 | U16: 116 | V16: 121 | W16: 119 | X16: 133 | Y16: 132 | Z16: 129 | AA16: 128 | AB16: 120 | AC16: 122 | AD16: 669 | AE16: 721 | AF16: 785 | AG16: 715 | AH16: 785 | AI16: 848 | AJ16: 871 | AK16: 905 | AL16: 868 | AM16: 731 | AN16: 630 | AO16: 469 | AP16: 328 | AQ16: 358 | AR16: 7 | AS16: 49 | AT16: 48 | AU16: 103 | AV16: 6,110 | AW16: 282 | AX16: 302 | AY16: 2,239 | AZ16: 186 | BC16: 12,090 | BD16: 1,402 | BE16: 762 | BF16: 1,632 | BG16: 4,909 | BH16: 3,384
F17: 1263 | G17: PUESTO DE SALUD 13 DE ENERO (VRH) | H17: 20 | I17: 12,090 | J17: 97 | K17: 107 | L17: 105 | M17: 97 | N17: 105 | O17: 137 | P17: 127 | Q17: 137 | R17: 137 | S17: 126 | T17: 111 | U17: 116 | V17: 121 | W17: 119 | X17: 133 | Y17: 132 | Z17: 129 | AA17: 128 | AB17: 120 | AC17: 122 | AD17: 669 | AE17: 721 | AF17: 785 | AG17: 715 | AH17: 785 | AI17: 848 | AJ17: 871 | AK17: 905 | AL17: 868 | AM17: 731 | AN17: 630 | AO17: 469 | AP17: 328 | AQ17: 358 | AR17: 7 | AS17: 49 | AT17: 48 | AU17: 103 | AV17: 6,110 | AW17: 282 | AX17: 302 | AY17: 2,239 | AZ17: 186 | BC17: 12,090 | BD17: 1,402 | BE17: 762 | BF17: 1,632 | BG17: 4,909 | BH17: 3,384
G19: RED DE SALUD AREQUIPA CAYLLOMA | I19: =+I21+I33+I43+I51+I59+I65+I71+I76+I83+I90+I96+I107+I119+I128+I133+I139+I147+I154+I161+I169+I176+I188+I198+I205+I212+I222+I230+I238 -> 1,329,507 | J19: =+J21+J33+J43+J51+J59+J65+J71+J76+J83+J90+J96+J107+J119+J128+J133+J139+J147+J154+J161+J169+J176+J188+J198+J205+J212+J222+J230+J238 -> 12,770 | K19: =+K21+K33+K43+K51+K59+K65+K71+K76+K83+K90+K96+K107+K119+K128+K133+K139+K147+K154+K161+K169+K176+K188+K198+K205+K212+K222+K230+K238 -> 13,226 | L19: =+L21+L33+L43+L51+L59+L65+L71+L76+L83+L90+L96+L107+L119+L128+L133+L139+L147+L154+L161+L169+L176+L188+L198+L205+L212+L222+L230+L238 -> 13,154 | M19: =+M21+M33+M43+M51+M59+M65+M71+M76+M83+M90+M96+M107+M119+M128+M133+M139+M147+M154+M161+M169+M176+M188+M198+M205+M212+M222+M230+M238 -> 14,348 | N19: =+N21+N33+N43+N51+N59+N65+N71+N76+N83+N90+N96+N107+N119+N128+N133+N139+N147+N154+N161+N169+N176+N188+N198+N205+N212+N222+N230+N238 -> 14,584 | O19: =+O21+O33+O43+O51+O59+O65+O71+O76+O83+O90+O96+O107+O119+O128+O133+O139+O147+O154+O161+O169+O176+O188+O198+O205+O212+O222+O230+O238 -> 17,149 | P19: =+P21+P33+P43+P51+P59+P65+P71+P76+P83+P90+P96+P107+P119+P128+P133+P139+P147+P154+P161+P169+P176+P188+P198+P205+P212+P222+P230+P238 -> 21,840 | Q19: =+Q21+Q33+Q43+Q51+Q59+Q65+Q71+Q76+Q83+Q90+Q96+Q107+Q119+Q128+Q133+Q139+Q147+Q154+Q161+Q169+Q176+Q188+Q198+Q205+Q212+Q222+Q230+Q238 -> 22,300 | R19: =+R21+R33+R43+R51+R59+R65+R71+R76+R83+R90+R96+R107+R119+R128+R133+R139+R147+R154+R161+R169+R176+R188+R198+R205+R212+R222+R230+R238 -> 21,921 | S19: =+S21+S33+S43+S51+S59+S65+S71+S76+S83+S90+S96+S107+S119+S128+S133+S139+S147+S154+S161+S169+S176+S188+S198+S205+S212+S222+S230+S238 -> 20,768 | T19: =+T21+T33+T43+T51+T59+T65+T71+T76+T83+T90+T96+T107+T119+T128+T133+T139+T147+T154+T161+T169+T176+T188+T198+T205+T212+T222+T230+T238 -> 19,244 | U19: =+U21+U33+U43+U51+U59+U65+U71+U76+U83+U90+U96+U107+U119+U128+U133+U139+U147+U154+U161+U169+U176+U188+U198+U205+U212+U222+U230+U238 -> 19,337 | V19: =+V21+V33+V43+V51+V59+V65+V71+V76+V83+V90+V96+V107+V119+V128+V133+V139+V147+V154+V161+V169+V176+V188+V198+V205+V212+V222+V230+V238 -> 20,085 | W19: =+W21+W33+W43+W51+W59+W65+W71+W76+W83+W90+W96+W107+W119+W128+W133+W139+W147+W154+W161+W169+W176+W188+W198+W205+W212+W222+W230+W238 -> 19,144 | X19: =+X21+X33+X43+X51+X59+X65+X71+X76+X83+X90+X96+X107+X119+X128+X133+X139+X147+X154+X161+X169+X176+X188+X198+X205+X212+X222+X230+X238 -> 19,236 | Y19: =+Y21+Y33+Y43+Y51+Y59+Y65+Y71+Y76+Y83+Y90+Y96+Y107+Y119+Y128+Y133+Y139+Y147+Y154+Y161+Y169+Y176+Y188+Y198+Y205+Y212+Y222+Y230+Y238 -> 20,295 | Z19: =+Z21+Z33+Z43+Z51+Z59+Z65+Z71+Z76+Z83+Z90+Z96+Z107+Z119+Z128+Z133+Z139+Z147+Z154+Z161+Z169+Z176+Z188+Z198+Z205+Z212+Z222+Z230+Z238 -> 20,410 | AA19: =+AA21+AA33+AA43+AA51+AA59+AA65+AA71+AA76+AA83+AA90+AA96+AA107+AA119+AA128+AA133+AA139+AA147+AA154+AA161+AA169+AA176+AA188+AA198+AA205+AA212+AA222+AA230+AA238 -> 20,345 | AB19: =+AB21+AB33+AB43+AB51+AB59+AB65+AB71+AB76+AB83+AB90+AB96+AB107+AB119+AB128+AB133+AB139+AB147+AB154+AB161+AB169+AB176+AB188+AB198+AB205+AB212+AB222+AB230+AB238 -> 19,991 | AC19: =+AC21+AC33+AC43+AC51+AC59+AC65+AC71+AC76+AC83+AC90+AC96+AC107+AC119+AC128+AC133+AC139+AC147+AC154+AC161+AC169+AC176+AC188+AC198+AC205+AC212+AC222+AC230+AC238 -> 19,756 | AD19: =+AD21+AD33+AD43+AD51+AD59+AD65+AD71+AD76+AD83+AD90+AD96+AD107+AD119+AD128+AD133+AD139+AD147+AD154+AD161+AD169+AD176+AD188+AD198+AD205+AD212+AD222+AD230+AD238 -> 100,258 | AE19: =+AE21+AE33+AE43+AE51+AE59+AE65+AE71+AE76+AE83+AE90+AE96+AE107+AE119+AE128+AE133+AE139+AE147+AE154+AE161+AE169+AE176+AE188+AE198+AE205+AE212+AE222+AE230+AE238 -> 111,864 | AF19: =+AF21+AF33+AF43+AF51+AF59+AF65+AF71+AF76+AF83+AF90+AF96+AF107+AF119+AF128+AF133+AF139+AF147+AF154+AF161+AF169+AF176+AF188+AF198+AF205+AF212+AF222+AF230+AF238 -> 111,834 | AG19: =+AG21+AG33+AG43+AG51+AG59+AG65+AG71+AG76+AG83+AG90+AG96+AG107+AG119+AG128+AG133+AG139+AG147+AG154+AG161+AG169+AG176+AG188+AG198+AG205+AG212+AG222+AG230+AG238 -> 100,158 | AH19: =+AH21+AH33+AH43+AH51+AH59+AH65+AH71+AH76+AH83+AH90+AH96+AH107+AH119+AH128+AH133+AH139+AH147+AH154+AH161+AH169+AH176+AH188+AH198+AH205+AH212+AH222+AH230+AH238 -> 98,543 | AI19: =+AI21+AI33+AI43+AI51+AI59+AI65+AI71+AI76+AI83+AI90+AI96+AI107+AI119+AI128+AI133+AI139+AI147+AI154+AI161+AI169+AI176+AI188+AI198+AI205+AI212+AI222+AI230+AI238 -> 90,396 | AJ19: =+AJ21+AJ33+AJ43+AJ51+AJ59+AJ65+AJ71+AJ76+AJ83+AJ90+AJ96+AJ107+AJ119+AJ128+AJ133+AJ139+AJ147+AJ154+AJ161+AJ169+AJ176+AJ188+AJ198+AJ205+AJ212+AJ222+AJ230+AJ238 -> 77,527 | AK19: =+AK21+AK33+AK43+AK51+AK59+AK65+AK71+AK76+AK83+AK90+AK96+AK107+AK119+AK128+AK133+AK139+AK147+AK154+AK161+AK169+AK176+AK188+AK198+AK205+AK212+AK222+AK230+AK238 -> 69,988 | AL19: =+AL21+AL33+AL43+AL51+AL59+AL65+AL71+AL76+AL83+AL90+AL96+AL107+AL119+AL128+AL133+AL139+AL147+AL154+AL161+AL169+AL176+AL188+AL198+AL205+AL212+AL222+AL230+AL238 -> 58,026 | AM19: =+AM21+AM33+AM43+AM51+AM59+AM65+AM71+AM76+AM83+AM90+AM96+AM107+AM119+AM128+AM133+AM139+AM147+AM154+AM161+AM169+AM176+AM188+AM198+AM205+AM212+AM222+AM230+AM238 -> 46,176 | AN19: =+AN21+AN33+AN43+AN51+AN59+AN65+AN71+AN76+AN83+AN90+AN96+AN107+AN119+AN128+AN133+AN139+AN147+AN154+AN161+AN169+AN176+AN188+AN198+AN205+AN212+AN222+AN230+AN238 -> 36,750 | AO19: =+AO21+AO33+AO43+AO51+AO59+AO65+AO71+AO76+AO83+AO90+AO96+AO107+AO119+AO128+AO133+AO139+AO147+AO154+AO161+AO169+AO176+AO188+AO198+AO205+AO212+AO222+AO230+AO238 -> 26,170 | AP19: =+AP21+AP33+AP43+AP51+AP59+AP65+AP71+AP76+AP83+AP90+AP96+AP107+AP119+AP128+AP133+AP139+AP147+AP154+AP161+AP169+AP176+AP188+AP198+AP205+AP212+AP222+AP230+AP238 -> 16,142 | AQ19: =+AQ21+AQ33+AQ43+AQ51+AQ59+AQ65+AQ71+AQ76+AQ83+AQ90+AQ96+AQ107+AQ119+AQ128+AQ133+AQ139+AQ147+AQ154+AQ161+AQ169+AQ176+AQ188+AQ198+AQ205+AQ212+AQ222+AQ230+AQ238 -> 15,779 | AR19: =+AR21+AR33+AR43+AR51+AR59+AR65+AR71+AR76+AR83+AR90+AR96+AR107+AR119+AR128+AR133+AR139+AR147+AR154+AR161+AR169+AR176+AR188+AR198+AR205+AR212+AR222+AR230+AR238 -> 964 | AS19: =+AS21+AS33+AS43+AS51+AS59+AS65+AS71+AS76+AS83+AS90+AS96+AS107+AS119+AS128+AS133+AS139+AS147+AS154+AS161+AS169+AS176+AS188+AS198+AS205+AS212+AS222+AS230+AS238 -> 6,374 | AT19: =+AT21+AT33+AT43+AT51+AT59+AT65+AT71+AT76+AT83+AT90+AT96+AT107+AT119+AT128+AT133+AT139+AT147+AT154+AT161+AT169+AT176+AT188+AT198+AT205+AT212+AT222+AT230+AT238 -> 6,396 | AU19: =+AU21+AU33+AU43+AU51+AU59+AU65+AU71+AU76+AU83+AU90+AU96+AU107+AU119+AU128+AU133+AU139+AU147+AU154+AU161+AU169+AU176+AU188+AU198+AU205+AU212+AU222+AU230+AU238 -> 13,530 | AV19: =+AV21+AV33+AV43+AV51+AV59+AV65+AV71+AV76+AV83+AV90+AV96+AV107+AV119+AV128+AV133+AV139+AV147+AV154+AV161+AV169+AV176+AV188+AV198+AV205+AV212+AV222+AV230+AV238 -> 673,411 | AW19: =+AW21+AW33+AW43+AW51+AW59+AW65+AW71+AW76+AW83+AW90+AW96+AW107+AW119+AW128+AW133+AW139+AW147+AW154+AW161+AW169+AW176+AW188+AW198+AW205+AW212+AW222+AW230+AW238 -> 47,871 | AX19: =+AX21+AX33+AX43+AX51+AX59+AX65+AX71+AX76+AX83+AX90+AX96+AX107+AX119+AX128+AX133+AX139+AX147+AX154+AX161+AX169+AX176+AX188+AX198+AX205+AX212+AX222+AX230+AX238 -> 50,037 | AY19: =+AY21+AY33+AY43+AY51+AY59+AY65+AY71+AY76+AY83+AY90+AY96+AY107+AY119+AY128+AY133+AY139+AY147+AY154+AY161+AY169+AY176+AY188+AY198+AY205+AY212+AY222+AY230+AY238 -> 310,034 | AZ19: =+AZ21+AZ33+AZ43+AZ51+AZ59+AZ65+AZ71+AZ76+AZ83+AZ90+AZ96+AZ107+AZ119+AZ128+AZ133+AZ139+AZ147+AZ154+AZ161+AZ169+AZ176+AZ188+AZ198+AZ205+AZ212+AZ222+AZ230+AZ238 -> 25,758 | BC19: =+BC21+BC33+BC43+BC51+BC59+BC65+BC71+BC76+BC83+BC90+BC96+BC107+BC119+BC128+BC133+BC139+BC147+BC154+BC161+BC169+BC176+BC188+BC198+BC205+BC212+BC222+BC230+BC238 -> 1,329,507 | BD19: =+BD21+BD33+BD43+BD51+BD59+BD65+BD71+BD76+BD83+BD90+BD96+BD107+BD119+BD128+BD133+BD139+BD147+BD154+BD161+BD169+BD176+BD188+BD198+BD205+BD212+BD222+BD230+BD238 -> 210,640 | BE19: =+BE21+BE33+BE43+BE51+BE59+BE65+BE71+BE76+BE83+BE90+BE96+BE107+BE119+BE128+BE133+BE139+BE147+BE154+BE161+BE169+BE176+BE188+BE198+BE205+BE212+BE222+BE230+BE238 -> 119,511 | BF19: =+BF21+BF33+BF43+BF51+BF59+BF65+BF71+BF76+BF83+BF90+BF96+BF107+BF119+BF128+BF133+BF139+BF147+BF154+BF161+BF169+BF176+BF188+BF198+BF205+BF212+BF222+BF230+BF238 -> 251,867 | BG19: =+BG21+BG33+BG43+BG51+BG59+BG65+BG71+BG76+BG83+BG90+BG96+BG107+BG119+BG128+BG133+BG139+BG147+BG154+BG161+BG169+BG176+BG188+BG198+BG205+BG212+BG222+BG230+BG238 -> 548,445 | BH19: =+BH21+BH33+BH43+BH51+BH59+BH65+BH71+BH76+BH83+BH90+BH96+BH107+BH119+BH128+BH133+BH139+BH147+BH154+BH161+BH169+BH176+BH188+BH198+BH205+BH212+BH222+BH230+BH238 -> 199,042
G21: MR CHIVAY | I21: =SUM(I22:I30) -> 16,660 | J21: =SUM(J22:J30) -> 95 | K21: 106 | L21: 103 | M21: 172 | N21: 115 | O21: 163 | P21: 228 | Q21: 239 | R21: 223 | S21: 211 | T21: 231 | U21: 200 | V21: 258 | W21: 244 | X21: 211 | Y21: 279 | Z21: 296 | AA21: 289 | AB21: 260 | AC21: 271 | AD21: 1,318 | AE21: 1,369 | AF21: 1,249 | AG21: 1,102 | AH21: 1,114 | AI21: 1,063 | AJ21: 907 | AK21: 996 | AL21: 854 | AM21: 688 | AN21: 594 | AO21: 519 | AP21: 334 | AQ21: 361 | AR21: 6 | AS21: 48 | AT21: 47 | AU21: 99 | AV21: 8,600 | AW21: 575 | AX21: 697 | AY21: 3,687 | AZ21: 187 | BC21: =SUM(BC22:BC30) -> 16,660 | BD21: =SUM(BD22:BD30) -> 2,085 | BE21: =SUM(BE22:BE30) -> 1,576 | BF21: =SUM(BF22:BF30) -> 3,217 | BG21: =SUM(BG22:BG30) -> 6,431 | BH21: =SUM(BH22:BH30) -> 3,350
A22: 040502 | B22: AREQUIPA | C22: AREQUIPA | D22: CAYLLOMA | E22: CHIVAY | F22: 1419 | G22: CENTRO DE SALUD CHIVAY | H22: 90 | I22: 7,134 | J22: 45 | K22: 44 | L22: 47 | M22: 88 | N22: 47 | O22: 76 | P22: 123 | Q22: 128 | R22: 130 | S22: 125 | T22: 130 | U22: 109 | V22: 153 | W22: 133 | X22: 112 | Y22: 155 | Z22: 159 | AA22: 148 | AB22: 148 | AC22: 125 | AD22: 677 | AE22: 634 | AF22: 577 | AG22: 481 | AH22: 427 | AI22: 392 | AJ22: 319 | AK22: 386 | AL22: 285 | AM22: 195 | AN22: 181 | AO22: 170 | AP22: 81 | AQ22: 103 | AR22: 2 | AS22: 24 | AT22: 21 | AU22: 48 | AV22: 3,631 | AW22: 309 | AX22: 358 | AY22: 1,626 | AZ22: 79 | BC22: 7,134 | BD22: 1,093 | BE22: 860 | BF22: 1,583 | BG22: 2,583 | BH22: 1,015
F23: 1423 | G23: PUESTO DE SALUD CANOCOTA | H23: 10 | I23: 793 | J23: 5 | K23: 5 | L23: 5 | M23: 10 | N23: 5 | O23: 9 | P23: 14 | Q23: 14 | R23: 15 | S23: 14 | T23: 14 | U23: 12 | V23: 17 | W23: 15 | X23: 12 | Y23: 17 | Z23: 18 | AA23: 17 | AB23: 16 | AC23: 14 | AD23: 75 | AE23: 70 | AF23: 64 | AG23: 53 | AH23: 48 | AI23: 44 | AJ23: 36 | AK23: 43 | AL23: 32 | AM23: 22 | AN23: 20 | AO23: 19 | AP23: 9 | AQ23: 11 | AR23: 0 | AS23: 3 | AT23: 2 | AU23: 5 | AV23: 404 | AW23: 34 | AX23: 40 | AY23: 181 | AZ23: 9 | BC23: 793 | BD23: 121 | BE23: 96 | BF23: 176 | BG23: 287 | BH23: 113
A24: 040503 | B24: AREQUIPA | C24: AREQUIPA | D24: CAYLLOMA | E24: ACHOMA | F24: 1429 | G24: PUESTO DE SALUD ACHOMA | H24: 100 | I24: 1,214 | J24: 5 | K24: 5 | L24: 8 | M24: 13 | N24: 12 | O24: 7 | P24: 12 | Q24: 11 | R24: 9 | S24: 5 | T24: 7 | U24: 9 | V24: 11 | W24: 11 | X24: 11 | Y24: 15 | Z24: 10 | AA24: 15 | AB24: 8 | AC24: 21 | AD24: 82 | AE24: 101 | AF24: 77 | AG24: 59 | AH24: 82 | AI24: 96 | AJ24: 90 | AK24: 99 | AL24: 85 | AM24: 59 | AN24: 55 | AO24: 44 | AP24: 40 | AQ24: 40 | AR24: 1 | AS24: 4 | AT24: 1 | AU24: 5 | AV24: 652 | AW24: 26 | AX24: 40 | AY24: 253 | AZ24: 7 | BC24: 1,214 | BD24: 103 | BE24: 73 | BF24: 212 | BG24: 503 | BH24: 323
A25: 040507 | B25: AREQUIPA | C25: AREQUIPA | D25: CAYLLOMA | E25: COPORAQUE | F25: 1424 | G25: PUESTO DE SALUD COPORAQUE | H25: 100 | I25: 1,547 | J25: 12 | K25: 18 | L25: 9 | M25: 15 | N25: 10 | O25: 16 | P25: 25 | Q25: 23 | R25: 17 | S25: 17 | T25: 16 | U25: 14 | V25: 6 | W25: 14 | X25: 11 | Y25: 20 | Z25: 22 | AA25: 16 | AB25: 18 | AC25: 22 | AD25: 85 | AE25: 116 | AF25: 98 | AG25: 119 | AH25: 151 | AI25: 101 | AJ25: 94 | AK25: 92 | AL25: 98 | AM25: 74 | AN25: 66 | AO25: 52 | AP25: 38 | AQ25: 42 | AR25: 1 | AS25: 2 | AT25: 10 | AU25: 12 | AV25: 769 | AW25: 30 | AX25: 48 | AY25: 342 | AZ25: 38 | BC25: 1,547 | BD25: 192 | BE25: 89 | BF25: 241 | BG25: 655 | BH25: 370
A26: 040510 | B26: AREQUIPA | C26: AREQUIPA | D26: CAYLLOMA | E26: ICHUPAMPA | F26: 1425 | G26: PUESTO DE SALUD ICHUPAMPA | H26: 100 | I26: 966 | J26: 5 | K26: 3 | L26: 5 | M26: 12 | N26: 7 | O26: 14 | P26: 9 | Q26: 10 | R26: 13 | S26: 7 | T26: 7 | U26: 15 | V26: 16 | W26: 7 | X26: 16 | Y26: 9 | Z26: 13 | AA26: 16 | AB26: 3 | AC26: 14 | AD26: 54 | AE26: 72 | AF26: 83 | AG26: 65 | AH26: 61 | AI26: 64 | AJ26: 59 | AK26: 64 | AL26: 56 | AM26: 60 | AN26: 47 | AO26: 34 | AP26: 24 | AQ26: 22 | AR26: 1 | AS26: 1 | AT26: 4 | AU26: 5 | AV26: 514 | AW26: 32 | AX26: 26 | AY26: 217 | AZ26: 7 | BC26: 966 | BD26: 107 | BE26: 77 | BF26: 143 | BG26: 396 | BH26: 243
A27: 040511 | B27: AREQUIPA | C27: AREQUIPA | D27: CAYLLOMA | E27: LARI | F27: 1426 | G27: PUESTO DE SALUD LARI | H27: 100 | I27: 1,332 | J27: 6 | K27: 12 | L27: 12 | M27: 15 | N27: 11 | O27: 14 | P27: 14 | Q27: 16 | R27: 7 | S27: 16 | T27: 21 | U27: 21 | V27: 13 | W27: 23 | X27: 18 | Y27: 23 | Z27: 24 | AA27: 20 | AB27: 25 | AC27: 22 | AD27: 100 | AE27: 110 | AF27: 107 | AG27: 66 | AH27: 86 | AI27: 90 | AJ27: 83 | AK27: 82 | AL27: 71 | AM27: 62 | AN27: 38 | AO27: 35 | AP27: 42 | AQ27: 27 | AR27: 0 | AS27: 3 | AT27: 3 | AU27: 6 | AV27: 714 | AW27: 55 | AX27: 62 | AY27: 286 | AZ27: 22 | BC27: 1,332 | BD27: 165 | BE27: 121 | BF27: 257 | BG27: 514 | BH27: 275
A28: 040513 | B28: AREQUIPA | C28: AREQUIPA | D28: CAYLLOMA | E28: MACA | F28: 1430 | G28: PUESTO DE SALUD MACA | H28: 100 | I28: 1,058 | J28: 6 | K28: 6 | L28: 3 | M28: 4 | N28: 8 | O28: 3 | P28: 6 | Q28: 12 | R28: 11 | S28: 6 | T28: 12 | U28: 2 | V28: 12 | W28: 9 | X28: 1 | Y28: 14 | Z28: 12 | AA28: 16 | AB28: 7 | AC28: 16 | AD28: 64 | AE28: 68 | AF28: 55 | AG28: 80 | AH28: 82 | AI28: 85 | AJ28: 73 | AK28: 72 | AL28: 57 | AM28: 68 | AN28: 51 | AO28: 68 | AP28: 30 | AQ28: 39 | AR28: 0 | AS28: 5 | AT28: 1 | AU28: 6 | AV28: 555 | AW28: 15 | AX28: 30 | AY28: 217 | AZ28: 9 | BC28: 1,058 | BD28: 79 | BE28: 64 | BF28: 155 | BG28: 447 | BH28: 313
A29: 040514 | B29: AREQUIPA | C29: AREQUIPA | D29: CAYLLOMA | E29: MADRIGAL | F29: 1427 | G29: PUESTO DE SALUD MADRIGAL | H29: 100 | I29: 929 | J29: 2 | K29: 5 | L29: 3 | M29: 5 | N29: 3 | O29: 3 | P29: 4 | Q29: 5 | R29: 5 | S29: 4 | T29: 3 | U29: 3 | V29: 9 | W29: 11 | X29: 10 | Y29: 8 | Z29: 15 | AA29: 12 | AB29: 8 | AC29: 10 | AD29: 57 | AE29: 53 | AF29: 50 | AG29: 62 | AH29: 55 | AI29: 72 | AJ29: 56 | AK29: 61 | AL29: 78 | AM29: 68 | AN29: 56 | AO29: 54 | AP29: 35 | AQ29: 44 | AR29: 0 | AS29: 1 | AT29: 1 | AU29: 2 | AV29: 485 | AW29: 21 | AX29: 35 | AY29: 164 | AZ29: 4 | BC29: 929 | BD29: 45 | BE29: 65 | BF29: 128 | BG29: 356 | BH29: 335
A30: 040520 | B30: AREQUIPA | C30: AREQUIPA | D30: CAYLLOMA | E30: YANQUE | F30: 1428 | G30: PUESTO DE SALUD YANQUE | H30: 54 | I30: 1,687 | J30: 9 | K30: 8 | L30: 11 | M30: 10 | N30: 12 | O30: 21 | P30: 21 | Q30: 20 | R30: 16 | S30: 17 | T30: 21 | U30: 15 | V30: 21 | W30: 21 | X30: 20 | Y30: 18 | Z30: 23 | AA30: 29 | AB30: 27 | AC30: 27 | AD30: 124 | AE30: 145 | AF30: 138 | AG30: 117 | AH30: 122 | AI30: 119 | AJ30: 97 | AK30: 97 | AL30: 92 | AM30: 80 | AN30: 80 | AO30: 43 | AP30: 35 | AQ30: 33 | AR30: 1 | AS30: 5 | AT30: 4 | AU30: 10 | AV30: 876 | AW30: 53 | AX30: 58 | AY30: 401 | AZ30: 12 | BC30: 1,687 | BD30: 180 | BE30: 131 | BF30: 322 | BG30: 690 | BH30: 363
G33: MR CALLALLI | I33: =SUM(I34:I40) -> 8,012 | J33: =SUM(J34:J40) -> 34 | K33: 37 | L33: 62 | M33: 59 | N33: 51 | O33: 77 | P33: 92 | Q33: 88 | R33: 74 | S33: 93 | T33: 96 | U33: 94 | V33: 96 | W33: 102 | X33: 70 | Y33: 115 | Z33: 127 | AA33: 124 | AB33: 126 | AC33: 112 | AD33: 605 | AE33: 621 | AF33: 569 | AG33: 515 | AH33: 539 | AI33: 581 | AJ33: 517 | AK33: 541 | AL33: 474 | AM33: 373 | AN33: 362 | AO33: 274 | AP33: 151 | AQ33: 159 | AR33: 3 | AS33: 19 | AT33: 15 | AU33: 34 | AV33: 4,238 | AW33: 235 | AX33: 305 | AY33: 1,778 | AZ33: 67 | BC33: =SUM(BC34:BC40) -> 8,012 | BD33: =SUM(BD34:BD40) -> 858 | BE33: =SUM(BE34:BE40) -> 635 | BF33: =SUM(BF34:BF40) -> 1,465 | BG33: =SUM(BG34:BG40) -> 3,262 | BH33: =SUM(BH34:BH40) -> 1,793
A34: 040505 | B34: AREQUIPA | C34: AREQUIPA | D34: CAYLLOMA | E34: CALLALLI | F34: 1421 | G34: CENTRO DE SALUD CALLALLI | H34: 100 | I34: 2,195 | J34: 11 | K34: 8 | L34: 19 | M34: 17 | N34: 17 | O34: 25 | P34: 25 | Q34: 17 | R34: 21 | S34: 28 | T34: 23 | U34: 34 | V34: 17 | W34: 32 | X34: 9 | Y34: 23 | Z34: 29 | AA34: 19 | AB34: 26 | AC34: 21 | AD34: 146 | AE34: 175 | AF34: 154 | AG34: 135 | AH34: 121 | AI34: 166 | AJ34: 172 | AK34: 172 | AL34: 148 | AM34: 121 | AN34: 107 | AO34: 67 | AP34: 40 | AQ34: 50 | AR34: 2 | AS34: 4 | AT34: 7 | AU34: 11 | AV34: 1,156 | AW34: 61 | AX34: 72 | AY34: 452 | AZ34: 14 | BC34: 2,195 | BD34: 245 | BE34: 129 | BF34: 368 | BG34: 920 | BH34: 533
A35: 040518 | B35: AREQUIPA | C35: AREQUIPA | D35: CAYLLOMA | E35: TISCO | F35: 1438 | G35: PUESTO DE SALUD TISCO | H35: 39 | I35: 850 | J35: 3 | K35: 4 | L35: 5 | M35: 6 | N35: 6 | O35: 6 | P35: 11 | Q35: 8 | R35: 10 | S35: 9 | T35: 10 | U35: 7 | V35: 12 | W35: 14 | X35: 13 | Y35: 15 | Z35: 13 | AA35: 18 | AB35: 17 | AC35: 11 | AD35: 71 | AE35: 62 | AF35: 52 | AG35: 49 | AH35: 58 | AI35: 58 | AJ35: 57 | AK35: 63 | AL35: 50 | AM35: 37 | AN35: 32 | AO35: 34 | AP35: 17 | AQ35: 15 | AR35: 0 | AS35: 1 | AT35: 1 | AU35: 3 | AV35: 463 | AW35: 30 | AX35: 40 | AY35: 183 | AZ35: 7 | BC35: 850 | BD35: 83 | BE35: 87 | BF35: 160 | BG35: 335 | BH35: 183
F36: 1431 | G36: PUESTO DE SALUD COTACOTA | H36: 37 | I36: 806 | J36: 2 | K36: 4 | L36: 4 | M36: 6 | N36: 5 | O36: 5 | P36: 10 | Q36: 9 | R36: 9 | S36: 9 | T36: 9 | U36: 7 | V36: 12 | W36: 13 | X36: 13 | Y36: 15 | Z36: 13 | AA36: 17 | AB36: 16 | AC36: 10 | AD36: 67 | AE36: 58 | AF36: 50 | AG36: 46 | AH36: 55 | AI36: 54 | AJ36: 54 | AK36: 59 | AL36: 47 | AM36: 34 | AN36: 30 | AO36: 32 | AP36: 16 | AQ36: 14 | AR36: 0 | AS36: 1 | AT36: 1 | AU36: 2 | AV36: 438 | AW36: 28 | AX36: 38 | AY36: 174 | AZ36: 7 | BC36: 806 | BD36: 80 | BE36: 82 | BF36: 152 | BG36: 319 | BH36: 174
F37: 6891 | G37: PUESTO DE SALUD TARUCAMARCA | H37: 24 | I37: 523 | J37: 1 | K37: 2 | L37: 3 | M37: 4 | N37: 3 | O37: 3 | P37: 6 | Q37: 6 | R37: 6 | S37: 6 | T37: 6 | U37: 5 | V37: 8 | W37: 9 | X37: 8 | Y37: 10 | Z37: 8 | AA37: 11 | AB37: 10 | AC37: 7 | AD37: 44 | AE37: 38 | AF37: 32 | AG37: 30 | AH37: 36 | AI37: 35 | AJ37: 35 | AK37: 38 | AL37: 30 | AM37: 22 | AN37: 19 | AO37: 21 | AP37: 11 | AQ37: 9 | AR37: 0 | AS37: 1 | AT37: 1 | AU37: 1 | AV37: 284 | AW37: 18 | AX37: 24 | AY37: 113 | AZ37: 5 | BC37: 523 | BD37: 52 | BE37: 53 | BF37: 99 | BG37: 207 | BH37: 113
A38: 040516 | B38: AREQUIPA | C38: AREQUIPA | D38: CAYLLOMA | E38: SIBAYO | F38: 1435 | G38: PUESTO DE SALUD SANTA ROSA DE SIBAYO | H38: 100 | I38: 1,111 | J38: 3 | K38: 5 | L38: 12 | M38: 8 | N38: 3 | O38: 10 | P38: 5 | Q38: 15 | R38: 7 | S38: 14 | T38: 15 | U38: 13 | V38: 15 | W38: 15 | X38: 1 | Y38: 23 | Z38: 20 | AA38: 18 | AB38: 14 | AC38: 13 | AD38: 88 | AE38: 87 | AF38: 86 | AG38: 76 | AH38: 83 | AI38: 95 | AJ38: 60 | AK38: 67 | AL38: 66 | AM38: 48 | AN38: 44 | AO38: 41 | AP38: 19 | AQ38: 22 | AR38: 0 | AS38: 2 | AT38: 1 | AU38: 3 | AV38: 572 | AW38: 23 | AX38: 41 | AY38: 262 | AZ38: 5 | BC38: 1,111 | BD38: 110 | BE38: 92 | BF38: 202 | BG38: 467 | BH38: 240
A39: 040519 | B39: AREQUIPA | C39: AREQUIPA | D39: CAYLLOMA | E39: TUTI | F39: 1436 | G39: PUESTO DE SALUD TUTI | H39: 100 | I39: 1,090 | J39: 6 | K39: 7 | L39: 9 | M39: 9 | N39: 6 | O39: 10 | P39: 18 | Q39: 16 | R39: 8 | S39: 13 | T39: 16 | U39: 16 | V39: 15 | W39: 2 | X39: 9 | Y39: 13 | Z39: 25 | AA39: 16 | AB39: 20 | AC39: 27 | AD39: 84 | AE39: 78 | AF39: 77 | AG39: 79 | AH39: 82 | AI39: 71 | AJ39: 57 | AK39: 60 | AL39: 55 | AM39: 43 | AN39: 62 | AO39: 42 | AP39: 19 | AQ39: 20 | AR39: 1 | AS39: 5 | AT39: 1 | AU39: 6 | AV39: 579 | AW39: 30 | AX39: 41 | AY39: 252 | AZ39: 18 | BC39: 1,090 | BD39: 134 | BE39: 80 | BF39: 209 | BG39: 426 | BH39: 241
A40: 040520 | B40: AREQUIPA | C40: AREQUIPA | D40: CAYLLOMA | E40: YANQUE | F40: 1437 | G40: PUESTO DE SALUD CHALHUANCA | H40: 46 | I40: 1,437 | J40: 8 | K40: 7 | L40: 10 | M40: 9 | N40: 11 | O40: 18 | P40: 17 | Q40: 17 | R40: 13 | S40: 14 | T40: 17 | U40: 12 | V40: 17 | W40: 17 | X40: 17 | Y40: 16 | Z40: 19 | AA40: 25 | AB40: 23 | AC40: 23 | AD40: 105 | AE40: 123 | AF40: 118 | AG40: 100 | AH40: 104 | AI40: 102 | AJ40: 82 | AK40: 82 | AL40: 78 | AM40: 68 | AN40: 68 | AO40: 37 | AP40: 29 | AQ40: 29 | AR40: 0 | AS40: 5 | AT40: 3 | AU40: 8 | AV40: 746 | AW40: 45 | AX40: 49 | AY40: 342 | AZ40: 11 | BC40: 1,437 | BD40: 154 | BE40: 112 | BF40: 275 | BG40: 588 | BH40: 309
G43: MR CABANACONDE | I43: =SUM(I44:I48) -> 5,745 | J43: =SUM(J44:J48) -> 26 | K43: 22 | L43: 35 | M43: 45 | N43: 41 | O43: 49 | P43: 67 | Q43: 57 | R43: 43 | S43: 38 | T43: 51 | U43: 58 | V43: 53 | W43: 67 | X43: 75 | Y43: 62 | Z43: 107 | AA43: 79 | AB43: 72 | AC43: 63 | AD43: 334 | AE43: 381 | AF43: 359 | AG43: 335 | AH43: 393 | AI43: 372 | AJ43: 386 | AK43: 451 | AL43: 344 | AM43: 361 | AN43: 274 | AO43: 224 | AP43: 205 | AQ43: 216 | AR43: 1 | AS43: 13 | AT43: 13 | AU43: 26 | AV43: 3,067 | AW43: 171 | AX43: 219 | AY43: 1,101 | AZ43: 49 | BC43: =SUM(BC44:BC48) -> 5,745 | BD43: =SUM(BD44:BD48) -> 532 | BE43: =SUM(BE44:BE48) -> 443 | BF43: =SUM(BF44:BF48) -> 850 | BG43: =SUM(BG44:BG48) -> 2,296 | BH43: =SUM(BH44:BH48) -> 1,624
A44: 040504 | B44: AREQUIPA | C44: AREQUIPA | D44: CAYLLOMA | E44: CABANACONDE | F44: 1420 | G44: CABANACONDE | H44: 80 | I44: 2,366 | J44: 11 | K44: 10 | L44: 12 | M44: 15 | N44: 16 | O44: 23 | P44: 33 | Q44: 26 | R44: 20 | S44: 18 | T44: 22 | U44: 23 | V44: 23 | W44: 33 | X44: 30 | Y44: 26 | Z44: 46 | AA44: 34 | AB44: 30 | AC44: 26 | AD44: 150 | AE44: 170 | AF44: 146 | AG44: 125 | AH44: 154 | AI44: 155 | AJ44: 169 | AK44: 212 | AL44: 135 | AM44: 130 | AN44: 99 | AO44: 78 | AP44: 79 | AQ44: 88 | AR44: 1 | AS44: 4 | AT44: 7 | AU44: 11 | AV44: 1,200 | AW44: 62 | AX44: 84 | AY44: 444 | AZ44: 24 | BC44: 2,366 | BD44: 228 | BE44: 192 | BF44: 377 | BG44: 961 | BH44: 609
F45: 1432 | G45: PUESTO DE SALUD PINCHOLLO | H45: 20 | I45: 592 | J45: 3 | K45: 2 | L45: 3 | M45: 4 | N45: 4 | O45: 6 | P45: 8 | Q45: 6 | R45: 5 | S45: 4 | T45: 5 | U45: 6 | V45: 6 | W45: 8 | X45: 7 | Y45: 7 | Z45: 12 | AA45: 8 | AB45: 8 | AC45: 7 | AD45: 37 | AE45: 43 | AF45: 37 | AG45: 31 | AH45: 38 | AI45: 39 | AJ45: 42 | AK45: 53 | AL45: 34 | AM45: 32 | AN45: 25 | AO45: 19 | AP45: 20 | AQ45: 22 | AR45: 0 | AS45: 1 | AT45: 2 | AU45: 3 | AV45: 300 | AW45: 15 | AX45: 21 | AY45: 111 | AZ45: 6 | BC45: 592 | BD45: 57 | BE45: 48 | BF45: 94 | BG45: 240 | BH45: 152
A46: 040508 | B46: AREQUIPA | C46: AREQUIPA | D46: CAYLLOMA | E46: HUAMBO | F46: 1433 | G46: PUESTO DE SALUD HUAMBO | H46: 100 | I46: 955 | J46: 4 | K46: 6 | L46: 9 | M46: 5 | N46: 8 | O46: 6 | P46: 9 | Q46: 9 | R46: 2 | S46: 4 | T46: 13 | U46: 9 | V46: 8 | W46: 8 | X46: 13 | Y46: 12 | Z46: 21 | AA46: 21 | AB46: 11 | AC46: 6 | AD46: 56 | AE46: 60 | AF46: 56 | AG46: 45 | AH46: 58 | AI46: 49 | AJ46: 66 | AK46: 73 | AL46: 52 | AM46: 84 | AN46: 50 | AO46: 41 | AP46: 42 | AQ46: 39 | AR46: 0 | AS46: 4 | AT46: 0 | AU46: 4 | AV46: 520 | AW46: 32 | AX46: 44 | AY46: 165 | AZ46: 6 | BC46: 955 | BD46: 84 | BE46: 83 | BF46: 133 | BG46: 347 | BH46: 308
A47: 040517 | B47: AREQUIPA | C47: AREQUIPA | D47: CAYLLOMA | E47: TAPAY | F47: 1434 | G47: PUESTO DE SALUD TAPAY | H47: 100 | I47: 1,024 | J47: 1 | K47: 2 | L47: 4 | M47: 8 | N47: 9 | O47: 9 | P47: 10 | Q47: 8 | R47: 10 | S47: 7 | T47: 6 | U47: 9 | V47: 11 | W47: 8 | X47: 15 | Y47: 10 | Z47: 15 | AA47: 11 | AB47: 11 | AC47: 12 | AD47: 50 | AE47: 73 | AF47: 69 | AG47: 85 | AH47: 78 | AI47: 70 | AJ47: 56 | AK47: 67 | AL47: 70 | AM47: 65 | AN47: 60 | AO47: 39 | AP47: 37 | AQ47: 29 | AR47: 0 | AS47: 1 | AT47: 0 | AU47: 1 | AV47: 582 | AW47: 31 | AX47: 41 | AY47: 225 | AZ47: 2 | BC47: 1,024 | BD47: 83 | BE47: 70 | BF47: 146 | BG47: 425 | BH47: 300
A48: 040407 | B48: AREQUIPA | C48: AREQUIPA | D48: CASTILLA | E48: CHOCO | F48: 1441 | G48: PUESTO DE SALUD CHOCO | H48: 100 | I48: 808 | J48: 7 | K48: 2 | L48: 7 | M48: 13 | N48: 4 | O48: 5 | P48: 7 | Q48: 8 | R48: 6 | S48: 5 | T48: 5 | U48: 11 | V48: 5 | W48: 10 | X48: 10 | Y48: 7 | Z48: 13 | AA48: 5 | AB48: 12 | AC48: 12 | AD48: 41 | AE48: 35 | AF48: 51 | AG48: 49 | AH48: 65 | AI48: 59 | AJ48: 53 | AK48: 46 | AL48: 53 | AM48: 50 | AN48: 40 | AO48: 47 | AP48: 27 | AQ48: 38 | AR48: 0 | AS48: 3 | AT48: 4 | AU48: 7 | AV48: 465 | AW48: 31 | AX48: 29 | AY48: 156 | AZ48: 11 | BC48: 808 | BD48: 80 | BE48: 50 | BF48: 100 | BG48: 323 | BH48: 255
G51: MR CAYLLOMA | I51: =SUM(I52:I56) -> 9,752 | J51: =SUM(J52:J56) -> 67 | K51: 66 | L51: 80 | M51: 112 | N51: 131 | O51: 119 | P51: 129 | Q51: 151 | R51: 166 | S51: 171 | T51: 174 | U51: 180 | V51: 171 | W51: 168 | X51: 182 | Y51: 230 | Z51: 198 | AA51: 214 | AB51: 197 | AC51: 171 | AD51: 883 | AE51: 828 | AF51: 709 | AG51: 656 | AH51: 582 | AI51: 575 | AJ51: 484 | AK51: 556 | AL51: 432 | AM51: 335 | AN51: 234 | AO51: 167 | AP51: 117 | AQ51: 117 | AR51: 5 | AS51: 27 | AT51: 40 | AU51: 71 | AV51: 5,123 | AW51: 483 | AX51: 542 | AY51: 2,177 | AZ51: 106 | BC51: =SUM(BC52:BC56) -> 9,752 | BD51: =SUM(BD52:BD56) -> 1,547 | BE51: =SUM(BE52:BE56) -> 1,162 | BF51: =SUM(BF52:BF56) -> 2,078 | BG51: =SUM(BG52:BG56) -> 3,561 | BH51: =SUM(BH52:BH56) -> 1,402
A52: 040506 | B52: AREQUIPA | C52: AREQUIPA | D52: CAYLLOMA | E52: CAYLLOMA | F52: 1422 | G52: CENTRO DE SALUD CAYLLOMA | H52: 77 | I52: 4,097 | J52: 26 | K52: 29 | L52: 28 | M52: 46 | N52: 52 | O52: 46 | P52: 49 | Q52: 63 | R52: 74 | S52: 73 | T52: 74 | U52: 79 | V52: 83 | W52: 63 | X52: 75 | Y52: 86 | Z52: 77 | AA52: 88 | AB52: 86 | AC52: 65 | AD52: 366 | AE52: 362 | AF52: 291 | AG52: 287 | AH52: 263 | AI52: 240 | AJ52: 217 | AK52: 220 | AL52: 189 | AM52: 141 | AN52: 104 | AO52: 75 | AP52: 44 | AQ52: 36 | AR52: 1 | AS52: 8 | AT52: 18 | AU52: 28 | AV52: 2,150 | AW52: 207 | AX52: 210 | AY52: 938 | AZ52: 50 | BC52: 4,097 | BD52: 639 | BE52: 473 | BF52: 879 | BG52: 1,518 | BH52: 588
F53: 1418 | G53: PUESTO DE SALUD JACHAÑA | H53: 23 | I53: 1,224 | J53: 8 | K53: 9 | L53: 9 | M53: 14 | N53: 15 | O53: 14 | P53: 14 | Q53: 19 | R53: 22 | S53: 22 | T53: 22 | U53: 23 | V53: 25 | W53: 19 | X53: 23 | Y53: 26 | Z53: 23 | AA53: 26 | AB53: 26 | AC53: 19 | AD53: 109 | AE53: 108 | AF53: 87 | AG53: 86 | AH53: 78 | AI53: 72 | AJ53: 65 | AK53: 66 | AL53: 56 | AM53: 42 | AN53: 31 | AO53: 22 | AP53: 13 | AQ53: 11 | AR53: 0 | AS53: 2 | AT53: 6 | AU53: 8 | AV53: 642 | AW53: 62 | AX53: 63 | AY53: 280 | AZ53: 15 | BC53: 1,224 | BD53: 191 | BE53: 141 | BF53: 262 | BG53: 454 | BH53: 176
A54: 040604 | B54: AREQUIPA | C54: AREQUIPA | D54: CONDESUYOS | E54: CAYARANI | F54: 1440 | G54: CENTRO DE SALUD CAYARANI | H54: 80 | I54: 2,634 | J54: 18 | K54: 16 | L54: 22 | M54: 29 | N54: 35 | O54: 31 | P54: 42 | Q54: 42 | R54: 42 | S54: 46 | T54: 40 | U54: 49 | V54: 35 | W54: 56 | X54: 49 | Y54: 70 | Z54: 64 | AA54: 60 | AB54: 56 | AC54: 57 | AD54: 257 | AE54: 218 | AF54: 192 | AG54: 162 | AH54: 147 | AI54: 160 | AJ54: 118 | AK54: 159 | AL54: 105 | AM54: 90 | AN54: 58 | AO54: 38 | AP54: 35 | AQ54: 36 | AR54: 1 | AS54: 7 | AT54: 11 | AU54: 19 | AV54: 1,363 | AW54: 123 | AX54: 166 | AY54: 578 | AZ54: 22 | BC54: 2,634 | BD54: 411 | BE54: 334 | BF54: 587 | BG54: 939 | BH54: 362
F55: 7407 | G55: PUESTO DE SALUD ARCATA | H55: 20 | I55: 659 | J55: 5 | K55: 4 | L55: 5 | M55: 7 | N55: 9 | O55: 8 | P55: 10 | Q55: 11 | R55: 10 | S55: 11 | T55: 10 | U55: 12 | V55: 9 | W55: 14 | X55: 12 | Y55: 18 | Z55: 16 | AA55: 15 | AB55: 14 | AC55: 14 | AD55: 64 | AE55: 54 | AF55: 48 | AG55: 41 | AH55: 37 | AI55: 40 | AJ55: 30 | AK55: 40 | AL55: 26 | AM55: 23 | AN55: 15 | AO55: 9 | AP55: 9 | AQ55: 9 | AR55: 0 | AS55: 2 | AT55: 3 | AU55: 5 | AV55: 341 | AW55: 31 | AX55: 42 | AY55: 144 | AZ55: 6 | BC55: 659 | BD55: 103 | BE55: 84 | BF55: 147 | BG55: 235 | BH55: 91
A56: 040405 | B56: AREQUIPA | C56: AREQUIPA | D56: CASTILLA | E56: CHACHAS | F56: 1442 | G56: PUESTO DE SALUD TOLCONI | H56: 63 | I56: 1,138 | J56: 10 | K56: 8 | L56: 16 | M56: 16 | N56: 20 | O56: 20 | P56: 14 | Q56: 16 | R56: 18 | S56: 19 | T56: 28 | U56: 17 | V56: 19 | W56: 16 | X56: 23 | Y56: 30 | Z56: 18 | AA56: 25 | AB56: 15 | AC56: 16 | AD56: 87 | AE56: 86 | AF56: 91 | AG56: 80 | AH56: 57 | AI56: 63 | AJ56: 54 | AK56: 71 | AL56: 56 | AM56: 39 | AN56: 26 | AO56: 23 | AP56: 16 | AQ56: 25 | AR56: 3 | AS56: 8 | AT56: 2 | AU56: 11 | AV56: 627 | AW56: 60 | AX56: 61 | AY56: 237 | AZ56: 13 | BC56: 1,138 | BD56: 203 | BE56: 130 | BF56: 203 | BG56: 415 | BH56: 185
G59: MR BUENOS AIRES DE CAYMA | I59: =SUM(I60:I62) -> 51,394 | J59: =SUM(J60:J62) -> 469 | K59: 484 | L59: 561 | M59: 634 | N59: 587 | O59: 670 | P59: 899 | Q59: 881 | R59: 870 | S59: 811 | T59: 765 | U59: 760 | V59: 810 | W59: 741 | X59: 723 | Y59: 811 | Z59: 727 | AA59: 766 | AB59: 763 | AC59: 726 | AD59: 3,853 | AE59: 4,400 | AF59: 4,649 | AG59: 4,019 | AH59: 3,700 | AI59: 3,317 | AJ59: 2,889 | AK59: 2,641 | AL59: 2,276 | AM59: 1,773 | AN59: 1,364 | AO59: 956 | AP59: 533 | AQ59: 564 | AR59: 36 | AS59: 247 | AT59: 221 | AU59: 496 | AV59: 26,202 | AW59: 1,860 | AX59: 1,853 | AY59: 12,139 | AZ59: 1,222 | BC59: =SUM(BC60:BC62) -> 51,394 | BD59: =SUM(BD60:BD62) -> 8,391 | BE59: =SUM(BE60:BE62) -> 4,579 | BF59: =SUM(BF60:BF62) -> 9,742 | BG59: =SUM(BG60:BG62) -> 21,217 | BH59: =SUM(BH60:BH62) -> 7,465
A60: 040104 | B60: AREQUIPA | C60: AREQUIPA | D60: AREQUIPA | E60: CAYMA | F60: 1234 | G60: CENTRO DE SALUD FRANCISCO BOLOGNESI | H60: 16 | I60: 18,273 | J60: 167 | K60: 172 | L60: 199 | M60: 225 | N60: 208 | O60: 238 | P60: 320 | Q60: 313 | R60: 309 | S60: 288 | T60: 272 | U60: 270 | V60: 288 | W60: 263 | X60: 257 | Y60: 288 | Z60: 259 | AA60: 273 | AB60: 271 | AC60: 258 | AD60: 1,370 | AE60: 1,565 | AF60: 1,653 | AG60: 1,429 | AH60: 1,316 | AI60: 1,179 | AJ60: 1,027 | AK60: 939 | AL60: 809 | AM60: 630 | AN60: 485 | AO60: 340 | AP60: 190 | AQ60: 200 | AR60: 13 | AS60: 88 | AT60: 79 | AU60: 177 | AV60: 9,316 | AW60: 661 | AX60: 659 | AY60: 4,316 | AZ60: 435 | BC60: 18,273 | BD60: 2,983 | BE60: 1,628 | BF60: 3,464 | BG60: 7,544 | BH60: 2,654
F61: 1244 | G61: PUESTO DE SALUD LA TOMILLA | H61: 8 | I61: 9,137 | J61: 83 | K61: 86 | L61: 100 | M61: 113 | N61: 104 | O61: 119 | P61: 160 | Q61: 157 | R61: 155 | S61: 144 | T61: 136 | U61: 135 | V61: 144 | W61: 132 | X61: 128 | Y61: 144 | Z61: 129 | AA61: 136 | AB61: 136 | AC61: 129 | AD61: 685 | AE61: 782 | AF61: 826 | AG61: 715 | AH61: 658 | AI61: 590 | AJ61: 514 | AK61: 470 | AL61: 405 | AM61: 315 | AN61: 242 | AO61: 170 | AP61: 95 | AQ61: 100 | AR61: 6 | AS61: 44 | AT61: 39 | AU61: 88 | AV61: 4,658 | AW61: 331 | AX61: 329 | AY61: 2,158 | AZ61: 217 | BC61: 9,137 | BD61: 1,492 | BE61: 814 | BF61: 1,732 | BG61: 3,772 | BH61: 1,327
F62: 6890 | G62: PUESTO DE SALUD RAFAEL BELAUNDE | H62: 21 | I62: 23,984 | J62: 219 | K62: 226 | L62: 262 | M62: 296 | N62: 275 | O62: 313 | P62: 419 | Q62: 411 | R62: 406 | S62: 379 | T62: 357 | U62: 355 | V62: 378 | W62: 346 | X62: 338 | Y62: 379 | Z62: 339 | AA62: 357 | AB62: 356 | AC62: 339 | AD62: 1,798 | AE62: 2,053 | AF62: 2,170 | AG62: 1,875 | AH62: 1,726 | AI62: 1,548 | AJ62: 1,348 | AK62: 1,232 | AL62: 1,062 | AM62: 828 | AN62: 637 | AO62: 446 | AP62: 248 | AQ62: 264 | AR62: 17 | AS62: 115 | AT62: 103 | AU62: 231 | AV62: 12,228 | AW62: 868 | AX62: 865 | AY62: 5,665 | AZ62: 570 | BC62: 23,984 | BD62: 3,916 | BE62: 2,137 | BF62: 4,546 | BG62: 9,901 | BH62: 3,484
G65: MR FRANCISCO BOLOGNESI | I65: =SUM(I66:I68) -> 62,813 | J65: =SUM(J66:J68) -> 572 | K65: 594 | L65: 685 | M65: 773 | N65: 715 | O65: 820 | P65: 1,100 | Q65: 1,078 | R65: 1,064 | S65: 992 | T65: 935 | U65: 927 | V65: 990 | W65: 905 | X65: 883 | Y65: 990 | Z65: 891 | AA65: 938 | AB65: 932 | AC65: 886 | AD65: 4,710 | AE65: 5,379 | AF65: 5,682 | AG65: 4,914 | AH65: 4,523 | AI65: 4,054 | AJ65: 3,531 | AK65: 3,228 | AL65: 2,781 | AM65: 2,167 | AN65: 1,667 | AO65: 1,169 | AP65: 652 | AQ65: 688 | AR65: 44 | AS65: 303 | AT65: 270 | AU65: 608 | AV65: 32,024 | AW65: 2,272 | AX65: 2,264 | AY65: 14,836 | AZ65: 1,496 | BC65: =SUM(BC66:BC68) -> 62,813 | BD65: =SUM(BD66:BD68) -> 10,255 | BE65: =SUM(BE66:BE68) -> 5,596 | BF65: =SUM(BF66:BF68) -> 11,907 | BG65: =SUM(BG66:BG68) -> 25,930 | BH65: =SUM(BH66:BH68) -> 9,125
A66: 040104 | B66: AREQUIPA | C66: AREQUIPA | D66: AREQUIPA | E66: CAYMA | F66: 1235 | G66: BUENOS AIRES DE CAYMA | H66: 20 | I66: 22,841 | J66: 208 | K66: 216 | L66: 249 | M66: 281 | N66: 260 | O66: 298 | P66: 400 | Q66: 392 | R66: 387 | S66: 361 | T66: 340 | U66: 337 | V66: 360 | W66: 329 | X66: 321 | Y66: 360 | Z66: 324 | AA66: 341 | AB66: 339 | AC66: 322 | AD66: 1,713 | AE66: 1,956 | AF66: 2,066 | AG66: 1,787 | AH66: 1,645 | AI66: 1,474 | AJ66: 1,284 | AK66: 1,174 | AL66: 1,011 | AM66: 788 | AN66: 606 | AO66: 425 | AP66: 237 | AQ66: 250 | AR66: 16 | AS66: 110 | AT66: 98 | AU66: 221 | AV66: 11,645 | AW66: 826 | AX66: 823 | AY66: 5,395 | AZ66: 544 | BC66: 22,841 | BD66: 3,729 | BE66: 2,035 | BF66: 4,330 | BG66: 9,429 | BH66: 3,318
F67: 1245 | G67: SAN JOSE | H67: 20 | I67: 22,841 | J67: 208 | K67: 216 | L67: 249 | M67: 281 | N67: 260 | O67: 298 | P67: 400 | Q67: 392 | R67: 387 | S67: 361 | T67: 340 | U67: 337 | V67: 360 | W67: 329 | X67: 321 | Y67: 360 | Z67: 324 | AA67: 341 | AB67: 339 | AC67: 322 | AD67: 1,713 | AE67: 1,956 | AF67: 2,066 | AG67: 1,787 | AH67: 1,645 | AI67: 1,474 | AJ67: 1,284 | AK67: 1,174 | AL67: 1,011 | AM67: 788 | AN67: 606 | AO67: 425 | AP67: 237 | AQ67: 250 | AR67: 16 | AS67: 110 | AT67: 98 | AU67: 221 | AV67: 11,645 | AW67: 826 | AX67: 823 | AY67: 5,395 | AZ67: 544 | BC67: 22,841 | BD67: 3,729 | BE67: 2,035 | BF67: 4,330 | BG67: 9,429 | BH67: 3,318
F68: 1246 | G68: DEAN VALDIVIA | H68: 15 | I68: 17,131 | J68: 156 | K68: 162 | L68: 187 | M68: 211 | N68: 195 | O68: 224 | P68: 300 | Q68: 294 | R68: 290 | S68: 270 | T68: 255 | U68: 253 | V68: 270 | W68: 247 | X68: 241 | Y68: 270 | Z68: 243 | AA68: 256 | AB68: 254 | AC68: 242 | AD68: 1,284 | AE68: 1,467 | AF68: 1,550 | AG68: 1,340 | AH68: 1,233 | AI68: 1,106 | AJ68: 963 | AK68: 880 | AL68: 759 | AM68: 591 | AN68: 455 | AO68: 319 | AP68: 178 | AQ68: 188 | AR68: 12 | AS68: 83 | AT68: 74 | AU68: 166 | AV68: 8,734 | AW68: 620 | AX68: 618 | AY68: 4,046 | AZ68: 408 | BC68: 17,131 | BD68: 2,797 | BE68: 1,526 | BF68: 3,247 | BG68: 7,072 | BH68: 2,489
G71: MR CERRO COLORADO | I71: =SUM(I72:I73) -> 46,391 | J71: =SUM(J72:J73) -> 509 | K71: 529 | L71: 434 | M71: 475 | N71: 540 | O71: 629 | P71: 893 | Q71: 918 | R71: 906 | S71: 856 | T71: 774 | U71: 746 | V71: 778 | W71: 722 | X71: 716 | Y71: 773 | Z71: 744 | AA71: 769 | AB71: 745 | AC71: 751 | AD71: 3,778 | AE71: 4,091 | AF71: 4,073 | AG71: 3,592 | AH71: 3,531 | AI71: 3,064 | AJ71: 2,489 | AK71: 2,125 | AL71: 1,612 | AM71: 1,278 | AN71: 1,045 | AO71: 680 | AP71: 427 | AQ71: 398 | AR71: 36 | AS71: 256 | AT71: 253 | AU71: 538 | AV71: 22,749 | AW71: 1,769 | AX71: 1,796 | AY71: 10,936 | AZ71: 829 | BC71: =SUM(BC72:BC73) -> 46,391 | BD71: =SUM(BD72:BD73) -> 8,209 | BE71: =SUM(BE72:BE73) -> 4,502 | BF71: =SUM(BF72:BF73) -> 9,364 | BG71: =SUM(BG72:BG73) -> 18,875 | BH71: =SUM(BH72:BH73) -> 5,440
A72: 040105 | B72: AREQUIPA | C72: AREQUIPA | D72: AREQUIPA | E72: CERRO COLORADO | F72: 1236 | G72: CERRO COLORADO | H72: 11 | I72: 25,515 | J72: 280 | K72: 291 | L72: 239 | M72: 261 | N72: 297 | O72: 346 | P72: 491 | Q72: 505 | R72: 498 | S72: 471 | T72: 426 | U72: 410 | V72: 428 | W72: 397 | X72: 394 | Y72: 425 | Z72: 409 | AA72: 423 | AB72: 410 | AC72: 413 | AD72: 2,078 | AE72: 2,250 | AF72: 2,240 | AG72: 1,976 | AH72: 1,942 | AI72: 1,685 | AJ72: 1,369 | AK72: 1,169 | AL72: 887 | AM72: 703 | AN72: 575 | AO72: 374 | AP72: 235 | AQ72: 219 | AR72: 20 | AS72: 141 | AT72: 139 | AU72: 296 | AV72: 12,512 | AW72: 973 | AX72: 988 | AY72: 6,015 | AZ72: 456 | BC72: 25,515 | BD72: 4,515 | BE72: 2,476 | BF72: 5,150 | BG72: 10,381 | BH72: 2,992
F73: 1248 | G73: ALTO LIBERTAD | H73: 9 | I73: 20,876 | J73: 229 | K73: 238 | L73: 195 | M73: 214 | N73: 243 | O73: 283 | P73: 402 | Q73: 413 | R73: 408 | S73: 385 | T73: 348 | U73: 336 | V73: 350 | W73: 325 | X73: 322 | Y73: 348 | Z73: 335 | AA73: 346 | AB73: 335 | AC73: 338 | AD73: 1,700 | AE73: 1,841 | AF73: 1,833 | AG73: 1,616 | AH73: 1,589 | AI73: 1,379 | AJ73: 1,120 | AK73: 956 | AL73: 725 | AM73: 575 | AN73: 470 | AO73: 306 | AP73: 192 | AQ73: 179 | AR73: 16 | AS73: 115 | AT73: 114 | AU73: 242 | AV73: 10,237 | AW73: 796 | AX73: 808 | AY73: 4,921 | AZ73: 373 | BC73: 20,876 | BD73: 3,694 | BE73: 2,026 | BF73: 4,214 | BG73: 8,494 | BH73: 2,448
G76: MR MARISCAL CASTILLA | I76: =SUM(I77:I80) -> 46,391 | J76: =SUM(J77:J80) -> 507 | K76: 529 | L76: 435 | M76: 475 | N76: 540 | O76: 629 | P76: 893 | Q76: 918 | R76: 905 | S76: 855 | T76: 775 | U76: 745 | V76: 780 | W76: 722 | X76: 717 | Y76: 773 | Z76: 743 | AA76: 767 | AB76: 745 | AC76: 751 | AD76: 3,778 | AE76: 4,091 | AF76: 4,073 | AG76: 3,593 | AH76: 3,531 | AI76: 3,065 | AJ76: 2,487 | AK76: 2,125 | AL76: 1,613 | AM76: 1,278 | AN76: 1,045 | AO76: 680 | AP76: 427 | AQ76: 398 | AR76: 35 | AS76: 255 | AT76: 253 | AU76: 540 | AV76: 22,749 | AW76: 1,769 | AX76: 1,797 | AY76: 10,935 | AZ76: 829 | BC76: =SUM(BC77:BC80) -> 46,391 | BD76: =SUM(BD77:BD80) -> 8,209 | BE76: =SUM(BE77:BE80) -> 4,502 | BF76: =SUM(BF77:BF80) -> 9,365 | BG76: =SUM(BG77:BG80) -> 18,875 | BH76: =SUM(BH77:BH80) -> 5,440
A77: 040105 | B77: AREQUIPA | C77: AREQUIPA | D77: AREQUIPA | E77: CERRO COLORADO | F77: 1238 | G77: CENTRO DE SALUD MARISCAL CASTILLA | H77: 8 | I77: 18,556 | J77: 203 | K77: 212 | L77: 174 | M77: 190 | N77: 216 | O77: 252 | P77: 357 | Q77: 367 | R77: 362 | S77: 342 | T77: 310 | U77: 298 | V77: 312 | W77: 289 | X77: 287 | Y77: 309 | Z77: 297 | AA77: 307 | AB77: 298 | AC77: 300 | AD77: 1,511 | AE77: 1,636 | AF77: 1,629 | AG77: 1,437 | AH77: 1,412 | AI77: 1,226 | AJ77: 995 | AK77: 850 | AL77: 645 | AM77: 511 | AN77: 418 | AO77: 272 | AP77: 171 | AQ77: 159 | AR77: 14 | AS77: 102 | AT77: 101 | AU77: 216 | AV77: 9,100 | AW77: 708 | AX77: 719 | AY77: 4,374 | AZ77: 332 | BC77: 18,556 | BD77: 3,284 | BE77: 1,801 | BF77: 3,746 | BG77: 7,550 | BH77: 2,176
F78: 1249 | G78: CENTRO DE SALUD SEMI RURAL PACHACUTEC | H78: 8 | I78: 18,556 | J78: 203 | K78: 212 | L78: 174 | M78: 190 | N78: 216 | O78: 252 | P78: 357 | Q78: 367 | R78: 362 | S78: 342 | T78: 310 | U78: 298 | V78: 312 | W78: 289 | X78: 287 | Y78: 309 | Z78: 297 | AA78: 307 | AB78: 298 | AC78: 300 | AD78: 1,511 | AE78: 1,636 | AF78: 1,629 | AG78: 1,437 | AH78: 1,412 | AI78: 1,226 | AJ78: 995 | AK78: 850 | AL78: 645 | AM78: 511 | AN78: 418 | AO78: 272 | AP78: 171 | AQ78: 159 | AR78: 14 | AS78: 102 | AT78: 101 | AU78: 216 | AV78: 9,100 | AW78: 708 | AX78: 719 | AY78: 4,374 | AZ78: 332 | BC78: 18,556 | BD78: 3,284 | BE78: 1,801 | BF78: 3,746 | BG78: 7,550 | BH78: 2,176
F79: 1250 | G79: PUESTO DE SALUD JOSE SANTOS ATAHUALPA | H79: 3 | I79: 6,959 | J79: 76 | K79: 79 | L79: 65 | M79: 71 | N79: 81 | O79: 94 | P79: 134 | Q79: 138 | R79: 136 | S79: 128 | T79: 116 | U79: 112 | V79: 117 | W79: 108 | X79: 107 | Y79: 116 | Z79: 112 | AA79: 115 | AB79: 112 | AC79: 113 | AD79: 567 | AE79: 614 | AF79: 611 | AG79: 539 | AH79: 530 | AI79: 460 | AJ79: 373 | AK79: 319 | AL79: 242 | AM79: 192 | AN79: 157 | AO79: 102 | AP79: 64 | AQ79: 60 | AR79: 5 | AS79: 38 | AT79: 38 | AU79: 81 | AV79: 3,412 | AW79: 265 | AX79: 269 | AY79: 1,640 | AZ79: 124 | BC79: 6,959 | BD79: 1,231 | BE79: 675 | BF79: 1,405 | BG79: 2,831 | BH79: 816
F80: 1252 | G80: PUESTO DE SALUD EL CURAL | H80: 1 | I80: 2,320 | J80: 25 | K80: 26 | L80: 22 | M80: 24 | N80: 27 | O80: 31 | P80: 45 | Q80: 46 | R80: 45 | S80: 43 | T80: 39 | U80: 37 | V80: 39 | W80: 36 | X80: 36 | Y80: 39 | Z80: 37 | AA80: 38 | AB80: 37 | AC80: 38 | AD80: 189 | AE80: 205 | AF80: 204 | AG80: 180 | AH80: 177 | AI80: 153 | AJ80: 124 | AK80: 106 | AL80: 81 | AM80: 64 | AN80: 52 | AO80: 34 | AP80: 21 | AQ80: 20 | AR80: 2 | AS80: 13 | AT80: 13 | AU80: 27 | AV80: 1,137 | AW80: 88 | AX80: 90 | AY80: 547 | AZ80: 41 | BC80: 2,320 | BD80: 410 | BE80: 225 | BF80: 468 | BG80: 944 | BH80: 272
G83: MR MARITZA CAMPOS ZAAMCOLA | I83: =SUM(I84:I87) -> 139,170 | J83: =SUM(J84:J87) -> 1,525 | K83: 1,586 | L83: 1,302 | M83: 1,426 | N83: 1,621 | O83: 1,886 | P83: 2,681 | Q83: 2,757 | R83: 2,718 | S83: 2,568 | T83: 2,321 | U83: 2,239 | V83: 2,336 | W83: 2,166 | X83: 2,150 | Y83: 2,318 | Z83: 2,231 | AA83: 2,305 | AB83: 2,234 | AC83: 2,253 | AD83: 11,332 | AE83: 12,272 | AF83: 12,222 | AG83: 10,776 | AH83: 10,594 | AI83: 9,193 | AJ83: 7,467 | AK83: 6,375 | AL83: 4,835 | AM83: 3,837 | AN83: 3,135 | AO83: 2,041 | AP83: 1,281 | AQ83: 1,191 | AR83: 109 | AS83: 768 | AT83: 756 | AU83: 1,616 | AV83: 68,250 | AW83: 5,309 | AX83: 5,389 | AY83: 32,808 | AZ83: 2,490 | BC83: =SUM(BC84:BC87) -> 139,170 | BD83: =SUM(BD84:BD87) -> 24,627 | BE83: =SUM(BE84:BE87) -> 13,506 | BF83: =SUM(BF84:BF87) -> 28,092 | BG83: =SUM(BG84:BG87) -> 56,625 | BH83: =SUM(BH84:BH87) -> 16,321
A84: 040105 | B84: AREQUIPA | C84: AREQUIPA | D84: AREQUIPA | E84: CERRO COLORADO | F84: 1237 | G84: MARITZA CAMPOS DIAZ - ZAMACOLA | H84: 13 | I84: 30,154 | J84: 330 | K84: 344 | L84: 282 | M84: 309 | N84: 351 | O84: 409 | P84: 581 | Q84: 597 | R84: 589 | S84: 556 | T84: 503 | U84: 485 | V84: 506 | W84: 469 | X84: 466 | Y84: 502 | Z84: 483 | AA84: 499 | AB84: 484 | AC84: 488 | AD84: 2,455 | AE84: 2,659 | AF84: 2,648 | AG84: 2,335 | AH84: 2,295 | AI84: 1,992 | AJ84: 1,618 | AK84: 1,381 | AL84: 1,048 | AM84: 831 | AN84: 679 | AO84: 442 | AP84: 278 | AQ84: 258 | AR84: 23 | AS84: 166 | AT84: 164 | AU84: 350 | AV84: 14,787 | AW84: 1,150 | AX84: 1,168 | AY84: 7,108 | AZ84: 539 | BC84: 30,154 | BD84: 5,336 | BE84: 2,926 | BF84: 6,087 | BG84: 12,269 | BH84: 3,536
F85: 1251 | G85: PUESTO DE SALUD NAZARENO | H85: 17 | I85: 39,432 | J85: 432 | K85: 449 | L85: 369 | M85: 404 | N85: 459 | O85: 534 | P85: 759 | Q85: 781 | R85: 770 | S85: 727 | T85: 658 | U85: 634 | V85: 662 | W85: 614 | X85: 609 | Y85: 657 | Z85: 632 | AA85: 653 | AB85: 633 | AC85: 638 | AD85: 3,211 | AE85: 3,477 | AF85: 3,463 | AG85: 3,053 | AH85: 3,002 | AI85: 2,605 | AJ85: 2,115 | AK85: 1,806 | AL85: 1,370 | AM85: 1,087 | AN85: 888 | AO85: 578 | AP85: 363 | AQ85: 338 | AR85: 31 | AS85: 217 | AT85: 215 | AU85: 458 | AV85: 19,337 | AW85: 1,504 | AX85: 1,527 | AY85: 9,295 | AZ85: 705 | BC85: 39,432 | BD85: 6,978 | BE85: 3,827 | BF85: 7,960 | BG85: 16,044 | BH85: 4,624
F86: 1247 | G86: PUESTO DE SALUD CIUDAD MUNICIPAL | H86: 19 | I86: 44,069 | J86: 483 | K86: 502 | L86: 412 | M86: 452 | N86: 514 | O86: 597 | P86: 850 | Q86: 874 | R86: 861 | S86: 814 | T86: 734 | U86: 710 | V86: 740 | W86: 686 | X86: 681 | Y86: 734 | Z86: 707 | AA86: 730 | AB86: 707 | AC86: 714 | AD86: 3,588 | AE86: 3,886 | AF86: 3,871 | AG86: 3,412 | AH86: 3,355 | AI86: 2,911 | AJ86: 2,365 | AK86: 2,019 | AL86: 1,530 | AM86: 1,216 | AN86: 993 | AO86: 647 | AP86: 405 | AQ86: 376 | AR86: 35 | AS86: 244 | AT86: 238 | AU86: 512 | AV86: 21,614 | AW86: 1,682 | AX86: 1,706 | AY86: 10,390 | AZ86: 790 | BC86: 44,069 | BD86: 7,798 | BE86: 4,277 | BF86: 8,895 | BG86: 17,931 | BH86: 5,169
F87: 11023 | G87: PUESTO DE SALUD PERUARBO | H87: 11 | I87: 25,515 | J87: 280 | K87: 291 | L87: 239 | M87: 261 | N87: 297 | O87: 346 | P87: 491 | Q87: 505 | R87: 498 | S87: 471 | T87: 426 | U87: 410 | V87: 428 | W87: 397 | X87: 394 | Y87: 425 | Z87: 409 | AA87: 423 | AB87: 410 | AC87: 413 | AD87: 2,078 | AE87: 2,250 | AF87: 2,240 | AG87: 1,976 | AH87: 1,942 | AI87: 1,685 | AJ87: 1,369 | AK87: 1,169 | AL87: 887 | AM87: 703 | AN87: 575 | AO87: 374 | AP87: 235 | AQ87: 219 | AR87: 20 | AS87: 141 | AT87: 139 | AU87: 296 | AV87: 12,512 | AW87: 973 | AX87: 988 | AY87: 6,015 | AZ87: 456 | BC87: 25,515 | BD87: 4,515 | BE87: 2,476 | BF87: 5,150 | BG87: 10,381 | BH87: 2,992
G90: MR YANAHUARA | I90: =SUM(I91:I93) -> 42,924 | J90: =SUM(J91:J93) -> 451 | K90: 420 | L90: 406 | M90: 429 | N90: 477 | O90: 598 | P90: 655 | Q90: 665 | R90: 652 | S90: 623 | T90: 518 | U90: 572 | V90: 600 | W90: 600 | X90: 579 | Y90: 605 | Z90: 595 | AA90: 603 | AB90: 590 | AC90: 590 | AD90: 2,935 | AE90: 3,054 | AF90: 3,206 | AG90: 2,925 | AH90: 3,068 | AI90: 2,970 | AJ90: 2,644 | AK90: 2,467 | AL90: 2,205 | AM90: 1,923 | AN90: 1,592 | AO90: 1,179 | AP90: 752 | AQ90: 777 | AR90: 31 | AS90: 229 | AT90: 222 | AU90: 477 | AV90: 21,671 | AW90: 1,359 | AX90: 1,460 | AY90: 9,124 | AZ90: 919 | BC90: =SUM(BC91:BC93) -> 42,924 | BD90: =SUM(BD91:BD93) -> 6,465 | BE90: =SUM(BE91:BE93) -> 3,581 | BF90: =SUM(BF91:BF93) -> 7,169 | BG90: =SUM(BG91:BG93) -> 17,282 | BH90: =SUM(BH91:BH93) -> 8,428
A91: 040127 | B91: AREQUIPA | C91: AREQUIPA | D91: AREQUIPA | E91: YANAHUARA | F91: 1233 | G91: CENTRO DE SALUD YANAHUARA | H91: 38 | I91: 11,568 | J91: 122 | K91: 109 | L91: 69 | M91: 87 | N91: 116 | O91: 158 | P91: 147 | Q91: 140 | R91: 153 | S91: 158 | T91: 139 | U91: 126 | V91: 134 | W91: 130 | X91: 129 | Y91: 126 | Z91: 139 | AA91: 125 | AB91: 137 | AC91: 140 | AD91: 637 | AE91: 731 | AF91: 786 | AG91: 736 | AH91: 785 | AI91: 835 | AJ91: 785 | AK91: 759 | AL91: 726 | AM91: 621 | AN91: 547 | AO91: 420 | AP91: 289 | AQ91: 328 | AR91: 8 | AS91: 63 | AT91: 59 | AU91: 129 | AV91: 5,708 | AW91: 286 | AX91: 291 | AY91: 2,230 | AZ91: 219 | BC91: 11,568 | BD91: 1,523 | BE91: 782 | BF91: 1,645 | BG91: 4,688 | BH91: 2,931
A92: 040118 | B92: AREQUIPA | C92: AREQUIPA | D92: AREQUIPA | E92: SACHACA | F92: 1282 | G92: PUESTO DE SALUD SACHACA | H92: 65 | I92: 20,381 | J92: 214 | K92: 202 | L92: 219 | M92: 222 | N92: 235 | O92: 286 | P92: 330 | Q92: 341 | R92: 324 | S92: 302 | T92: 246 | U92: 290 | V92: 303 | W92: 305 | X92: 292 | Y92: 311 | Z92: 296 | AA92: 311 | AB92: 294 | AC92: 292 | AD92: 1,494 | AE92: 1,510 | AF92: 1,573 | AG92: 1,423 | AH92: 1,484 | AI92: 1,388 | AJ92: 1,208 | AK92: 1,110 | AL92: 961 | AM92: 846 | AN92: 679 | AO92: 493 | AP92: 301 | AQ92: 292 | AR92: 15 | AS92: 108 | AT92: 106 | AU92: 226 | AV92: 10,376 | AW92: 697 | AX92: 760 | AY92: 4,481 | AZ92: 455 | BC92: 20,381 | BD92: 3,212 | BE92: 1,819 | BF92: 3,591 | BG92: 8,186 | BH92: 3,573
F93: 1283 | G93: PUESTO DE SALUD PAMPA DE CAMARONES | H93: 35 | I93: 10,975 | J93: 115 | K93: 109 | L93: 118 | M93: 120 | N93: 126 | O93: 154 | P93: 178 | Q93: 184 | R93: 175 | S93: 163 | T93: 133 | U93: 156 | V93: 163 | W93: 165 | X93: 158 | Y93: 168 | Z93: 160 | AA93: 167 | AB93: 159 | AC93: 158 | AD93: 804 | AE93: 813 | AF93: 847 | AG93: 766 | AH93: 799 | AI93: 747 | AJ93: 651 | AK93: 598 | AL93: 518 | AM93: 456 | AN93: 366 | AO93: 266 | AP93: 162 | AQ93: 157 | AR93: 8 | AS93: 58 | AT93: 57 | AU93: 122 | AV93: 5,587 | AW93: 376 | AX93: 409 | AY93: 2,413 | AZ93: 245 | BC93: 10,975 | BD93: 1,730 | BE93: 980 | BF93: 1,933 | BG93: 4,408 | BH93: 1,924
G96: MR CUIDAD DE DIOS | I96: =SUM(I97:I104) -> 52,898 | J96: =SUM(J97:J104) -> 614 | K96: 623 | L96: 610 | M96: 661 | N96: 671 | O96: 844 | P96: 1,039 | Q96: 974 | R96: 961 | S96: 825 | T96: 871 | U96: 842 | V96: 817 | W96: 826 | X96: 774 | Y96: 838 | Z96: 770 | AA96: 872 | AB96: 929 | AC96: 819 | AD96: 4,209 | AE96: 4,895 | AF96: 4,961 | AG96: 4,219 | AH96: 3,691 | AI96: 3,233 | AJ96: 2,709 | AK96: 2,453 | AL96: 1,967 | AM96: 1,570 | AN96: 1,175 | AO96: 772 | AP96: 444 | AQ96: 420 | AR96: 63 | AS96: 306 | AT96: 308 | AU96: 649 | AV96: 26,762 | AW96: 2,034 | AX96: 2,126 | AY96: 12,979 | AZ96: 1,316 | BC96: =SUM(BC97:BC104) -> 52,898 | BD96: =SUM(BD97:BD104) -> 9,535 | BE96: =SUM(BE97:BE104) -> 4,897 | BF96: =SUM(BF97:BF104) -> 10,853 | BG96: =SUM(BG97:BG104) -> 21,263 | BH96: =SUM(BH97:BH104) -> 6,348
A97: 040129 | B97: AREQUIPA | C97: AREQUIPA | D97: AREQUIPA | E97: YURA | F97: 1253 | G97: CENTRO DE SALUD CIUDAD DE DIOS | H97: 85 | I97: 40,756 | J97: 489 | K97: 495 | L97: 484 | M97: 522 | N97: 531 | O97: 678 | P97: 847 | Q97: 788 | R97: 773 | S97: 662 | T97: 687 | U97: 665 | V97: 655 | W97: 657 | X97: 623 | Y97: 663 | Z97: 596 | AA97: 673 | AB97: 732 | AC97: 649 | AD97: 3,351 | AE97: 3,918 | AF97: 3,974 | AG97: 3,322 | AH97: 2,846 | AI97: 2,440 | AJ97: 2,004 | AK97: 1,782 | AL97: 1,386 | AM97: 1,113 | AN97: 773 | AO97: 489 | AP97: 261 | AQ97: 229 | AR97: 51 | AS97: 239 | AT97: 250 | AU97: 518 | AV97: 20,517 | AW97: 1,618 | AX97: 1,651 | AY97: 10,219 | AZ97: 1,049 | BC97: 40,756 | BD97: 7,620 | BE97: 3,867 | BF97: 8,649 | BG97: 16,368 | BH97: 4,251
F98: 1254 | G98: PUESTO DE SALUD YURA | H98: 15 | I98: 7,192 | J98: 86 | K98: 87 | L98: 85 | M98: 92 | N98: 94 | O98: 120 | P98: 150 | Q98: 139 | R98: 136 | S98: 117 | T98: 121 | U98: 117 | V98: 116 | W98: 116 | X98: 110 | Y98: 117 | Z98: 105 | AA98: 119 | AB98: 129 | AC98: 114 | AD98: 591 | AE98: 691 | AF98: 701 | AG98: 586 | AH98: 502 | AI98: 431 | AJ98: 354 | AK98: 315 | AL98: 245 | AM98: 196 | AN98: 137 | AO98: 86 | AP98: 46 | AQ98: 40 | AR98: 9 | AS98: 42 | AT98: 44 | AU98: 91 | AV98: 3,621 | AW98: 285 | AX98: 291 | AY98: 1,803 | AZ98: 185 | BC98: 7,192 | BD98: 1,345 | BE98: 683 | BF98: 1,526 | BG98: 2,889 | BH98: 750
A99: 040126 | B99: AREQUIPA | C99: AREQUIPA | D99: AREQUIPA | E99: YANAHUARA | F99: 1241 | G99: PUESTO DE SALUD SUMBAY - CHASQUIPAMPA | H99: 4 | I99: 1,218 | J99: 13 | K99: 11 | L99: 7 | M99: 9 | N99: 12 | O99: 17 | P99: 15 | Q99: 15 | R99: 16 | S99: 17 | T99: 15 | U99: 13 | V99: 14 | W99: 14 | X99: 14 | Y99: 13 | Z99: 15 | AA99: 13 | AB99: 14 | AC99: 15 | AD99: 67 | AE99: 77 | AF99: 83 | AG99: 78 | AH99: 83 | AI99: 88 | AJ99: 83 | AK99: 80 | AL99: 76 | AM99: 65 | AN99: 58 | AO99: 44 | AP99: 30 | AQ99: 35 | AR99: 1 | AS99: 7 | AT99: 6 | AU99: 14 | AV99: 601 | AW99: 30 | AX99: 31 | AY99: 235 | AZ99: 23 | BC99: 1,218 | BD99: 160 | BE99: 82 | BF99: 173 | BG99: 493 | BH99: 308
A100: 040509 | B100: AREQUIPA | C100: AREQUIPA | D100: CAYLLOMA | E100: HUANCA | F100: 1239 | G100: PUESTO DE SALUD HUANCA | H100: 100 | I100: 1,493 | J100: 8 | K100: 12 | L100: 11 | M100: 12 | N100: 14 | O100: 10 | P100: 7 | Q100: 7 | R100: 8 | S100: 9 | T100: 11 | U100: 9 | V100: 7 | W100: 15 | X100: 9 | Y100: 8 | Z100: 18 | AA100: 20 | AB100: 13 | AC100: 21 | AD100: 74 | AE100: 84 | AF100: 79 | AG100: 89 | AH100: 109 | AI100: 120 | AJ100: 117 | AK100: 109 | AL100: 121 | AM100: 96 | AN100: 87 | AO100: 66 | AP100: 52 | AQ100: 61 | AR100: 0 | AS100: 6 | AT100: 2 | AU100: 8 | AV100: 810 | AW100: 28 | AX100: 47 | AY100: 278 | AZ100: 10 | BC100: 1,493 | BD100: 118 | BE100: 77 | BF100: 192 | BG100: 623 | BH100: 483
A101: 040512 | B101: AREQUIPA | C101: AREQUIPA | D101: CAYLLOMA | E101: LLUTA | F101: 1255 | G101: PUESTO DE SALUD LLUTA | H101: 60 | I101: 763 | J101: 4 | K101: 4 | L101: 8 | M101: 11 | N101: 5 | O101: 6 | P101: 2 | Q101: 5 | R101: 9 | S101: 2 | T101: 7 | U101: 9 | V101: 11 | W101: 9 | X101: 4 | Y101: 13 | Z101: 7 | AA101: 13 | AB101: 13 | AC101: 5 | AD101: 37 | AE101: 35 | AF101: 43 | AG101: 46 | AH101: 51 | AI101: 56 | AJ101: 54 | AK101: 59 | AL101: 49 | AM101: 37 | AN101: 48 | AO101: 41 | AP101: 27 | AQ101: 29 | AR101: 1 | AS101: 3 | AT101: 1 | AU101: 4 | AV101: 440 | AW101: 23 | AX101: 36 | AY101: 145 | AZ101: 15 | BC101: 763 | BD101: 72 | BE101: 59 | BF101: 91 | BG101: 309 | BH101: 231
F102: 1256 | G102: PUESTO DE SALUD TAYA | H102: 23 | I102: 292 | J102: 1 | K102: 2 | L102: 3 | M102: 4 | N102: 2 | O102: 2 | P102: 1 | Q102: 2 | R102: 3 | S102: 1 | T102: 3 | U102: 4 | V102: 4 | W102: 4 | X102: 2 | Y102: 5 | Z102: 3 | AA102: 5 | AB102: 5 | AC102: 2 | AD102: 14 | AE102: 14 | AF102: 16 | AG102: 18 | AH102: 20 | AI102: 22 | AJ102: 21 | AK102: 23 | AL102: 19 | AM102: 14 | AN102: 18 | AO102: 15 | AP102: 11 | AQ102: 12 | AR102: 0 | AS102: 1 | AT102: 0 | AU102: 1 | AV102: 168 | AW102: 9 | AX102: 14 | AY102: 55 | AZ102: 6 | BC102: 292 | BD102: 28 | BE102: 22 | BF102: 35 | BG102: 119 | BH102: 89
A103: 040515 | B103: AREQUIPA | C103: AREQUIPA | D103: CAYLLOMA | E103: SAN ANTONIO DE CHUCA | F103: 1242 | G103: PUESTO DE SALUD IMATA | H103: 60 | I103: 710 | J103: 8 | K103: 7 | L103: 7 | M103: 7 | N103: 8 | O103: 7 | P103: 10 | Q103: 11 | R103: 10 | S103: 10 | T103: 16 | U103: 15 | V103: 6 | W103: 7 | X103: 7 | Y103: 11 | Z103: 16 | AA103: 17 | AB103: 14 | AC103: 8 | AD103: 45 | AE103: 46 | AF103: 39 | AG103: 48 | AH103: 48 | AI103: 46 | AJ103: 46 | AK103: 51 | AL103: 43 | AM103: 29 | AN103: 32 | AO103: 19 | AP103: 10 | AQ103: 8 | AR103: 1 | AS103: 5 | AT103: 3 | AU103: 8 | AV103: 363 | AW103: 25 | AX103: 34 | AY103: 146 | AZ103: 17 | BC103: 710 | BD103: 115 | BE103: 64 | BF103: 112 | BG103: 277 | BH103: 142
F104: 1243 | G104: PUESTO DE SALUD PILLONES | H104: 40 | I104: 474 | J104: 5 | K104: 5 | L104: 5 | M104: 4 | N104: 5 | O104: 4 | P104: 7 | Q104: 7 | R104: 6 | S104: 7 | T104: 11 | U104: 10 | V104: 4 | W104: 4 | X104: 5 | Y104: 8 | Z104: 10 | AA104: 12 | AB104: 9 | AC104: 5 | AD104: 30 | AE104: 30 | AF104: 26 | AG104: 32 | AH104: 32 | AI104: 30 | AJ104: 30 | AK104: 34 | AL104: 28 | AM104: 20 | AN104: 22 | AO104: 12 | AP104: 7 | AQ104: 6 | AR104: 0 | AS104: 3 | AT104: 2 | AU104: 5 | AV104: 242 | AW104: 16 | AX104: 22 | AY104: 98 | AZ104: 11 | BC104: 474 | BD104: 77 | BE104: 43 | BF104: 75 | BG104: 185 | BH104: 94
G107: MR SANDRITA PERES PEDREGAL | I107: =SUM(I108:I116) -> 80,519 | J107: =SUM(J108:J116) -> 978 | K107: =SUM(K108:K116) -> 998 | L107: =SUM(L108:L116) -> 989 | M107: =SUM(M108:M116) -> 1,222 | N107: =SUM(N108:N116) -> 1,224 | O107: =SUM(O108:O116) -> 1,331 | P107: =SUM(P108:P116) -> 1,335 | Q107: =SUM(Q108:Q116) -> 1,447 | R107: =SUM(R108:R116) -> 1,247 | S107: =SUM(S108:S116) -> 1,236 | T107: =SUM(T108:T116) -> 1,168 | U107: =SUM(U108:U116) -> 1,193 | V107: =SUM(V108:V116) -> 1,176 | W107: =SUM(W108:W116) -> 1,164 | X107: =SUM(X108:X116) -> 1,256 | Y107: =SUM(Y108:Y116) -> 1,146 | Z107: =SUM(Z108:Z116) -> 1,361 | AA107: =SUM(AA108:AA116) -> 1,329 | AB107: =SUM(AB108:AB116) -> 1,268 | AC107: =SUM(AC108:AC116) -> 1,181 | AD107: =SUM(AD108:AD116) -> 5,722 | AE107: =SUM(AE108:AE116) -> 6,664 | AF107: =SUM(AF108:AF116) -> 6,834 | AG107: =SUM(AG108:AG116) -> 6,601 | AH107: =SUM(AH108:AH116) -> 6,241 | AI107: =SUM(AI108:AI116) -> 5,714 | AJ107: =SUM(AJ108:AJ116) -> 4,749 | AK107: =SUM(AK108:AK116) -> 4,122 | AL107: =SUM(AL108:AL116) -> 3,234 | AM107: =SUM(AM108:AM116) -> 2,350 | AN107: =SUM(AN108:AN116) -> 1,810 | AO107: =SUM(AO108:AO116) -> 1,171 | AP107: =SUM(AP108:AP116) -> 592 | AQ107: =SUM(AQ108:AQ116) -> 467 | AR107: =SUM(AR108:AR116) -> 78 | AS107: =SUM(AS108:AS116) -> 497 | AT107: =SUM(AT108:AT116) -> 481 | AU107: =SUM(AU108:AU116) -> 1,037 | AV107: =SUM(AV108:AV116) -> 40,876 | AW107: =SUM(AW108:AW116) -> 2,987 | AX107: =SUM(AX108:AX116) -> 3,094 | AY107: =SUM(AY108:AY116) -> 19,577 | AZ107: =SUM(AZ108:AZ116) -> 2,226 | BC107: =SUM(BC108:BC116) -> 80,519 | BD107: 14,368 | BE107: 7,431 | BF107: 14,834 | BG107: 34,262 | BH107: =SUM(BH108:BH116) -> 9,624
A108: 040521 | B108: AREQUIPA | C108: AREQUIPA | D108: CAYLLOMA | E108: MAJES | F108: 1325 | G108: CENTRO DE SALUD SANDRITA PEREZ EL PEDREGAL | H108: 46 | I108: 36,343 | J108: 445 | K108: 452 | L108: 451 | M108: 554 | N108: 556 | O108: 602 | P108: 608 | Q108: 657 | R108: 567 | S108: 563 | T108: 528 | U108: 539 | V108: 531 | W108: 527 | X108: 574 | Y108: 519 | Z108: 615 | AA108: 601 | AB108: 575 | AC108: 536 | AD108: 2,585 | AE108: 3,019 | AF108: 3,092 | AG108: 2,998 | AH108: 2,828 | AI108: 2,585 | AJ108: 2,133 | AK108: 1,846 | AL108: 1,443 | AM108: 1,042 | AN108: 804 | AO108: 517 | AP108: 257 | AQ108: 198 | AR108: 36 | AS108: 225 | AT108: 220 | AU108: 471 | AV108: 18,419 | AW108: 1,347 | AX108: 1,399 | AY108: 8,857 | AZ108: 1,016 | BC108: 36,343 | BD108: 6,518 | BE108: 3,369 | BF108: 6,714 | BG108: 15,480 | BH108: 4,261
F109: 1326 | G109: CENTRO DE SALUD LA COLINA | H109: 41 | I109: 32,392 | J109: 396 | K109: 403 | L109: 402 | M109: 493 | N109: 495 | O109: 536 | P109: 541 | Q109: 585 | R109: 505 | S109: 501 | T109: 470 | U109: 480 | V109: 474 | W109: 470 | X109: 513 | Y109: 463 | Z109: 549 | AA109: 535 | AB109: 513 | AC109: 477 | AD109: 2,304 | AE109: 2,691 | AF109: 2,756 | AG109: 2,672 | AH109: 2,520 | AI109: 2,304 | AJ109: 1,900 | AK109: 1,645 | AL109: 1,287 | AM109: 928 | AN109: 716 | AO109: 460 | AP109: 229 | AQ109: 177 | AR109: 32 | AS109: 200 | AT109: 196 | AU109: 421 | AV109: 16,416 | AW109: 1,201 | AX109: 1,247 | AY109: 7,894 | AZ109: 904 | BC109: 32,392 | BD109: 5,810 | BE109: 3,002 | BF109: 5,985 | BG109: 13,798 | BH109: 3,797
F110: 1341 | G110: ASENTAMIENTO B-1 | H110: 7 | I110: 5,530 | J110: 68 | K110: 69 | L110: 69 | M110: 84 | N110: 85 | O110: 91 | P110: 92 | Q110: 100 | R110: 86 | S110: 86 | T110: 80 | U110: 82 | V110: 81 | W110: 80 | X110: 88 | Y110: 79 | Z110: 94 | AA110: 91 | AB110: 88 | AC110: 81 | AD110: 393 | AE110: 459 | AF110: 471 | AG110: 456 | AH110: 430 | AI110: 393 | AJ110: 324 | AK110: 281 | AL110: 220 | AM110: 158 | AN110: 122 | AO110: 79 | AP110: 39 | AQ110: 30 | AR110: 5 | AS110: 34 | AT110: 34 | AU110: 72 | AV110: 2,803 | AW110: 205 | AX110: 213 | AY110: 1,348 | AZ110: 154 | BC110: 5,530 | BD110: 992 | BE110: 513 | BF110: 1,022 | BG110: 2,356 | BH110: 648
F111: 1342 | G111: PUESTO DE SALUD B-2 | H111: 6 | I111: 4,740 | J111: 58 | K111: 59 | L111: 59 | M111: 72 | N111: 72 | O111: 78 | P111: 79 | Q111: 86 | R111: 74 | S111: 73 | T111: 69 | U111: 70 | V111: 69 | W111: 69 | X111: 75 | Y111: 68 | Z111: 80 | AA111: 78 | AB111: 75 | AC111: 70 | AD111: 337 | AE111: 394 | AF111: 403 | AG111: 391 | AH111: 369 | AI111: 337 | AJ111: 278 | AK111: 241 | AL111: 188 | AM111: 136 | AN111: 105 | AO111: 67 | AP111: 34 | AQ111: 26 | AR111: 5 | AS111: 29 | AT111: 29 | AU111: 62 | AV111: 2,402 | AW111: 176 | AX111: 182 | AY111: 1,155 | AZ111: 132 | BC111: 4,740 | BD111: 850 | BE111: 439 | BF111: 876 | BG111: 2,019 | BH111: 556
A112: 040511 | B112: AREQUIPA | C112: AREQUIPA | D112: CAYLLOMA | E112: LLUTA | F112: 1340 | G112: PUESTO DE SALUD QUERQUE | H112: 17 | I112: 216 | J112: 1 | K112: 1 | L112: 2 | M112: 3 | N112: 1 | O112: 2 | P112: 1 | Q112: 1 | R112: 2 | S112: 1 | T112: 2 | U112: 3 | V112: 3 | W112: 3 | X112: 1 | Y112: 4 | Z112: 2 | AA112: 4 | AB112: 4 | AC112: 2 | AD112: 11 | AE112: 10 | AF112: 12 | AG112: 13 | AH112: 14 | AI112: 16 | AJ112: 15 | AK112: 17 | AL112: 14 | AM112: 11 | AN112: 13 | AO112: 11 | AP112: 8 | AQ112: 9 | AR112: 0 | AS112: 1 | AT112: 0 | AU112: 1 | AV112: 124 | AW112: 7 | AX112: 10 | AY112: 41 | AZ112: 4 | BC112: 216 | BD112: 20 | BE112: 16 | BF112: 26 | BG112: 88 | BH112: 66
A113: 040121 | B113: AREQUIPA | C113: AREQUIPA | D113: AREQUIPA | E113: SANTA ISABEL DE SIGUAS | F113: 1336 | G113: SANTA ISABEL DE SIGUAS | H113: 74 | I113: 521 | J113: 4 | K113: 7 | L113: 2 | M113: 4 | N113: 2 | O113: 9 | P113: 8 | Q113: 9 | R113: 7 | S113: 4 | T113: 8 | U113: 8 | V113: 7 | W113: 8 | X113: 2 | Y113: 8 | Z113: 8 | AA113: 11 | AB113: 4 | AC113: 7 | AD113: 38 | AE113: 36 | AF113: 39 | AG113: 25 | AH113: 27 | AI113: 34 | AJ113: 38 | AK113: 34 | AL113: 34 | AM113: 28 | AN113: 20 | AO113: 17 | AP113: 14 | AQ113: 12 | AR113: 0 | AS113: 4 | AT113: 0 | AU113: 4 | AV113: 281 | AW113: 21 | AX113: 19 | AY113: 109 | AZ113: 5 | BC113: 521 | BD113: 72 | BE113: 42 | BF113: 85 | BG113: 199 | BH113: 123
F114: 1378 | G114: PUESTO DE SALUD SONDOR | H114: 13 | I114: 92 | J114: 1 | K114: 1 | L114: 0 | M114: 1 | N114: 1 | O114: 2 | P114: 1 | Q114: 1 | R114: 1 | S114: 1 | T114: 1 | U114: 1 | V114: 1 | W114: 2 | X114: 0 | Y114: 1 | Z114: 1 | AA114: 2 | AB114: 1 | AC114: 1 | AD114: 7 | AE114: 6 | AF114: 7 | AG114: 5 | AH114: 5 | AI114: 6 | AJ114: 7 | AK114: 6 | AL114: 6 | AM114: 5 | AN114: 3 | AO114: 3 | AP114: 2 | AQ114: 2 | AR114: 0 | AS114: 1 | AT114: 0 | AU114: 1 | AV114: 49 | AW114: 4 | AX114: 3 | AY114: 19 | AZ114: 1 | BC114: 92 | BD114: 12 | BE114: 8 | BF114: 15 | BG114: 35 | BH114: 22
F115: 1337 | G115: PUESTO DE SALUD PITAY | H115: 13 | I115: 92 | J115: 1 | K115: 1 | L115: 0 | M115: 1 | N115: 1 | O115: 2 | P115: 1 | Q115: 1 | R115: 1 | S115: 1 | T115: 1 | U115: 1 | V115: 1 | W115: 2 | X115: 0 | Y115: 1 | Z115: 1 | AA115: 2 | AB115: 1 | AC115: 1 | AD115: 7 | AE115: 6 | AF115: 7 | AG115: 5 | AH115: 5 | AI115: 6 | AJ115: 7 | AK115: 6 | AL115: 6 | AM115: 5 | AN115: 3 | AO115: 3 | AP115: 2 | AQ115: 2 | AR115: 0 | AS115: 1 | AT115: 0 | AU115: 1 | AV115: 49 | AW115: 4 | AX115: 3 | AY115: 19 | AZ115: 1 | BC115: 92 | BD115: 12 | BE115: 8 | BF115: 15 | BG115: 35 | BH115: 22
A116: 040119 | B116: AREQUIPA | C116: AREQUIPA | D116: AREQUIPA | E116: SAN JUAN DE SIGUAS | F116: 1339 | G116: PUESTO DE SALUD SAN JUAN DE SIGUAS - TAMBILLO | H116: 100 | I116: 593 | J116: 4 | K116: 5 | L116: 4 | M116: 10 | N116: 11 | O116: 9 | P116: 4 | Q116: 7 | R116: 4 | S116: 6 | T116: 9 | U116: 9 | V116: 9 | W116: 3 | X116: 3 | Y116: 3 | Z116: 11 | AA116: 5 | AB116: 7 | AC116: 6 | AD116: 40 | AE116: 43 | AF116: 47 | AG116: 36 | AH116: 43 | AI116: 33 | AJ116: 47 | AK116: 46 | AL116: 36 | AM116: 37 | AN116: 24 | AO116: 14 | AP116: 7 | AQ116: 11 | AR116: 0 | AS116: 2 | AT116: 2 | AU116: 4 | AV116: 333 | AW116: 22 | AX116: 18 | AY116: 135 | AZ116: 9 | BC116: 593 | BD116: 82 | BE116: 34 | BF116: 96 | BG116: 252 | BH116: 129
G119: MR ALTO SELVA ALEGRE | I119: =SUM(I120:I125) -> 96,079 | J119: =SUM(J120:J125) -> 901 | K119: 945 | L119: 918 | M119: 898 | N119: 1,041 | O119: 1,320 | P119: 1,513 | Q119: 1,571 | R119: 1,551 | S119: 1,460 | T119: 1,313 | U119: 1,371 | V119: 1,410 | W119: 1,396 | X119: 1,400 | Y119: 1,362 | Z119: 1,431 | AA119: 1,397 | AB119: 1,296 | AC119: 1,403 | AD119: 7,375 | AE119: 8,682 | AF119: 8,480 | AG119: 7,119 | AH119: 6,809 | AI119: 6,135 | AJ119: 5,637 | AK119: 5,394 | AL119: 4,753 | AM119: 3,417 | AN119: 2,450 | AO119: 1,643 | AP119: 1,087 | AQ119: 1,201 | AR119: 71 | AS119: 462 | AT119: 439 | AU119: 955 | AV119: 48,662 | AW119: 3,310 | AX119: 3,346 | AY119: 22,546 | AZ119: 1,526 | BC119: =SUM(BC120:BC125) -> 96,079 | BD119: =SUM(BD120:BD125) -> 14,802 | BE119: =SUM(BE120:BE125) -> 8,396 | BF119: =SUM(BF120:BF125) -> 18,756 | BG119: =SUM(BG120:BG125) -> 39,574 | BH119: =SUM(BH120:BH125) -> 14,551
A120: 040103 | B120: AREQUIPA | C120: AREQUIPA | D120: AREQUIPA | E120: ALTO SELVA ALEGRE | F120: 1291 | G120: CENTRO DE SALUD ALTO SELVA ALEGRE | H120: 25 | I120: 24,020 | J120: 225 | K120: 236 | L120: 230 | M120: 225 | N120: 260 | O120: 330 | P120: 378 | Q120: 393 | R120: 388 | S120: 365 | T120: 328 | U120: 343 | V120: 353 | W120: 349 | X120: 350 | Y120: 341 | Z120: 358 | AA120: 349 | AB120: 324 | AC120: 351 | AD120: 1,844 | AE120: 2,171 | AF120: 2,120 | AG120: 1,780 | AH120: 1,702 | AI120: 1,534 | AJ120: 1,409 | AK120: 1,349 | AL120: 1,188 | AM120: 854 | AN120: 613 | AO120: 411 | AP120: 272 | AQ120: 300 | AR120: 18 | AS120: 116 | AT120: 110 | AU120: 239 | AV120: 12,166 | AW120: 828 | AX120: 837 | AY120: 5,637 | AZ120: 382 | BC120: 24,020 | BD120: 3,701 | BE120: 2,099 | BF120: 4,689 | BG120: 9,894 | BH120: 3,638
F121: 1300 | G121: APURIMAC | H121: 11 | I121: 10,569 | J121: 99 | K121: 104 | L121: 101 | M121: 99 | N121: 115 | O121: 145 | P121: 166 | Q121: 173 | R121: 171 | S121: 161 | T121: 144 | U121: 151 | V121: 155 | W121: 154 | X121: 154 | Y121: 150 | Z121: 157 | AA121: 154 | AB121: 143 | AC121: 154 | AD121: 811 | AE121: 955 | AF121: 933 | AG121: 783 | AH121: 749 | AI121: 675 | AJ121: 620 | AK121: 593 | AL121: 523 | AM121: 376 | AN121: 270 | AO121: 181 | AP121: 120 | AQ121: 132 | AR121: 8 | AS121: 51 | AT121: 48 | AU121: 105 | AV121: 5,353 | AW121: 364 | AX121: 368 | AY121: 2,480 | AZ121: 168 | BC121: 10,569 | BD121: 1,628 | BE121: 924 | BF121: 2,063 | BG121: 4,353 | BH121: 1,601
F122: 1302 | G122: INDEPENDENCIA | H122: 26 | I122: 24,980 | J122: 235 | K122: 246 | L122: 238 | M122: 232 | N122: 270 | O122: 344 | P122: 394 | Q122: 408 | R122: 403 | S122: 379 | T122: 342 | U122: 356 | V122: 366 | W122: 362 | X122: 364 | Y122: 354 | Z122: 372 | AA122: 362 | AB122: 336 | AC122: 366 | AD122: 1,917 | AE122: 2,257 | AF122: 2,204 | AG122: 1,851 | AH122: 1,771 | AI122: 1,594 | AJ122: 1,466 | AK122: 1,403 | AL122: 1,237 | AM122: 888 | AN122: 636 | AO122: 427 | AP122: 282 | AQ122: 313 | AR122: 18 | AS122: 120 | AT122: 114 | AU122: 247 | AV122: 12,652 | AW122: 860 | AX122: 869 | AY122: 5,861 | AZ122: 396 | BC122: 24,980 | BD122: 3,849 | BE122: 2,182 | BF122: 4,876 | BG122: 10,289 | BH122: 3,783
F123: 1301 | G123: LEONES DEL MISTI | H123: 10 | I123: 9,608 | J123: 90 | K123: 95 | L123: 92 | M123: 90 | N123: 104 | O123: 132 | P123: 151 | Q123: 157 | R123: 155 | S123: 146 | T123: 131 | U123: 137 | V123: 141 | W123: 140 | X123: 140 | Y123: 136 | Z123: 143 | AA123: 140 | AB123: 130 | AC123: 140 | AD123: 738 | AE123: 868 | AF123: 848 | AG123: 712 | AH123: 681 | AI123: 614 | AJ123: 564 | AK123: 539 | AL123: 475 | AM123: 342 | AN123: 245 | AO123: 164 | AP123: 109 | AQ123: 120 | AR123: 7 | AS123: 46 | AT123: 44 | AU123: 96 | AV123: 4,866 | AW123: 331 | AX123: 335 | AY123: 2,255 | AZ123: 153 | BC123: 9,608 | BD123: 1,480 | BE123: 840 | BF123: 1,876 | BG123: 3,957 | BH123: 1,455
F124: 1303 | G124: SAN JUAN BAUTISTA | H124: 16 | I124: 15,373 | J124: 144 | K124: 151 | L124: 147 | M124: 144 | N124: 167 | O124: 211 | P124: 242 | Q124: 251 | R124: 248 | S124: 234 | T124: 210 | U124: 219 | V124: 226 | W124: 223 | X124: 224 | Y124: 218 | Z124: 229 | AA124: 224 | AB124: 207 | AC124: 224 | AD124: 1,180 | AE124: 1,389 | AF124: 1,357 | AG124: 1,139 | AH124: 1,089 | AI124: 982 | AJ124: 902 | AK124: 863 | AL124: 760 | AM124: 547 | AN124: 392 | AO124: 263 | AP124: 174 | AQ124: 192 | AR124: 11 | AS124: 74 | AT124: 70 | AU124: 153 | AV124: 7,786 | AW124: 530 | AX124: 535 | AY124: 3,607 | AZ124: 244 | BC124: 15,373 | BD124: 2,368 | BE124: 1,343 | BF124: 3,001 | BG124: 6,332 | BH124: 2,328
F125: 1304 | G125: HEROES DEL CENEPA | H125: 12 | I125: 11,529 | J125: 108 | K125: 113 | L125: 110 | M125: 108 | N125: 125 | O125: 158 | P125: 182 | Q125: 189 | R125: 186 | S125: 175 | T125: 158 | U125: 165 | V125: 169 | W125: 168 | X125: 168 | Y125: 163 | Z125: 172 | AA125: 168 | AB125: 156 | AC125: 168 | AD125: 885 | AE125: 1,042 | AF125: 1,018 | AG125: 854 | AH125: 817 | AI125: 736 | AJ125: 676 | AK125: 647 | AL125: 570 | AM125: 410 | AN125: 294 | AO125: 197 | AP125: 130 | AQ125: 144 | AR125: 9 | AS125: 55 | AT125: 53 | AU125: 115 | AV125: 5,839 | AW125: 397 | AX125: 402 | AY125: 2,706 | AZ125: 183 | BC125: 11,529 | BD125: 1,776 | BE125: 1,008 | BF125: 2,251 | BG125: 4,749 | BH125: 1,746
G128: MR MARIANO MELGAR | I128: =SUM(I129:I130) -> 35,868 | J128: 337 | K128: 355 | L128: 360 | M128: 372 | N128: 375 | O128: 432 | P128: 547 | Q128: 532 | R128: 557 | S128: 533 | T128: 477 | U128: 472 | V128: 518 | W128: 502 | X128: 519 | Y128: 537 | Z128: 542 | AA128: 504 | AB128: 507 | AC128: 518 | AD128: 2,589 | AE128: 2,919 | AF128: 2,927 | AG128: 2,521 | AH128: 2,577 | AI128: 2,482 | AJ128: 2,243 | AK128: 2,067 | AL128: 1,772 | AM128: 1,391 | AN128: 1,112 | AO128: 755 | AP128: 493 | AQ128: 528 | AR128: 23 | AS128: 163 | AT128: 173 | AU128: 357 | AV128: 18,239 | AW128: 1,231 | AX128: 1,304 | AY128: 8,079 | AZ128: =SUM(AZ129:AZ130) -> 898 | BC128: =SUM(BC129:BC130) -> 35,868 | BD128: =SUM(BD129:BD130) -> 5,347 | BE128: 3,121 | BF128: 6,532 | BG128: 14,819 | BH128: 6,052
A129: 040110 | B129: AREQUIPA | C129: AREQUIPA | D129: AREQUIPA | E129: MARIANO MELGAR | F129: 1294 | G129: CENTRO DE SALUD MARIANO MELGAR | H129: 30 | I129: 21,520 | J129: 202 | K129: 213 | L129: 216 | M129: 224 | N129: 225 | O129: 260 | P129: 329 | Q129: 319 | R129: 334 | S129: 319 | T129: 287 | U129: 283 | V129: 311 | W129: 302 | X129: 312 | Y129: 323 | Z129: 325 | AA129: 302 | AB129: 305 | AC129: 311 | AD129: 1,553 | AE129: 1,752 | AF129: 1,756 | AG129: 1,512 | AH129: 1,546 | AI129: 1,489 | AJ129: 1,346 | AK129: 1,240 | AL129: 1,063 | AM129: 835 | AN129: 667 | AO129: 453 | AP129: 295 | AQ129: 317 | AR129: 13 | AS129: 97 | AT129: 104 | AU129: 214 | AV129: 10,944 | AW129: 739 | AX129: 783 | AY129: 4,847 | AZ129: 539 | BC129: 21,520 | BD129: 3,209 | BE129: 1,873 | BF129: 3,919 | BG129: 8,892 | BH129: 3,631
F130: 1308 | G130: PUESTO DE SALUD ATALAYA | H130: 20 | I130: 14,348 | J130: 135 | K130: 142 | L130: 144 | M130: 148 | N130: 150 | O130: 172 | P130: 218 | Q130: 213 | R130: 223 | S130: 214 | T130: 190 | U130: 189 | V130: 207 | W130: 200 | X130: 207 | Y130: 214 | Z130: 217 | AA130: 202 | AB130: 202 | AC130: 207 | AD130: 1,036 | AE130: 1,167 | AF130: 1,171 | AG130: 1,009 | AH130: 1,031 | AI130: 993 | AJ130: 897 | AK130: 827 | AL130: 709 | AM130: 556 | AN130: 445 | AO130: 302 | AP130: 198 | AQ130: 211 | AR130: 10 | AS130: 66 | AT130: 69 | AU130: 143 | AV130: 7,295 | AW130: 492 | AX130: 521 | AY130: 3,232 | AZ130: 359 | BC130: 14,348 | BD130: 2,138 | BE130: 1,248 | BF130: 2,613 | BG130: 5,927 | BH130: 2,421
G133: MR GENERALISIMO SAN MARTIN | I133: =SUM(I134:I136) -> 35,870 | J133: =SUM(J134:J136) -> 337 | K133: 355 | L133: 360 | M133: 370 | N133: 375 | O133: 430 | P133: 545 | Q133: 532 | R133: 557 | S133: 535 | T133: 475 | U133: 472 | V133: 518 | W133: 500 | X133: 518 | Y133: 535 | Z133: 543 | AA133: 505 | AB133: 505 | AC133: 518 | AD133: 2,590 | AE133: 2,918 | AF133: 2,928 | AG133: 2,522 | AH133: 2,578 | AI133: 2,482 | AJ133: 2,243 | AK133: 2,067 | AL133: 1,773 | AM133: 1,390 | AN133: 1,112 | AO133: 755 | AP133: 495 | AQ133: 528 | AR133: 25 | AS133: 165 | AT133: 173 | AU133: 357 | AV133: 18,238 | AW133: 1,230 | AX133: 1,303 | AY133: 8,080 | AZ133: 898 | BC133: =SUM(BC134:BC136) -> 35,870 | BD133: =SUM(BD134:BD136) -> 5,345 | BE133: =SUM(BE134:BE136) -> 3,120 | BF133: =SUM(BF134:BF136) -> 6,532 | BG133: =SUM(BG134:BG136) -> 14,818 | BH133: =SUM(BH134:BH136) -> 6,052
A134: 040110 | B134: AREQUIPA | C134: AREQUIPA | D134: AREQUIPA | E134: MARIANO MELGAR | F134: 1295 | G134: CENTRO DE SALUD GENERALISIMO SAN MARTIN | H134: 20 | I134: 14,348 | J134: 135 | K134: 142 | L134: 144 | M134: 148 | N134: 150 | O134: 172 | P134: 218 | Q134: 213 | R134: 223 | S134: 214 | T134: 190 | U134: 189 | V134: 207 | W134: 200 | X134: 207 | Y134: 214 | Z134: 217 | AA134: 202 | AB134: 202 | AC134: 207 | AD134: 1,036 | AE134: 1,167 | AF134: 1,171 | AG134: 1,009 | AH134: 1,031 | AI134: 993 | AJ134: 897 | AK134: 827 | AL134: 709 | AM134: 556 | AN134: 445 | AO134: 302 | AP134: 198 | AQ134: 211 | AR134: 10 | AS134: 66 | AT134: 69 | AU134: 143 | AV134: 7,295 | AW134: 492 | AX134: 521 | AY134: 3,232 | AZ134: 359 | BC134: 14,348 | BD134: 2,138 | BE134: 1,248 | BF134: 2,613 | BG134: 5,927 | BH134: 2,421
F135: 1309 | G135: JERUSALEN | H135: 20 | I135: 14,348 | J135: 135 | K135: 142 | L135: 144 | M135: 148 | N135: 150 | O135: 172 | P135: 218 | Q135: 213 | R135: 223 | S135: 214 | T135: 190 | U135: 189 | V135: 207 | W135: 200 | X135: 207 | Y135: 214 | Z135: 217 | AA135: 202 | AB135: 202 | AC135: 207 | AD135: 1,036 | AE135: 1,167 | AF135: 1,171 | AG135: 1,009 | AH135: 1,031 | AI135: 993 | AJ135: 897 | AK135: 827 | AL135: 709 | AM135: 556 | AN135: 445 | AO135: 302 | AP135: 198 | AQ135: 211 | AR135: 10 | AS135: 66 | AT135: 69 | AU135: 143 | AV135: 7,295 | AW135: 492 | AX135: 521 | AY135: 3,232 | AZ135: 359 | BC135: 14,348 | BD135: 2,138 | BE135: 1,248 | BF135: 2,613 | BG135: 5,927 | BH135: 2,421
